Workbook

Sheet Help
A1: Visit Youtube Channel For Help:-
A2: http://youtu.be/EexJyQYhFPs

Sheet Master
B2: t; fgUn | G2: oUns ekrje~ | N2: t; fgUn
B4: RESULT PREPARATION PROGRAM | Y4: 2019-20 | Z4: PRIMARY
K5: Subject Detail | M5: Staff Detail | Y5: 2019-21 | Z5: UPPER PRIMARY
B6: SESSION | D6: :- | E6: 2021-22 | K6: Sr. No. | L6: Subject's Name | M6: Sr. No. | N6: Teacher's Name | O6: Sr. No. | P6: Teacher's Name | Y6: 2019-22 | Z6: SECONDARY
K7: =IF(L7>1,1,0) -> 1 | L7: HINDI | M7: =IF(N7>1,1,0) -> 1 | N7: A | O7: =IF(P7>1,M20+1,0) -> 0 | Y7: 2019-21 | Z7: UPPER PRIMARY
B8: SCHOOL'S FULL NAME | D8: :- | E8: Govt. Sr. Secondary School Raimalwada | K8: =IF(L8>1,K7+1,0) -> 2 | L8: ENGLISH | M8: =IF(N8>1,M7+1,0) -> 2 | N8: B | O8: =IF(P8>1,O7+1,0) -> 0
K9: =IF(L9>1,K8+1,0) -> 3 | L9: SANSKRIT | M9: =IF(N9>1,M8+1,0) -> 3 | N9: C | O9: =IF(P9>1,O8+1,0) -> 0 | Y9: 2019-22 | Z9: SECONDARY
K10: =IF(L10>1,K9+1,0) -> 4 | L10: SCIENCE | M10: =IF(N10>1,M9+1,0) -> 4 | N10: D | O10: 0 | Y10: 2019-23 | Z10: SR. SECONDARY
B11: ADDRESS | D11: :- | E11: P.S.-Bapini (Jodhpur) | K11: =IF(L11>1,K10+1,0) -> 5 | L11: MATHEMATICS | M11: =IF(N11>1,M10+1,0) -> 5 | N11: E | O11: 0
K12: =IF(L12>1,K11+1,0) -> 6 | L12: SOCIAL SCIENCE | M12: =IF(N12>1,M11+1,0) -> 6 | N12: F | O12: 0 | R12: DEVOPED BY:-UMMED TARAD | Y12: 2019-24
K13: =IF(L13>1,K12+1,0) -> 7 | L13: FOIT | M13: 7 | N13: G | O13: 0 | Y13: 2019-23 | Z13: SR. SECONDARY
B14: U-DISE CODE | D14: :- | E14: 08151106901 | K14: 8 | L14: Health & Phy. Edu. | M14: 0 | O14: 0 | Y14: 2019-24
K15: 9 | L15: S.U.P.W. | M15: 0 | O15: 0 | R15: (GSSS RAIMALWADA) | Y15: 2019-25
B16: NAME OF PRINCIPAL | D16: :- | K16: 10 | L16: H & C RAJ | M16: 0 | O16: 0 | R16: MOBILE NO.-9166973141 | Y16: 2019-26
K17: 0 | M17: 0 | O17: 0
B18: SCHOOL TYPE | D18: :- | E18: Sr. Secondary | K18: 0 | M18: 0 | O18: 0
K19: 0 | M19: 0 | O19: 0 | Y19: 2019-25
B20: Result Date | D20: :- | E20: 2022-04-25 | K20: 0 | M20: 0 | O20: 0 | R20: EMAIL ID-ummedtrdedu@gmail.com | Y20: 2019-26
Y21: 2019-27

Sheet Class-9
C1: =Master!E8 -> Govt. Sr. Secondary School Raimalwada | DP1: =Master!E8 -> Govt. Sr. Secondary School Raimalwada
C2: Print Report Card | I2: Go To Result Sheet | L2: Result Date:- | T2: =Master!E20 -> 2022-04-25 | Z2: Result Entry
C3: School U-Dise Code :- | G3: =Master!E14 -> 08151106901 | I3: Session :- | J3: =Master!E6 -> 2021-22 | L3: HINDI | Z3: ENGLISH | AN3: SANSKRIT | BB3: SCIENCE | BP3: MATHEMATICS | CD3: SOCIAL SCIENCE | CR3: Foundation Of Information Tech. | DD3: Health & Phy. Edu. | DP3: S.U.P.W. | DV3: ART EDUCATION | EB3: H & C RAJ | EN3: Attendance | EQ3: Statics | EX3: Remark | EY3: Subject Wise Result | FE3: Subject Which Failed | FF3: Subject Which supplymentry | FG3: Subject Which 1 Grace | FH3: Subject Which 2 Grace | FI3: Subject Which Re-Exam
C4: Class - | G4: 9 | I4: Saction :- | J4: (A) | L4: 0 | Z4: 0 | AN4: 0 | BB4: 0 | BP4: 0 | CD4: 0 | CR4: B | DD4: D | DP4: SANWATA RAM | DV4: KAMLA CHHAPER | EB4: D | EN4: Total Attendance | EO4: Student's Attendance | EP4: Attandance % | EQ4: Total Maximum Marks | ER4: Obtained Marks | ES4: Percentage | ET4: Overall Div. | EU4: Result | EW4: Position in Class
C5: Student Related Basic Details | L5: Tests | N5: Total Tests | O5: Half Yearly | R5: Yearly Exam | U5: Total Marks | V5: MARKS % | W5: 2T+E OR 2E+T | X5: Result | Y5: Div. | Z5: Tests | AB5: Total Tests | AC5: Half Yearly | AF5: Yearly Exam | AI5: Total Marks | AJ5: MARKS % | AK5: 2T+E OR 2E+T | AL5: Result | AM5: Div. | AN5: Tests | AP5: Total Tests | AQ5: Half Yearly | AT5: Yearly Exam | AW5: Total Marks | AX5: MARKS % | AY5: 2T+E OR 2E+T | AZ5: Result | BA5: Div. | BB5: Tests | BD5: Total Tests | BE5: Half Yearly | BH5: Yearly Exam | BK5: Total Marks | BL5: MARKS % | BM5: 2T+E OR 2E+T | BN5: Result | BO5: Div. | BP5: Tests | BR5: Total Tests | BS5: Half Yearly | BV5: Yearly Exam | BY5: Total Marks | BZ5: MARKS % | CA5: 2T+E OR 2E+T | CB5: Result | CC5: Div. | CD5: Tests | CF5: Total Tests | CG5: Half Yearly | CJ5: Yearly Exam | CM5: Total Marks | CN5: MARKS % | CO5: 2T+E OR 2E+T | CP5: Result | CQ5: Div. | CR5: Tests | CT5: Total Tests | CU5: Half Yearly | CX5: Yearly Exam | DA5: Total Marks | DB5: MARKS % | DC5: Grd. | DD5: Tests | DF5: Total Tests | DG5: Half Yearly | DJ5: Yearly Exam | DM5: Total Marks | DN5: MARKS % | DO5: Grd. | DP5: Compulsory Tendency | DQ5: Alternative Tendency | DR5: Camp | DS5: Total | DT5: MARKS % | DU5: Grd. | DV5: Theory | DW5: Practical | DX5: Presentation Work | DY5: Total | DZ5: MARKS % | EA5: Grd. | EB5: Tests | ED5: Total Tests | EE5: Half Yearly | EH5: Yearly Exam | EK5: Total Marks | EL5: MARKS % | EM5: Grd. | EY5: Hindi | EZ5: English | FA5: Sanskrit | FB5: Math | FC5: Science | FD5: social Science
C6: Sr. No. | D6: Class | E6: Scholar Number | F6: Cast/ Cat. | G6: Roll Number | H6: Student's Name | I6: Father's Name | J6: Mother's Name | K6: Date Of Birth | L6: First Test | M6: Second Test | O6: Written | P6: Internal Evo. | Q6: Total H.Y. | R6: Written | S6: Internal Evo. | T6: Total Yearly | Y6: D/I/II/III/S | Z6: First Test | AA6: Second Test | AC6: Written | AD6: Internal Evo. | AE6: Total H.Y. | AF6: Written | AG6: Internal Evo. | AH6: Total Yearly | AM6: D/I/II/III/S | AN6: First Test | AO6: Second Test | AQ6: Written | AR6: Internal Evo. | AS6: Total H.Y. | AT6: Written | AU6: Internal Evo. | AV6: Total Yearly | BA6: D/I/II/III/S | BB6: First Test | BC6: Second Test | BE6: Written | BF6: Internal Evo. | BG6: Total H.Y. | BH6: Written | BI6: Internal Evo. | BJ6: Total Yearly | BO6: D/I/II/III/S | BP6: First Test | BQ6: Second Test | BS6: Written | BT6: Internal Evo. | BU6: Total H.Y. | BV6: Written | BW6: Internal Evo. | BX6: Total Yearly | CC6: D/I/II/III/S | CD6: First Test | CE6: Second Test | CG6: Written | CH6: Internal Evo. | CI6: Total H.Y. | CJ6: Written | CK6: Internal Evo. | CL6: Total Yearly | CQ6: D/I/II/III/S | CR6: First Test | CS6: Second Test | CU6: Written | CV6: Internal Evo. | CW6: Total H.Y. | CX6: Written | CY6: Internal Evo. | CZ6: Total Yearly | DC6: A+/A/B/C/D | DD6: First Test | DE6: Second Test | DG6: Written | DH6: Internal Evo. | DI6: Total H.Y. | DJ6: Written | DK6: Internal Evo. | DL6: Total Yearly | DO6: A+/A/B/C/D | DU6: A+/A/B/C/D | EA6: A+/A/B/C/D | EB6: First Test | EC6: Second Test | EE6: Written | EF6: Internal Evo. | EG6: Total H.Y. | EH6: Written | EI6: Internal Evo. | EJ6: Total Yearly | EM6: A+/A/B/C/D
L7: 20 | M7: 20 | N7: =SUM(L7:M7) -> 40 | O7: 48 | P7: 12 | Q7: =SUM(O7,P7) -> 60 | R7: 80 | S7: 20 | T7: =IF(S7="NA",R7,(R7+S7)) -> 100 | U7: =SUM(N7,Q7,T7) -> 200 | Z7: 20 | AA7: 20 | AB7: =SUM(Z7:AA7) -> 40 | AC7: 48 | AD7: 12 | AE7: =SUM(AC7,AD7) -> 60 | AF7: 80 | AG7: 20 | AH7: =IF(AG7="NA",AF7,(AF7+AG7)) -> 100 | AI7: =SUM(AB7,AE7,AH7) -> 200 | AN7: 20 | AO7: 20 | AP7: =SUM(AN7:AO7) -> 40 | AQ7: 48 | AR7: 12 | AS7: =SUM(AQ7,AR7) -> 60 | AT7: 80 | AU7: 20 | AV7: =IF(AU7="NA",AT7,(AT7+AU7)) -> 100 | AW7: =SUM(AP7,AS7,AV7) -> 200 | BB7: 20 | BC7: 20 | BD7: =SUM(BB7:BC7) -> 40 | BE7: 48 | BF7: 12 | BG7: =SUM(BE7,BF7) -> 60 | BH7: 80 | BI7: 20 | BJ7: =IF(BI7="NA",BH7,(BH7+BI7)) -> 100 | BK7: =SUM(BD7,BG7,BJ7) -> 200 | BP7: 20 | BQ7: 20 | BR7: =SUM(BP7:BQ7) -> 40 | BS7: 48 | BT7: 12 | BU7: =SUM(BS7,BT7) -> 60 | BV7: 80 | BW7: 20 | BX7: =IF(BW7="NA",BV7,(BV7+BW7)) -> 100 | BY7: =SUM(BR7,BU7,BX7) -> 200 | CD7: 20 | CE7: 20 | CF7: =SUM(CD7:CE7) -> 40 | CG7: 48 | CH7: 12 | CI7: =SUM(CG7,CH7) -> 60 | CJ7: 80 | CK7: 20 | CL7: =IF(CK7="NA",CJ7,(CJ7+CK7)) -> 100 | CM7: =SUM(CF7,CI7,CL7) -> 200 | CR7: 20 | CS7: 20 | CT7: =SUM(CR7:CS7) -> 40 | CU7: 48 | CV7: 12 | CW7: =SUM(CU7,CV7) -> 60 | CX7: 80 | CY7: 20 | CZ7: =IF(CY7="NA",CX7,(CX7+CY7)) -> 100 | DA7: =SUM(CT7,CW7,CZ7) -> 200 | DD7: 20 | DE7: 20 | DF7: =SUM(DD7:DE7) -> 40 | DG7: 48 | DH7: 12 | DI7: =SUM(DG7,DH7) -> 60 | DJ7: 80 | DK7: 20 | DL7: =IF(DK7="NA",DJ7,(DJ7+DK7)) -> 100 | DM7: =SUM(DF7,DI7,DL7) -> 200 | DP7: 25 | DQ7: 45 | DR7: 30 | DS7: =SUM(DP7:DR7) -> 100 | DV7: 25 | DW7: 60 | DX7: 15 | DY7: =SUM(DV7:DX7) -> 100 | EB7: 20 | EC7: 20 | ED7: =SUM(EB7:EC7) -> 40 | EE7: 48 | EF7: 12 | EG7: =SUM(EE7,EF7) -> 60 | EH7: 80 | EI7: 20 | EJ7: =IF(EI7="NA",EH7,(EH7+EI7)) -> 100 | EK7: =SUM(ED7,EG7,EJ7) -> 200 | FL7: =CR3 -> Foundation Of Information Tech. | FP7: =DD3 -> Health & Phy. Edu. | FT7: =DP3 -> S.U.P.W. | FX7: =DV3 -> ART EDUCATION | GB7: =EB3 -> H & C RAJ
C8: 0 | D8: 0 | E8: 0 | F8: 0 | H8: 0 | I8: 0 | J8: 0 | K8: 0 | N8: =SUM(L8:M8) -> 0 | O8: 0 | P8: =IF($P$7="NA",O8,IF($P$7<=100,ROUNDUP(O8*$P$7/$O$7,0))) -> 0 | Q8: =SUM(N8,O8) -> 0 | R8: =SUM(#REF!,P8) ->  | S8: 0 | T8: 0 | U8: =IF($S$7="NA",#REF!+P8+T8,#REF!+P8+S8) ->  | V8: =IF(OR(U8="",$U$7=""),"",ROUNDUP(U8/$U$7*100,0)) ->  | W8: =IF(AND(OR(L8="ab",L8="ml"),OR(M8="ab",M8="ml"),OR(#REF!="ab",#REF!="ml")),"AB",IF(AND(OR(L8="ab",L8="ml"),OR(M8="ab",M8="ml"),OR(O8="ab",O8="ml")),"AB",IF(AND(OR(L8="ab",L8="ml"),OR(O8="ab",O8="ml"),OR(#REF!="ab",#REF!="ml")),"AB",IF(AND(OR(O8="ab",O8="ml"),OR(M8="ab",M8="ml"),OR(#REF!="ab",#REF!="ml")),"AB","")))) ->  | X8: =IF(OR($G8="NSO",$G8="",O8=""),"",IF(OR(W8="AB",O8="ab"),"AB",IF(V8>36,"P",IF(V8>34,"G2",IF(V8>31,"G1",IF(V8>25,"S","F")))))) ->  | Y8: =IF(OR(X8="",X8=0,X8="S",X8="F",X8="AB"),X8,IF(V8>=75,"D",IF(V8>=60,"I",IF(V8>=48,"II",IF(V8>=36,"III",#REF!))))) ->  | AB8: =SUM(Z8:AA8) -> 0 | AC8: 0 | AD8: =IF($P$7="NA",AC8,IF($P$7<=100,ROUNDUP(AC8*$P$7/$O$7,0))) -> 0 | AE8: =SUM(AB8,AC8) -> 0 | AF8: =SUM(#REF!,AD8) ->  | AG8: 0 | AH8: 0 | AI8: =IF($S$7="NA",#REF!+AD8+AH8,#REF!+AD8+AG8) ->  | AJ8: =IF(OR(AI8="",$U$7=""),"",ROUNDUP(AI8/$U$7*100,0)) ->  | AK8: =IF(AND(OR(Z8="ab",Z8="ml"),OR(AA8="ab",AA8="ml"),OR(#REF!="ab",#REF!="ml")),"AB",IF(AND(OR(Z8="ab",Z8="ml"),OR(AA8="ab",AA8="ml"),OR(AC8="ab",AC8="ml")),"AB",IF(AND(OR(Z8="ab",Z8="ml"),OR(AC8="ab",AC8="ml"),OR(#REF!="ab",#REF!="ml")),"AB",IF(AND(OR(AC8="ab",AC8="ml"),OR(AA8="ab",AA8="ml"),OR(#REF!="ab",#REF!="ml")),"AB","")))) ->  | AL8: =IF(OR($G8="NSO",$G8="",AC8=""),"",IF(OR(AK8="AB",AC8="ab"),"AB",IF(AJ8>36,"P",IF(AJ8>34,"G2",IF(AJ8>31,"G1",IF(AJ8>25,"S","F")))))) ->  | AM8: =IF(OR(AL8="",AL8=0,AL8="S",AL8="F",AL8="AB"),AL8,IF(AJ8>=75,"D",IF(AJ8>=60,"I",IF(AJ8>=48,"II",IF(AJ8>=36,"III",#REF!))))) ->  | AP8: 0 | AQ8: 0 | AR8: =IF($P$7="NA",AQ8,IF($P$7<=100,ROUNDUP(AQ8*$P$7/$O$7,0))) -> 0 | AS8: =SUM(AP8,AQ8) -> 0 | AT8: =SUM(#REF!,AR8) ->  | AU8: 0 | AV8: 0 | AW8: =IF($S$7="NA",#REF!+AR8+AV8,#REF!+AR8+AU8) ->  | AX8: =IF(OR(AW8="",$U$7=""),"",ROUNDUP(AW8/$U$7*100,0)) ->  | AY8: =IF(AND(OR(AN8="ab",AN8="ml"),OR(AO8="ab",AO8="ml"),OR(#REF!="ab",#REF!="ml")),"AB",IF(AND(OR(AN8="ab",AN8="ml"),OR(AO8="ab",AO8="ml"),OR(AQ8="ab",AQ8="ml")),"AB",IF(AND(OR(AN8="ab",AN8="ml"),OR(AQ8="ab",AQ8="ml"),OR(#REF!="ab",#REF!="ml")),"AB",IF(AND(OR(AQ8="ab",AQ8="ml"),OR(AO8="ab",AO8="ml"),OR(#REF!="ab",#REF!="ml")),"AB","")))) ->  | AZ8: =IF(OR($G8="NSO",$G8="",AQ8=""),"",IF(OR(AY8="AB",AQ8="ab"),"AB",IF(AX8>36,"P",IF(AX8>34,"G2",IF(AX8>31,"G1",IF(AX8>25,"S","F")))))) ->  | BA8: =IF(OR(AZ8="",AZ8=0,AZ8="S",AZ8="F",AZ8="AB"),AZ8,IF(AX8>=75,"D",IF(AX8>=60,"I",IF(AX8>=48,"II",IF(AX8>=36,"III",#REF!))))) ->  | BD8: 0 | BE8: 0 | BF8: =IF($P$7="NA",BE8,IF($P$7<=100,ROUNDUP(BE8*$P$7/$O$7,0))) -> 0 | BG8: =SUM(BD8,BE8) -> 0 | BH8: =SUM(#REF!,BF8) ->  | BI8: 0 | BJ8: 0 | BK8: =IF($S$7="NA",#REF!+BF8+BJ8,#REF!+BF8+BI8) ->  | BL8: =IF(OR(BK8="",$U$7=""),"",ROUNDUP(BK8/$U$7*100,0)) ->  | BM8: =IF(AND(OR(BB8="ab",BB8="ml"),OR(BC8="ab",BC8="ml"),OR(#REF!="ab",#REF!="ml")),"AB",IF(AND(OR(BB8="ab",BB8="ml"),OR(BC8="ab",BC8="ml"),OR(BE8="ab",BE8="ml")),"AB",IF(AND(OR(BB8="ab",BB8="ml"),OR(BE8="ab",BE8="ml"),OR(#REF!="ab",#REF!="ml")),"AB",IF(AND(OR(BE8="ab",BE8="ml"),OR(BC8="ab",BC8="ml"),OR(#REF!="ab",#REF!="ml")),"AB","")))) ->  | BN8: =IF(OR($G8="NSO",$G8="",BE8=""),"",IF(OR(BM8="AB",BE8="ab"),"AB",IF(BL8>36,"P",IF(BL8>34,"G2",IF(BL8>31,"G1",IF(BL8>25,"S","F")))))) ->  | BO8: =IF(OR(BN8="",BN8=0,BN8="S",BN8="F",BN8="AB"),BN8,IF(BL8>=75,"D",IF(BL8>=60,"I",IF(BL8>=48,"II",IF(BL8>=36,"III",#REF!))))) ->  | BR8: 0 | BS8: 0 | BT8: =IF($P$7="NA",BS8,IF($P$7<=100,ROUNDUP(BS8*$P$7/$O$7,0))) -> 0 | BU8: =SUM(BR8,BS8) -> 0 | BV8: =SUM(#REF!,BT8) ->  | BW8: 0 | BX8: 0 | BY8: =IF($S$7="NA",#REF!+BT8+BX8,#REF!+BT8+BW8) ->  | BZ8: =IF(OR(BY8="",$U$7=""),"",ROUNDUP(BY8/$U$7*100,0)) ->  | CA8: =IF(AND(OR(BP8="ab",BP8="ml"),OR(BQ8="ab",BQ8="ml"),OR(#REF!="ab",#REF!="ml")),"AB",IF(AND(OR(BP8="ab",BP8="ml"),OR(BQ8="ab",BQ8="ml"),OR(BS8="ab",BS8="ml")),"AB",IF(AND(OR(BP8="ab",BP8="ml"),OR(BS8="ab",BS8="ml"),OR(#REF!="ab",#REF!="ml")),"AB",IF(AND(OR(BS8="ab",BS8="ml"),OR(BQ8="ab",BQ8="ml"),OR(#REF!="ab",#REF!="ml")),"AB","")))) ->  | CB8: =IF(OR($G8="NSO",$G8="",BS8=""),"",IF(OR(CA8="AB",BS8="ab"),"AB",IF(BZ8>36,"P",IF(BZ8>34,"G2",IF(BZ8>31,"G1",IF(BZ8>25,"S","F")))))) ->  | CC8: =IF(OR(CB8="",CB8=0,CB8="S",CB8="F",CB8="AB"),CB8,IF(BZ8>=75,"D",IF(BZ8>=60,"I",IF(BZ8>=48,"II",IF(BZ8>=36,"III",#REF!))))) ->  | CF8: 0 | CG8: 0 | CH8: =IF($P$7="NA",CG8,IF($P$7<=100,ROUNDUP(CG8*$P$7/$O$7,0))) -> 0 | CI8: =SUM(CF8,CG8) -> 0 | CJ8: =SUM(#REF!,CH8) ->  | CK8: 0 | CL8: 0 | CM8: =IF($S$7="NA",#REF!+CH8+CL8,#REF!+CH8+CK8) ->  | CN8: =IF(OR(CM8="",$U$7=""),"",ROUNDUP(CM8/$U$7*100,0)) ->  | CO8: =IF(AND(OR(CD8="ab",CD8="ml"),OR(CE8="ab",CE8="ml"),OR(#REF!="ab",#REF!="ml")),"AB",IF(AND(OR(CD8="ab",CD8="ml"),OR(CE8="ab",CE8="ml"),OR(CG8="ab",CG8="ml")),"AB",IF(AND(OR(CD8="ab",CD8="ml"),OR(CG8="ab",CG8="ml"),OR(#REF!="ab",#REF!="ml")),"AB",IF(AND(OR(CG8="ab",CG8="ml"),OR(CE8="ab",CE8="ml"),OR(#REF!="ab",#REF!="ml")),"AB","")))) ->  | CP8: =IF(OR($G8="NSO",$G8="",CG8=""),"",IF(OR(CO8="AB",CG8="ab"),"AB",IF(CN8>36,"P",IF(CN8>34,"G2",IF(CN8>31,"G1",IF(CN8>25,"S","F")))))) ->  | CQ8: =IF(OR(CP8="",CP8=0,CP8="S",CP8="F",CP8="AB"),CP8,IF(CN8>=75,"D",IF(CN8>=60,"I",IF(CN8>=48,"II",IF(CN8>=36,"III",#REF!))))) ->  | CT8: 0 | CU8: 0 | CV8: =IF($P$7="NA",CU8,IF($P$7<=100,ROUNDUP(CU8*$P$7/$O$7,0))) -> 0 | CW8: =SUM(CT8,CU8) -> 0 | CX8: =SUM(#REF!,CV8) ->  | CY8: 0 | CZ8: 0 | DA8: =IF($S$7="NA",#REF!+CV8+CZ8,#REF!+CV8+CY8) ->  | DB8: =IF(OR(DA8="",$U$7=""),"",ROUNDUP(DA8/$U$7*100,0)) ->  | DC8: =IF(OR(DB8="",$G8="",$G8="ab",$G8="ml"),"",IF(DB8>80,"A",IF(DB8>60,"B",IF(DB8>40,"C",IF(DB8=0,0,"D"))))) ->  | DF8: 0 | DG8: 0 | DH8: =IF($P$7="NA",DG8,IF($P$7<=100,ROUNDUP(DG8*$P$7/$O$7,0))) -> 0 | DI8: =SUM(DF8,DG8) -> 0 | DJ8: =SUM(#REF!,DH8) ->  | DK8: 0 | DL8: 0 | DM8: =IF($S$7="NA",#REF!+DH8+DL8,#REF!+DH8+DK8) ->  | DN8: =IF(OR(DM8="",$U$7=""),"",ROUNDUP(DM8/$U$7*100,0)) ->  | DO8: =IF(OR(DN8="",$G8="",$G8="ab",$G8="ml"),"",IF(DN8>80,"A",IF(DN8>60,"B",IF(DN8>40,"C",IF(DN8=0,0,"D"))))) ->  | DP8: 0 | DQ8: 0 | DR8: 0 | DS8: =SUM(DP8:DR8) -> 0 | DU8: 0 | DV8: 0 | DW8: 0 | DX8: 0 | DY8: 0 | EA8: 0 | ED8: 0 | EE8: 0 | EF8: =IF($P$7="NA",EE8,IF($P$7<=100,ROUNDUP(EE8*$P$7/$O$7,0))) -> 0 | EG8: =SUM(ED8,EE8) -> 0 | EH8: =SUM(#REF!,EF8) ->  | EI8: 0 | EJ8: 0 | EK8: =IF($S$7="NA",#REF!+EF8+EJ8,#REF!+EF8+EI8) ->  | EL8: =IF(OR(EK8="",$U$7=""),"",ROUNDUP(EK8/$U$7*100,0)) ->  | EM8: =IF(OR(EL8="",$G8="",$G8="ab",$G8="ml"),"",IF(EL8>80,"A",IF(EL8>60,"B",IF(EL8>40,"C",IF(EL8=0,0,"D"))))) ->  | EN8: 0 | EO8: 0 | EP8: 0 | EQ8: 0 | ER8: 0 | ES8: 0 | ET8: =IF(AND(ES8>=60,EU8="Pass"),"First",IF(AND(ES8>=60,EU8="Pass With G"),"First",IF(AND(ES8>=48,EU8="Pass"),"Second;",IF(AND(ES8>=48,EU8="Pass With G"),"Second",IF(OR(EU8="Pass",EU8="Pass With G"),"Third",EU8))))) ->  | EU8: =IF($G8="NSO","NSO",IF(OR($G8="",$G8=0,O8="",AC8="",AQ8="",BE8="",BS8="",CG8=""),"",IF(OR(FE8>0,(FF8+FG8+FH8)>2),"FAIL",IF(OR(FF8>0,FG8>1),"SUPP.",IF(AND(FG8>0,FH8>0),"SUPP.",IF((FG8+FH8),"PASS With G","PASS")))))) ->  | EW8: 0 | EX8: =IF(ES8>81,"Excellent",IF(ES8>60,"Verry Good",IF(ES8>48,"Good",IF(ES8>36,"Average",IF(ES8=0,0,"Need Improvement"))))) -> 0 | EY8: =Y8 ->  | EZ8: =AM8 ->  | FA8: =BA8 ->  | FB8: =BO8 ->  | FC8: =CC8 ->  | FD8: =CQ8 ->  | FE8: =COUNTIF(EY8:FD8,"F")+COUNTIF(EY8:FD8,"AB") -> 0 | FF8: =COUNTIF(EY8:FD8,"S") -> 0 | FG8: =COUNTIF(EY8:FD8,"G1") -> 0 | FH8: =COUNTIF(EY8:FD8,"G2") -> 0
A9: =G9 -> 901 | B9: 1 | C9: 1 | D9: =IF(E9>0,$G$4,0) -> 9 | E9: 793 | F9: OBC | G9: 901 | H9: ABHISHEK | I9: RAMU KHAN | J9: SEEPA DEVI | K9: 2005-07-22 | L9: 2 | M9: 10 | N9: =SUM(L9:M9) -> 12 | O9: 30 | P9: 10 | Q9: =SUM(O9,P9) -> 40 | R9: 10 | S9: 10 | T9: =SUM(R9:S9) -> 20 | U9: =SUM(N9,Q9,T9) -> 72 | V9: =IF(OR(U9="",U$7=""),"",U9/U$7*100) -> 36.00 | W9: =IF(R9="AB","AB",IF(AND(OR(L9="ab",L9="ml"),OR(M9="ab",M9="ml"),OR(O9="ab",O9="ml")),"AB",IF(AND(OR(L9="ab",L9="ml"),OR(O9="ab",O9="ml")),"AB",""))) ->  | X9: =IF(OR($G9="NSO",$G9="",R9=""),"",IF(OR(W9="AB",R9="ab"),"AB",IF(V9>36,"P",IF(V9>34,"G2",IF(V9>31,"G1",IF(V9>25,"S","F")))))) -> G2 | Y9: =IF(OR(X9="",X9=0,X9="S",X9="F",X9="AB"),X9,IF(V9>=75,"D",IF(V9>=60,"I",IF(V9>=48,"II",IF(V9>=36,"III",X9))))) -> III | Z9: 15 | AA9: 15 | AB9: =SUM(Z9:AA9) -> 30 | AC9: 40 | AD9: 10 | AE9: =SUM(AC9,AD9) -> 50 | AF9: 50 | AG9: 10 | AH9: =SUM(AF9:AG9) -> 60 | AI9: =SUM(AB9,AE9,AH9) -> 140 | AJ9: =IF(OR(AI9="",AI$7=""),"",AI9/AI$7*100) -> 70.00 | AK9: =IF(AF9="AB","AB",IF(AND(OR(Z9="ab",Z9="ml"),OR(AA9="ab",AA9="ml"),OR(AC9="ab",AC9="ml")),"AB",IF(AND(OR(Z9="ab",Z9="ml"),OR(AC9="ab",AC9="ml")),"AB",""))) ->  | AL9: =IF(OR($G9="NSO",$G9="",AF9=""),"",IF(OR(AK9="AB",AF9="ab"),"AB",IF(AJ9>36,"P",IF(AJ9>34,"G2",IF(AJ9>31,"G1",IF(AJ9>25,"S","F")))))) -> P | AM9: =IF(OR(AL9="",AL9=0,AL9="S",AL9="F",AL9="AB"),AL9,IF(AJ9>=75,"D",IF(AJ9>=60,"I",IF(AJ9>=48,"II",IF(AJ9>=36,"III",AL9))))) -> I | AN9: 10 | AO9: 10 | AP9: 20 | AQ9: 20 | AR9: 10 | AS9: =SUM(AQ9,AR9) -> 30 | AT9: 40 | AU9: 20 | AV9: =SUM(AT9:AU9) -> 60 | AW9: =SUM(AP9,AS9,AV9) -> 110 | AX9: =IF(OR(AW9="",AW$7=""),"",AW9/AW$7*100) -> 55.00 | AY9: =IF(AT9="AB","AB",IF(AND(OR(AN9="ab",AN9="ml"),OR(AO9="ab",AO9="ml"),OR(AQ9="ab",AQ9="ml")),"AB",IF(AND(OR(AN9="ab",AN9="ml"),OR(AQ9="ab",AQ9="ml")),"AB",""))) ->  | AZ9: =IF(OR($G9="NSO",$G9="",AT9=""),"",IF(OR(AY9="AB",AT9="ab"),"AB",IF(AX9>36,"P",IF(AX9>34,"G2",IF(AX9>31,"G1",IF(AX9>25,"S","F")))))) -> P | BA9: =IF(OR(AZ9="",AZ9=0,AZ9="S",AZ9="F",AZ9="AB"),AZ9,IF(AX9>=75,"D",IF(AX9>=60,"I",IF(AX9>=48,"II",IF(AX9>=36,"III",AZ9))))) -> II | BB9: 15 | BC9: 15 | BD9: 30 | BE9: 50 | BF9: 10 | BG9: =SUM(BE9,BF9) -> 60 | BH9: 60 | BI9: 20 | BJ9: =SUM(BH9:BI9) -> 80 | BK9: =SUM(BD9,BG9,BJ9) -> 170 | BL9: =IF(OR(BK9="",BK$7=""),"",BK9/BK$7*100) -> 85.00 | BM9: =IF(BH9="AB","AB",IF(AND(OR(BB9="ab",BB9="ml"),OR(BC9="ab",BC9="ml"),OR(BE9="ab",BE9="ml")),"AB",IF(AND(OR(BB9="ab",BB9="ml"),OR(BE9="ab",BE9="ml")),"AB",""))) ->  | BN9: =IF(OR($G9="NSO",$G9="",BH9=""),"",IF(OR(BM9="AB",BH9="ab"),"AB",IF(BL9>36,"P",IF(BL9>34,"G2",IF(BL9>31,"G1",IF(BL9>25,"S","F")))))) -> P | BO9: =IF(OR(BN9="",BN9=0,BN9="S",BN9="F",BN9="AB"),BN9,IF(BL9>=75,"D",IF(BL9>=60,"I",IF(BL9>=48,"II",IF(BL9>=36,"III",BN9))))) -> D | BP9: 20 | BQ9: 10 | BR9: 30 | BS9: 40 | BT9: 10 | BU9: =SUM(BS9,BT9) -> 50 | BV9: 70 | BW9: 10 | BX9: =SUM(BV9:BW9) -> 80 | BY9: =SUM(BR9,BU9,BX9) -> 160 | BZ9: =IF(OR(BY9="",BY$7=""),"",BY9/BY$7*100) -> 80.00 | CA9: =IF(BV9="AB","AB",IF(AND(OR(BP9="ab",BP9="ml"),OR(BQ9="ab",BQ9="ml"),OR(BS9="ab",BS9="ml")),"AB",IF(AND(OR(BP9="ab",BP9="ml"),OR(BS9="ab",BS9="ml")),"AB",""))) ->  | CB9: =IF(OR($G9="NSO",$G9="",BV9=""),"",IF(OR(CA9="AB",BV9="ab"),"AB",IF(BZ9>36,"P",IF(BZ9>34,"G2",IF(BZ9>31,"G1",IF(BZ9>25,"S","F")))))) -> P | CC9: =IF(OR(CB9="",CB9=0,CB9="S",CB9="F",CB9="AB"),CB9,IF(BZ9>=75,"D",IF(BZ9>=60,"I",IF(BZ9>=48,"II",IF(BZ9>=36,"III",CB9))))) -> D | CD9: 10 | CE9: 10 | CF9: 20 | CG9: 40 | CH9: 10 | CI9: =SUM(CG9,CH9) -> 50 | CJ9: 80 | CK9: 10 | CL9: =SUM(CJ9:CK9) -> 90 | CM9: =SUM(CF9,CI9,CL9) -> 160 | CN9: =IF(OR(CM9="",CM$7=""),"",CM9/CM$7*100) -> 80.00 | CO9: =IF(CJ9="AB","AB",IF(AND(OR(CD9="ab",CD9="ml"),OR(CE9="ab",CE9="ml"),OR(CG9="ab",CG9="ml")),"AB",IF(AND(OR(CD9="ab",CD9="ml"),OR(CG9="ab",CG9="ml")),"AB",""))) ->  | CP9: =IF(OR($G9="NSO",$G9="",CJ9=""),"",IF(OR(CO9="AB",CJ9="ab"),"AB",IF(CN9>36,"P",IF(CN9>34,"G2",IF(CN9>31,"G1",IF(CN9>25,"S","F")))))) -> P | CQ9: =IF(OR(CP9="",CP9=0,CP9="S",CP9="F",CP9="AB"),CP9,IF(CN9>=75,"D",IF(CN9>=60,"I",IF(CN9>=48,"II",IF(CN9>=36,"III",CP9))))) -> D | CR9: 2 | CS9: 10 | CT9: 12 | CU9: 3 | CV9: 10 | CW9: =SUM(CU9,CV9) -> 13 | CX9: 38 | CY9: 10 | CZ9: =SUM(CX9:CY9) -> 48 | DA9: =SUM(CT9,CW9,CZ9) -> 73 | DB9: =IF(OR(DA9="",DA$7=""),"",DA9/DA$7*100) -> 36.50 | DC9: =IF(DB9>91,"A+",IF(DB9>76,"A",IF(DB9>61,"B",IF(DB9>41,"C",IF(DB9=0,0,"D"))))) -> D | DD9: 2 | DE9: 10 | DF9: 12 | DG9: 25 | DH9: 10 | DI9: =SUM(DG9,DH9) -> 35 | DJ9: 38 | DK9: 15 | DL9: =SUM(DJ9:DK9) -> 53 | DM9: =SUM(DF9,DI9,DL9) -> 100 | DN9: =IF(OR(DM9="",DM$7=""),"",DM9/DM$7*100) -> 50.00 | DO9: =IF(DN9>=91,"A+",IF(DN9>=76,"A",IF(DN9>=61,"B",IF(DN9>=41,"C",IF(DN9=0,0,"D"))))) -> C | DP9: 14 | DQ9: 21 | DR9: 17 | DS9: =SUM(DP9:DR9) -> 52 | DT9: =IF(OR(DS9="",DS$7=""),"",DS9/DS$7*100) -> 52.00 | DU9: =IF(DT9>=91,"A+",IF(DT9>=76,"A",IF(DT9>=61,"B",IF(DT9>=41,"C",IF(DT9=0,0,"D"))))) -> C | DV9: 15 | DW9: 40 | DX9: 11 | DY9: =SUM(DV9:DX9) -> 66 | DZ9: =IF(OR(DY9="",DY$7=""),"",DY9/DY$7*100) -> 66.00 | EA9: =IF(DZ9>=91,"A+",IF(DZ9>=76,"A",IF(DZ9>=61,"B",IF(DZ9>=41,"C",IF(DZ9=0,0,"D"))))) -> B | EB9: 2 | EC9: 10 | ED9: 12 | EE9: 3 | EF9: 10 | EG9: =SUM(EE9,EF9) -> 13 | EH9: 38 | EI9: =IF($S$7="NA","NA",0) -> 0 | EJ9: =SUM(EH9:EI9) -> 38 | EK9: =SUM(ED9,EG9,EJ9) -> 63 | EL9: =IF(OR(EK9="",EK$7=""),"",EK9/EK$7*100) -> 31.50 | EM9: =IF(EL9>=91,"A+",IF(EL9>=76,"A",IF(EL9>=61,"B",IF(EL9>=41,"C",IF(EL9=0,0,"D"))))) -> D | EN9: 362 | EO9: 274 | EP9: =IF(OR(EN9="",EO9=""),"",EO9/EN9*100) -> 75.69 | EQ9: =IF(G9=0,0,SUM($U$7,$AI$7,$AW$7,$BK$7,$BY$7,$CM$7)) -> 1200 | ER9: =SUM(U9,AI9,AW9,BK9,BY9,CM9) -> 812 | ES9: =IF(EQ9>0,ER9/EQ9*100,0) -> 67.67 | ET9: =IF(AND(ES9>=60,EU9="Passed"),"First",IF(AND(ES9>=60,EU9="Passed with G"),"First",IF(AND(ES9>=48,EU9="Passed"),"Second",IF(AND(ES9>=48,EU9="Passed With G"),"Second",IF(OR(EU9="Passed",EU9="Passed With G"),"Third",EU9))))) -> First | EU9: =IF($G9="NSO","NSO",IF(OR($G9="",$G9=0,O9="",AC9="",AQ9="",BE9="",BS9="",CG9=""),"",IF(OR(FE9>0,(FF9+FG9+FH9)>2),"FAILED",IF(OR(FF9>0,FG9>1),"SUPP.",IF(AND(FG9>0,FH9>0),"SUPP.",IF((FG9+FH9),"Passed With G","Passed")))))) -> Passed | EV9: =IF(EU9="Passed",ES9,"") -> 67.66666667 | EW9: =IF(EV9="","",SUMPRODUCT((EV9<EV$9:EV$108)/COUNTIF(EV$9:EV$108,EV$9:EV$108))) -> 1 | EX9: =IF(ES9>81,"Excellent",IF(ES9>60,"Very Good",IF(ES9>48,"Good",IF(ES9>36,"Average",IF(ES9=0,0,"Need Improvement"))))) -> Very Good | EY9: =Y9 -> III | EZ9: =AM9 -> I | FA9: =BA9 -> II | FB9: =BO9 -> D | FC9: =CC9 -> D | FD9: =CQ9 -> D | FE9: =COUNTIF(EY9:FD9,"F")+COUNTIF(EY9:FD9,"AB") -> 0 | FF9: =COUNTIF(EY9:FD9,"S") -> 0 | FG9: =COUNTIF(EY9:FD9,"G1") -> 0 | FH9: =COUNTIF(EY9:FD9,"G2") -> 0 | FL9: =DA9 -> 73 | FM9: / | FN9: =$DA$7 -> 200 | FO9: =CONCATENATE(FL9,FM9,FN9) -> 73/200 | FP9: =DM9 -> 100 | FQ9: / | FR9: =$DM$7 -> 200 | FS9: =CONCATENATE(FP9,FQ9,FR9) -> 100/200 | FT9: =DS9 -> 52 | FU9: / | FV9: =$DS$7 -> 100 | FW9: =CONCATENATE(FT9,FU9,FV9) -> 52/100 | FX9: =DY9 -> 66 | FY9: / | FZ9: =$DY$7 -> 100 | GA9: =CONCATENATE(FX9,FY9,FZ9) -> 66/100 | GB9: =EK9 -> 63 | GC9: / | GD9: =$EK$7 -> 200 | GE9: =CONCATENATE(GB9,GC9,GD9) -> 63/200
A10: =G10 -> 902 | B10: 2 | C10: 2 | D10: =IF(E10>0,$G$4,0) -> 9 | E10: 123 | F10: GEN | G10: 902 | H10: KJJHJ | I10: HHHH | J10: HHHH | K10: 2005-04-22 | L10: 10 | M10: 10 | N10: =SUM(L10:M10) -> 20 | O10: 35 | P10: 10 | Q10: =SUM(O10,P10) -> 45 | R10: 50 | S10: 10 | T10: =SUM(R10:S10) -> 60 | U10: =SUM(N10,Q10,T10) -> 125 | V10: =IF(OR(U10="",U$7=""),"",U10/U$7*100) -> 62.50 | W10: =IF(R10="AB","AB",IF(AND(OR(L10="ab",L10="ml"),OR(M10="ab",M10="ml"),OR(O10="ab",O10="ml")),"AB",IF(AND(OR(L10="ab",L10="ml"),OR(O10="ab",O10="ml")),"AB",""))) ->  | X10: =IF(OR($G10="NSO",$G10="",R10=""),"",IF(OR(W10="AB",R10="ab"),"AB",IF(V10>36,"P",IF(V10>34,"G2",IF(V10>31,"G1",IF(V10>25,"S","F")))))) -> P | Y10: =IF(OR(X10="",X10=0,X10="S",X10="F",X10="AB"),X10,IF(V10>=75,"D",IF(V10>=60,"I",IF(V10>=48,"II",IF(V10>=36,"III",X10))))) -> I | Z10: 15 | AA10: 20 | AB10: =SUM(Z10:AA10) -> 35 | AC10: 40 | AD10: 10 | AE10: =SUM(AC10,AD10) -> 50 | AF10: AB | AG10: 10 | AH10: =SUM(AF10:AG10) -> 10 | AI10: =SUM(AB10,AE10,AH10) -> 95 | AJ10: =IF(OR(AI10="",AI$7=""),"",AI10/AI$7*100) -> 47.50 | AK10: =IF(AF10="AB","AB",IF(AND(OR(Z10="ab",Z10="ml"),OR(AA10="ab",AA10="ml"),OR(AC10="ab",AC10="ml")),"AB",IF(AND(OR(Z10="ab",Z10="ml"),OR(AC10="ab",AC10="ml")),"AB",""))) -> AB | AL10: =IF(OR($G10="NSO",$G10="",AF10=""),"",IF(OR(AK10="AB",AF10="ab"),"AB",IF(AJ10>36,"P",IF(AJ10>34,"G2",IF(AJ10>31,"G1",IF(AJ10>25,"S","F")))))) -> AB | AM10: =IF(OR(AL10="",AL10=0,AL10="S",AL10="F",AL10="AB"),AL10,IF(AJ10>=75,"D",IF(AJ10>=60,"I",IF(AJ10>=48,"II",IF(AJ10>=36,"III",AL10))))) -> AB | AN10: 20 | AO10: 20 | AP10: 40 | AQ10: 35 | AR10: 10 | AS10: =SUM(AQ10,AR10) -> 45 | AT10: 55 | AU10: 15 | AV10: =SUM(AT10:AU10) -> 70 | AW10: =SUM(AP10,AS10,AV10) -> 155 | AX10: =IF(OR(AW10="",AW$7=""),"",AW10/AW$7*100) -> 77.50 | AY10: =IF(AT10="AB","AB",IF(AND(OR(AN10="ab",AN10="ml"),OR(AO10="ab",AO10="ml"),OR(AQ10="ab",AQ10="ml")),"AB",IF(AND(OR(AN10="ab",AN10="ml"),OR(AQ10="ab",AQ10="ml")),"AB",""))) ->  | AZ10: =IF(OR($G10="NSO",$G10="",AT10=""),"",IF(OR(AY10="AB",AT10="ab"),"AB",IF(AX10>36,"P",IF(AX10>34,"G2",IF(AX10>31,"G1",IF(AX10>25,"S","F")))))) -> P | BA10: =IF(OR(AZ10="",AZ10=0,AZ10="S",AZ10="F",AZ10="AB"),AZ10,IF(AX10>=75,"D",IF(AX10>=60,"I",IF(AX10>=48,"II",IF(AX10>=36,"III",AZ10))))) -> D | BB10: 10 | BC10: 10 | BD10: 20 | BE10: 40 | BF10: 10 | BG10: =SUM(BE10,BF10) -> 50 | BH10: 55 | BI10: 10 | BJ10: =SUM(BH10:BI10) -> 65 | BK10: =SUM(BD10,BG10,BJ10) -> 135 | BL10: =IF(OR(BK10="",BK$7=""),"",BK10/BK$7*100) -> 67.50 | BM10: =IF(BH10="AB","AB",IF(AND(OR(BB10="ab",BB10="ml"),OR(BC10="ab",BC10="ml"),OR(BE10="ab",BE10="ml")),"AB",IF(AND(OR(BB10="ab",BB10="ml"),OR(BE10="ab",BE10="ml")),"AB",""))) ->  | BN10: =IF(OR($G10="NSO",$G10="",BH10=""),"",IF(OR(BM10="AB",BH10="ab"),"AB",IF(BL10>36,"P",IF(BL10>34,"G2",IF(BL10>31,"G1",IF(BL10>25,"S","F")))))) -> P | BO10: =IF(OR(BN10="",BN10=0,BN10="S",BN10="F",BN10="AB"),BN10,IF(BL10>=75,"D",IF(BL10>=60,"I",IF(BL10>=48,"II",IF(BL10>=36,"III",BN10))))) -> I | BP10: 10 | BQ10: 10 | BR10: 20 | BS10: 40 | BT10: 10 | BU10: =SUM(BS10,BT10) -> 50 | BV10: 55 | BW10: 10 | BX10: =SUM(BV10:BW10) -> 65 | BY10: =SUM(BR10,BU10,BX10) -> 135 | BZ10: =IF(OR(BY10="",BY$7=""),"",BY10/BY$7*100) -> 67.50 | CA10: =IF(BV10="AB","AB",IF(AND(OR(BP10="ab",BP10="ml"),OR(BQ10="ab",BQ10="ml"),OR(BS10="ab",BS10="ml")),"AB",IF(AND(OR(BP10="ab",BP10="ml"),OR(BS10="ab",BS10="ml")),"AB",""))) ->  | CB10: =IF(OR($G10="NSO",$G10="",BV10=""),"",IF(OR(CA10="AB",BV10="ab"),"AB",IF(BZ10>36,"P",IF(BZ10>34,"G2",IF(BZ10>31,"G1",IF(BZ10>25,"S","F")))))) -> P | CC10: =IF(OR(CB10="",CB10=0,CB10="S",CB10="F",CB10="AB"),CB10,IF(BZ10>=75,"D",IF(BZ10>=60,"I",IF(BZ10>=48,"II",IF(BZ10>=36,"III",CB10))))) -> I | CD10: 10 | CE10: 10 | CF10: 20 | CG10: 40 | CH10: 10 | CI10: =SUM(CG10,CH10) -> 50 | CJ10: 60 | CK10: 10 | CL10: =SUM(CJ10:CK10) -> 70 | CM10: =SUM(CF10,CI10,CL10) -> 140 | CN10: =IF(OR(CM10="",CM$7=""),"",CM10/CM$7*100) -> 70.00 | CO10: =IF(CJ10="AB","AB",IF(AND(OR(CD10="ab",CD10="ml"),OR(CE10="ab",CE10="ml"),OR(CG10="ab",CG10="ml")),"AB",IF(AND(OR(CD10="ab",CD10="ml"),OR(CG10="ab",CG10="ml")),"AB",""))) ->  | CP10: =IF(OR($G10="NSO",$G10="",CJ10=""),"",IF(OR(CO10="AB",CJ10="ab"),"AB",IF(CN10>36,"P",IF(CN10>34,"G2",IF(CN10>31,"G1",IF(CN10>25,"S","F")))))) -> P | CQ10: =IF(OR(CP10="",CP10=0,CP10="S",CP10="F",CP10="AB"),CP10,IF(CN10>=75,"D",IF(CN10>=60,"I",IF(CN10>=48,"II",IF(CN10>=36,"III",CP10))))) -> I | CR10: 20 | CS10: 10 | CT10: 30 | CU10: 30 | CV10: 10 | CW10: =SUM(CU10,CV10) -> 40 | CX10: 60 | CY10: 10 | CZ10: =SUM(CX10:CY10) -> 70 | DA10: =SUM(CT10,CW10,CZ10) -> 140 | DB10: =IF(OR(DA10="",DA$7=""),"",DA10/DA$7*100) -> 70.00 | DC10: =IF(DB10>91,"A+",IF(DB10>76,"A",IF(DB10>61,"B",IF(DB10>41,"C",IF(DB10=0,0,"D"))))) -> B | DD10: 20 | DE10: 10 | DF10: 30 | DG10: 30 | DH10: 10 | DI10: =SUM(DG10,DH10) -> 40 | DJ10: 60 | DK10: 15 | DL10: =SUM(DJ10:DK10) -> 75 | DM10: =SUM(DF10,DI10,DL10) -> 145 | DN10: =IF(OR(DM10="",DM$7=""),"",DM10/DM$7*100) -> 72.50 | DO10: =IF(DN10>=91,"A+",IF(DN10>=76,"A",IF(DN10>=61,"B",IF(DN10>=41,"C",IF(DN10=0,0,"D"))))) -> B | DP10: 14 | DQ10: 20 | DR10: 14 | DS10: =SUM(DP10:DR10) -> 48 | DT10: =IF(OR(DS10="",DS$7=""),"",DS10/DS$7*100) -> 48.00 | DU10: =IF(DT10>=91,"A+",IF(DT10>=76,"A",IF(DT10>=61,"B",IF(DT10>=41,"C",IF(DT10=0,0,"D"))))) -> C | DV10: 15 | DW10: 40 | DX10: 10 | DY10: =SUM(DV10:DX10) -> 65 | DZ10: =IF(OR(DY10="",DY$7=""),"",DY10/DY$7*100) -> 65.00 | EA10: =IF(DZ10>=91,"A+",IF(DZ10>=76,"A",IF(DZ10>=61,"B",IF(DZ10>=41,"C",IF(DZ10=0,0,"D"))))) -> B | EB10: 20 | EC10: 10 | ED10: 30 | EE10: 35 | EF10: 10 | EG10: =SUM(EE10,EF10) -> 45 | EH10: 15 | EI10: =IF($S$7="NA","NA",0) -> 0 | EJ10: =SUM(EH10:EI10) -> 15 | EK10: =SUM(ED10,EG10,EJ10) -> 90 | EL10: =IF(OR(EK10="",EK$7=""),"",EK10/EK$7*100) -> 45.00 | EM10: =IF(EL10>=91,"A+",IF(EL10>=76,"A",IF(EL10>=61,"B",IF(EL10>=41,"C",IF(EL10=0,0,"D"))))) -> C | EN10: 362 | EO10: 210 | EP10: =IF(OR(EN10="",EO10=""),"",EO10/EN10*100) -> 58.01 | EQ10: 1200 | ER10: 785 | ES10: =IF(EQ10>0,ER10/EQ10*100,0) -> 65.42 | ET10: =IF(AND(ES10>=60,EU10="Passed"),"First",IF(AND(ES10>=60,EU10="Passed with G"),"First",IF(AND(ES10>=48,EU10="Passed"),"Second",IF(AND(ES10>=48,EU10="Passed With G"),"Second",IF(OR(EU10="Passed",EU10="Passed With G"),"Third",EU10))))) -> FAILED | EU10: =IF($G10="NSO","NSO",IF(OR($G10="",$G10=0,O10="",AC10="",AQ10="",BE10="",BS10="",CG10=""),"",IF(OR(FE10>0,(FF10+FG10+FH10)>2),"FAILED",IF(OR(FF10>0,FG10>1),"SUPP.",IF(AND(FG10>0,FH10>0),"SUPP.",IF((FG10+FH10),"Passed With G","Passed")))))) -> FAILED | EV10: =IF(EU10="Passed",ES10,"") ->  | EW10: =IF(EV10="","",SUMPRODUCT((EV10<EV$9:EV$108)/COUNTIF(EV$9:EV$108,EV$9:EV$108))) ->  | EX10: =IF(ES10>81,"Excellent",IF(ES10>60,"Very Good",IF(ES10>48,"Good",IF(ES10>36,"Average",IF(ES10=0,0,"Need Improvement"))))) -> Very Good | EY10: =Y10 -> I | EZ10: =AM10 -> AB | FA10: =BA10 -> D | FB10: =BO10 -> I | FC10: =CC10 -> I | FD10: =CQ10 -> I | FE10: =COUNTIF(EY10:FD10,"F")+COUNTIF(EY10:FD10,"AB") -> 1 | FF10: =COUNTIF(EY10:FD10,"S") -> 0 | FG10: =COUNTIF(EY10:FD10,"G1") -> 0 | FH10: =COUNTIF(EY10:FD10,"G2") -> 0 | FL10: =DA10 -> 140 | FM10: / | FN10: =$DA$7 -> 200 | FO10: =CONCATENATE(FL10,FM10,FN10) -> 140/200 | FP10: =DM10 -> 145 | FQ10: / | FR10: =$DM$7 -> 200 | FS10: =CONCATENATE(FP10,FQ10,FR10) -> 145/200 | FT10: =DS10 -> 48 | FU10: / | FV10: =$DS$7 -> 100 | FW10: =CONCATENATE(FT10,FU10,FV10) -> 48/100 | FX10: =DY10 -> 65 | FY10: / | FZ10: =$DY$7 -> 100 | GA10: =CONCATENATE(FX10,FY10,FZ10) -> 65/100 | GB10: =EK10 -> 90 | GC10: / | GD10: =$EK$7 -> 200 | GE10: 90/200
A11: 0 | B11: 3 | C11: 3 | D11: 0 | L11: 0 | M11: 0 | N11: =SUM(L11:M11) -> 0 | O11: 0 | P11: 0 | Q11: =SUM(O11,P11) -> 0 | R11: 0 | S11: =IF($S$7="NA","NA",0) -> 0 | T11: 0 | U11: =SUM(N11,Q11,T11) -> 0 | V11: 0.00 | W11: =IF(R11="AB","AB",IF(AND(OR(L11="ab",L11="ml"),OR(M11="ab",M11="ml"),OR(O11="ab",O11="ml")),"AB",IF(AND(OR(L11="ab",L11="ml"),OR(O11="ab",O11="ml")),"AB",""))) ->  | X11: =IF(OR($G11="NSO",$G11="",R11=""),"",IF(OR(W11="AB",R11="ab"),"AB",IF(V11>36,"P",IF(V11>34,"G2",IF(V11>31,"G1",IF(V11>25,"S","F")))))) ->  | Y11: =IF(OR(X11="",X11=0,X11="S",X11="F",X11="AB"),X11,IF(V11>=75,"D",IF(V11>=60,"I",IF(V11>=48,"II",IF(V11>=36,"III",X11))))) ->  | Z11: 0 | AA11: 0 | AB11: =SUM(Z11:AA11) -> 0 | AC11: 0 | AD11: 0 | AE11: =SUM(AC11,AD11) -> 0 | AF11: 0 | AG11: =IF($S$7="NA","NA",0) -> 0 | AH11: 0 | AI11: =SUM(AB11,AE11,AH11) -> 0 | AJ11: 0.00 | AK11: =IF(AF11="AB","AB",IF(AND(OR(Z11="ab",Z11="ml"),OR(AA11="ab",AA11="ml"),OR(AC11="ab",AC11="ml")),"AB",IF(AND(OR(Z11="ab",Z11="ml"),OR(AC11="ab",AC11="ml")),"AB",""))) ->  | AL11: =IF(OR($G11="NSO",$G11="",AF11=""),"",IF(OR(AK11="AB",AF11="ab"),"AB",IF(AJ11>36,"P",IF(AJ11>34,"G2",IF(AJ11>31,"G1",IF(AJ11>25,"S","F")))))) ->  | AM11: =IF(OR(AL11="",AL11=0,AL11="S",AL11="F",AL11="AB"),AL11,IF(AJ11>=75,"D",IF(AJ11>=60,"I",IF(AJ11>=48,"II",IF(AJ11>=36,"III",AL11))))) ->  | AN11: 0 | AO11: 0 | AP11: =SUM(AN11:AO11) -> 0 | AQ11: 0 | AR11: 0 | AS11: =SUM(AQ11,AR11) -> 0 | AT11: 0 | AU11: =IF($S$7="NA","NA",0) -> 0 | AV11: 0 | AW11: =SUM(AP11,AS11,AV11) -> 0 | AX11: 0.00 | AY11: =IF(AT11="AB","AB",IF(AND(OR(AN11="ab",AN11="ml"),OR(AO11="ab",AO11="ml"),OR(AQ11="ab",AQ11="ml")),"AB",IF(AND(OR(AN11="ab",AN11="ml"),OR(AQ11="ab",AQ11="ml")),"AB",""))) ->  | AZ11: =IF(OR($G11="NSO",$G11="",AT11=""),"",IF(OR(AY11="AB",AT11="ab"),"AB",IF(AX11>36,"P",IF(AX11>34,"G2",IF(AX11>31,"G1",IF(AX11>25,"S","F")))))) ->  | BA11: =IF(OR(AZ11="",AZ11=0,AZ11="S",AZ11="F",AZ11="AB"),AZ11,IF(AX11>=75,"D",IF(AX11>=60,"I",IF(AX11>=48,"II",IF(AX11>=36,"III",AZ11))))) ->  | BB11: 0 | BC11: 0 | BD11: =SUM(BB11:BC11) -> 0 | BE11: 0 | BF11: 0 | BG11: =SUM(BE11,BF11) -> 0 | BH11: 0 | BI11: =IF($S$7="NA","NA",0) -> 0 | BJ11: 0 | BK11: =SUM(BD11,BG11,BJ11) -> 0 | BL11: 0.00 | BM11: =IF(BH11="AB","AB",IF(AND(OR(BB11="ab",BB11="ml"),OR(BC11="ab",BC11="ml"),OR(BE11="ab",BE11="ml")),"AB",IF(AND(OR(BB11="ab",BB11="ml"),OR(BE11="ab",BE11="ml")),"AB",""))) ->  | BN11: =IF(OR($G11="NSO",$G11="",BH11=""),"",IF(OR(BM11="AB",BH11="ab"),"AB",IF(BL11>36,"P",IF(BL11>34,"G2",IF(BL11>31,"G1",IF(BL11>25,"S","F")))))) ->  | BO11: =IF(OR(BN11="",BN11=0,BN11="S",BN11="F",BN11="AB"),BN11,IF(BL11>=75,"D",IF(BL11>=60,"I",IF(BL11>=48,"II",IF(BL11>=36,"III",BN11))))) ->  | BP11: 0 | BQ11: 0 | BR11: =SUM(BP11:BQ11) -> 0 | BS11: 0 | BT11: 0 | BU11: =SUM(BS11,BT11) -> 0 | BV11: 0 | BW11: =IF($S$7="NA","NA",0) -> 0 | BX11: 0 | BY11: =SUM(BR11,BU11,BX11) -> 0 | BZ11: 0.00 | CA11: =IF(BV11="AB","AB",IF(AND(OR(BP11="ab",BP11="ml"),OR(BQ11="ab",BQ11="ml"),OR(BS11="ab",BS11="ml")),"AB",IF(AND(OR(BP11="ab",BP11="ml"),OR(BS11="ab",BS11="ml")),"AB",""))) ->  | CB11: =IF(OR($G11="NSO",$G11="",BV11=""),"",IF(OR(CA11="AB",BV11="ab"),"AB",IF(BZ11>36,"P",IF(BZ11>34,"G2",IF(BZ11>31,"G1",IF(BZ11>25,"S","F")))))) ->  | CC11: =IF(OR(CB11="",CB11=0,CB11="S",CB11="F",CB11="AB"),CB11,IF(BZ11>=75,"D",IF(BZ11>=60,"I",IF(BZ11>=48,"II",IF(BZ11>=36,"III",CB11))))) ->  | CD11: 0 | CE11: 0 | CF11: =SUM(CD11:CE11) -> 0 | CG11: 0 | CH11: 0 | CI11: =SUM(CG11,CH11) -> 0 | CJ11: 0 | CK11: =IF($S$7="NA","NA",0) -> 0 | CL11: 0 | CM11: =SUM(CF11,CI11,CL11) -> 0 | CN11: 0.00 | CO11: =IF(CJ11="AB","AB",IF(AND(OR(CD11="ab",CD11="ml"),OR(CE11="ab",CE11="ml"),OR(CG11="ab",CG11="ml")),"AB",IF(AND(OR(CD11="ab",CD11="ml"),OR(CG11="ab",CG11="ml")),"AB",""))) ->  | CP11: =IF(OR($G11="NSO",$G11="",CJ11=""),"",IF(OR(CO11="AB",CJ11="ab"),"AB",IF(CN11>36,"P",IF(CN11>34,"G2",IF(CN11>31,"G1",IF(CN11>25,"S","F")))))) ->  | CQ11: =IF(OR(CP11="",CP11=0,CP11="S",CP11="F",CP11="AB"),CP11,IF(CN11>=75,"D",IF(CN11>=60,"I",IF(CN11>=48,"II",IF(CN11>=36,"III",CP11))))) ->  | CR11: 0 | CS11: 0 | CT11: =SUM(CR11:CS11) -> 0 | CU11: 0 | CV11: 0 | CW11: =SUM(CU11,CV11) -> 0 | CX11: 0 | CY11: =IF($S$7="NA","NA",0) -> 0 | CZ11: 0 | DA11: =SUM(CT11,CW11,CZ11) -> 0 | DB11: 0.00 | DC11: 0 | DD11: 0 | DE11: 0 | DF11: =SUM(DD11:DE11) -> 0 | DG11: 0 | DH11: 0 | DI11: =SUM(DG11,DH11) -> 0 | DJ11: 0 | DK11: =IF($S$7="NA","NA",0) -> 0 | DL11: 0 | DM11: =SUM(DF11,DI11,DL11) -> 0 | DN11: 0.00 | DO11: 0 | DP11: 0 | DQ11: 0 | DR11: 0 | DS11: =SUM(DP11:DR11) -> 0 | DT11: 0.00 | DU11: 0 | DV11: 0 | DW11: 0 | DX11: 0 | DY11: =SUM(DV11:DX11) -> 0 | DZ11: 0.00 | EA11: 0 | EB11: 0 | EC11: 0 | ED11: =SUM(EB11:EC11) -> 0 | EE11: 0 | EF11: 0 | EG11: =SUM(EE11,EF11) -> 0 | EH11: 0 | EI11: =IF($S$7="NA","NA",0) -> 0 | EJ11: 0 | EK11: =SUM(ED11,EG11,EJ11) -> 0 | EL11: 0.00 | EM11: 0 | EQ11: 0 | ER11: 0 | ES11: 0.00 | EX11: 0 | FE11: 0 | FF11: 0 | FG11: 0 | FH11: 0 | FL11: 0 | FM11: / | FN11: 200 | FO11: 0/200 | FP11: 0 | FQ11: / | FR11: 200 | FS11: 0/200 | FT11: 0 | FU11: / | FV11: 100 | FW11: 0/100 | FX11: 0 | FY11: / | FZ11: 100 | GA11: 0/100 | GB11: 0 | GC11: / | GD11: 200 | GE11: 0/200
A12: 0 | B12: 4 | C12: 4 | D12: 0 | L12: 0 | M12: 0 | N12: 0 | O12: 0 | P12: 0 | Q12: 0 | R12: 0 | S12: 0 | T12: 0 | U12: 0 | V12: 0.00 | Z12: 0 | AA12: 0 | AB12: =SUM(Z12:AA12) -> 0 | AC12: 0 | AD12: 0 | AE12: =SUM(AC12,AD12) -> 0 | AF12: 0 | AG12: =IF($S$7="NA","NA",0) -> 0 | AH12: 0 | AI12: =SUM(AB12,AE12,AH12) -> 0 | AJ12: 0.00 | AK12: =IF(AF12="AB","AB",IF(AND(OR(Z12="ab",Z12="ml"),OR(AA12="ab",AA12="ml"),OR(AC12="ab",AC12="ml")),"AB",IF(AND(OR(Z12="ab",Z12="ml"),OR(AC12="ab",AC12="ml")),"AB",""))) ->  | AL12: =IF(OR($G12="NSO",$G12="",AF12=""),"",IF(OR(AK12="AB",AF12="ab"),"AB",IF(AJ12>36,"P",IF(AJ12>34,"G2",IF(AJ12>31,"G1",IF(AJ12>25,"S","F")))))) ->  | AM12: =IF(OR(AL12="",AL12=0,AL12="S",AL12="F",AL12="AB"),AL12,IF(AJ12>=75,"D",IF(AJ12>=60,"I",IF(AJ12>=48,"II",IF(AJ12>=36,"III",AL12))))) ->  | AN12: 0 | AO12: 0 | AP12: 0 | AQ12: 0 | AR12: 0 | AS12: =SUM(AQ12,AR12) -> 0 | AT12: 0 | AU12: =IF($S$7="NA","NA",0) -> 0 | AV12: 0 | AW12: =SUM(AP12,AS12,AV12) -> 0 | AX12: 0.00 | AY12: =IF(AT12="AB","AB",IF(AND(OR(AN12="ab",AN12="ml"),OR(AO12="ab",AO12="ml"),OR(AQ12="ab",AQ12="ml")),"AB",IF(AND(OR(AN12="ab",AN12="ml"),OR(AQ12="ab",AQ12="ml")),"AB",""))) ->  | AZ12: =IF(OR($G12="NSO",$G12="",AT12=""),"",IF(OR(AY12="AB",AT12="ab"),"AB",IF(AX12>36,"P",IF(AX12>34,"G2",IF(AX12>31,"G1",IF(AX12>25,"S","F")))))) ->  | BA12: =IF(OR(AZ12="",AZ12=0,AZ12="S",AZ12="F",AZ12="AB"),AZ12,IF(AX12>=75,"D",IF(AX12>=60,"I",IF(AX12>=48,"II",IF(AX12>=36,"III",AZ12))))) ->  | BB12: 0 | BC12: 0 | BD12: 0 | BE12: 0 | BF12: 0 | BG12: =SUM(BE12,BF12) -> 0 | BH12: 0 | BI12: =IF($S$7="NA","NA",0) -> 0 | BJ12: 0 | BK12: =SUM(BD12,BG12,BJ12) -> 0 | BL12: 0.00 | BM12: =IF(BH12="AB","AB",IF(AND(OR(BB12="ab",BB12="ml"),OR(BC12="ab",BC12="ml"),OR(BE12="ab",BE12="ml")),"AB",IF(AND(OR(BB12="ab",BB12="ml"),OR(BE12="ab",BE12="ml")),"AB",""))) ->  | BN12: =IF(OR($G12="NSO",$G12="",BH12=""),"",IF(OR(BM12="AB",BH12="ab"),"AB",IF(BL12>36,"P",IF(BL12>34,"G2",IF(BL12>31,"G1",IF(BL12>25,"S","F")))))) ->  | BO12: =IF(OR(BN12="",BN12=0,BN12="S",BN12="F",BN12="AB"),BN12,IF(BL12>=75,"D",IF(BL12>=60,"I",IF(BL12>=48,"II",IF(BL12>=36,"III",BN12))))) ->  | BP12: 0 | BQ12: 0 | BR12: 0 | BS12: 0 | BT12: 0 | BU12: =SUM(BS12,BT12) -> 0 | BV12: 0 | BW12: =IF($S$7="NA","NA",0) -> 0 | BX12: 0 | BY12: =SUM(BR12,BU12,BX12) -> 0 | BZ12: 0.00 | CA12: =IF(BV12="AB","AB",IF(AND(OR(BP12="ab",BP12="ml"),OR(BQ12="ab",BQ12="ml"),OR(BS12="ab",BS12="ml")),"AB",IF(AND(OR(BP12="ab",BP12="ml"),OR(BS12="ab",BS12="ml")),"AB",""))) ->  | CB12: =IF(OR($G12="NSO",$G12="",BV12=""),"",IF(OR(CA12="AB",BV12="ab"),"AB",IF(BZ12>36,"P",IF(BZ12>34,"G2",IF(BZ12>31,"G1",IF(BZ12>25,"S","F")))))) ->  | CC12: =IF(OR(CB12="",CB12=0,CB12="S",CB12="F",CB12="AB"),CB12,IF(BZ12>=75,"D",IF(BZ12>=60,"I",IF(BZ12>=48,"II",IF(BZ12>=36,"III",CB12))))) ->  | CD12: 0 | CE12: 0 | CF12: 0 | CG12: 0 | CH12: 0 | CI12: =SUM(CG12,CH12) -> 0 | CJ12: 0 | CK12: =IF($S$7="NA","NA",0) -> 0 | CL12: 0 | CM12: =SUM(CF12,CI12,CL12) -> 0 | CN12: 0.00 | CO12: =IF(CJ12="AB","AB",IF(AND(OR(CD12="ab",CD12="ml"),OR(CE12="ab",CE12="ml"),OR(CG12="ab",CG12="ml")),"AB",IF(AND(OR(CD12="ab",CD12="ml"),OR(CG12="ab",CG12="ml")),"AB",""))) ->  | CP12: =IF(OR($G12="NSO",$G12="",CJ12=""),"",IF(OR(CO12="AB",CJ12="ab"),"AB",IF(CN12>36,"P",IF(CN12>34,"G2",IF(CN12>31,"G1",IF(CN12>25,"S","F")))))) ->  | CQ12: =IF(OR(CP12="",CP12=0,CP12="S",CP12="F",CP12="AB"),CP12,IF(CN12>=75,"D",IF(CN12>=60,"I",IF(CN12>=48,"II",IF(CN12>=36,"III",CP12))))) ->  | CR12: 0 | CS12: 0 | CT12: 0 | CU12: 0 | CV12: 0 | CW12: =SUM(CU12,CV12) -> 0 | CX12: 0 | CY12: =IF($S$7="NA","NA",0) -> 0 | CZ12: 0 | DA12: =SUM(CT12,CW12,CZ12) -> 0 | DB12: 0.00 | DC12: 0 | DD12: 0 | DE12: 0 | DF12: 0 | DG12: 0 | DH12: 0 | DI12: =SUM(DG12,DH12) -> 0 | DJ12: 0 | DK12: =IF($S$7="NA","NA",0) -> 0 | DL12: 0 | DM12: =SUM(DF12,DI12,DL12) -> 0 | DN12: 0.00 | DO12: 0 | DP12: 0 | DQ12: 0 | DR12: 0 | DS12: 0 | DT12: 0.00 | DU12: 0 | DV12: 0 | DW12: 0 | DX12: 0 | DY12: 0 | DZ12: 0.00 | EA12: 0 | EB12: 0 | EC12: 0 | ED12: 0 | EE12: 0 | EF12: 0 | EG12: =SUM(EE12,EF12) -> 0 | EH12: 0 | EI12: =IF($S$7="NA","NA",0) -> 0 | EJ12: 0 | EK12: =SUM(ED12,EG12,EJ12) -> 0 | EL12: 0.00 | EM12: 0 | EP12: =IF(OR(EN12="",EO12=""),"",EO12/EN12*100) ->  | EQ12: 0 | ER12: 0 | ES12: 0.00 | EX12: 0 | FE12: 0 | FF12: 0 | FG12: 0 | FH12: 0 | FL12: 0 | FM12: / | FN12: 200 | FO12: 0/200 | FP12: 0 | FQ12: / | FR12: 200 | FS12: 0/200 | FT12: 0 | FU12: / | FV12: 100 | FW12: 0/100 | FX12: 0 | FY12: / | FZ12: 100 | GA12: 0/100 | GB12: 0 | GC12: / | GD12: 200 | GE12: 0/200
A13: 0 | B13: 5 | C13: 5 | D13: =IF(E13>0,$G$4,0) -> 0 | L13: 0 | M13: 0 | N13: 0 | O13: 0 | P13: 0 | Q13: 0 | R13: 0 | S13: 0 | T13: 0 | U13: 0 | V13: 0.00 | Z13: 0 | AA13: 0 | AB13: 0 | AC13: 0 | AD13: 0 | AE13: 0 | AF13: 0 | AG13: 0 | AH13: 0 | AI13: 0 | AJ13: 0.00 | AN13: 0 | AO13: 0 | AP13: =SUM(AN13:AO13) -> 0 | AQ13: 0 | AR13: 0 | AS13: 0 | AT13: 0 | AU13: 0 | AV13: 0 | AW13: 0 | AX13: 0.00 | BB13: 0 | BC13: 0 | BD13: =SUM(BB13:BC13) -> 0 | BE13: 0 | BF13: 0 | BG13: 0 | BH13: 0 | BI13: 0 | BJ13: 0 | BK13: 0 | BL13: 0.00 | BP13: 0 | BQ13: 0 | BR13: =SUM(BP13:BQ13) -> 0 | BS13: 0 | BT13: 0 | BU13: 0 | BV13: 0 | BW13: 0 | BX13: 0 | BY13: 0 | BZ13: 0.00 | CD13: 0 | CE13: 0 | CF13: =SUM(CD13:CE13) -> 0 | CG13: 0 | CH13: 0 | CI13: 0 | CJ13: 0 | CK13: 0 | CL13: 0 | CM13: 0 | CN13: 0.00 | CR13: 0 | CS13: 0 | CT13: =SUM(CR13:CS13) -> 0 | CU13: 0 | CV13: 0 | CW13: 0 | CX13: 0 | CY13: 0 | CZ13: 0 | DA13: 0 | DB13: 0.00 | DC13: 0 | DD13: 0 | DE13: 0 | DF13: =SUM(DD13:DE13) -> 0 | DG13: 0 | DH13: 0 | DI13: 0 | DJ13: 0 | DK13: 0 | DL13: 0 | DM13: 0 | DN13: 0.00 | DO13: 0 | DP13: 0 | DQ13: 0 | DR13: 0 | DS13: =SUM(DP13:DR13) -> 0 | DT13: 0.00 | DU13: 0 | DV13: 0 | DW13: 0 | DX13: 0 | DY13: =SUM(DV13:DX13) -> 0 | DZ13: 0.00 | EA13: 0 | EB13: 0 | EC13: 0 | ED13: 0 | EE13: 0 | EF13: 0 | EG13: 0 | EH13: 0 | EI13: 0 | EJ13: 0 | EK13: 0 | EL13: 0.00 | EM13: 0 | EQ13: 0 | ER13: 0 | ES13: 0.00 | EX13: 0 | FE13: 0 | FF13: 0 | FG13: 0 | FH13: 0 | FL13: 0 | FM13: / | FN13: 200 | FO13: 0/200 | FP13: 0 | FQ13: / | FR13: 200 | FS13: 0/200 | FT13: 0 | FU13: / | FV13: 100 | FW13: 0/100 | FX13: 0 | FY13: / | FZ13: 100 | GA13: 0/100 | GB13: 0 | GC13: / | GD13: 200 | GE13: 0/200
A14: 0 | B14: 6 | C14: 6 | D14: 0 | L14: 0 | M14: 0 | N14: 0 | O14: 0 | P14: 0 | Q14: 0 | R14: 0 | S14: 0 | T14: 0 | U14: 0 | V14: 0.00 | Z14: 0 | AA14: 0 | AB14: 0 | AC14: 0 | AD14: 0 | AE14: 0 | AF14: 0 | AG14: 0 | AH14: 0 | AI14: 0 | AJ14: 0.00 | AN14: 0 | AO14: 0 | AP14: 0 | AQ14: 0 | AR14: 0 | AS14: 0 | AT14: 0 | AU14: 0 | AV14: 0 | AW14: 0 | AX14: 0.00 | BB14: 0 | BC14: 0 | BD14: 0 | BE14: 0 | BF14: 0 | BG14: 0 | BH14: 0 | BI14: 0 | BJ14: 0 | BK14: 0 | BL14: 0.00 | BP14: 0 | BQ14: 0 | BR14: 0 | BS14: 0 | BT14: 0 | BU14: 0 | BV14: 0 | BW14: 0 | BX14: 0 | BY14: 0 | BZ14: 0.00 | CD14: 0 | CE14: 0 | CF14: 0 | CG14: 0 | CH14: 0 | CI14: 0 | CJ14: 0 | CK14: 0 | CL14: 0 | CM14: 0 | CN14: 0.00 | CR14: 0 | CS14: 0 | CT14: 0 | CU14: 0 | CV14: 0 | CW14: 0 | CX14: 0 | CY14: 0 | CZ14: 0 | DA14: 0 | DB14: 0.00 | DC14: 0 | DD14: 0 | DE14: 0 | DF14: 0 | DG14: 0 | DH14: 0 | DI14: 0 | DJ14: 0 | DK14: 0 | DL14: 0 | DM14: 0 | DN14: 0.00 | DO14: 0 | DP14: 0 | DQ14: 0 | DR14: 0 | DS14: 0 | DT14: 0.00 | DU14: 0 | DV14: 0 | DW14: 0 | DX14: 0 | DY14: 0 | DZ14: 0.00 | EA14: 0 | EB14: 0 | EC14: 0 | ED14: 0 | EE14: 0 | EF14: 0 | EG14: 0 | EH14: 0 | EI14: 0 | EJ14: 0 | EK14: 0 | EL14: 0.00 | EM14: 0 | EQ14: 0 | ER14: 0 | ES14: 0.00 | EX14: 0 | FE14: 0 | FF14: 0 | FG14: 0 | FH14: 0 | FL14: 0 | FM14: / | FN14: 200 | FO14: 0/200 | FP14: 0 | FQ14: / | FR14: 200 | FS14: 0/200 | FT14: 0 | FU14: / | FV14: 100 | FW14: 0/100 | FX14: 0 | FY14: / | FZ14: 100 | GA14: 0/100 | GB14: 0 | GC14: / | GD14: 200 | GE14: 0/200
A15: 0 | B15: 7 | C15: 7 | D15: 0 | L15: 0 | M15: 0 | N15: =SUM(L15:M15) -> 0 | O15: 0 | P15: 0 | Q15: =SUM(O15,P15) -> 0 | R15: 0 | S15: 0 | T15: 0 | U15: =SUM(N15,Q15,T15) -> 0 | V15: 0.00 | W15: =IF(R15="AB","AB",IF(AND(OR(L15="ab",L15="ml"),OR(M15="ab",M15="ml"),OR(O15="ab",O15="ml")),"AB",IF(AND(OR(L15="ab",L15="ml"),OR(O15="ab",O15="ml")),"AB",""))) ->  | X15: =IF(OR($G15="NSO",$G15="",R15=""),"",IF(OR(W15="AB",R15="ab"),"AB",IF(V15>36,"P",IF(V15>34,"G2",IF(V15>31,"G1",IF(V15>25,"S","F")))))) ->  | Y15: =IF(OR(X15="",X15=0,X15="S",X15="F",X15="AB"),X15,IF(V15>=75,"D",IF(V15>=60,"I",IF(V15>=48,"II",IF(V15>=36,"III",X15))))) ->  | Z15: 0 | AA15: 0 | AB15: 0 | AC15: 0 | AD15: 0 | AE15: 0 | AF15: 0 | AG15: 0 | AH15: 0 | AI15: 0 | AJ15: 0.00 | AN15: 0 | AO15: 0 | AP15: 0 | AQ15: 0 | AR15: 0 | AS15: 0 | AT15: 0 | AU15: 0 | AV15: 0 | AW15: 0 | AX15: 0.00 | BB15: 0 | BC15: 0 | BD15: 0 | BE15: 0 | BF15: 0 | BG15: 0 | BH15: 0 | BI15: 0 | BJ15: 0 | BK15: 0 | BL15: 0.00 | BP15: 0 | BQ15: 0 | BR15: 0 | BS15: 0 | BT15: 0 | BU15: 0 | BV15: 0 | BW15: 0 | BX15: 0 | BY15: 0 | BZ15: 0.00 | CD15: 0 | CE15: 0 | CF15: 0 | CG15: 0 | CH15: 0 | CI15: 0 | CJ15: 0 | CK15: 0 | CL15: 0 | CM15: 0 | CN15: 0.00 | CR15: 0 | CS15: 0 | CT15: 0 | CU15: 0 | CV15: 0 | CW15: 0 | CX15: 0 | CY15: 0 | CZ15: 0 | DA15: 0 | DB15: 0.00 | DC15: 0 | DD15: 0 | DE15: 0 | DF15: 0 | DG15: 0 | DH15: 0 | DI15: 0 | DJ15: 0 | DK15: 0 | DL15: 0 | DM15: 0 | DN15: 0.00 | DO15: 0 | DP15: 0 | DQ15: 0 | DR15: 0 | DS15: 0 | DT15: 0.00 | DU15: 0 | DV15: 0 | DW15: 0 | DX15: 0 | DY15: 0 | DZ15: 0.00 | EA15: 0 | EB15: 0 | EC15: 0 | ED15: 0 | EE15: 0 | EF15: 0 | EG15: 0 | EH15: 0 | EI15: 0 | EJ15: 0 | EK15: 0 | EL15: 0.00 | EM15: 0 | EQ15: 0 | ER15: 0 | ES15: 0.00 | EX15: 0 | FE15: 0 | FF15: 0 | FG15: 0 | FH15: 0 | FL15: 0 | FM15: / | FN15: 200 | FO15: 0/200 | FP15: 0 | FQ15: / | FR15: 200 | FS15: 0/200 | FT15: 0 | FU15: / | FV15: 100 | FW15: 0/100 | FX15: 0 | FY15: / | FZ15: 100 | GA15: 0/100 | GB15: 0 | GC15: / | GD15: 200 | GE15: 0/200
A16: 0 | B16: 8 | C16: 8 | D16: 0 | L16: 0 | M16: 0 | N16: 0 | O16: 0 | P16: 0 | Q16: 0 | R16: 0 | S16: 0 | T16: 0 | U16: 0 | V16: 0.00 | Z16: 0 | AA16: 0 | AB16: 0 | AC16: 0 | AD16: 0 | AE16: 0 | AF16: 0 | AG16: 0 | AH16: 0 | AI16: 0 | AJ16: 0.00 | AN16: 0 | AO16: 0 | AP16: 0 | AQ16: 0 | AR16: 0 | AS16: 0 | AT16: 0 | AU16: 0 | AV16: 0 | AW16: 0 | AX16: 0.00 | BB16: 0 | BC16: 0 | BD16: 0 | BE16: 0 | BF16: 0 | BG16: 0 | BH16: 0 | BI16: 0 | BJ16: 0 | BK16: 0 | BL16: 0.00 | BP16: 0 | BQ16: 0 | BR16: 0 | BS16: 0 | BT16: 0 | BU16: 0 | BV16: 0 | BW16: 0 | BX16: 0 | BY16: 0 | BZ16: 0.00 | CD16: 0 | CE16: 0 | CF16: 0 | CG16: 0 | CH16: 0 | CI16: 0 | CJ16: 0 | CK16: 0 | CL16: 0 | CM16: 0 | CN16: 0.00 | CR16: 0 | CS16: 0 | CT16: 0 | CU16: 0 | CV16: 0 | CW16: 0 | CX16: 0 | CY16: 0 | CZ16: 0 | DA16: 0 | DB16: 0.00 | DC16: 0 | DD16: 0 | DE16: 0 | DF16: 0 | DG16: 0 | DH16: 0 | DI16: 0 | DJ16: 0 | DK16: 0 | DL16: 0 | DM16: 0 | DN16: 0.00 | DO16: 0 | DP16: 0 | DQ16: 0 | DR16: 0 | DS16: 0 | DT16: 0.00 | DU16: 0 | DV16: 0 | DW16: 0 | DX16: 0 | DY16: 0 | DZ16: 0.00 | EA16: 0 | EB16: 0 | EC16: 0 | ED16: 0 | EE16: 0 | EF16: 0 | EG16: 0 | EH16: 0 | EI16: 0 | EJ16: 0 | EK16: 0 | EL16: 0.00 | EM16: 0 | EQ16: 0 | ER16: 0 | ES16: 0.00 | EX16: 0 | FE16: 0 | FF16: 0 | FG16: 0 | FH16: 0 | FL16: 0 | FM16: / | FN16: 200 | FO16: 0/200 | FP16: 0 | FQ16: / | FR16: 200 | FS16: 0/200 | FT16: 0 | FU16: / | FV16: 100 | FW16: 0/100 | FX16: 0 | FY16: / | FZ16: 100 | GA16: 0/100 | GB16: 0 | GC16: / | GD16: 200 | GE16: 0/200
A17: 0 | B17: 9 | C17: 9 | D17: 0 | L17: 0 | M17: 0 | N17: 0 | O17: 0 | P17: 0 | Q17: 0 | R17: 0 | S17: 0 | T17: 0 | U17: 0 | V17: 0.00 | Z17: 0 | AA17: 0 | AB17: 0 | AC17: 0 | AD17: 0 | AE17: 0 | AF17: 0 | AG17: 0 | AH17: 0 | AI17: 0 | AJ17: 0.00 | AN17: 0 | AO17: 0 | AP17: 0 | AQ17: 0 | AR17: 0 | AS17: 0 | AT17: 0 | AU17: 0 | AV17: 0 | AW17: 0 | AX17: 0.00 | BB17: 0 | BC17: 0 | BD17: 0 | BE17: 0 | BF17: 0 | BG17: 0 | BH17: 0 | BI17: 0 | BJ17: 0 | BK17: 0 | BL17: 0.00 | BP17: 0 | BQ17: 0 | BR17: 0 | BS17: 0 | BT17: 0 | BU17: 0 | BV17: 0 | BW17: 0 | BX17: 0 | BY17: 0 | BZ17: 0.00 | CD17: 0 | CE17: 0 | CF17: 0 | CG17: 0 | CH17: 0 | CI17: 0 | CJ17: 0 | CK17: 0 | CL17: 0 | CM17: 0 | CN17: 0.00 | CR17: 0 | CS17: 0 | CT17: 0 | CU17: 0 | CV17: 0 | CW17: 0 | CX17: 0 | CY17: 0 | CZ17: 0 | DA17: 0 | DB17: 0.00 | DC17: 0 | DD17: 0 | DE17: 0 | DF17: 0 | DG17: 0 | DH17: 0 | DI17: 0 | DJ17: 0 | DK17: 0 | DL17: 0 | DM17: 0 | DN17: 0.00 | DO17: 0 | DP17: 0 | DQ17: 0 | DR17: 0 | DS17: 0 | DT17: 0.00 | DU17: 0 | DV17: 0 | DW17: 0 | DX17: 0 | DY17: 0 | DZ17: 0.00 | EA17: 0 | EB17: 0 | EC17: 0 | ED17: 0 | EE17: 0 | EF17: 0 | EG17: 0 | EH17: 0 | EI17: 0 | EJ17: 0 | EK17: 0 | EL17: 0.00 | EM17: 0 | EQ17: 0 | ER17: 0 | ES17: 0.00 | EX17: 0 | FE17: 0 | FF17: 0 | FG17: 0 | FH17: 0 | FL17: 0 | FM17: / | FN17: 200 | FO17: 0/200 | FP17: 0 | FQ17: / | FR17: 200 | FS17: 0/200 | FT17: 0 | FU17: / | FV17: 100 | FW17: 0/100 | FX17: 0 | FY17: / | FZ17: 100 | GA17: 0/100 | GB17: 0 | GC17: / | GD17: 200 | GE17: 0/200
A18: 0 | B18: 10 | C18: 10 | D18: 0 | L18: 0 | M18: 0 | N18: 0 | O18: 0 | P18: 0 | Q18: 0 | R18: 0 | S18: 0 | T18: 0 | U18: 0 | V18: 0.00 | Z18: 0 | AA18: 0 | AB18: 0 | AC18: 0 | AD18: 0 | AE18: 0 | AF18: 0 | AG18: 0 | AH18: 0 | AI18: 0 | AJ18: 0.00 | AN18: 0 | AO18: 0 | AP18: 0 | AQ18: 0 | AR18: 0 | AS18: 0 | AT18: 0 | AU18: 0 | AV18: 0 | AW18: 0 | AX18: 0.00 | BB18: 0 | BC18: 0 | BD18: 0 | BE18: 0 | BF18: 0 | BG18: 0 | BH18: 0 | BI18: 0 | BJ18: 0 | BK18: 0 | BL18: 0.00 | BP18: 0 | BQ18: 0 | BR18: 0 | BS18: 0 | BT18: 0 | BU18: 0 | BV18: 0 | BW18: 0 | BX18: 0 | BY18: 0 | BZ18: 0.00 | CD18: 0 | CE18: 0 | CF18: 0 | CG18: 0 | CH18: 0 | CI18: 0 | CJ18: 0 | CK18: 0 | CL18: 0 | CM18: 0 | CN18: 0.00 | CR18: 0 | CS18: 0 | CT18: 0 | CU18: 0 | CV18: 0 | CW18: 0 | CX18: 0 | CY18: 0 | CZ18: 0 | DA18: 0 | DB18: 0.00 | DC18: 0 | DD18: 0 | DE18: 0 | DF18: 0 | DG18: 0 | DH18: 0 | DI18: 0 | DJ18: 0 | DK18: 0 | DL18: 0 | DM18: 0 | DN18: 0.00 | DO18: 0 | DP18: 0 | DQ18: 0 | DR18: 0 | DS18: 0 | DT18: 0.00 | DU18: 0 | DV18: 0 | DW18: 0 | DX18: 0 | DY18: 0 | DZ18: 0.00 | EA18: 0 | EB18: 0 | EC18: 0 | ED18: 0 | EE18: 0 | EF18: 0 | EG18: 0 | EH18: 0 | EI18: 0 | EJ18: 0 | EK18: 0 | EL18: 0.00 | EM18: 0 | EQ18: 0 | ER18: 0 | ES18: 0.00 | EX18: 0 | FE18: 0 | FF18: 0 | FG18: 0 | FH18: 0 | FL18: 0 | FM18: / | FN18: 200 | FO18: 0/200 | FP18: 0 | FQ18: / | FR18: 200 | FS18: 0/200 | FT18: 0 | FU18: / | FV18: 100 | FW18: 0/100 | FX18: 0 | FY18: / | FZ18: 100 | GA18: 0/100 | GB18: 0 | GC18: / | GD18: 200 | GE18: 0/200
A19: 0 | B19: 11 | C19: 11 | D19: 0 | L19: 0 | M19: 0 | N19: 0 | O19: 0 | P19: 0 | Q19: 0 | R19: 0 | S19: 0 | T19: 0 | U19: 0 | V19: 0.00 | Z19: 0 | AA19: 0 | AB19: 0 | AC19: 0 | AD19: 0 | AE19: 0 | AF19: 0 | AG19: 0 | AH19: 0 | AI19: 0 | AJ19: 0.00 | AN19: 0 | AO19: 0 | AP19: 0 | AQ19: 0 | AR19: 0 | AS19: 0 | AT19: 0 | AU19: 0 | AV19: 0 | AW19: 0 | AX19: 0.00 | BB19: 0 | BC19: 0 | BD19: 0 | BE19: 0 | BF19: 0 | BG19: 0 | BH19: 0 | BI19: 0 | BJ19: 0 | BK19: 0 | BL19: 0.00 | BP19: 0 | BQ19: 0 | BR19: 0 | BS19: 0 | BT19: 0 | BU19: 0 | BV19: 0 | BW19: 0 | BX19: 0 | BY19: 0 | BZ19: 0.00 | CD19: 0 | CE19: 0 | CF19: 0 | CG19: 0 | CH19: 0 | CI19: 0 | CJ19: 0 | CK19: 0 | CL19: 0 | CM19: 0 | CN19: 0.00 | CR19: 0 | CS19: 0 | CT19: 0 | CU19: 0 | CV19: 0 | CW19: 0 | CX19: 0 | CY19: 0 | CZ19: 0 | DA19: 0 | DB19: 0.00 | DC19: 0 | DD19: 0 | DE19: 0 | DF19: 0 | DG19: 0 | DH19: 0 | DI19: 0 | DJ19: 0 | DK19: 0 | DL19: 0 | DM19: 0 | DN19: 0.00 | DO19: 0 | DP19: 0 | DQ19: 0 | DR19: 0 | DS19: 0 | DT19: 0.00 | DU19: 0 | DV19: 0 | DW19: 0 | DX19: 0 | DY19: 0 | DZ19: 0.00 | EA19: 0 | EB19: 0 | EC19: 0 | ED19: 0 | EE19: 0 | EF19: 0 | EG19: 0 | EH19: 0 | EI19: 0 | EJ19: 0 | EK19: 0 | EL19: 0.00 | EM19: 0 | EQ19: 0 | ER19: 0 | ES19: 0.00 | EX19: 0 | FE19: 0 | FF19: 0 | FG19: 0 | FH19: 0 | FL19: 0 | FM19: / | FN19: 200 | FO19: 0/200 | FP19: 0 | FQ19: / | FR19: 200 | FS19: 0/200 | FT19: 0 | FU19: / | FV19: 100 | FW19: 0/100 | FX19: 0 | FY19: / | FZ19: 100 | GA19: 0/100 | GB19: 0 | GC19: / | GD19: 200 | GE19: 0/200
A20: 0 | B20: 12 | C20: 12 | D20: 0 | L20: 0 | M20: 0 | N20: 0 | O20: 0 | P20: 0 | Q20: 0 | R20: 0 | S20: 0 | T20: 0 | U20: 0 | V20: 0.00 | Z20: 0 | AA20: 0 | AB20: 0 | AC20: 0 | AD20: 0 | AE20: 0 | AF20: 0 | AG20: 0 | AH20: 0 | AI20: 0 | AJ20: 0.00 | AN20: 0 | AO20: 0 | AP20: 0 | AQ20: 0 | AR20: 0 | AS20: 0 | AT20: 0 | AU20: 0 | AV20: 0 | AW20: 0 | AX20: 0.00 | BB20: 0 | BC20: 0 | BD20: 0 | BE20: 0 | BF20: 0 | BG20: 0 | BH20: 0 | BI20: 0 | BJ20: 0 | BK20: 0 | BL20: 0.00 | BP20: 0 | BQ20: 0 | BR20: 0 | BS20: 0 | BT20: 0 | BU20: 0 | BV20: 0 | BW20: 0 | BX20: 0 | BY20: 0 | BZ20: 0.00 | CD20: 0 | CE20: 0 | CF20: 0 | CG20: 0 | CH20: 0 | CI20: 0 | CJ20: 0 | CK20: 0 | CL20: 0 | CM20: 0 | CN20: 0.00 | CR20: 0 | CS20: 0 | CT20: 0 | CU20: 0 | CV20: 0 | CW20: 0 | CX20: 0 | CY20: 0 | CZ20: 0 | DA20: 0 | DB20: 0.00 | DC20: 0 | DD20: 0 | DE20: 0 | DF20: 0 | DG20: 0 | DH20: 0 | DI20: 0 | DJ20: 0 | DK20: 0 | DL20: 0 | DM20: 0 | DN20: 0.00 | DO20: 0 | DP20: 0 | DQ20: 0 | DR20: 0 | DS20: 0 | DT20: 0.00 | DU20: 0 | DV20: 0 | DW20: 0 | DX20: 0 | DY20: 0 | DZ20: 0.00 | EA20: 0 | EB20: 0 | EC20: 0 | ED20: 0 | EE20: 0 | EF20: 0 | EG20: 0 | EH20: 0 | EI20: 0 | EJ20: 0 | EK20: 0 | EL20: 0.00 | EM20: 0 | EQ20: 0 | ER20: 0 | ES20: 0.00 | EX20: 0 | FE20: 0 | FF20: 0 | FG20: 0 | FH20: 0 | FL20: 0 | FM20: / | FN20: 200 | FO20: 0/200 | FP20: 0 | FQ20: / | FR20: 200 | FS20: 0/200 | FT20: 0 | FU20: / | FV20: 100 | FW20: 0/100 | FX20: 0 | FY20: / | FZ20: 100 | GA20: 0/100 | GB20: 0 | GC20: / | GD20: 200 | GE20: 0/200
A21: 0 | B21: 13 | C21: 13 | D21: 0 | L21: 0 | M21: 0 | N21: 0 | O21: 0 | P21: 0 | Q21: 0 | R21: 0 | S21: 0 | T21: 0 | U21: 0 | V21: 0.00 | Z21: 0 | AA21: 0 | AB21: 0 | AC21: 0 | AD21: 0 | AE21: 0 | AF21: 0 | AG21: 0 | AH21: 0 | AI21: 0 | AJ21: 0.00 | AN21: 0 | AO21: 0 | AP21: 0 | AQ21: 0 | AR21: 0 | AS21: 0 | AT21: 0 | AU21: 0 | AV21: 0 | AW21: 0 | AX21: 0.00 | BB21: 0 | BC21: 0 | BD21: 0 | BE21: 0 | BF21: 0 | BG21: 0 | BH21: 0 | BI21: 0 | BJ21: 0 | BK21: 0 | BL21: 0.00 | BP21: 0 | BQ21: 0 | BR21: 0 | BS21: 0 | BT21: 0 | BU21: 0 | BV21: 0 | BW21: 0 | BX21: 0 | BY21: 0 | BZ21: 0.00 | CD21: 0 | CE21: 0 | CF21: 0 | CG21: 0 | CH21: 0 | CI21: 0 | CJ21: 0 | CK21: 0 | CL21: 0 | CM21: 0 | CN21: 0.00 | CR21: 0 | CS21: 0 | CT21: 0 | CU21: 0 | CV21: 0 | CW21: 0 | CX21: 0 | CY21: 0 | CZ21: 0 | DA21: 0 | DB21: 0.00 | DC21: 0 | DD21: 0 | DE21: 0 | DF21: 0 | DG21: 0 | DH21: 0 | DI21: 0 | DJ21: 0 | DK21: 0 | DL21: 0 | DM21: 0 | DN21: 0.00 | DO21: 0 | DP21: 0 | DQ21: 0 | DR21: 0 | DS21: 0 | DT21: 0.00 | DU21: 0 | DV21: 0 | DW21: 0 | DX21: 0 | DY21: 0 | DZ21: 0.00 | EA21: 0 | EB21: 0 | EC21: 0 | ED21: 0 | EE21: 0 | EF21: 0 | EG21: 0 | EH21: 0 | EI21: 0 | EJ21: 0 | EK21: 0 | EL21: 0.00 | EM21: 0 | EQ21: 0 | ER21: 0 | ES21: 0.00 | EX21: 0 | FE21: 0 | FF21: 0 | FG21: 0 | FH21: 0 | FL21: 0 | FM21: / | FN21: 200 | FO21: 0/200 | FP21: 0 | FQ21: / | FR21: 200 | FS21: 0/200 | FT21: 0 | FU21: / | FV21: 100 | FW21: 0/100 | FX21: 0 | FY21: / | FZ21: 100 | GA21: 0/100 | GB21: 0 | GC21: / | GD21: 200 | GE21: 0/200
A22: 0 | B22: 14 | C22: 14 | D22: 0 | L22: 0 | M22: 0 | N22: 0 | O22: 0 | P22: 0 | Q22: 0 | R22: 0 | S22: 0 | T22: 0 | U22: 0 | V22: 0.00 | Z22: 0 | AA22: 0 | AB22: 0 | AC22: 0 | AD22: 0 | AE22: 0 | AF22: 0 | AG22: 0 | AH22: 0 | AI22: 0 | AJ22: 0.00 | AN22: 0 | AO22: 0 | AP22: 0 | AQ22: 0 | AR22: 0 | AS22: 0 | AT22: 0 | AU22: 0 | AV22: 0 | AW22: 0 | AX22: 0.00 | BB22: 0 | BC22: 0 | BD22: 0 | BE22: 0 | BF22: 0 | BG22: 0 | BH22: 0 | BI22: 0 | BJ22: 0 | BK22: 0 | BL22: 0.00 | BP22: 0 | BQ22: 0 | BR22: 0 | BS22: 0 | BT22: 0 | BU22: 0 | BV22: 0 | BW22: 0 | BX22: 0 | BY22: 0 | BZ22: 0.00 | CD22: 0 | CE22: 0 | CF22: 0 | CG22: 0 | CH22: 0 | CI22: 0 | CJ22: 0 | CK22: 0 | CL22: 0 | CM22: 0 | CN22: 0.00 | CR22: 0 | CS22: 0 | CT22: 0 | CU22: 0 | CV22: 0 | CW22: 0 | CX22: 0 | CY22: 0 | CZ22: 0 | DA22: 0 | DB22: 0.00 | DC22: 0 | DD22: 0 | DE22: 0 | DF22: 0 | DG22: 0 | DH22: 0 | DI22: 0 | DJ22: 0 | DK22: 0 | DL22: 0 | DM22: 0 | DN22: 0.00 | DO22: 0 | DP22: 0 | DQ22: 0 | DR22: 0 | DS22: 0 | DT22: 0.00 | DU22: 0 | DV22: 0 | DW22: 0 | DX22: 0 | DY22: 0 | DZ22: 0.00 | EA22: 0 | EB22: 0 | EC22: 0 | ED22: 0 | EE22: 0 | EF22: 0 | EG22: 0 | EH22: 0 | EI22: 0 | EJ22: 0 | EK22: 0 | EL22: 0.00 | EM22: 0 | EQ22: 0 | ER22: 0 | ES22: 0.00 | EX22: 0 | FE22: 0 | FF22: 0 | FG22: 0 | FH22: 0 | FL22: 0 | FM22: / | FN22: 200 | FO22: 0/200 | FP22: 0 | FQ22: / | FR22: 200 | FS22: 0/200 | FT22: 0 | FU22: / | FV22: 100 | FW22: 0/100 | FX22: 0 | FY22: / | FZ22: 100 | GA22: 0/100 | GB22: 0 | GC22: / | GD22: 200 | GE22: 0/200
A23: 0 | B23: 15 | C23: 15 | D23: 0 | L23: 0 | M23: 0 | N23: 0 | O23: 0 | P23: 0 | Q23: 0 | R23: 0 | S23: 0 | T23: 0 | U23: 0 | V23: 0.00 | Z23: 0 | AA23: 0 | AB23: 0 | AC23: 0 | AD23: 0 | AE23: 0 | AF23: 0 | AG23: 0 | AH23: 0 | AI23: 0 | AJ23: 0.00 | AN23: 0 | AO23: 0 | AP23: 0 | AQ23: 0 | AR23: 0 | AS23: 0 | AT23: 0 | AU23: 0 | AV23: 0 | AW23: 0 | AX23: 0.00 | BB23: 0 | BC23: 0 | BD23: 0 | BE23: 0 | BF23: 0 | BG23: 0 | BH23: 0 | BI23: 0 | BJ23: 0 | BK23: 0 | BL23: 0.00 | BP23: 0 | BQ23: 0 | BR23: 0 | BS23: 0 | BT23: 0 | BU23: 0 | BV23: 0 | BW23: 0 | BX23: 0 | BY23: 0 | BZ23: 0.00 | CD23: 0 | CE23: 0 | CF23: 0 | CG23: 0 | CH23: 0 | CI23: 0 | CJ23: 0 | CK23: 0 | CL23: 0 | CM23: 0 | CN23: 0.00 | CR23: 0 | CS23: 0 | CT23: 0 | CU23: 0 | CV23: 0 | CW23: 0 | CX23: 0 | CY23: 0 | CZ23: 0 | DA23: 0 | DB23: 0.00 | DC23: 0 | DD23: 0 | DE23: 0 | DF23: 0 | DG23: 0 | DH23: 0 | DI23: 0 | DJ23: 0 | DK23: 0 | DL23: 0 | DM23: 0 | DN23: 0.00 | DO23: 0 | DP23: 0 | DQ23: 0 | DR23: 0 | DS23: 0 | DT23: 0.00 | DU23: 0 | DV23: 0 | DW23: 0 | DX23: 0 | DY23: 0 | DZ23: 0.00 | EA23: 0 | EB23: 0 | EC23: 0 | ED23: 0 | EE23: 0 | EF23: 0 | EG23: 0 | EH23: 0 | EI23: 0 | EJ23: 0 | EK23: 0 | EL23: 0.00 | EM23: 0 | EQ23: 0 | ER23: 0 | ES23: 0.00 | EX23: 0 | FE23: 0 | FF23: 0 | FG23: 0 | FH23: 0 | FL23: 0 | FM23: / | FN23: 200 | FO23: 0/200 | FP23: 0 | FQ23: / | FR23: 200 | FS23: 0/200 | FT23: 0 | FU23: / | FV23: 100 | FW23: 0/100 | FX23: 0 | FY23: / | FZ23: 100 | GA23: 0/100 | GB23: 0 | GC23: / | GD23: 200 | GE23: 0/200
A24: 0 | B24: 16 | C24: 16 | D24: 0 | L24: 0 | M24: 0 | N24: 0 | O24: 0 | P24: 0 | Q24: 0 | R24: 0 | S24: 0 | T24: 0 | U24: 0 | V24: 0.00 | Z24: 0 | AA24: 0 | AB24: 0 | AC24: 0 | AD24: 0 | AE24: 0 | AF24: 0 | AG24: 0 | AH24: 0 | AI24: 0 | AJ24: 0.00 | AN24: 0 | AO24: 0 | AP24: 0 | AQ24: 0 | AR24: 0 | AS24: 0 | AT24: 0 | AU24: 0 | AV24: 0 | AW24: 0 | AX24: 0.00 | BB24: 0 | BC24: 0 | BD24: 0 | BE24: 0 | BF24: 0 | BG24: 0 | BH24: 0 | BI24: 0 | BJ24: 0 | BK24: 0 | BL24: 0.00 | BP24: 0 | BQ24: 0 | BR24: 0 | BS24: 0 | BT24: 0 | BU24: 0 | BV24: 0 | BW24: 0 | BX24: 0 | BY24: 0 | BZ24: 0.00 | CD24: 0 | CE24: 0 | CF24: 0 | CG24: 0 | CH24: 0 | CI24: 0 | CJ24: 0 | CK24: 0 | CL24: 0 | CM24: 0 | CN24: 0.00 | CR24: 0 | CS24: 0 | CT24: 0 | CU24: 0 | CV24: 0 | CW24: 0 | CX24: 0 | CY24: 0 | CZ24: 0 | DA24: 0 | DB24: 0.00 | DC24: 0 | DD24: 0 | DE24: 0 | DF24: 0 | DG24: 0 | DH24: 0 | DI24: 0 | DJ24: 0 | DK24: 0 | DL24: 0 | DM24: 0 | DN24: 0.00 | DO24: 0 | DP24: 0 | DQ24: 0 | DR24: 0 | DS24: 0 | DT24: 0.00 | DU24: 0 | DV24: 0 | DW24: 0 | DX24: 0 | DY24: 0 | DZ24: 0.00 | EA24: 0 | EB24: 0 | EC24: 0 | ED24: 0 | EE24: 0 | EF24: 0 | EG24: 0 | EH24: 0 | EI24: 0 | EJ24: 0 | EK24: 0 | EL24: 0.00 | EM24: 0 | EQ24: 0 | ER24: 0 | ES24: 0.00 | EX24: 0 | FE24: 0 | FF24: 0 | FG24: 0 | FH24: 0 | FL24: 0 | FM24: / | FN24: 200 | FO24: 0/200 | FP24: 0 | FQ24: / | FR24: 200 | FS24: 0/200 | FT24: 0 | FU24: / | FV24: 100 | FW24: 0/100 | FX24: 0 | FY24: / | FZ24: 100 | GA24: 0/100 | GB24: 0 | GC24: / | GD24: 200 | GE24: 0/200
A25: 0 | B25: 17 | C25: 17 | D25: 0 | L25: 0 | M25: 0 | N25: 0 | O25: 0 | P25: 0 | Q25: 0 | R25: 0 | S25: 0 | T25: 0 | U25: 0 | V25: 0.00 | Z25: 0 | AA25: 0 | AB25: 0 | AC25: 0 | AD25: 0 | AE25: 0 | AF25: 0 | AG25: 0 | AH25: 0 | AI25: 0 | AJ25: 0.00 | AN25: 0 | AO25: 0 | AP25: 0 | AQ25: 0 | AR25: 0 | AS25: 0 | AT25: 0 | AU25: 0 | AV25: 0 | AW25: 0 | AX25: 0.00 | BB25: 0 | BC25: 0 | BD25: 0 | BE25: 0 | BF25: 0 | BG25: 0 | BH25: 0 | BI25: 0 | BJ25: 0 | BK25: 0 | BL25: 0.00 | BP25: 0 | BQ25: 0 | BR25: 0 | BS25: 0 | BT25: 0 | BU25: 0 | BV25: 0 | BW25: 0 | BX25: 0 | BY25: 0 | BZ25: 0.00 | CD25: 0 | CE25: 0 | CF25: 0 | CG25: 0 | CH25: 0 | CI25: 0 | CJ25: 0 | CK25: 0 | CL25: 0 | CM25: 0 | CN25: 0.00 | CR25: 0 | CS25: 0 | CT25: 0 | CU25: 0 | CV25: 0 | CW25: 0 | CX25: 0 | CY25: 0 | CZ25: 0 | DA25: 0 | DB25: 0.00 | DC25: 0 | DD25: 0 | DE25: 0 | DF25: 0 | DG25: 0 | DH25: 0 | DI25: 0 | DJ25: 0 | DK25: 0 | DL25: 0 | DM25: 0 | DN25: 0.00 | DO25: 0 | DP25: 0 | DQ25: 0 | DR25: 0 | DS25: 0 | DT25: 0.00 | DU25: 0 | DV25: 0 | DW25: 0 | DX25: 0 | DY25: 0 | DZ25: 0.00 | EA25: 0 | EB25: 0 | EC25: 0 | ED25: 0 | EE25: 0 | EF25: 0 | EG25: 0 | EH25: 0 | EI25: 0 | EJ25: 0 | EK25: 0 | EL25: 0.00 | EM25: 0 | EQ25: 0 | ER25: 0 | ES25: 0.00 | EX25: 0 | FE25: 0 | FF25: 0 | FG25: 0 | FH25: 0 | FL25: 0 | FM25: / | FN25: 200 | FO25: 0/200 | FP25: 0 | FQ25: / | FR25: 200 | FS25: 0/200 | FT25: 0 | FU25: / | FV25: 100 | FW25: 0/100 | FX25: 0 | FY25: / | FZ25: 100 | GA25: 0/100 | GB25: 0 | GC25: / | GD25: 200 | GE25: 0/200
A26: 0 | B26: 18 | C26: 18 | D26: 0 | L26: 0 | M26: 0 | N26: 0 | O26: 0 | P26: 0 | Q26: 0 | R26: 0 | S26: 0 | T26: 0 | U26: 0 | V26: 0.00 | Z26: 0 | AA26: 0 | AB26: 0 | AC26: 0 | AD26: 0 | AE26: 0 | AF26: 0 | AG26: 0 | AH26: 0 | AI26: 0 | AJ26: 0.00 | AN26: 0 | AO26: 0 | AP26: 0 | AQ26: 0 | AR26: 0 | AS26: 0 | AT26: 0 | AU26: 0 | AV26: 0 | AW26: 0 | AX26: 0.00 | BB26: 0 | BC26: 0 | BD26: 0 | BE26: 0 | BF26: 0 | BG26: 0 | BH26: 0 | BI26: 0 | BJ26: 0 | BK26: 0 | BL26: 0.00 | BP26: 0 | BQ26: 0 | BR26: 0 | BS26: 0 | BT26: 0 | BU26: 0 | BV26: 0 | BW26: 0 | BX26: 0 | BY26: 0 | BZ26: 0.00 | CD26: 0 | CE26: 0 | CF26: 0 | CG26: 0 | CH26: 0 | CI26: 0 | CJ26: 0 | CK26: 0 | CL26: 0 | CM26: 0 | CN26: 0.00 | CR26: 0 | CS26: 0 | CT26: 0 | CU26: 0 | CV26: 0 | CW26: 0 | CX26: 0 | CY26: 0 | CZ26: 0 | DA26: 0 | DB26: 0.00 | DC26: 0 | DD26: 0 | DE26: 0 | DF26: 0 | DG26: 0 | DH26: 0 | DI26: 0 | DJ26: 0 | DK26: 0 | DL26: 0 | DM26: 0 | DN26: 0.00 | DO26: 0 | DP26: 0 | DQ26: 0 | DR26: 0 | DS26: 0 | DT26: 0.00 | DU26: 0 | DV26: 0 | DW26: 0 | DX26: 0 | DY26: 0 | DZ26: 0.00 | EA26: 0 | EB26: 0 | EC26: 0 | ED26: 0 | EE26: 0 | EF26: 0 | EG26: 0 | EH26: 0 | EI26: 0 | EJ26: 0 | EK26: 0 | EL26: 0.00 | EM26: 0 | EQ26: 0 | ER26: 0 | ES26: 0.00 | EX26: 0 | FE26: 0 | FF26: 0 | FG26: 0 | FH26: 0 | FL26: 0 | FM26: / | FN26: 200 | FO26: 0/200 | FP26: 0 | FQ26: / | FR26: 200 | FS26: 0/200 | FT26: 0 | FU26: / | FV26: 100 | FW26: 0/100 | FX26: 0 | FY26: / | FZ26: 100 | GA26: 0/100 | GB26: 0 | GC26: / | GD26: 200 | GE26: 0/200
A27: 0 | B27: 19 | C27: 19 | D27: 0 | L27: 0 | M27: 0 | N27: 0 | O27: 0 | P27: 0 | Q27: 0 | R27: 0 | S27: 0 | T27: 0 | U27: 0 | V27: 0.00 | Z27: 0 | AA27: 0 | AB27: 0 | AC27: 0 | AD27: 0 | AE27: 0 | AF27: 0 | AG27: 0 | AH27: 0 | AI27: 0 | AJ27: 0.00 | AN27: 0 | AO27: 0 | AP27: 0 | AQ27: 0 | AR27: 0 | AS27: 0 | AT27: 0 | AU27: 0 | AV27: 0 | AW27: 0 | AX27: 0.00 | BB27: 0 | BC27: 0 | BD27: 0 | BE27: 0 | BF27: 0 | BG27: 0 | BH27: 0 | BI27: 0 | BJ27: 0 | BK27: 0 | BL27: 0.00 | BP27: 0 | BQ27: 0 | BR27: 0 | BS27: 0 | BT27: 0 | BU27: 0 | BV27: 0 | BW27: 0 | BX27: 0 | BY27: 0 | BZ27: 0.00 | CD27: 0 | CE27: 0 | CF27: 0 | CG27: 0 | CH27: 0 | CI27: 0 | CJ27: 0 | CK27: 0 | CL27: 0 | CM27: 0 | CN27: 0.00 | CR27: 0 | CS27: 0 | CT27: 0 | CU27: 0 | CV27: 0 | CW27: 0 | CX27: 0 | CY27: 0 | CZ27: 0 | DA27: 0 | DB27: 0.00 | DC27: 0 | DD27: 0 | DE27: 0 | DF27: 0 | DG27: 0 | DH27: 0 | DI27: 0 | DJ27: 0 | DK27: 0 | DL27: 0 | DM27: 0 | DN27: 0.00 | DO27: 0 | DP27: 0 | DQ27: 0 | DR27: 0 | DS27: 0 | DT27: 0.00 | DU27: 0 | DV27: 0 | DW27: 0 | DX27: 0 | DY27: 0 | DZ27: 0.00 | EA27: 0 | EB27: 0 | EC27: 0 | ED27: 0 | EE27: 0 | EF27: 0 | EG27: 0 | EH27: 0 | EI27: 0 | EJ27: 0 | EK27: 0 | EL27: 0.00 | EM27: 0 | EQ27: 0 | ER27: 0 | ES27: 0.00 | EX27: 0 | FE27: 0 | FF27: 0 | FG27: 0 | FH27: 0 | FL27: 0 | FM27: / | FN27: 200 | FO27: 0/200 | FP27: 0 | FQ27: / | FR27: 200 | FS27: 0/200 | FT27: 0 | FU27: / | FV27: 100 | FW27: 0/100 | FX27: 0 | FY27: / | FZ27: 100 | GA27: 0/100 | GB27: 0 | GC27: / | GD27: 200 | GE27: 0/200
A28: 0 | B28: 20 | C28: 20 | D28: 0 | L28: 0 | M28: 0 | N28: 0 | O28: 0 | P28: 0 | Q28: 0 | R28: 0 | S28: 0 | T28: 0 | U28: 0 | V28: 0.00 | Z28: 0 | AA28: 0 | AB28: 0 | AC28: 0 | AD28: 0 | AE28: 0 | AF28: 0 | AG28: 0 | AH28: 0 | AI28: 0 | AJ28: 0.00 | AN28: 0 | AO28: 0 | AP28: 0 | AQ28: 0 | AR28: 0 | AS28: 0 | AT28: 0 | AU28: 0 | AV28: 0 | AW28: 0 | AX28: 0.00 | BB28: 0 | BC28: 0 | BD28: 0 | BE28: 0 | BF28: 0 | BG28: 0 | BH28: 0 | BI28: 0 | BJ28: 0 | BK28: 0 | BL28: 0.00 | BP28: 0 | BQ28: 0 | BR28: 0 | BS28: 0 | BT28: 0 | BU28: 0 | BV28: 0 | BW28: 0 | BX28: 0 | BY28: 0 | BZ28: 0.00 | CD28: 0 | CE28: 0 | CF28: 0 | CG28: 0 | CH28: 0 | CI28: 0 | CJ28: 0 | CK28: 0 | CL28: 0 | CM28: 0 | CN28: 0.00 | CR28: 0 | CS28: 0 | CT28: 0 | CU28: 0 | CV28: 0 | CW28: 0 | CX28: 0 | CY28: 0 | CZ28: 0 | DA28: 0 | DB28: 0.00 | DC28: 0 | DD28: 0 | DE28: 0 | DF28: 0 | DG28: 0 | DH28: 0 | DI28: 0 | DJ28: 0 | DK28: 0 | DL28: 0 | DM28: 0 | DN28: 0.00 | DO28: 0 | DP28: 0 | DQ28: 0 | DR28: 0 | DS28: 0 | DT28: 0.00 | DU28: 0 | DV28: 0 | DW28: 0 | DX28: 0 | DY28: 0 | DZ28: 0.00 | EA28: 0 | EB28: 0 | EC28: 0 | ED28: 0 | EE28: 0 | EF28: 0 | EG28: 0 | EH28: 0 | EI28: 0 | EJ28: 0 | EK28: 0 | EL28: 0.00 | EM28: 0 | EQ28: 0 | ER28: 0 | ES28: 0.00 | EX28: 0 | FE28: 0 | FF28: 0 | FG28: 0 | FH28: 0 | FL28: 0 | FM28: / | FN28: 200 | FO28: 0/200 | FP28: 0 | FQ28: / | FR28: 200 | FS28: 0/200 | FT28: 0 | FU28: / | FV28: 100 | FW28: 0/100 | FX28: 0 | FY28: / | FZ28: 100 | GA28: 0/100 | GB28: 0 | GC28: / | GD28: 200 | GE28: 0/200
A29: 0 | B29: 21 | C29: 21 | D29: 0 | L29: 0 | M29: 0 | N29: 0 | O29: 0 | P29: 0 | Q29: 0 | R29: 0 | S29: 0 | T29: 0 | U29: 0 | V29: 0.00 | Z29: 0 | AA29: 0 | AB29: 0 | AC29: 0 | AD29: 0 | AE29: 0 | AF29: 0 | AG29: 0 | AH29: 0 | AI29: 0 | AJ29: 0.00 | AN29: 0 | AO29: 0 | AP29: 0 | AQ29: 0 | AR29: 0 | AS29: 0 | AT29: 0 | AU29: 0 | AV29: 0 | AW29: 0 | AX29: 0.00 | BB29: 0 | BC29: 0 | BD29: 0 | BE29: 0 | BF29: 0 | BG29: 0 | BH29: 0 | BI29: 0 | BJ29: 0 | BK29: 0 | BL29: 0.00 | BP29: 0 | BQ29: 0 | BR29: 0 | BS29: 0 | BT29: 0 | BU29: 0 | BV29: 0 | BW29: 0 | BX29: 0 | BY29: 0 | BZ29: 0.00 | CD29: 0 | CE29: 0 | CF29: 0 | CG29: 0 | CH29: 0 | CI29: 0 | CJ29: 0 | CK29: 0 | CL29: 0 | CM29: 0 | CN29: 0.00 | CR29: 0 | CS29: 0 | CT29: 0 | CU29: 0 | CV29: 0 | CW29: 0 | CX29: 0 | CY29: 0 | CZ29: 0 | DA29: 0 | DB29: 0.00 | DC29: 0 | DD29: 0 | DE29: 0 | DF29: 0 | DG29: 0 | DH29: 0 | DI29: 0 | DJ29: 0 | DK29: 0 | DL29: 0 | DM29: 0 | DN29: 0.00 | DO29: 0 | DP29: 0 | DQ29: 0 | DR29: 0 | DS29: 0 | DT29: 0.00 | DU29: 0 | DV29: 0 | DW29: 0 | DX29: 0 | DY29: 0 | DZ29: 0.00 | EA29: 0 | EB29: 0 | EC29: 0 | ED29: 0 | EE29: 0 | EF29: 0 | EG29: 0 | EH29: 0 | EI29: 0 | EJ29: 0 | EK29: 0 | EL29: 0.00 | EM29: 0 | EQ29: 0 | ER29: 0 | ES29: 0.00 | EX29: 0 | FE29: 0 | FF29: 0 | FG29: 0 | FH29: 0 | FL29: 0 | FM29: / | FN29: 200 | FO29: 0/200 | FP29: 0 | FQ29: / | FR29: 200 | FS29: 0/200 | FT29: 0 | FU29: / | FV29: 100 | FW29: 0/100 | FX29: 0 | FY29: / | FZ29: 100 | GA29: 0/100 | GB29: 0 | GC29: / | GD29: 200 | GE29: 0/200
A30: 0 | B30: 22 | C30: 22 | D30: 0 | L30: 0 | M30: 0 | N30: =SUM(L30:M30) -> 0 | O30: 0 | P30: 0 | Q30: =SUM(O30,P30) -> 0 | R30: 0 | S30: 0 | T30: 0 | U30: =SUM(N30,Q30,T30) -> 0 | V30: 0.00 | W30: =IF(R30="AB","AB",IF(AND(OR(L30="ab",L30="ml"),OR(M30="ab",M30="ml"),OR(O30="ab",O30="ml")),"AB",IF(AND(OR(L30="ab",L30="ml"),OR(O30="ab",O30="ml")),"AB",""))) ->  | X30: =IF(OR($G30="NSO",$G30="",R30=""),"",IF(OR(W30="AB",R30="ab"),"AB",IF(V30>36,"P",IF(V30>34,"G2",IF(V30>31,"G1",IF(V30>25,"S","F")))))) ->  | Y30: =IF(OR(X30="",X30=0,X30="S",X30="F",X30="AB"),X30,IF(V30>=75,"D",IF(V30>=60,"I",IF(V30>=48,"II",IF(V30>=36,"III",X30))))) ->  | Z30: 0 | AA30: 0 | AB30: 0 | AC30: 0 | AD30: 0 | AE30: 0 | AF30: 0 | AG30: 0 | AH30: 0 | AI30: 0 | AJ30: 0.00 | AN30: 0 | AO30: 0 | AP30: 0 | AQ30: 0 | AR30: 0 | AS30: 0 | AT30: 0 | AU30: 0 | AV30: 0 | AW30: 0 | AX30: 0.00 | BB30: 0 | BC30: 0 | BD30: 0 | BE30: 0 | BF30: 0 | BG30: 0 | BH30: 0 | BI30: 0 | BJ30: 0 | BK30: 0 | BL30: 0.00 | BP30: 0 | BQ30: 0 | BR30: 0 | BS30: 0 | BT30: 0 | BU30: 0 | BV30: 0 | BW30: 0 | BX30: 0 | BY30: 0 | BZ30: 0.00 | CD30: 0 | CE30: 0 | CF30: 0 | CG30: 0 | CH30: 0 | CI30: 0 | CJ30: 0 | CK30: 0 | CL30: 0 | CM30: 0 | CN30: 0.00 | CR30: 0 | CS30: 0 | CT30: 0 | CU30: 0 | CV30: 0 | CW30: 0 | CX30: 0 | CY30: 0 | CZ30: 0 | DA30: 0 | DB30: 0.00 | DC30: 0 | DD30: 0 | DE30: 0 | DF30: 0 | DG30: 0 | DH30: 0 | DI30: 0 | DJ30: 0 | DK30: 0 | DL30: 0 | DM30: 0 | DN30: 0.00 | DO30: 0 | DP30: 0 | DQ30: 0 | DR30: 0 | DS30: 0 | DT30: 0.00 | DU30: 0 | DV30: 0 | DW30: 0 | DX30: 0 | DY30: 0 | DZ30: 0.00 | EA30: 0 | EB30: 0 | EC30: 0 | ED30: 0 | EE30: 0 | EF30: 0 | EG30: 0 | EH30: 0 | EI30: 0 | EJ30: 0 | EK30: 0 | EL30: 0.00 | EM30: 0 | EQ30: 0 | ER30: 0 | ES30: 0.00 | EX30: 0 | FE30: 0 | FF30: 0 | FG30: 0 | FH30: 0 | FL30: 0 | FM30: / | FN30: 200 | FO30: 0/200 | FP30: 0 | FQ30: / | FR30: 200 | FS30: 0/200 | FT30: 0 | FU30: / | FV30: 100 | FW30: 0/100 | FX30: 0 | FY30: / | FZ30: 100 | GA30: 0/100 | GB30: 0 | GC30: / | GD30: 200 | GE30: 0/200
A31: 0 | B31: 23 | C31: 23 | D31: 0 | L31: 0 | M31: 0 | N31: 0 | O31: 0 | P31: 0 | Q31: 0 | R31: 0 | S31: 0 | T31: 0 | U31: 0 | V31: 0.00 | Z31: 0 | AA31: 0 | AB31: 0 | AC31: 0 | AD31: 0 | AE31: 0 | AF31: 0 | AG31: 0 | AH31: 0 | AI31: 0 | AJ31: 0.00 | AN31: 0 | AO31: 0 | AP31: 0 | AQ31: 0 | AR31: 0 | AS31: 0 | AT31: 0 | AU31: 0 | AV31: 0 | AW31: 0 | AX31: 0.00 | BB31: 0 | BC31: 0 | BD31: 0 | BE31: 0 | BF31: 0 | BG31: 0 | BH31: 0 | BI31: 0 | BJ31: 0 | BK31: 0 | BL31: 0.00 | BP31: 0 | BQ31: 0 | BR31: 0 | BS31: 0 | BT31: 0 | BU31: 0 | BV31: 0 | BW31: 0 | BX31: 0 | BY31: 0 | BZ31: 0.00 | CD31: 0 | CE31: 0 | CF31: 0 | CG31: 0 | CH31: 0 | CI31: 0 | CJ31: 0 | CK31: 0 | CL31: 0 | CM31: 0 | CN31: 0.00 | CR31: 0 | CS31: 0 | CT31: 0 | CU31: 0 | CV31: 0 | CW31: 0 | CX31: 0 | CY31: 0 | CZ31: 0 | DA31: 0 | DB31: 0.00 | DC31: 0 | DD31: 0 | DE31: 0 | DF31: 0 | DG31: 0 | DH31: 0 | DI31: 0 | DJ31: 0 | DK31: 0 | DL31: 0 | DM31: 0 | DN31: 0.00 | DO31: 0 | DP31: 0 | DQ31: 0 | DR31: 0 | DS31: 0 | DT31: 0.00 | DU31: 0 | DV31: 0 | DW31: 0 | DX31: 0 | DY31: 0 | DZ31: 0.00 | EA31: 0 | EB31: 0 | EC31: 0 | ED31: 0 | EE31: 0 | EF31: 0 | EG31: 0 | EH31: 0 | EI31: 0 | EJ31: 0 | EK31: 0 | EL31: 0.00 | EM31: 0 | EQ31: 0 | ER31: 0 | ES31: 0.00 | EX31: 0 | FE31: 0 | FF31: 0 | FG31: 0 | FH31: 0 | FL31: 0 | FM31: / | FN31: 200 | FO31: 0/200 | FP31: 0 | FQ31: / | FR31: 200 | FS31: 0/200 | FT31: 0 | FU31: / | FV31: 100 | FW31: 0/100 | FX31: 0 | FY31: / | FZ31: 100 | GA31: 0/100 | GB31: 0 | GC31: / | GD31: 200 | GE31: 0/200
A32: 0 | B32: 24 | C32: 24 | D32: 0 | L32: 0 | M32: 0 | N32: 0 | O32: 0 | P32: 0 | Q32: 0 | R32: 0 | S32: 0 | T32: 0 | U32: 0 | V32: 0.00 | Z32: 0 | AA32: 0 | AB32: 0 | AC32: 0 | AD32: 0 | AE32: 0 | AF32: 0 | AG32: 0 | AH32: 0 | AI32: 0 | AJ32: 0.00 | AN32: 0 | AO32: 0 | AP32: 0 | AQ32: 0 | AR32: 0 | AS32: 0 | AT32: 0 | AU32: 0 | AV32: 0 | AW32: 0 | AX32: 0.00 | BB32: 0 | BC32: 0 | BD32: 0 | BE32: 0 | BF32: 0 | BG32: 0 | BH32: 0 | BI32: 0 | BJ32: 0 | BK32: 0 | BL32: 0.00 | BP32: 0 | BQ32: 0 | BR32: 0 | BS32: 0 | BT32: 0 | BU32: 0 | BV32: 0 | BW32: 0 | BX32: 0 | BY32: 0 | BZ32: 0.00 | CD32: 0 | CE32: 0 | CF32: 0 | CG32: 0 | CH32: 0 | CI32: 0 | CJ32: 0 | CK32: 0 | CL32: 0 | CM32: 0 | CN32: 0.00 | CR32: 0 | CS32: 0 | CT32: 0 | CU32: 0 | CV32: 0 | CW32: 0 | CX32: 0 | CY32: 0 | CZ32: 0 | DA32: 0 | DB32: 0.00 | DC32: 0 | DD32: 0 | DE32: 0 | DF32: 0 | DG32: 0 | DH32: 0 | DI32: 0 | DJ32: 0 | DK32: 0 | DL32: 0 | DM32: 0 | DN32: 0.00 | DO32: 0 | DP32: 0 | DQ32: 0 | DR32: 0 | DS32: 0 | DT32: 0.00 | DU32: 0 | DV32: 0 | DW32: 0 | DX32: 0 | DY32: 0 | DZ32: 0.00 | EA32: 0 | EB32: 0 | EC32: 0 | ED32: 0 | EE32: 0 | EF32: 0 | EG32: 0 | EH32: 0 | EI32: 0 | EJ32: 0 | EK32: 0 | EL32: 0.00 | EM32: 0 | EQ32: 0 | ER32: 0 | ES32: 0.00 | EX32: 0 | FE32: 0 | FF32: 0 | FG32: 0 | FH32: 0 | FL32: 0 | FM32: / | FN32: 200 | FO32: 0/200 | FP32: 0 | FQ32: / | FR32: 200 | FS32: 0/200 | FT32: 0 | FU32: / | FV32: 100 | FW32: 0/100 | FX32: 0 | FY32: / | FZ32: 100 | GA32: 0/100 | GB32: 0 | GC32: / | GD32: 200 | GE32: 0/200
A33: 0 | B33: 25 | C33: 25 | D33: 0 | L33: 0 | M33: 0 | N33: 0 | O33: 0 | P33: 0 | Q33: 0 | R33: 0 | S33: 0 | T33: 0 | U33: 0 | V33: 0.00 | Z33: 0 | AA33: 0 | AB33: 0 | AC33: 0 | AD33: 0 | AE33: 0 | AF33: 0 | AG33: 0 | AH33: 0 | AI33: 0 | AJ33: 0.00 | AN33: 0 | AO33: 0 | AP33: 0 | AQ33: 0 | AR33: 0 | AS33: 0 | AT33: 0 | AU33: 0 | AV33: 0 | AW33: 0 | AX33: 0.00 | BB33: 0 | BC33: 0 | BD33: 0 | BE33: 0 | BF33: 0 | BG33: 0 | BH33: 0 | BI33: 0 | BJ33: 0 | BK33: 0 | BL33: 0.00 | BP33: 0 | BQ33: 0 | BR33: 0 | BS33: 0 | BT33: 0 | BU33: 0 | BV33: 0 | BW33: 0 | BX33: 0 | BY33: 0 | BZ33: 0.00 | CD33: 0 | CE33: 0 | CF33: 0 | CG33: 0 | CH33: 0 | CI33: 0 | CJ33: 0 | CK33: 0 | CL33: 0 | CM33: 0 | CN33: 0.00 | CR33: 0 | CS33: 0 | CT33: 0 | CU33: 0 | CV33: 0 | CW33: 0 | CX33: 0 | CY33: 0 | CZ33: 0 | DA33: 0 | DB33: 0.00 | DC33: 0 | DD33: 0 | DE33: 0 | DF33: 0 | DG33: 0 | DH33: 0 | DI33: 0 | DJ33: 0 | DK33: 0 | DL33: 0 | DM33: 0 | DN33: 0.00 | DO33: 0 | DP33: 0 | DQ33: 0 | DR33: 0 | DS33: 0 | DT33: 0.00 | DU33: 0 | DV33: 0 | DW33: 0 | DX33: 0 | DY33: 0 | DZ33: 0.00 | EA33: 0 | EB33: 0 | EC33: 0 | ED33: 0 | EE33: 0 | EF33: 0 | EG33: 0 | EH33: 0 | EI33: 0 | EJ33: 0 | EK33: 0 | EL33: 0.00 | EM33: 0 | EQ33: 0 | ER33: 0 | ES33: 0.00 | EX33: 0 | FE33: 0 | FF33: 0 | FG33: 0 | FH33: 0 | FL33: 0 | FM33: / | FN33: 200 | FO33: 0/200 | FP33: 0 | FQ33: / | FR33: 200 | FS33: 0/200 | FT33: 0 | FU33: / | FV33: 100 | FW33: 0/100 | FX33: 0 | FY33: / | FZ33: 100 | GA33: 0/100 | GB33: 0 | GC33: / | GD33: 200 | GE33: 0/200
A34: 0 | B34: 26 | C34: 26 | D34: 0 | L34: 0 | M34: 0 | N34: 0 | O34: 0 | P34: 0 | Q34: 0 | R34: 0 | S34: 0 | T34: 0 | U34: 0 | V34: 0.00 | Z34: 0 | AA34: 0 | AB34: 0 | AC34: 0 | AD34: 0 | AE34: 0 | AF34: 0 | AG34: 0 | AH34: 0 | AI34: 0 | AJ34: 0.00 | AN34: 0 | AO34: 0 | AP34: 0 | AQ34: 0 | AR34: 0 | AS34: 0 | AT34: 0 | AU34: 0 | AV34: 0 | AW34: 0 | AX34: 0.00 | BB34: 0 | BC34: 0 | BD34: 0 | BE34: 0 | BF34: 0 | BG34: 0 | BH34: 0 | BI34: 0 | BJ34: 0 | BK34: 0 | BL34: 0.00 | BP34: 0 | BQ34: 0 | BR34: 0 | BS34: 0 | BT34: 0 | BU34: 0 | BV34: 0 | BW34: 0 | BX34: 0 | BY34: 0 | BZ34: 0.00 | CD34: 0 | CE34: 0 | CF34: 0 | CG34: 0 | CH34: 0 | CI34: 0 | CJ34: 0 | CK34: 0 | CL34: 0 | CM34: 0 | CN34: 0.00 | CR34: 0 | CS34: 0 | CT34: 0 | CU34: 0 | CV34: 0 | CW34: 0 | CX34: 0 | CY34: 0 | CZ34: 0 | DA34: 0 | DB34: 0.00 | DC34: 0 | DD34: 0 | DE34: 0 | DF34: 0 | DG34: 0 | DH34: 0 | DI34: 0 | DJ34: 0 | DK34: 0 | DL34: 0 | DM34: 0 | DN34: 0.00 | DO34: 0 | DP34: 0 | DQ34: 0 | DR34: 0 | DS34: 0 | DT34: 0.00 | DU34: 0 | DV34: 0 | DW34: 0 | DX34: 0 | DY34: 0 | DZ34: 0.00 | EA34: 0 | EB34: 0 | EC34: 0 | ED34: 0 | EE34: 0 | EF34: 0 | EG34: 0 | EH34: 0 | EI34: 0 | EJ34: 0 | EK34: 0 | EL34: 0.00 | EM34: 0 | EQ34: 0 | ER34: 0 | ES34: 0.00 | EX34: 0 | FE34: 0 | FF34: 0 | FG34: 0 | FH34: 0 | FL34: 0 | FM34: / | FN34: 200 | FO34: 0/200 | FP34: 0 | FQ34: / | FR34: 200 | FS34: 0/200 | FT34: 0 | FU34: / | FV34: 100 | FW34: 0/100 | FX34: 0 | FY34: / | FZ34: 100 | GA34: 0/100 | GB34: 0 | GC34: / | GD34: 200 | GE34: 0/200
A35: 0 | B35: 27 | C35: 27 | D35: 0 | L35: 0 | M35: 0 | N35: 0 | O35: 0 | P35: 0 | Q35: 0 | R35: 0 | S35: 0 | T35: 0 | U35: 0 | V35: 0.00 | Z35: 0 | AA35: 0 | AB35: 0 | AC35: 0 | AD35: 0 | AE35: 0 | AF35: 0 | AG35: 0 | AH35: 0 | AI35: 0 | AJ35: 0.00 | AN35: 0 | AO35: 0 | AP35: 0 | AQ35: 0 | AR35: 0 | AS35: 0 | AT35: 0 | AU35: 0 | AV35: 0 | AW35: 0 | AX35: 0.00 | BB35: 0 | BC35: 0 | BD35: 0 | BE35: 0 | BF35: 0 | BG35: 0 | BH35: 0 | BI35: 0 | BJ35: 0 | BK35: 0 | BL35: 0.00 | BP35: 0 | BQ35: 0 | BR35: 0 | BS35: 0 | BT35: 0 | BU35: 0 | BV35: 0 | BW35: 0 | BX35: 0 | BY35: 0 | BZ35: 0.00 | CD35: 0 | CE35: 0 | CF35: 0 | CG35: 0 | CH35: 0 | CI35: 0 | CJ35: 0 | CK35: 0 | CL35: 0 | CM35: 0 | CN35: 0.00 | CR35: 0 | CS35: 0 | CT35: 0 | CU35: 0 | CV35: 0 | CW35: 0 | CX35: 0 | CY35: 0 | CZ35: 0 | DA35: 0 | DB35: 0.00 | DC35: 0 | DD35: 0 | DE35: 0 | DF35: 0 | DG35: 0 | DH35: 0 | DI35: 0 | DJ35: 0 | DK35: 0 | DL35: 0 | DM35: 0 | DN35: 0.00 | DO35: 0 | DP35: 0 | DQ35: 0 | DR35: 0 | DS35: 0 | DT35: 0.00 | DU35: 0 | DV35: 0 | DW35: 0 | DX35: 0 | DY35: 0 | DZ35: 0.00 | EA35: 0 | EB35: 0 | EC35: 0 | ED35: 0 | EE35: 0 | EF35: 0 | EG35: 0 | EH35: 0 | EI35: 0 | EJ35: 0 | EK35: 0 | EL35: 0.00 | EM35: 0 | EQ35: 0 | ER35: 0 | ES35: 0.00 | EX35: 0 | FE35: 0 | FF35: 0 | FG35: 0 | FH35: 0 | FL35: 0 | FM35: / | FN35: 200 | FO35: 0/200 | FP35: 0 | FQ35: / | FR35: 200 | FS35: 0/200 | FT35: 0 | FU35: / | FV35: 100 | FW35: 0/100 | FX35: 0 | FY35: / | FZ35: 100 | GA35: 0/100 | GB35: 0 | GC35: / | GD35: 200 | GE35: 0/200
A36: 0 | B36: 28 | C36: 28 | D36: 0 | L36: 0 | M36: 0 | N36: 0 | O36: 0 | P36: 0 | Q36: 0 | R36: 0 | S36: 0 | T36: 0 | U36: 0 | V36: 0.00 | Z36: 0 | AA36: 0 | AB36: 0 | AC36: 0 | AD36: 0 | AE36: 0 | AF36: 0 | AG36: 0 | AH36: 0 | AI36: 0 | AJ36: 0.00 | AN36: 0 | AO36: 0 | AP36: 0 | AQ36: 0 | AR36: 0 | AS36: 0 | AT36: 0 | AU36: 0 | AV36: 0 | AW36: 0 | AX36: 0.00 | BB36: 0 | BC36: 0 | BD36: 0 | BE36: 0 | BF36: 0 | BG36: 0 | BH36: 0 | BI36: 0 | BJ36: 0 | BK36: 0 | BL36: 0.00 | BP36: 0 | BQ36: 0 | BR36: 0 | BS36: 0 | BT36: 0 | BU36: 0 | BV36: 0 | BW36: 0 | BX36: 0 | BY36: 0 | BZ36: 0.00 | CD36: 0 | CE36: 0 | CF36: 0 | CG36: 0 | CH36: 0 | CI36: 0 | CJ36: 0 | CK36: 0 | CL36: 0 | CM36: 0 | CN36: 0.00 | CR36: 0 | CS36: 0 | CT36: 0 | CU36: 0 | CV36: 0 | CW36: 0 | CX36: 0 | CY36: 0 | CZ36: 0 | DA36: 0 | DB36: 0.00 | DC36: 0 | DD36: 0 | DE36: 0 | DF36: 0 | DG36: 0 | DH36: 0 | DI36: 0 | DJ36: 0 | DK36: 0 | DL36: 0 | DM36: 0 | DN36: 0.00 | DO36: 0 | DP36: 0 | DQ36: 0 | DR36: 0 | DS36: 0 | DT36: 0.00 | DU36: 0 | DV36: 0 | DW36: 0 | DX36: 0 | DY36: 0 | DZ36: 0.00 | EA36: 0 | EB36: 0 | EC36: 0 | ED36: 0 | EE36: 0 | EF36: 0 | EG36: 0 | EH36: 0 | EI36: 0 | EJ36: 0 | EK36: 0 | EL36: 0.00 | EM36: 0 | EQ36: 0 | ER36: 0 | ES36: 0.00 | EX36: 0 | FE36: 0 | FF36: 0 | FG36: 0 | FH36: 0 | FL36: 0 | FM36: / | FN36: 200 | FO36: 0/200 | FP36: 0 | FQ36: / | FR36: 200 | FS36: 0/200 | FT36: 0 | FU36: / | FV36: 100 | FW36: 0/100 | FX36: 0 | FY36: / | FZ36: 100 | GA36: 0/100 | GB36: 0 | GC36: / | GD36: 200 | GE36: 0/200
A37: 0 | B37: 29 | C37: 29 | D37: 0 | L37: 0 | M37: 0 | N37: 0 | O37: 0 | P37: 0 | Q37: 0 | R37: 0 | S37: 0 | T37: 0 | U37: 0 | V37: 0.00 | Z37: 0 | AA37: 0 | AB37: 0 | AC37: 0 | AD37: 0 | AE37: 0 | AF37: 0 | AG37: 0 | AH37: 0 | AI37: 0 | AJ37: 0.00 | AN37: 0 | AO37: 0 | AP37: 0 | AQ37: 0 | AR37: 0 | AS37: 0 | AT37: 0 | AU37: 0 | AV37: 0 | AW37: 0 | AX37: 0.00 | BB37: 0 | BC37: 0 | BD37: 0 | BE37: 0 | BF37: 0 | BG37: 0 | BH37: 0 | BI37: 0 | BJ37: 0 | BK37: 0 | BL37: 0.00 | BP37: 0 | BQ37: 0 | BR37: 0 | BS37: 0 | BT37: 0 | BU37: 0 | BV37: 0 | BW37: 0 | BX37: 0 | BY37: 0 | BZ37: 0.00 | CD37: 0 | CE37: 0 | CF37: 0 | CG37: 0 | CH37: 0 | CI37: 0 | CJ37: 0 | CK37: 0 | CL37: 0 | CM37: 0 | CN37: 0.00 | CR37: 0 | CS37: 0 | CT37: 0 | CU37: 0 | CV37: 0 | CW37: 0 | CX37: 0 | CY37: 0 | CZ37: 0 | DA37: 0 | DB37: 0.00 | DC37: 0 | DD37: 0 | DE37: 0 | DF37: 0 | DG37: 0 | DH37: 0 | DI37: 0 | DJ37: 0 | DK37: 0 | DL37: 0 | DM37: 0 | DN37: 0.00 | DO37: 0 | DP37: 0 | DQ37: 0 | DR37: 0 | DS37: 0 | DT37: 0.00 | DU37: 0 | DV37: 0 | DW37: 0 | DX37: 0 | DY37: 0 | DZ37: 0.00 | EA37: 0 | EB37: 0 | EC37: 0 | ED37: 0 | EE37: 0 | EF37: 0 | EG37: 0 | EH37: 0 | EI37: 0 | EJ37: 0 | EK37: 0 | EL37: 0.00 | EM37: 0 | EQ37: 0 | ER37: 0 | ES37: 0.00 | EX37: 0 | FE37: 0 | FF37: 0 | FG37: 0 | FH37: 0 | FL37: 0 | FM37: / | FN37: 200 | FO37: 0/200 | FP37: 0 | FQ37: / | FR37: 200 | FS37: 0/200 | FT37: 0 | FU37: / | FV37: 100 | FW37: 0/100 | FX37: 0 | FY37: / | FZ37: 100 | GA37: 0/100 | GB37: 0 | GC37: / | GD37: 200 | GE37: 0/200
A38: 0 | B38: 30 | C38: 30 | D38: 0 | L38: 0 | M38: 0 | N38: 0 | O38: 0 | P38: 0 | Q38: 0 | R38: 0 | S38: 0 | T38: 0 | U38: 0 | V38: 0.00 | Z38: 0 | AA38: 0 | AB38: 0 | AC38: 0 | AD38: 0 | AE38: 0 | AF38: 0 | AG38: 0 | AH38: 0 | AI38: 0 | AJ38: 0.00 | AN38: 0 | AO38: 0 | AP38: 0 | AQ38: 0 | AR38: 0 | AS38: 0 | AT38: 0 | AU38: 0 | AV38: 0 | AW38: 0 | AX38: 0.00 | BB38: 0 | BC38: 0 | BD38: 0 | BE38: 0 | BF38: 0 | BG38: 0 | BH38: 0 | BI38: 0 | BJ38: 0 | BK38: 0 | BL38: 0.00 | BP38: 0 | BQ38: 0 | BR38: 0 | BS38: 0 | BT38: 0 | BU38: 0 | BV38: 0 | BW38: 0 | BX38: 0 | BY38: 0 | BZ38: 0.00 | CD38: 0 | CE38: 0 | CF38: 0 | CG38: 0 | CH38: 0 | CI38: 0 | CJ38: 0 | CK38: 0 | CL38: 0 | CM38: 0 | CN38: 0.00 | CR38: 0 | CS38: 0 | CT38: 0 | CU38: 0 | CV38: 0 | CW38: 0 | CX38: 0 | CY38: 0 | CZ38: 0 | DA38: 0 | DB38: 0.00 | DC38: 0 | DD38: 0 | DE38: 0 | DF38: 0 | DG38: 0 | DH38: 0 | DI38: 0 | DJ38: 0 | DK38: 0 | DL38: 0 | DM38: 0 | DN38: 0.00 | DO38: 0 | DP38: 0 | DQ38: 0 | DR38: 0 | DS38: 0 | DT38: 0.00 | DU38: 0 | DV38: 0 | DW38: 0 | DX38: 0 | DY38: 0 | DZ38: 0.00 | EA38: 0 | EB38: 0 | EC38: 0 | ED38: 0 | EE38: 0 | EF38: 0 | EG38: 0 | EH38: 0 | EI38: 0 | EJ38: 0 | EK38: 0 | EL38: 0.00 | EM38: 0 | EQ38: 0 | ER38: 0 | ES38: 0.00 | EX38: 0 | FE38: 0 | FF38: 0 | FG38: 0 | FH38: 0 | FL38: 0 | FM38: / | FN38: 200 | FO38: 0/200 | FP38: 0 | FQ38: / | FR38: 200 | FS38: 0/200 | FT38: 0 | FU38: / | FV38: 100 | FW38: 0/100 | FX38: 0 | FY38: / | FZ38: 100 | GA38: 0/100 | GB38: 0 | GC38: / | GD38: 200 | GE38: 0/200
A39: 0 | B39: 31 | C39: 31 | D39: 0 | L39: 0 | M39: 0 | N39: 0 | O39: 0 | P39: 0 | Q39: 0 | R39: 0 | S39: 0 | T39: 0 | U39: 0 | V39: 0.00 | Z39: 0 | AA39: 0 | AB39: 0 | AC39: 0 | AD39: 0 | AE39: 0 | AF39: 0 | AG39: 0 | AH39: 0 | AI39: 0 | AJ39: 0.00 | AN39: 0 | AO39: 0 | AP39: 0 | AQ39: 0 | AR39: 0 | AS39: 0 | AT39: 0 | AU39: 0 | AV39: 0 | AW39: 0 | AX39: 0.00 | BB39: 0 | BC39: 0 | BD39: 0 | BE39: 0 | BF39: 0 | BG39: 0 | BH39: 0 | BI39: 0 | BJ39: 0 | BK39: 0 | BL39: 0.00 | BP39: 0 | BQ39: 0 | BR39: 0 | BS39: 0 | BT39: 0 | BU39: 0 | BV39: 0 | BW39: 0 | BX39: 0 | BY39: 0 | BZ39: 0.00 | CD39: 0 | CE39: 0 | CF39: 0 | CG39: 0 | CH39: 0 | CI39: 0 | CJ39: 0 | CK39: 0 | CL39: 0 | CM39: 0 | CN39: 0.00 | CR39: 0 | CS39: 0 | CT39: 0 | CU39: 0 | CV39: 0 | CW39: 0 | CX39: 0 | CY39: 0 | CZ39: 0 | DA39: 0 | DB39: 0.00 | DC39: 0 | DD39: 0 | DE39: 0 | DF39: 0 | DG39: 0 | DH39: 0 | DI39: 0 | DJ39: 0 | DK39: 0 | DL39: 0 | DM39: 0 | DN39: 0.00 | DO39: 0 | DP39: 0 | DQ39: 0 | DR39: 0 | DS39: 0 | DT39: 0.00 | DU39: 0 | DV39: 0 | DW39: 0 | DX39: 0 | DY39: 0 | DZ39: 0.00 | EA39: 0 | EB39: 0 | EC39: 0 | ED39: 0 | EE39: 0 | EF39: 0 | EG39: 0 | EH39: 0 | EI39: 0 | EJ39: 0 | EK39: 0 | EL39: 0.00 | EM39: 0 | EQ39: 0 | ER39: 0 | ES39: 0.00 | EX39: 0 | FE39: 0 | FF39: 0 | FG39: 0 | FH39: 0 | FL39: 0 | FM39: / | FN39: 200 | FO39: 0/200 | FP39: 0 | FQ39: / | FR39: 200 | FS39: 0/200 | FT39: 0 | FU39: / | FV39: 100 | FW39: 0/100 | FX39: 0 | FY39: / | FZ39: 100 | GA39: 0/100 | GB39: 0 | GC39: / | GD39: 200 | GE39: 0/200
A40: 0 | B40: 32 | C40: 32 | D40: 0 | L40: 0 | M40: 0 | N40: 0 | O40: 0 | P40: 0 | Q40: 0 | R40: 0 | S40: 0 | T40: 0 | U40: 0 | V40: 0.00 | Z40: 0 | AA40: 0 | AB40: 0 | AC40: 0 | AD40: 0 | AE40: 0 | AF40: 0 | AG40: 0 | AH40: 0 | AI40: 0 | AJ40: 0.00 | AN40: 0 | AO40: 0 | AP40: 0 | AQ40: 0 | AR40: 0 | AS40: 0 | AT40: 0 | AU40: 0 | AV40: 0 | AW40: 0 | AX40: 0.00 | BB40: 0 | BC40: 0 | BD40: 0 | BE40: 0 | BF40: 0 | BG40: 0 | BH40: 0 | BI40: 0 | BJ40: 0 | BK40: 0 | BL40: 0.00 | BP40: 0 | BQ40: 0 | BR40: 0 | BS40: 0 | BT40: 0 | BU40: 0 | BV40: 0 | BW40: 0 | BX40: 0 | BY40: 0 | BZ40: 0.00 | CD40: 0 | CE40: 0 | CF40: 0 | CG40: 0 | CH40: 0 | CI40: 0 | CJ40: 0 | CK40: 0 | CL40: 0 | CM40: 0 | CN40: 0.00 | CR40: 0 | CS40: 0 | CT40: 0 | CU40: 0 | CV40: 0 | CW40: 0 | CX40: 0 | CY40: 0 | CZ40: 0 | DA40: 0 | DB40: 0.00 | DC40: 0 | DD40: 0 | DE40: 0 | DF40: 0 | DG40: 0 | DH40: 0 | DI40: 0 | DJ40: 0 | DK40: 0 | DL40: 0 | DM40: 0 | DN40: 0.00 | DO40: 0 | DP40: 0 | DQ40: 0 | DR40: 0 | DS40: 0 | DT40: 0.00 | DU40: 0 | DV40: 0 | DW40: 0 | DX40: 0 | DY40: 0 | DZ40: 0.00 | EA40: 0 | EB40: 0 | EC40: 0 | ED40: 0 | EE40: 0 | EF40: 0 | EG40: 0 | EH40: 0 | EI40: 0 | EJ40: 0 | EK40: 0 | EL40: 0.00 | EM40: 0 | EQ40: 0 | ER40: 0 | ES40: 0.00 | EX40: 0 | FE40: 0 | FF40: 0 | FG40: 0 | FH40: 0 | FL40: 0 | FM40: / | FN40: 200 | FO40: 0/200 | FP40: 0 | FQ40: / | FR40: 200 | FS40: 0/200 | FT40: 0 | FU40: / | FV40: 100 | FW40: 0/100 | FX40: 0 | FY40: / | FZ40: 100 | GA40: 0/100 | GB40: 0 | GC40: / | GD40: 200 | GE40: 0/200
A41: 0 | B41: 33 | C41: 33 | D41: 0 | L41: 0 | M41: 0 | N41: 0 | O41: 0 | P41: 0 | Q41: 0 | R41: 0 | S41: 0 | T41: 0 | U41: 0 | V41: 0.00 | Z41: 0 | AA41: 0 | AB41: 0 | AC41: 0 | AD41: 0 | AE41: 0 | AF41: 0 | AG41: 0 | AH41: 0 | AI41: 0 | AJ41: 0.00 | AN41: 0 | AO41: 0 | AP41: 0 | AQ41: 0 | AR41: 0 | AS41: 0 | AT41: 0 | AU41: 0 | AV41: 0 | AW41: 0 | AX41: 0.00 | BB41: 0 | BC41: 0 | BD41: 0 | BE41: 0 | BF41: 0 | BG41: 0 | BH41: 0 | BI41: 0 | BJ41: 0 | BK41: 0 | BL41: 0.00 | BP41: 0 | BQ41: 0 | BR41: 0 | BS41: 0 | BT41: 0 | BU41: 0 | BV41: 0 | BW41: 0 | BX41: 0 | BY41: 0 | BZ41: 0.00 | CD41: 0 | CE41: 0 | CF41: 0 | CG41: 0 | CH41: 0 | CI41: 0 | CJ41: 0 | CK41: 0 | CL41: 0 | CM41: 0 | CN41: 0.00 | CR41: 0 | CS41: 0 | CT41: 0 | CU41: 0 | CV41: 0 | CW41: 0 | CX41: 0 | CY41: 0 | CZ41: 0 | DA41: 0 | DB41: 0.00 | DC41: 0 | DD41: 0 | DE41: 0 | DF41: 0 | DG41: 0 | DH41: 0 | DI41: 0 | DJ41: 0 | DK41: 0 | DL41: 0 | DM41: 0 | DN41: 0.00 | DO41: 0 | DP41: 0 | DQ41: 0 | DR41: 0 | DS41: 0 | DT41: 0.00 | DU41: 0 | DV41: 0 | DW41: 0 | DX41: 0 | DY41: 0 | DZ41: 0.00 | EA41: 0 | EB41: 0 | EC41: 0 | ED41: 0 | EE41: 0 | EF41: 0 | EG41: 0 | EH41: 0 | EI41: 0 | EJ41: 0 | EK41: 0 | EL41: 0.00 | EM41: 0 | EQ41: =IF(G41=0,0,SUM($U$7,$AI$7,$AW$7,$BK$7,$BY$7,$CM$7)) -> 0 | ER41: =SUM(U41,AI41,AW41,BK41,BY41,CM41) -> 0 | ES41: 0.00 | EX41: 0 | FE41: 0 | FF41: 0 | FG41: 0 | FH41: 0 | FL41: 0 | FM41: / | FN41: 200 | FO41: 0/200 | FP41: 0 | FQ41: / | FR41: 200 | FS41: 0/200 | FT41: 0 | FU41: / | FV41: 100 | FW41: 0/100 | FX41: 0 | FY41: / | FZ41: 100 | GA41: 0/100 | GB41: 0 | GC41: / | GD41: 200 | GE41: 0/200
A42: 0 | B42: 34 | C42: 34 | D42: 0 | L42: 0 | M42: 0 | N42: 0 | O42: 0 | P42: 0 | Q42: 0 | R42: 0 | S42: 0 | T42: 0 | U42: 0 | V42: 0.00 | Z42: 0 | AA42: 0 | AB42: 0 | AC42: 0 | AD42: 0 | AE42: 0 | AF42: 0 | AG42: 0 | AH42: 0 | AI42: 0 | AJ42: 0.00 | AN42: 0 | AO42: 0 | AP42: 0 | AQ42: 0 | AR42: 0 | AS42: 0 | AT42: 0 | AU42: 0 | AV42: 0 | AW42: 0 | AX42: 0.00 | BB42: 0 | BC42: 0 | BD42: 0 | BE42: 0 | BF42: 0 | BG42: 0 | BH42: 0 | BI42: 0 | BJ42: 0 | BK42: 0 | BL42: 0.00 | BP42: 0 | BQ42: 0 | BR42: 0 | BS42: 0 | BT42: 0 | BU42: 0 | BV42: 0 | BW42: 0 | BX42: 0 | BY42: 0 | BZ42: 0.00 | CD42: 0 | CE42: 0 | CF42: 0 | CG42: 0 | CH42: 0 | CI42: 0 | CJ42: 0 | CK42: 0 | CL42: 0 | CM42: 0 | CN42: 0.00 | CR42: 0 | CS42: 0 | CT42: 0 | CU42: 0 | CV42: 0 | CW42: 0 | CX42: 0 | CY42: 0 | CZ42: 0 | DA42: 0 | DB42: 0.00 | DC42: 0 | DD42: 0 | DE42: 0 | DF42: 0 | DG42: 0 | DH42: 0 | DI42: 0 | DJ42: 0 | DK42: 0 | DL42: 0 | DM42: 0 | DN42: 0.00 | DO42: 0 | DP42: 0 | DQ42: 0 | DR42: 0 | DS42: 0 | DT42: 0.00 | DU42: 0 | DV42: 0 | DW42: 0 | DX42: 0 | DY42: 0 | DZ42: 0.00 | EA42: 0 | EB42: 0 | EC42: 0 | ED42: 0 | EE42: 0 | EF42: 0 | EG42: 0 | EH42: 0 | EI42: 0 | EJ42: 0 | EK42: 0 | EL42: 0.00 | EM42: 0 | EQ42: 0 | ER42: 0 | ES42: 0.00 | EX42: 0 | FE42: 0 | FF42: 0 | FG42: 0 | FH42: 0 | FL42: 0 | FM42: / | FN42: 200 | FO42: 0/200 | FP42: 0 | FQ42: / | FR42: 200 | FS42: 0/200 | FT42: 0 | FU42: / | FV42: 100 | FW42: 0/100 | FX42: 0 | FY42: / | FZ42: 100 | GA42: 0/100 | GB42: 0 | GC42: / | GD42: 200 | GE42: 0/200
A43: 0 | B43: 35 | C43: 35 | D43: 0 | L43: 0 | M43: 0 | N43: 0 | O43: 0 | P43: 0 | Q43: 0 | R43: 0 | S43: 0 | T43: 0 | U43: 0 | V43: 0.00 | Z43: 0 | AA43: 0 | AB43: 0 | AC43: 0 | AD43: 0 | AE43: 0 | AF43: 0 | AG43: 0 | AH43: 0 | AI43: 0 | AJ43: 0.00 | AN43: 0 | AO43: 0 | AP43: 0 | AQ43: 0 | AR43: 0 | AS43: 0 | AT43: 0 | AU43: 0 | AV43: 0 | AW43: 0 | AX43: 0.00 | BB43: 0 | BC43: 0 | BD43: 0 | BE43: 0 | BF43: 0 | BG43: 0 | BH43: 0 | BI43: 0 | BJ43: 0 | BK43: 0 | BL43: 0.00 | BP43: 0 | BQ43: 0 | BR43: 0 | BS43: 0 | BT43: 0 | BU43: 0 | BV43: 0 | BW43: 0 | BX43: 0 | BY43: 0 | BZ43: 0.00 | CD43: 0 | CE43: 0 | CF43: 0 | CG43: 0 | CH43: 0 | CI43: 0 | CJ43: 0 | CK43: 0 | CL43: 0 | CM43: 0 | CN43: 0.00 | CR43: 0 | CS43: 0 | CT43: 0 | CU43: 0 | CV43: 0 | CW43: 0 | CX43: 0 | CY43: 0 | CZ43: 0 | DA43: 0 | DB43: 0.00 | DC43: 0 | DD43: 0 | DE43: 0 | DF43: 0 | DG43: 0 | DH43: 0 | DI43: 0 | DJ43: 0 | DK43: 0 | DL43: 0 | DM43: 0 | DN43: 0.00 | DO43: 0 | DP43: 0 | DQ43: 0 | DR43: 0 | DS43: 0 | DT43: 0.00 | DU43: 0 | DV43: 0 | DW43: 0 | DX43: 0 | DY43: 0 | DZ43: 0.00 | EA43: 0 | EB43: 0 | EC43: 0 | ED43: 0 | EE43: 0 | EF43: 0 | EG43: 0 | EH43: 0 | EI43: 0 | EJ43: 0 | EK43: 0 | EL43: 0.00 | EM43: 0 | EQ43: 0 | ER43: 0 | ES43: 0.00 | EX43: 0 | FE43: 0 | FF43: 0 | FG43: 0 | FH43: 0 | FL43: 0 | FM43: / | FN43: 200 | FO43: 0/200 | FP43: 0 | FQ43: / | FR43: 200 | FS43: 0/200 | FT43: 0 | FU43: / | FV43: 100 | FW43: 0/100 | FX43: 0 | FY43: / | FZ43: 100 | GA43: 0/100 | GB43: 0 | GC43: / | GD43: 200 | GE43: 0/200
A44: 0 | B44: 36 | C44: 36 | D44: 0 | L44: 0 | M44: 0 | N44: 0 | O44: 0 | P44: 0 | Q44: 0 | R44: 0 | S44: 0 | T44: 0 | U44: 0 | V44: 0.00 | Z44: 0 | AA44: 0 | AB44: 0 | AC44: 0 | AD44: 0 | AE44: 0 | AF44: 0 | AG44: 0 | AH44: 0 | AI44: 0 | AJ44: 0.00 | AN44: 0 | AO44: 0 | AP44: 0 | AQ44: 0 | AR44: 0 | AS44: 0 | AT44: 0 | AU44: 0 | AV44: 0 | AW44: 0 | AX44: 0.00 | BB44: 0 | BC44: 0 | BD44: 0 | BE44: 0 | BF44: 0 | BG44: 0 | BH44: 0 | BI44: 0 | BJ44: 0 | BK44: 0 | BL44: 0.00 | BP44: 0 | BQ44: 0 | BR44: 0 | BS44: 0 | BT44: 0 | BU44: 0 | BV44: 0 | BW44: 0 | BX44: 0 | BY44: 0 | BZ44: 0.00 | CD44: 0 | CE44: 0 | CF44: 0 | CG44: 0 | CH44: 0 | CI44: 0 | CJ44: 0 | CK44: 0 | CL44: 0 | CM44: 0 | CN44: 0.00 | CR44: 0 | CS44: 0 | CT44: 0 | CU44: 0 | CV44: 0 | CW44: 0 | CX44: 0 | CY44: 0 | CZ44: 0 | DA44: 0 | DB44: 0.00 | DC44: 0 | DD44: 0 | DE44: 0 | DF44: 0 | DG44: 0 | DH44: 0 | DI44: 0 | DJ44: 0 | DK44: 0 | DL44: 0 | DM44: 0 | DN44: 0.00 | DO44: 0 | DP44: 0 | DQ44: 0 | DR44: 0 | DS44: 0 | DT44: 0.00 | DU44: 0 | DV44: 0 | DW44: 0 | DX44: 0 | DY44: 0 | DZ44: 0.00 | EA44: 0 | EB44: 0 | EC44: 0 | ED44: 0 | EE44: 0 | EF44: 0 | EG44: 0 | EH44: 0 | EI44: 0 | EJ44: 0 | EK44: 0 | EL44: 0.00 | EM44: 0 | EQ44: 0 | ER44: 0 | ES44: 0.00 | EX44: 0 | FE44: 0 | FF44: 0 | FG44: 0 | FH44: 0 | FL44: 0 | FM44: / | FN44: 200 | FO44: 0/200 | FP44: 0 | FQ44: / | FR44: 200 | FS44: 0/200 | FT44: 0 | FU44: / | FV44: 100 | FW44: 0/100 | FX44: 0 | FY44: / | FZ44: 100 | GA44: 0/100 | GB44: 0 | GC44: / | GD44: 200 | GE44: 0/200
A45: 0 | B45: 37 | C45: 37 | D45: 0 | L45: 0 | M45: 0 | N45: 0 | O45: 0 | P45: 0 | Q45: 0 | R45: 0 | S45: 0 | T45: 0 | U45: 0 | V45: 0.00 | Z45: 0 | AA45: 0 | AB45: 0 | AC45: 0 | AD45: 0 | AE45: 0 | AF45: 0 | AG45: 0 | AH45: 0 | AI45: 0 | AJ45: 0.00 | AN45: 0 | AO45: 0 | AP45: 0 | AQ45: 0 | AR45: 0 | AS45: 0 | AT45: 0 | AU45: 0 | AV45: 0 | AW45: 0 | AX45: 0.00 | BB45: 0 | BC45: 0 | BD45: 0 | BE45: 0 | BF45: 0 | BG45: 0 | BH45: 0 | BI45: 0 | BJ45: 0 | BK45: 0 | BL45: 0.00 | BP45: 0 | BQ45: 0 | BR45: 0 | BS45: 0 | BT45: 0 | BU45: 0 | BV45: 0 | BW45: 0 | BX45: 0 | BY45: 0 | BZ45: 0.00 | CD45: 0 | CE45: 0 | CF45: 0 | CG45: 0 | CH45: 0 | CI45: 0 | CJ45: 0 | CK45: 0 | CL45: 0 | CM45: 0 | CN45: 0.00 | CR45: 0 | CS45: 0 | CT45: 0 | CU45: 0 | CV45: 0 | CW45: 0 | CX45: 0 | CY45: 0 | CZ45: 0 | DA45: 0 | DB45: 0.00 | DC45: 0 | DD45: 0 | DE45: 0 | DF45: 0 | DG45: 0 | DH45: 0 | DI45: 0 | DJ45: 0 | DK45: 0 | DL45: 0 | DM45: 0 | DN45: 0.00 | DO45: 0 | DP45: 0 | DQ45: 0 | DR45: 0 | DS45: 0 | DT45: 0.00 | DU45: 0 | DV45: 0 | DW45: 0 | DX45: 0 | DY45: 0 | DZ45: 0.00 | EA45: 0 | EB45: 0 | EC45: 0 | ED45: 0 | EE45: 0 | EF45: 0 | EG45: 0 | EH45: 0 | EI45: 0 | EJ45: 0 | EK45: 0 | EL45: 0.00 | EM45: 0 | EQ45: 0 | ER45: 0 | ES45: 0.00 | EX45: 0 | FE45: 0 | FF45: 0 | FG45: 0 | FH45: 0 | FL45: 0 | FM45: / | FN45: 200 | FO45: 0/200 | FP45: 0 | FQ45: / | FR45: 200 | FS45: 0/200 | FT45: 0 | FU45: / | FV45: 100 | FW45: 0/100 | FX45: 0 | FY45: / | FZ45: 100 | GA45: 0/100 | GB45: 0 | GC45: / | GD45: 200 | GE45: 0/200
A46: 0 | B46: 38 | C46: 38 | D46: 0 | L46: 0 | M46: 0 | N46: 0 | O46: 0 | P46: 0 | Q46: 0 | R46: 0 | S46: 0 | T46: 0 | U46: 0 | V46: 0.00 | Z46: 0 | AA46: 0 | AB46: 0 | AC46: 0 | AD46: 0 | AE46: 0 | AF46: 0 | AG46: 0 | AH46: 0 | AI46: 0 | AJ46: 0.00 | AN46: 0 | AO46: 0 | AP46: 0 | AQ46: 0 | AR46: 0 | AS46: 0 | AT46: 0 | AU46: 0 | AV46: 0 | AW46: 0 | AX46: 0.00 | BB46: 0 | BC46: 0 | BD46: 0 | BE46: 0 | BF46: 0 | BG46: 0 | BH46: 0 | BI46: 0 | BJ46: 0 | BK46: 0 | BL46: 0.00 | BP46: 0 | BQ46: 0 | BR46: 0 | BS46: 0 | BT46: 0 | BU46: 0 | BV46: 0 | BW46: 0 | BX46: 0 | BY46: 0 | BZ46: 0.00 | CD46: 0 | CE46: 0 | CF46: 0 | CG46: 0 | CH46: 0 | CI46: 0 | CJ46: 0 | CK46: 0 | CL46: 0 | CM46: 0 | CN46: 0.00 | CR46: 0 | CS46: 0 | CT46: 0 | CU46: 0 | CV46: 0 | CW46: 0 | CX46: 0 | CY46: 0 | CZ46: 0 | DA46: 0 | DB46: 0.00 | DC46: 0 | DD46: 0 | DE46: 0 | DF46: 0 | DG46: 0 | DH46: 0 | DI46: 0 | DJ46: 0 | DK46: 0 | DL46: 0 | DM46: 0 | DN46: 0.00 | DO46: 0 | DP46: 0 | DQ46: 0 | DR46: 0 | DS46: 0 | DT46: 0.00 | DU46: 0 | DV46: 0 | DW46: 0 | DX46: 0 | DY46: 0 | DZ46: 0.00 | EA46: 0 | EB46: 0 | EC46: 0 | ED46: 0 | EE46: 0 | EF46: 0 | EG46: 0 | EH46: 0 | EI46: 0 | EJ46: 0 | EK46: 0 | EL46: 0.00 | EM46: 0 | EQ46: 0 | ER46: 0 | ES46: 0.00 | EX46: 0 | FE46: 0 | FF46: 0 | FG46: 0 | FH46: 0 | FL46: 0 | FM46: / | FN46: 200 | FO46: 0/200 | FP46: 0 | FQ46: / | FR46: 200 | FS46: 0/200 | FT46: 0 | FU46: / | FV46: 100 | FW46: 0/100 | FX46: 0 | FY46: / | FZ46: 100 | GA46: 0/100 | GB46: 0 | GC46: / | GD46: 200 | GE46: 0/200
A47: 0 | B47: 39 | C47: 39 | D47: 0 | L47: 0 | M47: 0 | N47: 0 | O47: 0 | P47: 0 | Q47: 0 | R47: 0 | S47: 0 | T47: 0 | U47: 0 | V47: 0.00 | Z47: 0 | AA47: 0 | AB47: 0 | AC47: 0 | AD47: 0 | AE47: 0 | AF47: 0 | AG47: 0 | AH47: 0 | AI47: 0 | AJ47: 0.00 | AN47: 0 | AO47: 0 | AP47: 0 | AQ47: 0 | AR47: 0 | AS47: 0 | AT47: 0 | AU47: 0 | AV47: 0 | AW47: 0 | AX47: 0.00 | BB47: 0 | BC47: 0 | BD47: 0 | BE47: 0 | BF47: 0 | BG47: 0 | BH47: 0 | BI47: 0 | BJ47: 0 | BK47: 0 | BL47: 0.00 | BP47: 0 | BQ47: 0 | BR47: 0 | BS47: 0 | BT47: 0 | BU47: 0 | BV47: 0 | BW47: 0 | BX47: 0 | BY47: 0 | BZ47: 0.00 | CD47: 0 | CE47: 0 | CF47: 0 | CG47: 0 | CH47: 0 | CI47: 0 | CJ47: 0 | CK47: 0 | CL47: 0 | CM47: 0 | CN47: 0.00 | CR47: 0 | CS47: 0 | CT47: 0 | CU47: 0 | CV47: 0 | CW47: 0 | CX47: 0 | CY47: 0 | CZ47: 0 | DA47: 0 | DB47: 0.00 | DC47: 0 | DD47: 0 | DE47: 0 | DF47: 0 | DG47: 0 | DH47: 0 | DI47: 0 | DJ47: 0 | DK47: 0 | DL47: 0 | DM47: 0 | DN47: 0.00 | DO47: 0 | DP47: 0 | DQ47: 0 | DR47: 0 | DS47: 0 | DT47: 0.00 | DU47: 0 | DV47: 0 | DW47: 0 | DX47: 0 | DY47: 0 | DZ47: 0.00 | EA47: 0 | EB47: 0 | EC47: 0 | ED47: 0 | EE47: 0 | EF47: 0 | EG47: 0 | EH47: 0 | EI47: 0 | EJ47: 0 | EK47: 0 | EL47: 0.00 | EM47: 0 | EQ47: 0 | ER47: 0 | ES47: 0.00 | EX47: 0 | FE47: 0 | FF47: 0 | FG47: 0 | FH47: 0 | FL47: 0 | FM47: / | FN47: 200 | FO47: 0/200 | FP47: 0 | FQ47: / | FR47: 200 | FS47: 0/200 | FT47: 0 | FU47: / | FV47: 100 | FW47: 0/100 | FX47: 0 | FY47: / | FZ47: 100 | GA47: 0/100 | GB47: 0 | GC47: / | GD47: 200 | GE47: 0/200
A48: 0 | B48: 40 | C48: 40 | D48: 0 | L48: 0 | M48: 0 | N48: 0 | O48: 0 | P48: 0 | Q48: 0 | R48: 0 | S48: 0 | T48: 0 | U48: 0 | V48: 0.00 | Z48: 0 | AA48: 0 | AB48: =SUM(Z48:AA48) -> 0 | AC48: 0 | AD48: 0 | AE48: =SUM(AC48,AD48) -> 0 | AF48: 0 | AG48: =IF($S$7="NA","NA",0) -> 0 | AH48: 0 | AI48: =SUM(AB48,AE48,AH48) -> 0 | AJ48: 0.00 | AK48: =IF(AF48="AB","AB",IF(AND(OR(Z48="ab",Z48="ml"),OR(AA48="ab",AA48="ml"),OR(AC48="ab",AC48="ml")),"AB",IF(AND(OR(Z48="ab",Z48="ml"),OR(AC48="ab",AC48="ml")),"AB",""))) ->  | AL48: =IF(OR($G48="NSO",$G48="",AF48=""),"",IF(OR(AK48="AB",AF48="ab"),"AB",IF(AJ48>36,"P",IF(AJ48>34,"G2",IF(AJ48>31,"G1",IF(AJ48>25,"S","F")))))) ->  | AM48: =IF(OR(AL48="",AL48=0,AL48="S",AL48="F",AL48="AB"),AL48,IF(AJ48>=75,"D",IF(AJ48>=60,"I",IF(AJ48>=48,"II",IF(AJ48>=36,"III",AL48))))) ->  | AN48: 0 | AO48: 0 | AP48: 0 | AQ48: 0 | AR48: 0 | AS48: =SUM(AQ48,AR48) -> 0 | AT48: 0 | AU48: =IF($S$7="NA","NA",0) -> 0 | AV48: 0 | AW48: =SUM(AP48,AS48,AV48) -> 0 | AX48: 0.00 | AY48: =IF(AT48="AB","AB",IF(AND(OR(AN48="ab",AN48="ml"),OR(AO48="ab",AO48="ml"),OR(AQ48="ab",AQ48="ml")),"AB",IF(AND(OR(AN48="ab",AN48="ml"),OR(AQ48="ab",AQ48="ml")),"AB",""))) ->  | AZ48: =IF(OR($G48="NSO",$G48="",AT48=""),"",IF(OR(AY48="AB",AT48="ab"),"AB",IF(AX48>36,"P",IF(AX48>34,"G2",IF(AX48>31,"G1",IF(AX48>25,"S","F")))))) ->  | BA48: =IF(OR(AZ48="",AZ48=0,AZ48="S",AZ48="F",AZ48="AB"),AZ48,IF(AX48>=75,"D",IF(AX48>=60,"I",IF(AX48>=48,"II",IF(AX48>=36,"III",AZ48))))) ->  | BB48: 0 | BC48: 0 | BD48: 0 | BE48: 0 | BF48: 0 | BG48: =SUM(BE48,BF48) -> 0 | BH48: 0 | BI48: =IF($S$7="NA","NA",0) -> 0 | BJ48: 0 | BK48: =SUM(BD48,BG48,BJ48) -> 0 | BL48: 0.00 | BM48: =IF(BH48="AB","AB",IF(AND(OR(BB48="ab",BB48="ml"),OR(BC48="ab",BC48="ml"),OR(BE48="ab",BE48="ml")),"AB",IF(AND(OR(BB48="ab",BB48="ml"),OR(BE48="ab",BE48="ml")),"AB",""))) ->  | BN48: =IF(OR($G48="NSO",$G48="",BH48=""),"",IF(OR(BM48="AB",BH48="ab"),"AB",IF(BL48>36,"P",IF(BL48>34,"G2",IF(BL48>31,"G1",IF(BL48>25,"S","F")))))) ->  | BO48: =IF(OR(BN48="",BN48=0,BN48="S",BN48="F",BN48="AB"),BN48,IF(BL48>=75,"D",IF(BL48>=60,"I",IF(BL48>=48,"II",IF(BL48>=36,"III",BN48))))) ->  | BP48: 0 | BQ48: 0 | BR48: 0 | BS48: 0 | BT48: 0 | BU48: =SUM(BS48,BT48) -> 0 | BV48: 0 | BW48: =IF($S$7="NA","NA",0) -> 0 | BX48: 0 | BY48: =SUM(BR48,BU48,BX48) -> 0 | BZ48: 0.00 | CA48: =IF(BV48="AB","AB",IF(AND(OR(BP48="ab",BP48="ml"),OR(BQ48="ab",BQ48="ml"),OR(BS48="ab",BS48="ml")),"AB",IF(AND(OR(BP48="ab",BP48="ml"),OR(BS48="ab",BS48="ml")),"AB",""))) ->  | CB48: =IF(OR($G48="NSO",$G48="",BV48=""),"",IF(OR(CA48="AB",BV48="ab"),"AB",IF(BZ48>36,"P",IF(BZ48>34,"G2",IF(BZ48>31,"G1",IF(BZ48>25,"S","F")))))) ->  | CC48: =IF(OR(CB48="",CB48=0,CB48="S",CB48="F",CB48="AB"),CB48,IF(BZ48>=75,"D",IF(BZ48>=60,"I",IF(BZ48>=48,"II",IF(BZ48>=36,"III",CB48))))) ->  | CD48: 0 | CE48: 0 | CF48: 0 | CG48: 0 | CH48: 0 | CI48: =SUM(CG48,CH48) -> 0 | CJ48: 0 | CK48: =IF($S$7="NA","NA",0) -> 0 | CL48: 0 | CM48: =SUM(CF48,CI48,CL48) -> 0 | CN48: 0.00 | CO48: =IF(CJ48="AB","AB",IF(AND(OR(CD48="ab",CD48="ml"),OR(CE48="ab",CE48="ml"),OR(CG48="ab",CG48="ml")),"AB",IF(AND(OR(CD48="ab",CD48="ml"),OR(CG48="ab",CG48="ml")),"AB",""))) ->  | CP48: =IF(OR($G48="NSO",$G48="",CJ48=""),"",IF(OR(CO48="AB",CJ48="ab"),"AB",IF(CN48>36,"P",IF(CN48>34,"G2",IF(CN48>31,"G1",IF(CN48>25,"S","F")))))) ->  | CQ48: =IF(OR(CP48="",CP48=0,CP48="S",CP48="F",CP48="AB"),CP48,IF(CN48>=75,"D",IF(CN48>=60,"I",IF(CN48>=48,"II",IF(CN48>=36,"III",CP48))))) ->  | CR48: 0 | CS48: 0 | CT48: 0 | CU48: 0 | CV48: 0 | CW48: =SUM(CU48,CV48) -> 0 | CX48: 0 | CY48: =IF($S$7="NA","NA",0) -> 0 | CZ48: 0 | DA48: =SUM(CT48,CW48,CZ48) -> 0 | DB48: 0.00 | DC48: 0 | DD48: 0 | DE48: 0 | DF48: 0 | DG48: 0 | DH48: 0 | DI48: =SUM(DG48,DH48) -> 0 | DJ48: 0 | DK48: =IF($S$7="NA","NA",0) -> 0 | DL48: 0 | DM48: =SUM(DF48,DI48,DL48) -> 0 | DN48: 0.00 | DO48: 0 | DP48: 0 | DQ48: 0 | DR48: 0 | DS48: 0 | DT48: 0.00 | DU48: 0 | DV48: 0 | DW48: 0 | DX48: 0 | DY48: 0 | DZ48: 0.00 | EA48: 0 | EB48: 0 | EC48: 0 | ED48: 0 | EE48: 0 | EF48: 0 | EG48: =SUM(EE48,EF48) -> 0 | EH48: 0 | EI48: =IF($S$7="NA","NA",0) -> 0 | EJ48: 0 | EK48: =SUM(ED48,EG48,EJ48) -> 0 | EL48: 0.00 | EM48: 0 | EQ48: 0 | ER48: 0 | ES48: 0.00 | EX48: 0 | FE48: 0 | FF48: 0 | FG48: 0 | FH48: 0 | FL48: 0 | FM48: / | FN48: 200 | FO48: 0/200 | FP48: 0 | FQ48: / | FR48: 200 | FS48: 0/200 | FT48: 0 | FU48: / | FV48: 100 | FW48: 0/100 | FX48: 0 | FY48: / | FZ48: 100 | GA48: 0/100 | GB48: 0 | GC48: / | GD48: 200 | GE48: 0/200
A49: 0 | B49: 41 | C49: 41 | D49: 0 | L49: 0 | M49: 0 | N49: 0 | O49: 0 | P49: 0 | Q49: 0 | R49: 0 | S49: 0 | T49: 0 | U49: 0 | V49: 0.00 | Z49: 0 | AA49: 0 | AB49: =SUM(Z49:AA49) -> 0 | AC49: 0 | AD49: 0 | AE49: =SUM(AC49,AD49) -> 0 | AF49: 0 | AG49: =IF($S$7="NA","NA",0) -> 0 | AH49: 0 | AI49: =SUM(AB49,AE49,AH49) -> 0 | AJ49: 0.00 | AK49: =IF(AF49="AB","AB",IF(AND(OR(Z49="ab",Z49="ml"),OR(AA49="ab",AA49="ml"),OR(AC49="ab",AC49="ml")),"AB",IF(AND(OR(Z49="ab",Z49="ml"),OR(AC49="ab",AC49="ml")),"AB",""))) ->  | AL49: =IF(OR($G49="NSO",$G49="",AF49=""),"",IF(OR(AK49="AB",AF49="ab"),"AB",IF(AJ49>36,"P",IF(AJ49>34,"G2",IF(AJ49>31,"G1",IF(AJ49>25,"S","F")))))) ->  | AM49: =IF(OR(AL49="",AL49=0,AL49="S",AL49="F",AL49="AB"),AL49,IF(AJ49>=75,"D",IF(AJ49>=60,"I",IF(AJ49>=48,"II",IF(AJ49>=36,"III",AL49))))) ->  | AN49: 0 | AO49: 0 | AP49: 0 | AQ49: 0 | AR49: 0 | AS49: =SUM(AQ49,AR49) -> 0 | AT49: 0 | AU49: =IF($S$7="NA","NA",0) -> 0 | AV49: 0 | AW49: =SUM(AP49,AS49,AV49) -> 0 | AX49: 0.00 | AY49: =IF(AT49="AB","AB",IF(AND(OR(AN49="ab",AN49="ml"),OR(AO49="ab",AO49="ml"),OR(AQ49="ab",AQ49="ml")),"AB",IF(AND(OR(AN49="ab",AN49="ml"),OR(AQ49="ab",AQ49="ml")),"AB",""))) ->  | AZ49: =IF(OR($G49="NSO",$G49="",AT49=""),"",IF(OR(AY49="AB",AT49="ab"),"AB",IF(AX49>36,"P",IF(AX49>34,"G2",IF(AX49>31,"G1",IF(AX49>25,"S","F")))))) ->  | BA49: =IF(OR(AZ49="",AZ49=0,AZ49="S",AZ49="F",AZ49="AB"),AZ49,IF(AX49>=75,"D",IF(AX49>=60,"I",IF(AX49>=48,"II",IF(AX49>=36,"III",AZ49))))) ->  | BB49: 0 | BC49: 0 | BD49: 0 | BE49: 0 | BF49: 0 | BG49: =SUM(BE49,BF49) -> 0 | BH49: 0 | BI49: =IF($S$7="NA","NA",0) -> 0 | BJ49: 0 | BK49: =SUM(BD49,BG49,BJ49) -> 0 | BL49: 0.00 | BM49: =IF(BH49="AB","AB",IF(AND(OR(BB49="ab",BB49="ml"),OR(BC49="ab",BC49="ml"),OR(BE49="ab",BE49="ml")),"AB",IF(AND(OR(BB49="ab",BB49="ml"),OR(BE49="ab",BE49="ml")),"AB",""))) ->  | BN49: =IF(OR($G49="NSO",$G49="",BH49=""),"",IF(OR(BM49="AB",BH49="ab"),"AB",IF(BL49>36,"P",IF(BL49>34,"G2",IF(BL49>31,"G1",IF(BL49>25,"S","F")))))) ->  | BO49: =IF(OR(BN49="",BN49=0,BN49="S",BN49="F",BN49="AB"),BN49,IF(BL49>=75,"D",IF(BL49>=60,"I",IF(BL49>=48,"II",IF(BL49>=36,"III",BN49))))) ->  | BP49: 0 | BQ49: 0 | BR49: 0 | BS49: 0 | BT49: 0 | BU49: =SUM(BS49,BT49) -> 0 | BV49: 0 | BW49: =IF($S$7="NA","NA",0) -> 0 | BX49: 0 | BY49: =SUM(BR49,BU49,BX49) -> 0 | BZ49: 0.00 | CA49: =IF(BV49="AB","AB",IF(AND(OR(BP49="ab",BP49="ml"),OR(BQ49="ab",BQ49="ml"),OR(BS49="ab",BS49="ml")),"AB",IF(AND(OR(BP49="ab",BP49="ml"),OR(BS49="ab",BS49="ml")),"AB",""))) ->  | CB49: =IF(OR($G49="NSO",$G49="",BV49=""),"",IF(OR(CA49="AB",BV49="ab"),"AB",IF(BZ49>36,"P",IF(BZ49>34,"G2",IF(BZ49>31,"G1",IF(BZ49>25,"S","F")))))) ->  | CC49: =IF(OR(CB49="",CB49=0,CB49="S",CB49="F",CB49="AB"),CB49,IF(BZ49>=75,"D",IF(BZ49>=60,"I",IF(BZ49>=48,"II",IF(BZ49>=36,"III",CB49))))) ->  | CD49: 0 | CE49: 0 | CF49: 0 | CG49: 0 | CH49: 0 | CI49: =SUM(CG49,CH49) -> 0 | CJ49: 0 | CK49: =IF($S$7="NA","NA",0) -> 0 | CL49: 0 | CM49: =SUM(CF49,CI49,CL49) -> 0 | CN49: 0.00 | CO49: =IF(CJ49="AB","AB",IF(AND(OR(CD49="ab",CD49="ml"),OR(CE49="ab",CE49="ml"),OR(CG49="ab",CG49="ml")),"AB",IF(AND(OR(CD49="ab",CD49="ml"),OR(CG49="ab",CG49="ml")),"AB",""))) ->  | CP49: =IF(OR($G49="NSO",$G49="",CJ49=""),"",IF(OR(CO49="AB",CJ49="ab"),"AB",IF(CN49>36,"P",IF(CN49>34,"G2",IF(CN49>31,"G1",IF(CN49>25,"S","F")))))) ->  | CQ49: =IF(OR(CP49="",CP49=0,CP49="S",CP49="F",CP49="AB"),CP49,IF(CN49>=75,"D",IF(CN49>=60,"I",IF(CN49>=48,"II",IF(CN49>=36,"III",CP49))))) ->  | CR49: 0 | CS49: 0 | CT49: 0 | CU49: 0 | CV49: 0 | CW49: =SUM(CU49,CV49) -> 0 | CX49: 0 | CY49: =IF($S$7="NA","NA",0) -> 0 | CZ49: 0 | DA49: =SUM(CT49,CW49,CZ49) -> 0 | DB49: 0.00 | DC49: 0 | DD49: 0 | DE49: 0 | DF49: 0 | DG49: 0 | DH49: 0 | DI49: =SUM(DG49,DH49) -> 0 | DJ49: 0 | DK49: =IF($S$7="NA","NA",0) -> 0 | DL49: 0 | DM49: =SUM(DF49,DI49,DL49) -> 0 | DN49: 0.00 | DO49: 0 | DP49: 0 | DQ49: 0 | DR49: 0 | DS49: 0 | DT49: 0.00 | DU49: 0 | DV49: 0 | DW49: 0 | DX49: 0 | DY49: 0 | DZ49: 0.00 | EA49: 0 | EB49: 0 | EC49: 0 | ED49: 0 | EE49: 0 | EF49: 0 | EG49: =SUM(EE49,EF49) -> 0 | EH49: 0 | EI49: =IF($S$7="NA","NA",0) -> 0 | EJ49: 0 | EK49: =SUM(ED49,EG49,EJ49) -> 0 | EL49: 0.00 | EM49: 0 | EQ49: 0 | ER49: 0 | ES49: 0.00 | EX49: 0 | FE49: 0 | FF49: 0 | FG49: 0 | FH49: 0 | FL49: 0 | FM49: / | FN49: 200 | FO49: 0/200 | FP49: 0 | FQ49: / | FR49: 200 | FS49: 0/200 | FT49: 0 | FU49: / | FV49: 100 | FW49: 0/100 | FX49: 0 | FY49: / | FZ49: 100 | GA49: 0/100 | GB49: 0 | GC49: / | GD49: 200 | GE49: 0/200
A50: 0 | B50: 42 | C50: 42 | D50: 0 | L50: 0 | M50: 0 | N50: 0 | O50: 0 | P50: 0 | Q50: 0 | R50: 0 | S50: 0 | T50: 0 | U50: 0 | V50: 0.00 | Z50: 0 | AA50: 0 | AB50: =SUM(Z50:AA50) -> 0 | AC50: 0 | AD50: 0 | AE50: =SUM(AC50,AD50) -> 0 | AF50: 0 | AG50: =IF($S$7="NA","NA",0) -> 0 | AH50: 0 | AI50: =SUM(AB50,AE50,AH50) -> 0 | AJ50: 0.00 | AK50: =IF(AF50="AB","AB",IF(AND(OR(Z50="ab",Z50="ml"),OR(AA50="ab",AA50="ml"),OR(AC50="ab",AC50="ml")),"AB",IF(AND(OR(Z50="ab",Z50="ml"),OR(AC50="ab",AC50="ml")),"AB",""))) ->  | AL50: =IF(OR($G50="NSO",$G50="",AF50=""),"",IF(OR(AK50="AB",AF50="ab"),"AB",IF(AJ50>36,"P",IF(AJ50>34,"G2",IF(AJ50>31,"G1",IF(AJ50>25,"S","F")))))) ->  | AM50: =IF(OR(AL50="",AL50=0,AL50="S",AL50="F",AL50="AB"),AL50,IF(AJ50>=75,"D",IF(AJ50>=60,"I",IF(AJ50>=48,"II",IF(AJ50>=36,"III",AL50))))) ->  | AN50: 0 | AO50: 0 | AP50: 0 | AQ50: 0 | AR50: 0 | AS50: =SUM(AQ50,AR50) -> 0 | AT50: 0 | AU50: =IF($S$7="NA","NA",0) -> 0 | AV50: 0 | AW50: =SUM(AP50,AS50,AV50) -> 0 | AX50: 0.00 | AY50: =IF(AT50="AB","AB",IF(AND(OR(AN50="ab",AN50="ml"),OR(AO50="ab",AO50="ml"),OR(AQ50="ab",AQ50="ml")),"AB",IF(AND(OR(AN50="ab",AN50="ml"),OR(AQ50="ab",AQ50="ml")),"AB",""))) ->  | AZ50: =IF(OR($G50="NSO",$G50="",AT50=""),"",IF(OR(AY50="AB",AT50="ab"),"AB",IF(AX50>36,"P",IF(AX50>34,"G2",IF(AX50>31,"G1",IF(AX50>25,"S","F")))))) ->  | BA50: =IF(OR(AZ50="",AZ50=0,AZ50="S",AZ50="F",AZ50="AB"),AZ50,IF(AX50>=75,"D",IF(AX50>=60,"I",IF(AX50>=48,"II",IF(AX50>=36,"III",AZ50))))) ->  | BB50: 0 | BC50: 0 | BD50: 0 | BE50: 0 | BF50: 0 | BG50: =SUM(BE50,BF50) -> 0 | BH50: 0 | BI50: =IF($S$7="NA","NA",0) -> 0 | BJ50: 0 | BK50: =SUM(BD50,BG50,BJ50) -> 0 | BL50: 0.00 | BM50: =IF(BH50="AB","AB",IF(AND(OR(BB50="ab",BB50="ml"),OR(BC50="ab",BC50="ml"),OR(BE50="ab",BE50="ml")),"AB",IF(AND(OR(BB50="ab",BB50="ml"),OR(BE50="ab",BE50="ml")),"AB",""))) ->  | BN50: =IF(OR($G50="NSO",$G50="",BH50=""),"",IF(OR(BM50="AB",BH50="ab"),"AB",IF(BL50>36,"P",IF(BL50>34,"G2",IF(BL50>31,"G1",IF(BL50>25,"S","F")))))) ->  | BO50: =IF(OR(BN50="",BN50=0,BN50="S",BN50="F",BN50="AB"),BN50,IF(BL50>=75,"D",IF(BL50>=60,"I",IF(BL50>=48,"II",IF(BL50>=36,"III",BN50))))) ->  | BP50: 0 | BQ50: 0 | BR50: 0 | BS50: 0 | BT50: 0 | BU50: =SUM(BS50,BT50) -> 0 | BV50: 0 | BW50: =IF($S$7="NA","NA",0) -> 0 | BX50: 0 | BY50: =SUM(BR50,BU50,BX50) -> 0 | BZ50: 0.00 | CA50: =IF(BV50="AB","AB",IF(AND(OR(BP50="ab",BP50="ml"),OR(BQ50="ab",BQ50="ml"),OR(BS50="ab",BS50="ml")),"AB",IF(AND(OR(BP50="ab",BP50="ml"),OR(BS50="ab",BS50="ml")),"AB",""))) ->  | CB50: =IF(OR($G50="NSO",$G50="",BV50=""),"",IF(OR(CA50="AB",BV50="ab"),"AB",IF(BZ50>36,"P",IF(BZ50>34,"G2",IF(BZ50>31,"G1",IF(BZ50>25,"S","F")))))) ->  | CC50: =IF(OR(CB50="",CB50=0,CB50="S",CB50="F",CB50="AB"),CB50,IF(BZ50>=75,"D",IF(BZ50>=60,"I",IF(BZ50>=48,"II",IF(BZ50>=36,"III",CB50))))) ->  | CD50: 0 | CE50: 0 | CF50: 0 | CG50: 0 | CH50: 0 | CI50: =SUM(CG50,CH50) -> 0 | CJ50: 0 | CK50: =IF($S$7="NA","NA",0) -> 0 | CL50: 0 | CM50: =SUM(CF50,CI50,CL50) -> 0 | CN50: 0.00 | CO50: =IF(CJ50="AB","AB",IF(AND(OR(CD50="ab",CD50="ml"),OR(CE50="ab",CE50="ml"),OR(CG50="ab",CG50="ml")),"AB",IF(AND(OR(CD50="ab",CD50="ml"),OR(CG50="ab",CG50="ml")),"AB",""))) ->  | CP50: =IF(OR($G50="NSO",$G50="",CJ50=""),"",IF(OR(CO50="AB",CJ50="ab"),"AB",IF(CN50>36,"P",IF(CN50>34,"G2",IF(CN50>31,"G1",IF(CN50>25,"S","F")))))) ->  | CQ50: =IF(OR(CP50="",CP50=0,CP50="S",CP50="F",CP50="AB"),CP50,IF(CN50>=75,"D",IF(CN50>=60,"I",IF(CN50>=48,"II",IF(CN50>=36,"III",CP50))))) ->  | CR50: 0 | CS50: 0 | CT50: 0 | CU50: 0 | CV50: 0 | CW50: =SUM(CU50,CV50) -> 0 | CX50: 0 | CY50: =IF($S$7="NA","NA",0) -> 0 | CZ50: 0 | DA50: =SUM(CT50,CW50,CZ50) -> 0 | DB50: 0.00 | DC50: 0 | DD50: 0 | DE50: 0 | DF50: 0 | DG50: 0 | DH50: 0 | DI50: =SUM(DG50,DH50) -> 0 | DJ50: 0 | DK50: =IF($S$7="NA","NA",0) -> 0 | DL50: 0 | DM50: =SUM(DF50,DI50,DL50) -> 0 | DN50: 0.00 | DO50: 0 | DP50: 0 | DQ50: 0 | DR50: 0 | DS50: 0 | DT50: 0.00 | DU50: 0 | DV50: 0 | DW50: 0 | DX50: 0 | DY50: 0 | DZ50: 0.00 | EA50: 0 | EB50: 0 | EC50: 0 | ED50: 0 | EE50: 0 | EF50: 0 | EG50: =SUM(EE50,EF50) -> 0 | EH50: 0 | EI50: =IF($S$7="NA","NA",0) -> 0 | EJ50: 0 | EK50: =SUM(ED50,EG50,EJ50) -> 0 | EL50: 0.00 | EM50: 0 | EP50: =IF(OR(EN50="",EO50=""),"",EO50/EN50*100) ->  | EQ50: 0 | ER50: 0 | ES50: 0.00 | EX50: 0 | FE50: 0 | FF50: 0 | FG50: 0 | FH50: 0 | FL50: 0 | FM50: / | FN50: 200 | FO50: 0/200 | FP50: 0 | FQ50: / | FR50: 200 | FS50: 0/200 | FT50: 0 | FU50: / | FV50: 100 | FW50: 0/100 | FX50: 0 | FY50: / | FZ50: 100 | GA50: 0/100 | GB50: 0 | GC50: / | GD50: 200 | GE50: 0/200
A51: 0 | B51: 43 | C51: 43 | D51: 0 | L51: 0 | M51: 0 | N51: 0 | O51: 0 | P51: 0 | Q51: 0 | R51: 0 | S51: 0 | T51: 0 | U51: 0 | V51: 0.00 | Z51: 0 | AA51: 0 | AB51: 0 | AC51: 0 | AD51: 0 | AE51: 0 | AF51: 0 | AG51: 0 | AH51: 0 | AI51: 0 | AJ51: 0.00 | AN51: 0 | AO51: 0 | AP51: =SUM(AN51:AO51) -> 0 | AQ51: 0 | AR51: 0 | AS51: 0 | AT51: 0 | AU51: 0 | AV51: 0 | AW51: 0 | AX51: 0.00 | BB51: 0 | BC51: 0 | BD51: =SUM(BB51:BC51) -> 0 | BE51: 0 | BF51: 0 | BG51: 0 | BH51: 0 | BI51: 0 | BJ51: 0 | BK51: 0 | BL51: 0.00 | BP51: 0 | BQ51: 0 | BR51: =SUM(BP51:BQ51) -> 0 | BS51: 0 | BT51: 0 | BU51: 0 | BV51: 0 | BW51: 0 | BX51: 0 | BY51: 0 | BZ51: 0.00 | CD51: 0 | CE51: 0 | CF51: =SUM(CD51:CE51) -> 0 | CG51: 0 | CH51: 0 | CI51: 0 | CJ51: 0 | CK51: 0 | CL51: 0 | CM51: 0 | CN51: 0.00 | CR51: 0 | CS51: 0 | CT51: =SUM(CR51:CS51) -> 0 | CU51: 0 | CV51: 0 | CW51: 0 | CX51: 0 | CY51: 0 | CZ51: 0 | DA51: 0 | DB51: 0.00 | DC51: 0 | DD51: 0 | DE51: 0 | DF51: =SUM(DD51:DE51) -> 0 | DG51: 0 | DH51: 0 | DI51: 0 | DJ51: 0 | DK51: 0 | DL51: 0 | DM51: 0 | DN51: 0.00 | DO51: 0 | DP51: 0 | DQ51: 0 | DR51: 0 | DS51: =SUM(DP51:DR51) -> 0 | DT51: 0.00 | DU51: 0 | DV51: 0 | DW51: 0 | DX51: 0 | DY51: =SUM(DV51:DX51) -> 0 | DZ51: 0.00 | EA51: 0 | EB51: 0 | EC51: 0 | ED51: 0 | EE51: 0 | EF51: 0 | EG51: 0 | EH51: 0 | EI51: 0 | EJ51: 0 | EK51: 0 | EL51: 0.00 | EM51: 0 | EQ51: 0 | ER51: 0 | ES51: 0.00 | EX51: 0 | FE51: 0 | FF51: 0 | FG51: 0 | FH51: 0 | FL51: 0 | FM51: / | FN51: 200 | FO51: 0/200 | FP51: 0 | FQ51: / | FR51: 200 | FS51: 0/200 | FT51: 0 | FU51: / | FV51: 100 | FW51: 0/100 | FX51: 0 | FY51: / | FZ51: 100 | GA51: 0/100 | GB51: 0 | GC51: / | GD51: 200 | GE51: 0/200
A52: 0 | B52: 44 | C52: 44 | D52: 0 | L52: 0 | M52: 0 | N52: 0 | O52: 0 | P52: 0 | Q52: 0 | R52: 0 | S52: 0 | T52: 0 | U52: 0 | V52: 0.00 | Z52: 0 | AA52: 0 | AB52: 0 | AC52: 0 | AD52: 0 | AE52: 0 | AF52: 0 | AG52: 0 | AH52: 0 | AI52: 0 | AJ52: 0.00 | AN52: 0 | AO52: 0 | AP52: 0 | AQ52: 0 | AR52: 0 | AS52: 0 | AT52: 0 | AU52: 0 | AV52: 0 | AW52: 0 | AX52: 0.00 | BB52: 0 | BC52: 0 | BD52: 0 | BE52: 0 | BF52: 0 | BG52: 0 | BH52: 0 | BI52: 0 | BJ52: 0 | BK52: 0 | BL52: 0.00 | BP52: 0 | BQ52: 0 | BR52: 0 | BS52: 0 | BT52: 0 | BU52: 0 | BV52: 0 | BW52: 0 | BX52: 0 | BY52: 0 | BZ52: 0.00 | CD52: 0 | CE52: 0 | CF52: 0 | CG52: 0 | CH52: 0 | CI52: 0 | CJ52: 0 | CK52: 0 | CL52: 0 | CM52: 0 | CN52: 0.00 | CR52: 0 | CS52: 0 | CT52: 0 | CU52: 0 | CV52: 0 | CW52: 0 | CX52: 0 | CY52: 0 | CZ52: 0 | DA52: 0 | DB52: 0.00 | DC52: 0 | DD52: 0 | DE52: 0 | DF52: 0 | DG52: 0 | DH52: 0 | DI52: 0 | DJ52: 0 | DK52: 0 | DL52: 0 | DM52: 0 | DN52: 0.00 | DO52: 0 | DP52: 0 | DQ52: 0 | DR52: 0 | DS52: 0 | DT52: 0.00 | DU52: 0 | DV52: 0 | DW52: 0 | DX52: 0 | DY52: 0 | DZ52: 0.00 | EA52: 0 | EB52: 0 | EC52: 0 | ED52: 0 | EE52: 0 | EF52: 0 | EG52: 0 | EH52: 0 | EI52: 0 | EJ52: 0 | EK52: 0 | EL52: 0.00 | EM52: 0 | EQ52: 0 | ER52: 0 | ES52: 0.00 | EX52: 0 | FE52: 0 | FF52: 0 | FG52: 0 | FH52: 0 | FL52: 0 | FM52: / | FN52: 200 | FO52: 0/200 | FP52: 0 | FQ52: / | FR52: 200 | FS52: 0/200 | FT52: 0 | FU52: / | FV52: 100 | FW52: 0/100 | FX52: 0 | FY52: / | FZ52: 100 | GA52: 0/100 | GB52: 0 | GC52: / | GD52: 200 | GE52: 0/200
A53: 0 | B53: 45 | C53: 45 | D53: 0 | L53: 0 | M53: 0 | N53: 0 | O53: 0 | P53: 0 | Q53: 0 | R53: 0 | S53: 0 | T53: 0 | U53: 0 | V53: 0.00 | Z53: 0 | AA53: 0 | AB53: 0 | AC53: 0 | AD53: 0 | AE53: 0 | AF53: 0 | AG53: 0 | AH53: 0 | AI53: 0 | AJ53: 0.00 | AN53: 0 | AO53: 0 | AP53: 0 | AQ53: 0 | AR53: 0 | AS53: 0 | AT53: 0 | AU53: 0 | AV53: 0 | AW53: 0 | AX53: 0.00 | BB53: 0 | BC53: 0 | BD53: 0 | BE53: 0 | BF53: 0 | BG53: 0 | BH53: 0 | BI53: 0 | BJ53: 0 | BK53: 0 | BL53: 0.00 | BP53: 0 | BQ53: 0 | BR53: 0 | BS53: 0 | BT53: 0 | BU53: 0 | BV53: 0 | BW53: 0 | BX53: 0 | BY53: 0 | BZ53: 0.00 | CD53: 0 | CE53: 0 | CF53: 0 | CG53: 0 | CH53: 0 | CI53: 0 | CJ53: 0 | CK53: 0 | CL53: 0 | CM53: 0 | CN53: 0.00 | CR53: 0 | CS53: 0 | CT53: 0 | CU53: 0 | CV53: 0 | CW53: 0 | CX53: 0 | CY53: 0 | CZ53: 0 | DA53: 0 | DB53: 0.00 | DC53: 0 | DD53: 0 | DE53: 0 | DF53: 0 | DG53: 0 | DH53: 0 | DI53: 0 | DJ53: 0 | DK53: 0 | DL53: 0 | DM53: 0 | DN53: 0.00 | DO53: 0 | DP53: 0 | DQ53: 0 | DR53: 0 | DS53: 0 | DT53: 0.00 | DU53: 0 | DV53: 0 | DW53: 0 | DX53: 0 | DY53: 0 | DZ53: 0.00 | EA53: 0 | EB53: 0 | EC53: 0 | ED53: 0 | EE53: 0 | EF53: 0 | EG53: 0 | EH53: 0 | EI53: 0 | EJ53: 0 | EK53: 0 | EL53: 0.00 | EM53: 0 | EQ53: 0 | ER53: 0 | ES53: 0.00 | EX53: 0 | FE53: 0 | FF53: 0 | FG53: 0 | FH53: 0 | FL53: 0 | FM53: / | FN53: 200 | FO53: 0/200 | FP53: 0 | FQ53: / | FR53: 200 | FS53: 0/200 | FT53: 0 | FU53: / | FV53: 100 | FW53: 0/100 | FX53: 0 | FY53: / | FZ53: 100 | GA53: 0/100 | GB53: 0 | GC53: / | GD53: 200 | GE53: 0/200
A54: 0 | B54: 46 | C54: 46 | D54: 0 | L54: 0 | M54: 0 | N54: 0 | O54: 0 | P54: 0 | Q54: 0 | R54: 0 | S54: 0 | T54: 0 | U54: 0 | V54: 0.00 | Z54: 0 | AA54: 0 | AB54: 0 | AC54: 0 | AD54: 0 | AE54: 0 | AF54: 0 | AG54: 0 | AH54: 0 | AI54: 0 | AJ54: 0.00 | AN54: 0 | AO54: 0 | AP54: 0 | AQ54: 0 | AR54: 0 | AS54: 0 | AT54: 0 | AU54: 0 | AV54: 0 | AW54: 0 | AX54: 0.00 | BB54: 0 | BC54: 0 | BD54: 0 | BE54: 0 | BF54: 0 | BG54: 0 | BH54: 0 | BI54: 0 | BJ54: 0 | BK54: 0 | BL54: 0.00 | BP54: 0 | BQ54: 0 | BR54: 0 | BS54: 0 | BT54: 0 | BU54: 0 | BV54: 0 | BW54: 0 | BX54: 0 | BY54: 0 | BZ54: 0.00 | CD54: 0 | CE54: 0 | CF54: 0 | CG54: 0 | CH54: 0 | CI54: 0 | CJ54: 0 | CK54: 0 | CL54: 0 | CM54: 0 | CN54: 0.00 | CR54: 0 | CS54: 0 | CT54: 0 | CU54: 0 | CV54: 0 | CW54: 0 | CX54: 0 | CY54: 0 | CZ54: 0 | DA54: 0 | DB54: 0.00 | DC54: 0 | DD54: 0 | DE54: 0 | DF54: 0 | DG54: 0 | DH54: 0 | DI54: 0 | DJ54: 0 | DK54: 0 | DL54: 0 | DM54: 0 | DN54: 0.00 | DO54: 0 | DP54: 0 | DQ54: 0 | DR54: 0 | DS54: 0 | DT54: 0.00 | DU54: 0 | DV54: 0 | DW54: 0 | DX54: 0 | DY54: 0 | DZ54: 0.00 | EA54: 0 | EB54: 0 | EC54: 0 | ED54: 0 | EE54: 0 | EF54: 0 | EG54: 0 | EH54: 0 | EI54: 0 | EJ54: 0 | EK54: 0 | EL54: 0.00 | EM54: 0 | EQ54: 0 | ER54: 0 | ES54: 0.00 | EX54: 0 | FE54: 0 | FF54: 0 | FG54: 0 | FH54: 0 | FL54: 0 | FM54: / | FN54: 200 | FO54: 0/200 | FP54: 0 | FQ54: / | FR54: 200 | FS54: 0/200 | FT54: 0 | FU54: / | FV54: 100 | FW54: 0/100 | FX54: 0 | FY54: / | FZ54: 100 | GA54: 0/100 | GB54: 0 | GC54: / | GD54: 200 | GE54: 0/200
A55: 0 | B55: 47 | C55: 47 | D55: 0 | L55: 0 | M55: 0 | N55: 0 | O55: 0 | P55: 0 | Q55: 0 | R55: 0 | S55: 0 | T55: 0 | U55: 0 | V55: 0.00 | Z55: 0 | AA55: 0 | AB55: 0 | AC55: 0 | AD55: 0 | AE55: 0 | AF55: 0 | AG55: 0 | AH55: 0 | AI55: 0 | AJ55: 0.00 | AN55: 0 | AO55: 0 | AP55: 0 | AQ55: 0 | AR55: 0 | AS55: 0 | AT55: 0 | AU55: 0 | AV55: 0 | AW55: 0 | AX55: 0.00 | BB55: 0 | BC55: 0 | BD55: 0 | BE55: 0 | BF55: 0 | BG55: 0 | BH55: 0 | BI55: 0 | BJ55: 0 | BK55: 0 | BL55: 0.00 | BP55: 0 | BQ55: 0 | BR55: 0 | BS55: 0 | BT55: 0 | BU55: 0 | BV55: 0 | BW55: 0 | BX55: 0 | BY55: 0 | BZ55: 0.00 | CD55: 0 | CE55: 0 | CF55: 0 | CG55: 0 | CH55: 0 | CI55: 0 | CJ55: 0 | CK55: 0 | CL55: 0 | CM55: 0 | CN55: 0.00 | CR55: 0 | CS55: 0 | CT55: 0 | CU55: 0 | CV55: 0 | CW55: 0 | CX55: 0 | CY55: 0 | CZ55: 0 | DA55: 0 | DB55: 0.00 | DC55: 0 | DD55: 0 | DE55: 0 | DF55: 0 | DG55: 0 | DH55: 0 | DI55: 0 | DJ55: 0 | DK55: 0 | DL55: 0 | DM55: 0 | DN55: 0.00 | DO55: 0 | DP55: 0 | DQ55: 0 | DR55: 0 | DS55: 0 | DT55: 0.00 | DU55: 0 | DV55: 0 | DW55: 0 | DX55: 0 | DY55: 0 | DZ55: 0.00 | EA55: 0 | EB55: 0 | EC55: 0 | ED55: 0 | EE55: 0 | EF55: 0 | EG55: 0 | EH55: 0 | EI55: 0 | EJ55: 0 | EK55: 0 | EL55: 0.00 | EM55: 0 | EQ55: 0 | ER55: 0 | ES55: 0.00 | EX55: 0 | FE55: 0 | FF55: 0 | FG55: 0 | FH55: 0 | FL55: 0 | FM55: / | FN55: 200 | FO55: 0/200 | FP55: 0 | FQ55: / | FR55: 200 | FS55: 0/200 | FT55: 0 | FU55: / | FV55: 100 | FW55: 0/100 | FX55: 0 | FY55: / | FZ55: 100 | GA55: 0/100 | GB55: 0 | GC55: / | GD55: 200 | GE55: 0/200
A56: 0 | B56: 48 | C56: 48 | D56: 0 | L56: 0 | M56: 0 | N56: 0 | O56: 0 | P56: 0 | Q56: 0 | R56: 0 | S56: 0 | T56: 0 | U56: 0 | V56: 0.00 | Z56: 0 | AA56: 0 | AB56: 0 | AC56: 0 | AD56: 0 | AE56: 0 | AF56: 0 | AG56: 0 | AH56: 0 | AI56: 0 | AJ56: 0.00 | AN56: 0 | AO56: 0 | AP56: 0 | AQ56: 0 | AR56: 0 | AS56: 0 | AT56: 0 | AU56: 0 | AV56: 0 | AW56: 0 | AX56: 0.00 | BB56: 0 | BC56: 0 | BD56: 0 | BE56: 0 | BF56: 0 | BG56: 0 | BH56: 0 | BI56: 0 | BJ56: 0 | BK56: 0 | BL56: 0.00 | BP56: 0 | BQ56: 0 | BR56: 0 | BS56: 0 | BT56: 0 | BU56: 0 | BV56: 0 | BW56: 0 | BX56: 0 | BY56: 0 | BZ56: 0.00 | CD56: 0 | CE56: 0 | CF56: 0 | CG56: 0 | CH56: 0 | CI56: 0 | CJ56: 0 | CK56: 0 | CL56: 0 | CM56: 0 | CN56: 0.00 | CR56: 0 | CS56: 0 | CT56: 0 | CU56: 0 | CV56: 0 | CW56: 0 | CX56: 0 | CY56: 0 | CZ56: 0 | DA56: 0 | DB56: 0.00 | DC56: 0 | DD56: 0 | DE56: 0 | DF56: 0 | DG56: 0 | DH56: 0 | DI56: 0 | DJ56: 0 | DK56: 0 | DL56: 0 | DM56: 0 | DN56: 0.00 | DO56: 0 | DP56: 0 | DQ56: 0 | DR56: 0 | DS56: 0 | DT56: 0.00 | DU56: 0 | DV56: 0 | DW56: 0 | DX56: 0 | DY56: 0 | DZ56: 0.00 | EA56: 0 | EB56: 0 | EC56: 0 | ED56: 0 | EE56: 0 | EF56: 0 | EG56: 0 | EH56: 0 | EI56: 0 | EJ56: 0 | EK56: 0 | EL56: 0.00 | EM56: 0 | EQ56: 0 | ER56: 0 | ES56: 0.00 | EX56: 0 | FE56: 0 | FF56: 0 | FG56: 0 | FH56: 0 | FL56: 0 | FM56: / | FN56: 200 | FO56: 0/200 | FP56: 0 | FQ56: / | FR56: 200 | FS56: 0/200 | FT56: 0 | FU56: / | FV56: 100 | FW56: 0/100 | FX56: 0 | FY56: / | FZ56: 100 | GA56: 0/100 | GB56: 0 | GC56: / | GD56: 200 | GE56: 0/200
A57: 0 | B57: 49 | C57: 49 | D57: 0 | L57: 0 | M57: 0 | N57: 0 | O57: 0 | P57: 0 | Q57: 0 | R57: 0 | S57: 0 | T57: 0 | U57: 0 | V57: 0.00 | Z57: 0 | AA57: 0 | AB57: 0 | AC57: 0 | AD57: 0 | AE57: 0 | AF57: 0 | AG57: 0 | AH57: 0 | AI57: 0 | AJ57: 0.00 | AN57: 0 | AO57: 0 | AP57: 0 | AQ57: 0 | AR57: 0 | AS57: 0 | AT57: 0 | AU57: 0 | AV57: 0 | AW57: 0 | AX57: 0.00 | BB57: 0 | BC57: 0 | BD57: 0 | BE57: 0 | BF57: 0 | BG57: 0 | BH57: 0 | BI57: 0 | BJ57: 0 | BK57: 0 | BL57: 0.00 | BP57: 0 | BQ57: 0 | BR57: 0 | BS57: 0 | BT57: 0 | BU57: 0 | BV57: 0 | BW57: 0 | BX57: 0 | BY57: 0 | BZ57: 0.00 | CD57: 0 | CE57: 0 | CF57: 0 | CG57: 0 | CH57: 0 | CI57: 0 | CJ57: 0 | CK57: 0 | CL57: 0 | CM57: 0 | CN57: 0.00 | CR57: 0 | CS57: 0 | CT57: 0 | CU57: 0 | CV57: 0 | CW57: 0 | CX57: 0 | CY57: 0 | CZ57: 0 | DA57: 0 | DB57: 0.00 | DC57: 0 | DD57: 0 | DE57: 0 | DF57: 0 | DG57: 0 | DH57: 0 | DI57: 0 | DJ57: 0 | DK57: 0 | DL57: 0 | DM57: 0 | DN57: 0.00 | DO57: 0 | DP57: 0 | DQ57: 0 | DR57: 0 | DS57: 0 | DT57: 0.00 | DU57: 0 | DV57: 0 | DW57: 0 | DX57: 0 | DY57: 0 | DZ57: 0.00 | EA57: 0 | EB57: 0 | EC57: 0 | ED57: 0 | EE57: 0 | EF57: 0 | EG57: 0 | EH57: 0 | EI57: 0 | EJ57: 0 | EK57: 0 | EL57: 0.00 | EM57: 0 | EQ57: 0 | ER57: 0 | ES57: 0.00 | EX57: 0 | FE57: 0 | FF57: 0 | FG57: 0 | FH57: 0 | FL57: 0 | FM57: / | FN57: 200 | FO57: 0/200 | FP57: 0 | FQ57: / | FR57: 200 | FS57: 0/200 | FT57: 0 | FU57: / | FV57: 100 | FW57: 0/100 | FX57: 0 | FY57: / | FZ57: 100 | GA57: 0/100 | GB57: 0 | GC57: / | GD57: 200 | GE57: 0/200
A58: 0 | B58: 50 | C58: 50 | D58: 0 | L58: 0 | M58: 0 | N58: 0 | O58: 0 | P58: 0 | Q58: 0 | R58: 0 | S58: 0 | T58: 0 | U58: 0 | V58: 0.00 | Z58: 0 | AA58: 0 | AB58: 0 | AC58: 0 | AD58: 0 | AE58: 0 | AF58: 0 | AG58: 0 | AH58: 0 | AI58: 0 | AJ58: 0.00 | AN58: 0 | AO58: 0 | AP58: 0 | AQ58: 0 | AR58: 0 | AS58: 0 | AT58: 0 | AU58: 0 | AV58: 0 | AW58: 0 | AX58: 0.00 | BB58: 0 | BC58: 0 | BD58: 0 | BE58: 0 | BF58: 0 | BG58: 0 | BH58: 0 | BI58: 0 | BJ58: 0 | BK58: 0 | BL58: 0.00 | BP58: 0 | BQ58: 0 | BR58: 0 | BS58: 0 | BT58: 0 | BU58: 0 | BV58: 0 | BW58: 0 | BX58: 0 | BY58: 0 | BZ58: 0.00 | CD58: 0 | CE58: 0 | CF58: 0 | CG58: 0 | CH58: 0 | CI58: 0 | CJ58: 0 | CK58: 0 | CL58: 0 | CM58: 0 | CN58: 0.00 | CR58: 0 | CS58: 0 | CT58: 0 | CU58: 0 | CV58: 0 | CW58: 0 | CX58: 0 | CY58: 0 | CZ58: 0 | DA58: 0 | DB58: 0.00 | DC58: 0 | DD58: 0 | DE58: 0 | DF58: 0 | DG58: 0 | DH58: 0 | DI58: 0 | DJ58: 0 | DK58: 0 | DL58: 0 | DM58: 0 | DN58: 0.00 | DO58: 0 | DP58: 0 | DQ58: 0 | DR58: 0 | DS58: 0 | DT58: 0.00 | DU58: 0 | DV58: 0 | DW58: 0 | DX58: 0 | DY58: 0 | DZ58: 0.00 | EA58: 0 | EB58: 0 | EC58: 0 | ED58: 0 | EE58: 0 | EF58: 0 | EG58: 0 | EH58: 0 | EI58: 0 | EJ58: 0 | EK58: 0 | EL58: 0.00 | EM58: 0 | EQ58: 0 | ER58: 0 | ES58: 0.00 | EX58: 0 | FE58: 0 | FF58: 0 | FG58: 0 | FH58: 0 | FL58: 0 | FM58: / | FN58: 200 | FO58: 0/200 | FP58: 0 | FQ58: / | FR58: 200 | FS58: 0/200 | FT58: 0 | FU58: / | FV58: 100 | FW58: 0/100 | FX58: 0 | FY58: / | FZ58: 100 | GA58: 0/100 | GB58: 0 | GC58: / | GD58: 200 | GE58: 0/200
A59: 0 | B59: 51 | C59: 51 | D59: 0 | L59: 0 | M59: 0 | N59: 0 | O59: 0 | P59: 0 | Q59: 0 | R59: 0 | S59: 0 | T59: 0 | U59: 0 | V59: 0.00 | Z59: 0 | AA59: 0 | AB59: 0 | AC59: 0 | AD59: 0 | AE59: 0 | AF59: 0 | AG59: 0 | AH59: 0 | AI59: 0 | AJ59: 0.00 | AN59: 0 | AO59: 0 | AP59: 0 | AQ59: 0 | AR59: 0 | AS59: 0 | AT59: 0 | AU59: 0 | AV59: 0 | AW59: 0 | AX59: 0.00 | BB59: 0 | BC59: 0 | BD59: 0 | BE59: 0 | BF59: 0 | BG59: 0 | BH59: 0 | BI59: 0 | BJ59: 0 | BK59: 0 | BL59: 0.00 | BP59: 0 | BQ59: 0 | BR59: 0 | BS59: 0 | BT59: 0 | BU59: 0 | BV59: 0 | BW59: 0 | BX59: 0 | BY59: 0 | BZ59: 0.00 | CD59: 0 | CE59: 0 | CF59: 0 | CG59: 0 | CH59: 0 | CI59: 0 | CJ59: 0 | CK59: 0 | CL59: 0 | CM59: 0 | CN59: 0.00 | CR59: 0 | CS59: 0 | CT59: 0 | CU59: 0 | CV59: 0 | CW59: 0 | CX59: 0 | CY59: 0 | CZ59: 0 | DA59: 0 | DB59: 0.00 | DC59: 0 | DD59: 0 | DE59: 0 | DF59: 0 | DG59: 0 | DH59: 0 | DI59: 0 | DJ59: 0 | DK59: 0 | DL59: 0 | DM59: 0 | DN59: 0.00 | DO59: 0 | DP59: 0 | DQ59: 0 | DR59: 0 | DS59: 0 | DT59: 0.00 | DU59: 0 | DV59: 0 | DW59: 0 | DX59: 0 | DY59: 0 | DZ59: 0.00 | EA59: 0 | EB59: 0 | EC59: 0 | ED59: 0 | EE59: 0 | EF59: 0 | EG59: 0 | EH59: 0 | EI59: 0 | EJ59: 0 | EK59: 0 | EL59: 0.00 | EM59: 0 | EQ59: 0 | ER59: 0 | ES59: 0.00 | EX59: 0 | FE59: 0 | FF59: 0 | FG59: 0 | FH59: 0 | FL59: 0 | FM59: / | FN59: 200 | FO59: 0/200 | FP59: 0 | FQ59: / | FR59: 200 | FS59: 0/200 | FT59: 0 | FU59: / | FV59: 100 | FW59: 0/100 | FX59: 0 | FY59: / | FZ59: 100 | GA59: 0/100 | GB59: 0 | GC59: / | GD59: 200 | GE59: 0/200
A60: 0 | B60: 52 | C60: 52 | D60: 0 | L60: 0 | M60: 0 | N60: 0 | O60: 0 | P60: 0 | Q60: 0 | R60: 0 | S60: 0 | T60: 0 | U60: 0 | V60: 0.00 | Z60: 0 | AA60: 0 | AB60: 0 | AC60: 0 | AD60: 0 | AE60: 0 | AF60: 0 | AG60: 0 | AH60: 0 | AI60: 0 | AJ60: 0.00 | AN60: 0 | AO60: 0 | AP60: 0 | AQ60: 0 | AR60: 0 | AS60: 0 | AT60: 0 | AU60: 0 | AV60: 0 | AW60: 0 | AX60: 0.00 | BB60: 0 | BC60: 0 | BD60: 0 | BE60: 0 | BF60: 0 | BG60: 0 | BH60: 0 | BI60: 0 | BJ60: 0 | BK60: 0 | BL60: 0.00 | BP60: 0 | BQ60: 0 | BR60: 0 | BS60: 0 | BT60: 0 | BU60: 0 | BV60: 0 | BW60: 0 | BX60: 0 | BY60: 0 | BZ60: 0.00 | CD60: 0 | CE60: 0 | CF60: 0 | CG60: 0 | CH60: 0 | CI60: 0 | CJ60: 0 | CK60: 0 | CL60: 0 | CM60: 0 | CN60: 0.00 | CR60: 0 | CS60: 0 | CT60: 0 | CU60: 0 | CV60: 0 | CW60: 0 | CX60: 0 | CY60: 0 | CZ60: 0 | DA60: 0 | DB60: 0.00 | DC60: 0 | DD60: 0 | DE60: 0 | DF60: 0 | DG60: 0 | DH60: 0 | DI60: 0 | DJ60: 0 | DK60: 0 | DL60: 0 | DM60: 0 | DN60: 0.00 | DO60: 0 | DP60: 0 | DQ60: 0 | DR60: 0 | DS60: 0 | DT60: 0.00 | DU60: 0 | DV60: 0 | DW60: 0 | DX60: 0 | DY60: 0 | DZ60: 0.00 | EA60: 0 | EB60: 0 | EC60: 0 | ED60: 0 | EE60: 0 | EF60: 0 | EG60: 0 | EH60: 0 | EI60: 0 | EJ60: 0 | EK60: 0 | EL60: 0.00 | EM60: 0 | EQ60: 0 | ER60: 0 | ES60: 0.00 | EX60: 0 | FE60: 0 | FF60: 0 | FG60: 0 | FH60: 0 | FL60: 0 | FM60: / | FN60: 200 | FO60: 0/200 | FP60: 0 | FQ60: / | FR60: 200 | FS60: 0/200 | FT60: 0 | FU60: / | FV60: 100 | FW60: 0/100 | FX60: 0 | FY60: / | FZ60: 100 | GA60: 0/100 | GB60: 0 | GC60: / | GD60: 200 | GE60: 0/200
A61: 0 | B61: 53 | C61: 53 | D61: 0 | L61: 0 | M61: 0 | N61: 0 | O61: 0 | P61: 0 | Q61: 0 | R61: 0 | S61: 0 | T61: 0 | U61: 0 | V61: 0.00 | Z61: 0 | AA61: 0 | AB61: 0 | AC61: 0 | AD61: 0 | AE61: 0 | AF61: 0 | AG61: 0 | AH61: 0 | AI61: 0 | AJ61: 0.00 | AN61: 0 | AO61: 0 | AP61: 0 | AQ61: 0 | AR61: 0 | AS61: 0 | AT61: 0 | AU61: 0 | AV61: 0 | AW61: 0 | AX61: 0.00 | BB61: 0 | BC61: 0 | BD61: 0 | BE61: 0 | BF61: 0 | BG61: 0 | BH61: 0 | BI61: 0 | BJ61: 0 | BK61: 0 | BL61: 0.00 | BP61: 0 | BQ61: 0 | BR61: 0 | BS61: 0 | BT61: 0 | BU61: 0 | BV61: 0 | BW61: 0 | BX61: 0 | BY61: 0 | BZ61: 0.00 | CD61: 0 | CE61: 0 | CF61: 0 | CG61: 0 | CH61: 0 | CI61: 0 | CJ61: 0 | CK61: 0 | CL61: 0 | CM61: 0 | CN61: 0.00 | CR61: 0 | CS61: 0 | CT61: 0 | CU61: 0 | CV61: 0 | CW61: 0 | CX61: 0 | CY61: 0 | CZ61: 0 | DA61: 0 | DB61: 0.00 | DC61: 0 | DD61: 0 | DE61: 0 | DF61: 0 | DG61: 0 | DH61: 0 | DI61: 0 | DJ61: 0 | DK61: 0 | DL61: 0 | DM61: 0 | DN61: 0.00 | DO61: 0 | DP61: 0 | DQ61: 0 | DR61: 0 | DS61: 0 | DT61: 0.00 | DU61: 0 | DV61: 0 | DW61: 0 | DX61: 0 | DY61: 0 | DZ61: 0.00 | EA61: 0 | EB61: 0 | EC61: 0 | ED61: 0 | EE61: 0 | EF61: 0 | EG61: 0 | EH61: 0 | EI61: 0 | EJ61: 0 | EK61: 0 | EL61: 0.00 | EM61: 0 | EQ61: 0 | ER61: 0 | ES61: 0.00 | EX61: 0 | FE61: 0 | FF61: 0 | FG61: 0 | FH61: 0 | FL61: 0 | FM61: / | FN61: 200 | FO61: 0/200 | FP61: 0 | FQ61: / | FR61: 200 | FS61: 0/200 | FT61: 0 | FU61: / | FV61: 100 | FW61: 0/100 | FX61: 0 | FY61: / | FZ61: 100 | GA61: 0/100 | GB61: 0 | GC61: / | GD61: 200 | GE61: 0/200
A62: 0 | B62: 54 | C62: 54 | D62: 0 | L62: 0 | M62: 0 | N62: 0 | O62: 0 | P62: 0 | Q62: 0 | R62: 0 | S62: 0 | T62: 0 | U62: 0 | V62: 0.00 | Z62: 0 | AA62: 0 | AB62: 0 | AC62: 0 | AD62: 0 | AE62: 0 | AF62: 0 | AG62: 0 | AH62: 0 | AI62: 0 | AJ62: 0.00 | AN62: 0 | AO62: 0 | AP62: 0 | AQ62: 0 | AR62: 0 | AS62: 0 | AT62: 0 | AU62: 0 | AV62: 0 | AW62: 0 | AX62: 0.00 | BB62: 0 | BC62: 0 | BD62: 0 | BE62: 0 | BF62: 0 | BG62: 0 | BH62: 0 | BI62: 0 | BJ62: 0 | BK62: 0 | BL62: 0.00 | BP62: 0 | BQ62: 0 | BR62: 0 | BS62: 0 | BT62: 0 | BU62: 0 | BV62: 0 | BW62: 0 | BX62: 0 | BY62: 0 | BZ62: 0.00 | CD62: 0 | CE62: 0 | CF62: 0 | CG62: 0 | CH62: 0 | CI62: 0 | CJ62: 0 | CK62: 0 | CL62: 0 | CM62: 0 | CN62: 0.00 | CR62: 0 | CS62: 0 | CT62: 0 | CU62: 0 | CV62: 0 | CW62: 0 | CX62: 0 | CY62: 0 | CZ62: 0 | DA62: 0 | DB62: 0.00 | DC62: 0 | DD62: 0 | DE62: 0 | DF62: 0 | DG62: 0 | DH62: 0 | DI62: 0 | DJ62: 0 | DK62: 0 | DL62: 0 | DM62: 0 | DN62: 0.00 | DO62: 0 | DP62: 0 | DQ62: 0 | DR62: 0 | DS62: 0 | DT62: 0.00 | DU62: 0 | DV62: 0 | DW62: 0 | DX62: 0 | DY62: 0 | DZ62: 0.00 | EA62: 0 | EB62: 0 | EC62: 0 | ED62: 0 | EE62: 0 | EF62: 0 | EG62: 0 | EH62: 0 | EI62: 0 | EJ62: 0 | EK62: 0 | EL62: 0.00 | EM62: 0 | EQ62: 0 | ER62: 0 | ES62: 0.00 | EX62: 0 | FE62: 0 | FF62: 0 | FG62: 0 | FH62: 0 | FL62: 0 | FM62: / | FN62: 200 | FO62: 0/200 | FP62: 0 | FQ62: / | FR62: 200 | FS62: 0/200 | FT62: 0 | FU62: / | FV62: 100 | FW62: 0/100 | FX62: 0 | FY62: / | FZ62: 100 | GA62: 0/100 | GB62: 0 | GC62: / | GD62: 200 | GE62: 0/200
A63: 0 | B63: 55 | C63: 55 | D63: 0 | L63: 0 | M63: 0 | N63: 0 | O63: 0 | P63: 0 | Q63: 0 | R63: 0 | S63: 0 | T63: 0 | U63: 0 | V63: 0.00 | Z63: 0 | AA63: 0 | AB63: 0 | AC63: 0 | AD63: 0 | AE63: 0 | AF63: 0 | AG63: 0 | AH63: 0 | AI63: 0 | AJ63: 0.00 | AN63: 0 | AO63: 0 | AP63: 0 | AQ63: 0 | AR63: 0 | AS63: 0 | AT63: 0 | AU63: 0 | AV63: 0 | AW63: 0 | AX63: 0.00 | BB63: 0 | BC63: 0 | BD63: 0 | BE63: 0 | BF63: 0 | BG63: 0 | BH63: 0 | BI63: 0 | BJ63: 0 | BK63: 0 | BL63: 0.00 | BP63: 0 | BQ63: 0 | BR63: 0 | BS63: 0 | BT63: 0 | BU63: 0 | BV63: 0 | BW63: 0 | BX63: 0 | BY63: 0 | BZ63: 0.00 | CD63: 0 | CE63: 0 | CF63: 0 | CG63: 0 | CH63: 0 | CI63: 0 | CJ63: 0 | CK63: 0 | CL63: 0 | CM63: 0 | CN63: 0.00 | CR63: 0 | CS63: 0 | CT63: 0 | CU63: 0 | CV63: 0 | CW63: 0 | CX63: 0 | CY63: 0 | CZ63: 0 | DA63: 0 | DB63: 0.00 | DC63: 0 | DD63: 0 | DE63: 0 | DF63: 0 | DG63: 0 | DH63: 0 | DI63: 0 | DJ63: 0 | DK63: 0 | DL63: 0 | DM63: 0 | DN63: 0.00 | DO63: 0 | DP63: 0 | DQ63: 0 | DR63: 0 | DS63: 0 | DT63: 0.00 | DU63: 0 | DV63: 0 | DW63: 0 | DX63: 0 | DY63: 0 | DZ63: 0.00 | EA63: 0 | EB63: 0 | EC63: 0 | ED63: 0 | EE63: 0 | EF63: 0 | EG63: 0 | EH63: 0 | EI63: 0 | EJ63: 0 | EK63: 0 | EL63: 0.00 | EM63: 0 | EQ63: 0 | ER63: 0 | ES63: 0.00 | EX63: 0 | FE63: 0 | FF63: 0 | FG63: 0 | FH63: 0 | FL63: 0 | FM63: / | FN63: 200 | FO63: 0/200 | FP63: 0 | FQ63: / | FR63: 200 | FS63: 0/200 | FT63: 0 | FU63: / | FV63: 100 | FW63: 0/100 | FX63: 0 | FY63: / | FZ63: 100 | GA63: 0/100 | GB63: 0 | GC63: / | GD63: 200 | GE63: 0/200
A64: 0 | B64: 56 | C64: 56 | D64: 0 | L64: 0 | M64: 0 | N64: 0 | O64: 0 | P64: 0 | Q64: 0 | R64: 0 | S64: 0 | T64: 0 | U64: 0 | V64: 0.00 | Z64: 0 | AA64: 0 | AB64: 0 | AC64: 0 | AD64: 0 | AE64: 0 | AF64: 0 | AG64: 0 | AH64: 0 | AI64: 0 | AJ64: 0.00 | AN64: 0 | AO64: 0 | AP64: 0 | AQ64: 0 | AR64: 0 | AS64: 0 | AT64: 0 | AU64: 0 | AV64: 0 | AW64: 0 | AX64: 0.00 | BB64: 0 | BC64: 0 | BD64: 0 | BE64: 0 | BF64: 0 | BG64: 0 | BH64: 0 | BI64: 0 | BJ64: 0 | BK64: 0 | BL64: 0.00 | BP64: 0 | BQ64: 0 | BR64: 0 | BS64: 0 | BT64: 0 | BU64: 0 | BV64: 0 | BW64: 0 | BX64: 0 | BY64: 0 | BZ64: 0.00 | CD64: 0 | CE64: 0 | CF64: 0 | CG64: 0 | CH64: 0 | CI64: 0 | CJ64: 0 | CK64: 0 | CL64: 0 | CM64: 0 | CN64: 0.00 | CR64: 0 | CS64: 0 | CT64: 0 | CU64: 0 | CV64: 0 | CW64: 0 | CX64: 0 | CY64: 0 | CZ64: 0 | DA64: 0 | DB64: 0.00 | DC64: 0 | DD64: 0 | DE64: 0 | DF64: 0 | DG64: 0 | DH64: 0 | DI64: 0 | DJ64: 0 | DK64: 0 | DL64: 0 | DM64: 0 | DN64: 0.00 | DO64: 0 | DP64: 0 | DQ64: 0 | DR64: 0 | DS64: 0 | DT64: 0.00 | DU64: 0 | DV64: 0 | DW64: 0 | DX64: 0 | DY64: 0 | DZ64: 0.00 | EA64: 0 | EB64: 0 | EC64: 0 | ED64: 0 | EE64: 0 | EF64: 0 | EG64: 0 | EH64: 0 | EI64: 0 | EJ64: 0 | EK64: 0 | EL64: 0.00 | EM64: 0 | EQ64: 0 | ER64: 0 | ES64: 0.00 | EX64: 0 | FE64: 0 | FF64: 0 | FG64: 0 | FH64: 0 | FL64: 0 | FM64: / | FN64: 200 | FO64: 0/200 | FP64: 0 | FQ64: / | FR64: 200 | FS64: 0/200 | FT64: 0 | FU64: / | FV64: 100 | FW64: 0/100 | FX64: 0 | FY64: / | FZ64: 100 | GA64: 0/100 | GB64: 0 | GC64: / | GD64: 200 | GE64: 0/200
A65: 0 | B65: 57 | C65: 57 | D65: 0 | L65: 0 | M65: 0 | N65: 0 | O65: 0 | P65: 0 | Q65: 0 | R65: 0 | S65: 0 | T65: 0 | U65: 0 | V65: 0.00 | Z65: 0 | AA65: 0 | AB65: 0 | AC65: 0 | AD65: 0 | AE65: 0 | AF65: 0 | AG65: 0 | AH65: 0 | AI65: 0 | AJ65: 0.00 | AN65: 0 | AO65: 0 | AP65: 0 | AQ65: 0 | AR65: 0 | AS65: 0 | AT65: 0 | AU65: 0 | AV65: 0 | AW65: 0 | AX65: 0.00 | BB65: 0 | BC65: 0 | BD65: 0 | BE65: 0 | BF65: 0 | BG65: 0 | BH65: 0 | BI65: 0 | BJ65: 0 | BK65: 0 | BL65: 0.00 | BP65: 0 | BQ65: 0 | BR65: 0 | BS65: 0 | BT65: 0 | BU65: 0 | BV65: 0 | BW65: 0 | BX65: 0 | BY65: 0 | BZ65: 0.00 | CD65: 0 | CE65: 0 | CF65: 0 | CG65: 0 | CH65: 0 | CI65: 0 | CJ65: 0 | CK65: 0 | CL65: 0 | CM65: 0 | CN65: 0.00 | CR65: 0 | CS65: 0 | CT65: 0 | CU65: 0 | CV65: 0 | CW65: 0 | CX65: 0 | CY65: 0 | CZ65: 0 | DA65: 0 | DB65: 0.00 | DC65: 0 | DD65: 0 | DE65: 0 | DF65: 0 | DG65: 0 | DH65: 0 | DI65: 0 | DJ65: 0 | DK65: 0 | DL65: 0 | DM65: 0 | DN65: 0.00 | DO65: 0 | DP65: 0 | DQ65: 0 | DR65: 0 | DS65: 0 | DT65: 0.00 | DU65: 0 | DV65: 0 | DW65: 0 | DX65: 0 | DY65: 0 | DZ65: 0.00 | EA65: 0 | EB65: 0 | EC65: 0 | ED65: 0 | EE65: 0 | EF65: 0 | EG65: 0 | EH65: 0 | EI65: 0 | EJ65: 0 | EK65: 0 | EL65: 0.00 | EM65: 0 | EQ65: 0 | ER65: 0 | ES65: 0.00 | EX65: 0 | FE65: 0 | FF65: 0 | FG65: 0 | FH65: 0 | FL65: 0 | FM65: / | FN65: 200 | FO65: 0/200 | FP65: 0 | FQ65: / | FR65: 200 | FS65: 0/200 | FT65: 0 | FU65: / | FV65: 100 | FW65: 0/100 | FX65: 0 | FY65: / | FZ65: 100 | GA65: 0/100 | GB65: 0 | GC65: / | GD65: 200 | GE65: 0/200
A66: 0 | B66: 58 | C66: 58 | D66: 0 | L66: 0 | M66: 0 | N66: =SUM(L66:M66) -> 0 | O66: 0 | P66: 0 | Q66: =SUM(O66,P66) -> 0 | R66: 0 | S66: 0 | T66: 0 | U66: =SUM(N66,Q66,T66) -> 0 | V66: 0.00 | W66: =IF(R66="AB","AB",IF(AND(OR(L66="ab",L66="ml"),OR(M66="ab",M66="ml"),OR(O66="ab",O66="ml")),"AB",IF(AND(OR(L66="ab",L66="ml"),OR(O66="ab",O66="ml")),"AB",""))) ->  | X66: =IF(OR($G66="NSO",$G66="",R66=""),"",IF(OR(W66="AB",R66="ab"),"AB",IF(V66>36,"P",IF(V66>34,"G2",IF(V66>31,"G1",IF(V66>25,"S","F")))))) ->  | Y66: =IF(OR(X66="",X66=0,X66="S",X66="F",X66="AB"),X66,IF(V66>=75,"D",IF(V66>=60,"I",IF(V66>=48,"II",IF(V66>=36,"III",X66))))) ->  | Z66: 0 | AA66: 0 | AB66: 0 | AC66: 0 | AD66: 0 | AE66: 0 | AF66: 0 | AG66: 0 | AH66: 0 | AI66: 0 | AJ66: 0.00 | AN66: 0 | AO66: 0 | AP66: 0 | AQ66: 0 | AR66: 0 | AS66: 0 | AT66: 0 | AU66: 0 | AV66: 0 | AW66: 0 | AX66: 0.00 | BB66: 0 | BC66: 0 | BD66: 0 | BE66: 0 | BF66: 0 | BG66: 0 | BH66: 0 | BI66: 0 | BJ66: 0 | BK66: 0 | BL66: 0.00 | BP66: 0 | BQ66: 0 | BR66: 0 | BS66: 0 | BT66: 0 | BU66: 0 | BV66: 0 | BW66: 0 | BX66: 0 | BY66: 0 | BZ66: 0.00 | CD66: 0 | CE66: 0 | CF66: 0 | CG66: 0 | CH66: 0 | CI66: 0 | CJ66: 0 | CK66: 0 | CL66: 0 | CM66: 0 | CN66: 0.00 | CR66: 0 | CS66: 0 | CT66: 0 | CU66: 0 | CV66: 0 | CW66: 0 | CX66: 0 | CY66: 0 | CZ66: 0 | DA66: 0 | DB66: 0.00 | DC66: 0 | DD66: 0 | DE66: 0 | DF66: 0 | DG66: 0 | DH66: 0 | DI66: 0 | DJ66: 0 | DK66: 0 | DL66: 0 | DM66: 0 | DN66: 0.00 | DO66: 0 | DP66: 0 | DQ66: 0 | DR66: 0 | DS66: 0 | DT66: 0.00 | DU66: 0 | DV66: 0 | DW66: 0 | DX66: 0 | DY66: 0 | DZ66: 0.00 | EA66: 0 | EB66: 0 | EC66: 0 | ED66: 0 | EE66: 0 | EF66: 0 | EG66: 0 | EH66: 0 | EI66: 0 | EJ66: 0 | EK66: 0 | EL66: 0.00 | EM66: 0 | EQ66: 0 | ER66: 0 | ES66: 0.00 | EX66: 0 | FE66: 0 | FF66: 0 | FG66: 0 | FH66: 0 | FL66: 0 | FM66: / | FN66: 200 | FO66: 0/200 | FP66: 0 | FQ66: / | FR66: 200 | FS66: 0/200 | FT66: 0 | FU66: / | FV66: 100 | FW66: 0/100 | FX66: 0 | FY66: / | FZ66: 100 | GA66: 0/100 | GB66: 0 | GC66: / | GD66: 200 | GE66: 0/200
A67: 0 | B67: 59 | C67: 59 | D67: 0 | L67: 0 | M67: 0 | N67: 0 | O67: 0 | P67: 0 | Q67: 0 | R67: 0 | S67: 0 | T67: 0 | U67: 0 | V67: 0.00 | Z67: 0 | AA67: 0 | AB67: 0 | AC67: 0 | AD67: 0 | AE67: 0 | AF67: 0 | AG67: 0 | AH67: 0 | AI67: 0 | AJ67: 0.00 | AN67: 0 | AO67: 0 | AP67: 0 | AQ67: 0 | AR67: 0 | AS67: 0 | AT67: 0 | AU67: 0 | AV67: 0 | AW67: 0 | AX67: 0.00 | BB67: 0 | BC67: 0 | BD67: 0 | BE67: 0 | BF67: 0 | BG67: 0 | BH67: 0 | BI67: 0 | BJ67: 0 | BK67: 0 | BL67: 0.00 | BP67: 0 | BQ67: 0 | BR67: 0 | BS67: 0 | BT67: 0 | BU67: 0 | BV67: 0 | BW67: 0 | BX67: 0 | BY67: 0 | BZ67: 0.00 | CD67: 0 | CE67: 0 | CF67: 0 | CG67: 0 | CH67: 0 | CI67: 0 | CJ67: 0 | CK67: 0 | CL67: 0 | CM67: 0 | CN67: 0.00 | CR67: 0 | CS67: 0 | CT67: 0 | CU67: 0 | CV67: 0 | CW67: 0 | CX67: 0 | CY67: 0 | CZ67: 0 | DA67: 0 | DB67: 0.00 | DC67: 0 | DD67: 0 | DE67: 0 | DF67: 0 | DG67: 0 | DH67: 0 | DI67: 0 | DJ67: 0 | DK67: 0 | DL67: 0 | DM67: 0 | DN67: 0.00 | DO67: 0 | DP67: 0 | DQ67: 0 | DR67: 0 | DS67: 0 | DT67: 0.00 | DU67: 0 | DV67: 0 | DW67: 0 | DX67: 0 | DY67: 0 | DZ67: 0.00 | EA67: 0 | EB67: 0 | EC67: 0 | ED67: 0 | EE67: 0 | EF67: 0 | EG67: 0 | EH67: 0 | EI67: 0 | EJ67: 0 | EK67: 0 | EL67: 0.00 | EM67: 0 | EQ67: 0 | ER67: 0 | ES67: 0.00 | EX67: 0 | FE67: 0 | FF67: 0 | FG67: 0 | FH67: 0 | FL67: 0 | FM67: / | FN67: 200 | FO67: 0/200 | FP67: 0 | FQ67: / | FR67: 200 | FS67: 0/200 | FT67: 0 | FU67: / | FV67: 100 | FW67: 0/100 | FX67: 0 | FY67: / | FZ67: 100 | GA67: 0/100 | GB67: 0 | GC67: / | GD67: 200 | GE67: 0/200
A68: 0 | B68: 60 | C68: 60 | D68: 0 | L68: 0 | M68: 0 | N68: 0 | O68: 0 | P68: 0 | Q68: 0 | R68: 0 | S68: 0 | T68: 0 | U68: 0 | V68: 0.00 | Z68: 0 | AA68: 0 | AB68: 0 | AC68: 0 | AD68: 0 | AE68: 0 | AF68: 0 | AG68: 0 | AH68: 0 | AI68: 0 | AJ68: 0.00 | AN68: 0 | AO68: 0 | AP68: 0 | AQ68: 0 | AR68: 0 | AS68: 0 | AT68: 0 | AU68: 0 | AV68: 0 | AW68: 0 | AX68: 0.00 | BB68: 0 | BC68: 0 | BD68: 0 | BE68: 0 | BF68: 0 | BG68: 0 | BH68: 0 | BI68: 0 | BJ68: 0 | BK68: 0 | BL68: 0.00 | BP68: 0 | BQ68: 0 | BR68: 0 | BS68: 0 | BT68: 0 | BU68: 0 | BV68: 0 | BW68: 0 | BX68: 0 | BY68: 0 | BZ68: 0.00 | CD68: 0 | CE68: 0 | CF68: 0 | CG68: 0 | CH68: 0 | CI68: 0 | CJ68: 0 | CK68: 0 | CL68: 0 | CM68: 0 | CN68: 0.00 | CR68: 0 | CS68: 0 | CT68: 0 | CU68: 0 | CV68: 0 | CW68: 0 | CX68: 0 | CY68: 0 | CZ68: 0 | DA68: 0 | DB68: 0.00 | DC68: 0 | DD68: 0 | DE68: 0 | DF68: 0 | DG68: 0 | DH68: 0 | DI68: 0 | DJ68: 0 | DK68: 0 | DL68: 0 | DM68: 0 | DN68: 0.00 | DO68: 0 | DP68: 0 | DQ68: 0 | DR68: 0 | DS68: 0 | DT68: 0.00 | DU68: 0 | DV68: 0 | DW68: 0 | DX68: 0 | DY68: 0 | DZ68: 0.00 | EA68: 0 | EB68: 0 | EC68: 0 | ED68: 0 | EE68: 0 | EF68: 0 | EG68: 0 | EH68: 0 | EI68: 0 | EJ68: 0 | EK68: 0 | EL68: 0.00 | EM68: 0 | EQ68: 0 | ER68: 0 | ES68: 0.00 | EX68: 0 | FE68: 0 | FF68: 0 | FG68: 0 | FH68: 0 | FL68: 0 | FM68: / | FN68: 200 | FO68: 0/200 | FP68: 0 | FQ68: / | FR68: 200 | FS68: 0/200 | FT68: 0 | FU68: / | FV68: 100 | FW68: 0/100 | FX68: 0 | FY68: / | FZ68: 100 | GA68: 0/100 | GB68: 0 | GC68: / | GD68: 200 | GE68: 0/200
A69: 0 | B69: 61 | C69: 61 | D69: 0 | L69: 0 | M69: 0 | N69: 0 | O69: 0 | P69: 0 | Q69: 0 | R69: 0 | S69: 0 | T69: 0 | U69: 0 | V69: 0.00 | Z69: 0 | AA69: 0 | AB69: 0 | AC69: 0 | AD69: 0 | AE69: 0 | AF69: 0 | AG69: 0 | AH69: 0 | AI69: 0 | AJ69: 0.00 | AN69: 0 | AO69: 0 | AP69: 0 | AQ69: 0 | AR69: 0 | AS69: 0 | AT69: 0 | AU69: 0 | AV69: 0 | AW69: 0 | AX69: 0.00 | BB69: 0 | BC69: 0 | BD69: 0 | BE69: 0 | BF69: 0 | BG69: 0 | BH69: 0 | BI69: 0 | BJ69: 0 | BK69: 0 | BL69: 0.00 | BP69: 0 | BQ69: 0 | BR69: 0 | BS69: 0 | BT69: 0 | BU69: 0 | BV69: 0 | BW69: 0 | BX69: 0 | BY69: 0 | BZ69: 0.00 | CD69: 0 | CE69: 0 | CF69: 0 | CG69: 0 | CH69: 0 | CI69: 0 | CJ69: 0 | CK69: 0 | CL69: 0 | CM69: 0 | CN69: 0.00 | CR69: 0 | CS69: 0 | CT69: 0 | CU69: 0 | CV69: 0 | CW69: 0 | CX69: 0 | CY69: 0 | CZ69: 0 | DA69: 0 | DB69: 0.00 | DC69: 0 | DD69: 0 | DE69: 0 | DF69: 0 | DG69: 0 | DH69: 0 | DI69: 0 | DJ69: 0 | DK69: 0 | DL69: 0 | DM69: 0 | DN69: 0.00 | DO69: 0 | DP69: 0 | DQ69: 0 | DR69: 0 | DS69: 0 | DT69: 0.00 | DU69: 0 | DV69: 0 | DW69: 0 | DX69: 0 | DY69: 0 | DZ69: 0.00 | EA69: 0 | EB69: 0 | EC69: 0 | ED69: 0 | EE69: 0 | EF69: 0 | EG69: 0 | EH69: 0 | EI69: 0 | EJ69: 0 | EK69: 0 | EL69: 0.00 | EM69: 0 | EQ69: 0 | ER69: 0 | ES69: 0.00 | EX69: 0 | FE69: 0 | FF69: 0 | FG69: 0 | FH69: 0 | FL69: 0 | FM69: / | FN69: 200 | FO69: 0/200 | FP69: 0 | FQ69: / | FR69: 200 | FS69: 0/200 | FT69: 0 | FU69: / | FV69: 100 | FW69: 0/100 | FX69: 0 | FY69: / | FZ69: 100 | GA69: 0/100 | GB69: 0 | GC69: / | GD69: 200 | GE69: 0/200
A70: 0 | B70: 62 | C70: 62 | D70: 0 | L70: 0 | M70: 0 | N70: 0 | O70: 0 | P70: 0 | Q70: 0 | R70: 0 | S70: 0 | T70: 0 | U70: 0 | V70: 0.00 | Z70: 0 | AA70: 0 | AB70: 0 | AC70: 0 | AD70: 0 | AE70: 0 | AF70: 0 | AG70: 0 | AH70: 0 | AI70: 0 | AJ70: 0.00 | AN70: 0 | AO70: 0 | AP70: 0 | AQ70: 0 | AR70: 0 | AS70: 0 | AT70: 0 | AU70: 0 | AV70: 0 | AW70: 0 | AX70: 0.00 | BB70: 0 | BC70: 0 | BD70: 0 | BE70: 0 | BF70: 0 | BG70: 0 | BH70: 0 | BI70: 0 | BJ70: 0 | BK70: 0 | BL70: 0.00 | BP70: 0 | BQ70: 0 | BR70: 0 | BS70: 0 | BT70: 0 | BU70: 0 | BV70: 0 | BW70: 0 | BX70: 0 | BY70: 0 | BZ70: 0.00 | CD70: 0 | CE70: 0 | CF70: 0 | CG70: 0 | CH70: 0 | CI70: 0 | CJ70: 0 | CK70: 0 | CL70: 0 | CM70: 0 | CN70: 0.00 | CR70: 0 | CS70: 0 | CT70: 0 | CU70: 0 | CV70: 0 | CW70: 0 | CX70: 0 | CY70: 0 | CZ70: 0 | DA70: 0 | DB70: 0.00 | DC70: 0 | DD70: 0 | DE70: 0 | DF70: 0 | DG70: 0 | DH70: 0 | DI70: 0 | DJ70: 0 | DK70: 0 | DL70: 0 | DM70: 0 | DN70: 0.00 | DO70: 0 | DP70: 0 | DQ70: 0 | DR70: 0 | DS70: 0 | DT70: 0.00 | DU70: 0 | DV70: 0 | DW70: 0 | DX70: 0 | DY70: 0 | DZ70: 0.00 | EA70: 0 | EB70: 0 | EC70: 0 | ED70: 0 | EE70: 0 | EF70: 0 | EG70: 0 | EH70: 0 | EI70: 0 | EJ70: 0 | EK70: 0 | EL70: 0.00 | EM70: 0 | EQ70: 0 | ER70: 0 | ES70: 0.00 | EX70: 0 | FE70: 0 | FF70: 0 | FG70: 0 | FH70: 0 | FL70: 0 | FM70: / | FN70: 200 | FO70: 0/200 | FP70: 0 | FQ70: / | FR70: 200 | FS70: 0/200 | FT70: 0 | FU70: / | FV70: 100 | FW70: 0/100 | FX70: 0 | FY70: / | FZ70: 100 | GA70: 0/100 | GB70: 0 | GC70: / | GD70: 200 | GE70: 0/200
A71: 0 | B71: 63 | C71: 63 | D71: 0 | L71: 0 | M71: 0 | N71: 0 | O71: 0 | P71: 0 | Q71: 0 | R71: 0 | S71: 0 | T71: 0 | U71: 0 | V71: 0.00 | Z71: 0 | AA71: 0 | AB71: 0 | AC71: 0 | AD71: 0 | AE71: 0 | AF71: 0 | AG71: 0 | AH71: 0 | AI71: 0 | AJ71: 0.00 | AN71: 0 | AO71: 0 | AP71: 0 | AQ71: 0 | AR71: 0 | AS71: 0 | AT71: 0 | AU71: 0 | AV71: 0 | AW71: 0 | AX71: 0.00 | BB71: 0 | BC71: 0 | BD71: 0 | BE71: 0 | BF71: 0 | BG71: 0 | BH71: 0 | BI71: 0 | BJ71: 0 | BK71: 0 | BL71: 0.00 | BP71: 0 | BQ71: 0 | BR71: 0 | BS71: 0 | BT71: 0 | BU71: 0 | BV71: 0 | BW71: 0 | BX71: 0 | BY71: 0 | BZ71: 0.00 | CD71: 0 | CE71: 0 | CF71: 0 | CG71: 0 | CH71: 0 | CI71: 0 | CJ71: 0 | CK71: 0 | CL71: 0 | CM71: 0 | CN71: 0.00 | CR71: 0 | CS71: 0 | CT71: 0 | CU71: 0 | CV71: 0 | CW71: 0 | CX71: 0 | CY71: 0 | CZ71: 0 | DA71: 0 | DB71: 0.00 | DC71: 0 | DD71: 0 | DE71: 0 | DF71: 0 | DG71: 0 | DH71: 0 | DI71: 0 | DJ71: 0 | DK71: 0 | DL71: 0 | DM71: 0 | DN71: 0.00 | DO71: 0 | DP71: 0 | DQ71: 0 | DR71: 0 | DS71: 0 | DT71: 0.00 | DU71: 0 | DV71: 0 | DW71: 0 | DX71: 0 | DY71: 0 | DZ71: 0.00 | EA71: 0 | EB71: 0 | EC71: 0 | ED71: 0 | EE71: 0 | EF71: 0 | EG71: 0 | EH71: 0 | EI71: 0 | EJ71: 0 | EK71: 0 | EL71: 0.00 | EM71: 0 | EQ71: 0 | ER71: 0 | ES71: 0.00 | EX71: 0 | FE71: 0 | FF71: 0 | FG71: 0 | FH71: 0 | FL71: 0 | FM71: / | FN71: 200 | FO71: 0/200 | FP71: 0 | FQ71: / | FR71: 200 | FS71: 0/200 | FT71: 0 | FU71: / | FV71: 100 | FW71: 0/100 | FX71: 0 | FY71: / | FZ71: 100 | GA71: 0/100 | GB71: 0 | GC71: / | GD71: 200 | GE71: 0/200
A72: 0 | B72: 64 | C72: 64 | D72: 0 | L72: 0 | M72: 0 | N72: 0 | O72: 0 | P72: 0 | Q72: 0 | R72: 0 | S72: 0 | T72: 0 | U72: 0 | V72: 0.00 | Z72: 0 | AA72: 0 | AB72: 0 | AC72: 0 | AD72: 0 | AE72: 0 | AF72: 0 | AG72: 0 | AH72: 0 | AI72: 0 | AJ72: 0.00 | AN72: 0 | AO72: 0 | AP72: 0 | AQ72: 0 | AR72: 0 | AS72: 0 | AT72: 0 | AU72: 0 | AV72: 0 | AW72: 0 | AX72: 0.00 | BB72: 0 | BC72: 0 | BD72: 0 | BE72: 0 | BF72: 0 | BG72: 0 | BH72: 0 | BI72: 0 | BJ72: 0 | BK72: 0 | BL72: 0.00 | BP72: 0 | BQ72: 0 | BR72: 0 | BS72: 0 | BT72: 0 | BU72: 0 | BV72: 0 | BW72: 0 | BX72: 0 | BY72: 0 | BZ72: 0.00 | CD72: 0 | CE72: 0 | CF72: 0 | CG72: 0 | CH72: 0 | CI72: 0 | CJ72: 0 | CK72: 0 | CL72: 0 | CM72: 0 | CN72: 0.00 | CR72: 0 | CS72: 0 | CT72: 0 | CU72: 0 | CV72: 0 | CW72: 0 | CX72: 0 | CY72: 0 | CZ72: 0 | DA72: 0 | DB72: 0.00 | DC72: 0 | DD72: 0 | DE72: 0 | DF72: 0 | DG72: 0 | DH72: 0 | DI72: 0 | DJ72: 0 | DK72: 0 | DL72: 0 | DM72: 0 | DN72: 0.00 | DO72: 0 | DP72: 0 | DQ72: 0 | DR72: 0 | DS72: 0 | DT72: 0.00 | DU72: 0 | DV72: 0 | DW72: 0 | DX72: 0 | DY72: 0 | DZ72: 0.00 | EA72: 0 | EB72: 0 | EC72: 0 | ED72: 0 | EE72: 0 | EF72: 0 | EG72: 0 | EH72: 0 | EI72: 0 | EJ72: 0 | EK72: 0 | EL72: 0.00 | EM72: 0 | EQ72: 0 | ER72: 0 | ES72: 0.00 | EX72: 0 | FE72: 0 | FF72: 0 | FG72: 0 | FH72: 0 | FL72: 0 | FM72: / | FN72: 200 | FO72: 0/200 | FP72: 0 | FQ72: / | FR72: 200 | FS72: 0/200 | FT72: 0 | FU72: / | FV72: 100 | FW72: 0/100 | FX72: 0 | FY72: / | FZ72: 100 | GA72: 0/100 | GB72: 0 | GC72: / | GD72: 200 | GE72: 0/200
A73: 0 | B73: 65 | C73: 65 | D73: 0 | L73: 0 | M73: 0 | N73: 0 | O73: 0 | P73: 0 | Q73: 0 | R73: 0 | S73: 0 | T73: 0 | U73: 0 | V73: 0.00 | Z73: 0 | AA73: 0 | AB73: =SUM(Z73:AA73) -> 0 | AC73: 0 | AD73: 0 | AE73: =SUM(AC73,AD73) -> 0 | AF73: 0 | AG73: =IF($S$7="NA","NA",0) -> 0 | AH73: 0 | AI73: =SUM(AB73,AE73,AH73) -> 0 | AJ73: 0.00 | AK73: =IF(AF73="AB","AB",IF(AND(OR(Z73="ab",Z73="ml"),OR(AA73="ab",AA73="ml"),OR(AC73="ab",AC73="ml")),"AB",IF(AND(OR(Z73="ab",Z73="ml"),OR(AC73="ab",AC73="ml")),"AB",""))) ->  | AL73: =IF(OR($G73="NSO",$G73="",AF73=""),"",IF(OR(AK73="AB",AF73="ab"),"AB",IF(AJ73>36,"P",IF(AJ73>34,"G2",IF(AJ73>31,"G1",IF(AJ73>25,"S","F")))))) ->  | AM73: =IF(OR(AL73="",AL73=0,AL73="S",AL73="F",AL73="AB"),AL73,IF(AJ73>=75,"D",IF(AJ73>=60,"I",IF(AJ73>=48,"II",IF(AJ73>=36,"III",AL73))))) ->  | AN73: 0 | AO73: 0 | AP73: 0 | AQ73: 0 | AR73: 0 | AS73: =SUM(AQ73,AR73) -> 0 | AT73: 0 | AU73: =IF($S$7="NA","NA",0) -> 0 | AV73: 0 | AW73: =SUM(AP73,AS73,AV73) -> 0 | AX73: 0.00 | AY73: =IF(AT73="AB","AB",IF(AND(OR(AN73="ab",AN73="ml"),OR(AO73="ab",AO73="ml"),OR(AQ73="ab",AQ73="ml")),"AB",IF(AND(OR(AN73="ab",AN73="ml"),OR(AQ73="ab",AQ73="ml")),"AB",""))) ->  | AZ73: =IF(OR($G73="NSO",$G73="",AT73=""),"",IF(OR(AY73="AB",AT73="ab"),"AB",IF(AX73>36,"P",IF(AX73>34,"G2",IF(AX73>31,"G1",IF(AX73>25,"S","F")))))) ->  | BA73: =IF(OR(AZ73="",AZ73=0,AZ73="S",AZ73="F",AZ73="AB"),AZ73,IF(AX73>=75,"D",IF(AX73>=60,"I",IF(AX73>=48,"II",IF(AX73>=36,"III",AZ73))))) ->  | BB73: 0 | BC73: 0 | BD73: 0 | BE73: 0 | BF73: 0 | BG73: =SUM(BE73,BF73) -> 0 | BH73: 0 | BI73: =IF($S$7="NA","NA",0) -> 0 | BJ73: 0 | BK73: =SUM(BD73,BG73,BJ73) -> 0 | BL73: 0.00 | BM73: =IF(BH73="AB","AB",IF(AND(OR(BB73="ab",BB73="ml"),OR(BC73="ab",BC73="ml"),OR(BE73="ab",BE73="ml")),"AB",IF(AND(OR(BB73="ab",BB73="ml"),OR(BE73="ab",BE73="ml")),"AB",""))) ->  | BN73: =IF(OR($G73="NSO",$G73="",BH73=""),"",IF(OR(BM73="AB",BH73="ab"),"AB",IF(BL73>36,"P",IF(BL73>34,"G2",IF(BL73>31,"G1",IF(BL73>25,"S","F")))))) ->  | BO73: =IF(OR(BN73="",BN73=0,BN73="S",BN73="F",BN73="AB"),BN73,IF(BL73>=75,"D",IF(BL73>=60,"I",IF(BL73>=48,"II",IF(BL73>=36,"III",BN73))))) ->  | BP73: 0 | BQ73: 0 | BR73: 0 | BS73: 0 | BT73: 0 | BU73: =SUM(BS73,BT73) -> 0 | BV73: 0 | BW73: =IF($S$7="NA","NA",0) -> 0 | BX73: 0 | BY73: =SUM(BR73,BU73,BX73) -> 0 | BZ73: 0.00 | CA73: =IF(BV73="AB","AB",IF(AND(OR(BP73="ab",BP73="ml"),OR(BQ73="ab",BQ73="ml"),OR(BS73="ab",BS73="ml")),"AB",IF(AND(OR(BP73="ab",BP73="ml"),OR(BS73="ab",BS73="ml")),"AB",""))) ->  | CB73: =IF(OR($G73="NSO",$G73="",BV73=""),"",IF(OR(CA73="AB",BV73="ab"),"AB",IF(BZ73>36,"P",IF(BZ73>34,"G2",IF(BZ73>31,"G1",IF(BZ73>25,"S","F")))))) ->  | CC73: =IF(OR(CB73="",CB73=0,CB73="S",CB73="F",CB73="AB"),CB73,IF(BZ73>=75,"D",IF(BZ73>=60,"I",IF(BZ73>=48,"II",IF(BZ73>=36,"III",CB73))))) ->  | CD73: 0 | CE73: 0 | CF73: 0 | CG73: 0 | CH73: 0 | CI73: =SUM(CG73,CH73) -> 0 | CJ73: 0 | CK73: =IF($S$7="NA","NA",0) -> 0 | CL73: 0 | CM73: =SUM(CF73,CI73,CL73) -> 0 | CN73: 0.00 | CO73: =IF(CJ73="AB","AB",IF(AND(OR(CD73="ab",CD73="ml"),OR(CE73="ab",CE73="ml"),OR(CG73="ab",CG73="ml")),"AB",IF(AND(OR(CD73="ab",CD73="ml"),OR(CG73="ab",CG73="ml")),"AB",""))) ->  | CP73: =IF(OR($G73="NSO",$G73="",CJ73=""),"",IF(OR(CO73="AB",CJ73="ab"),"AB",IF(CN73>36,"P",IF(CN73>34,"G2",IF(CN73>31,"G1",IF(CN73>25,"S","F")))))) ->  | CQ73: =IF(OR(CP73="",CP73=0,CP73="S",CP73="F",CP73="AB"),CP73,IF(CN73>=75,"D",IF(CN73>=60,"I",IF(CN73>=48,"II",IF(CN73>=36,"III",CP73))))) ->  | CR73: 0 | CS73: 0 | CT73: 0 | CU73: 0 | CV73: 0 | CW73: =SUM(CU73,CV73) -> 0 | CX73: 0 | CY73: =IF($S$7="NA","NA",0) -> 0 | CZ73: 0 | DA73: =SUM(CT73,CW73,CZ73) -> 0 | DB73: 0.00 | DC73: 0 | DD73: 0 | DE73: 0 | DF73: 0 | DG73: 0 | DH73: 0 | DI73: =SUM(DG73,DH73) -> 0 | DJ73: 0 | DK73: =IF($S$7="NA","NA",0) -> 0 | DL73: 0 | DM73: =SUM(DF73,DI73,DL73) -> 0 | DN73: 0.00 | DO73: 0 | DP73: 0 | DQ73: 0 | DR73: 0 | DS73: 0 | DT73: 0.00 | DU73: 0 | DV73: 0 | DW73: 0 | DX73: 0 | DY73: 0 | DZ73: 0.00 | EA73: 0 | EB73: 0 | EC73: 0 | ED73: 0 | EE73: 0 | EF73: 0 | EG73: =SUM(EE73,EF73) -> 0 | EH73: 0 | EI73: =IF($S$7="NA","NA",0) -> 0 | EJ73: 0 | EK73: =SUM(ED73,EG73,EJ73) -> 0 | EL73: 0.00 | EM73: 0 | EQ73: =IF(G73=0,0,SUM($U$7,$AI$7,$AW$7,$BK$7,$BY$7,$CM$7)) -> 0 | ER73: =SUM(U73,AI73,AW73,BK73,BY73,CM73) -> 0 | ES73: 0.00 | EX73: 0 | FE73: 0 | FF73: 0 | FG73: 0 | FH73: 0 | FL73: 0 | FM73: / | FN73: 200 | FO73: 0/200 | FP73: 0 | FQ73: / | FR73: 200 | FS73: 0/200 | FT73: 0 | FU73: / | FV73: 100 | FW73: 0/100 | FX73: 0 | FY73: / | FZ73: 100 | GA73: 0/100 | GB73: 0 | GC73: / | GD73: 200 | GE73: =CONCATENATE(GB73,GC73,GD73) -> 0/200
A74: =G74 -> 0 | B74: 66 | C74: 66 | D74: =IF(E74>0,$G$4,0) -> 0 | L74: 0 | M74: 0 | N74: 0 | O74: 0 | P74: 0 | Q74: 0 | R74: 0 | S74: 0 | T74: =SUM(R74:S74) -> 0 | U74: 0 | V74: =IF(OR(U74="",U$7=""),"",U74/U$7*100) -> 0.00 | Z74: 0 | AA74: 0 | AB74: =SUM(Z74:AA74) -> 0 | AC74: 0 | AD74: 0 | AE74: =SUM(AC74,AD74) -> 0 | AF74: 0 | AG74: =IF($S$7="NA","NA",0) -> 0 | AH74: =SUM(AF74:AG74) -> 0 | AI74: =SUM(AB74,AE74,AH74) -> 0 | AJ74: =IF(OR(AI74="",AI$7=""),"",AI74/AI$7*100) -> 0.00 | AK74: =IF(AF74="AB","AB",IF(AND(OR(Z74="ab",Z74="ml"),OR(AA74="ab",AA74="ml"),OR(AC74="ab",AC74="ml")),"AB",IF(AND(OR(Z74="ab",Z74="ml"),OR(AC74="ab",AC74="ml")),"AB",""))) ->  | AL74: =IF(OR($G74="NSO",$G74="",AF74=""),"",IF(OR(AK74="AB",AF74="ab"),"AB",IF(AJ74>36,"P",IF(AJ74>34,"G2",IF(AJ74>31,"G1",IF(AJ74>25,"S","F")))))) ->  | AM74: =IF(OR(AL74="",AL74=0,AL74="S",AL74="F",AL74="AB"),AL74,IF(AJ74>=75,"D",IF(AJ74>=60,"I",IF(AJ74>=48,"II",IF(AJ74>=36,"III",AL74))))) ->  | AN74: 0 | AO74: 0 | AP74: 0 | AQ74: 0 | AR74: 0 | AS74: =SUM(AQ74,AR74) -> 0 | AT74: 0 | AU74: =IF($S$7="NA","NA",0) -> 0 | AV74: =SUM(AT74:AU74) -> 0 | AW74: =SUM(AP74,AS74,AV74) -> 0 | AX74: =IF(OR(AW74="",AW$7=""),"",AW74/AW$7*100) -> 0.00 | AY74: =IF(AT74="AB","AB",IF(AND(OR(AN74="ab",AN74="ml"),OR(AO74="ab",AO74="ml"),OR(AQ74="ab",AQ74="ml")),"AB",IF(AND(OR(AN74="ab",AN74="ml"),OR(AQ74="ab",AQ74="ml")),"AB",""))) ->  | AZ74: =IF(OR($G74="NSO",$G74="",AT74=""),"",IF(OR(AY74="AB",AT74="ab"),"AB",IF(AX74>36,"P",IF(AX74>34,"G2",IF(AX74>31,"G1",IF(AX74>25,"S","F")))))) ->  | BA74: =IF(OR(AZ74="",AZ74=0,AZ74="S",AZ74="F",AZ74="AB"),AZ74,IF(AX74>=75,"D",IF(AX74>=60,"I",IF(AX74>=48,"II",IF(AX74>=36,"III",AZ74))))) ->  | BB74: 0 | BC74: 0 | BD74: 0 | BE74: 0 | BF74: 0 | BG74: =SUM(BE74,BF74) -> 0 | BH74: 0 | BI74: =IF($S$7="NA","NA",0) -> 0 | BJ74: =SUM(BH74:BI74) -> 0 | BK74: =SUM(BD74,BG74,BJ74) -> 0 | BL74: =IF(OR(BK74="",BK$7=""),"",BK74/BK$7*100) -> 0.00 | BM74: =IF(BH74="AB","AB",IF(AND(OR(BB74="ab",BB74="ml"),OR(BC74="ab",BC74="ml"),OR(BE74="ab",BE74="ml")),"AB",IF(AND(OR(BB74="ab",BB74="ml"),OR(BE74="ab",BE74="ml")),"AB",""))) ->  | BN74: =IF(OR($G74="NSO",$G74="",BH74=""),"",IF(OR(BM74="AB",BH74="ab"),"AB",IF(BL74>36,"P",IF(BL74>34,"G2",IF(BL74>31,"G1",IF(BL74>25,"S","F")))))) ->  | BO74: =IF(OR(BN74="",BN74=0,BN74="S",BN74="F",BN74="AB"),BN74,IF(BL74>=75,"D",IF(BL74>=60,"I",IF(BL74>=48,"II",IF(BL74>=36,"III",BN74))))) ->  | BP74: 0 | BQ74: 0 | BR74: 0 | BS74: 0 | BT74: 0 | BU74: =SUM(BS74,BT74) -> 0 | BV74: 0 | BW74: =IF($S$7="NA","NA",0) -> 0 | BX74: =SUM(BV74:BW74) -> 0 | BY74: =SUM(BR74,BU74,BX74) -> 0 | BZ74: =IF(OR(BY74="",BY$7=""),"",BY74/BY$7*100) -> 0.00 | CA74: =IF(BV74="AB","AB",IF(AND(OR(BP74="ab",BP74="ml"),OR(BQ74="ab",BQ74="ml"),OR(BS74="ab",BS74="ml")),"AB",IF(AND(OR(BP74="ab",BP74="ml"),OR(BS74="ab",BS74="ml")),"AB",""))) ->  | CB74: =IF(OR($G74="NSO",$G74="",BV74=""),"",IF(OR(CA74="AB",BV74="ab"),"AB",IF(BZ74>36,"P",IF(BZ74>34,"G2",IF(BZ74>31,"G1",IF(BZ74>25,"S","F")))))) ->  | CC74: =IF(OR(CB74="",CB74=0,CB74="S",CB74="F",CB74="AB"),CB74,IF(BZ74>=75,"D",IF(BZ74>=60,"I",IF(BZ74>=48,"II",IF(BZ74>=36,"III",CB74))))) ->  | CD74: 0 | CE74: 0 | CF74: 0 | CG74: 0 | CH74: 0 | CI74: =SUM(CG74,CH74) -> 0 | CJ74: 0 | CK74: =IF($S$7="NA","NA",0) -> 0 | CL74: =SUM(CJ74:CK74) -> 0 | CM74: =SUM(CF74,CI74,CL74) -> 0 | CN74: =IF(OR(CM74="",CM$7=""),"",CM74/CM$7*100) -> 0.00 | CO74: =IF(CJ74="AB","AB",IF(AND(OR(CD74="ab",CD74="ml"),OR(CE74="ab",CE74="ml"),OR(CG74="ab",CG74="ml")),"AB",IF(AND(OR(CD74="ab",CD74="ml"),OR(CG74="ab",CG74="ml")),"AB",""))) ->  | CP74: =IF(OR($G74="NSO",$G74="",CJ74=""),"",IF(OR(CO74="AB",CJ74="ab"),"AB",IF(CN74>36,"P",IF(CN74>34,"G2",IF(CN74>31,"G1",IF(CN74>25,"S","F")))))) ->  | CQ74: =IF(OR(CP74="",CP74=0,CP74="S",CP74="F",CP74="AB"),CP74,IF(CN74>=75,"D",IF(CN74>=60,"I",IF(CN74>=48,"II",IF(CN74>=36,"III",CP74))))) ->  | CR74: 0 | CS74: 0 | CT74: 0 | CU74: 0 | CV74: 0 | CW74: =SUM(CU74,CV74) -> 0 | CX74: 0 | CY74: =IF($S$7="NA","NA",0) -> 0 | CZ74: =SUM(CX74:CY74) -> 0 | DA74: =SUM(CT74,CW74,CZ74) -> 0 | DB74: =IF(OR(DA74="",DA$7=""),"",DA74/DA$7*100) -> 0.00 | DC74: =IF(DB74>91,"A+",IF(DB74>76,"A",IF(DB74>61,"B",IF(DB74>41,"C",IF(DB74=0,0,"D"))))) -> 0 | DD74: 0 | DE74: 0 | DF74: 0 | DG74: 0 | DH74: 0 | DI74: =SUM(DG74,DH74) -> 0 | DJ74: 0 | DK74: =IF($S$7="NA","NA",0) -> 0 | DL74: =SUM(DJ74:DK74) -> 0 | DM74: =SUM(DF74,DI74,DL74) -> 0 | DN74: =IF(OR(DM74="",DM$7=""),"",DM74/DM$7*100) -> 0.00 | DO74: =IF(DN74>=91,"A+",IF(DN74>=76,"A",IF(DN74>=61,"B",IF(DN74>=41,"C",IF(DN74=0,0,"D"))))) -> 0 | DP74: 0 | DQ74: 0 | DR74: 0 | DS74: 0 | DT74: =IF(OR(DS74="",DS$7=""),"",DS74/DS$7*100) -> 0.00 | DU74: =IF(DT74>=91,"A+",IF(DT74>=76,"A",IF(DT74>=61,"B",IF(DT74>=41,"C",IF(DT74=0,0,"D"))))) -> 0 | DV74: 0 | DW74: 0 | DX74: 0 | DY74: 0 | DZ74: =IF(OR(DY74="",DY$7=""),"",DY74/DY$7*100) -> 0.00 | EA74: =IF(DZ74>=91,"A+",IF(DZ74>=76,"A",IF(DZ74>=61,"B",IF(DZ74>=41,"C",IF(DZ74=0,0,"D"))))) -> 0 | EB74: 0 | EC74: 0 | ED74: 0 | EE74: 0 | EF74: 0 | EG74: =SUM(EE74,EF74) -> 0 | EH74: 0 | EI74: =IF($S$7="NA","NA",0) -> 0 | EJ74: =SUM(EH74:EI74) -> 0 | EK74: =SUM(ED74,EG74,EJ74) -> 0 | EL74: =IF(OR(EK74="",EK$7=""),"",EK74/EK$7*100) -> 0.00 | EM74: =IF(EL74>=91,"A+",IF(EL74>=76,"A",IF(EL74>=61,"B",IF(EL74>=41,"C",IF(EL74=0,0,"D"))))) -> 0 | EQ74: 0 | ER74: 0 | ES74: =IF(EQ74>0,ER74/EQ74*100,0) -> 0.00 | ET74: =IF(AND(ES74>=60,EU74="Passed"),"First",IF(AND(ES74>=60,EU74="Passed with G"),"First",IF(AND(ES74>=48,EU74="Passed"),"Second",IF(AND(ES74>=48,EU74="Passed With G"),"Second",IF(OR(EU74="Passed",EU74="Passed With G"),"Third",EU74))))) ->  | EU74: =IF($G74="NSO","NSO",IF(OR($G74="",$G74=0,O74="",AC74="",AQ74="",BE74="",BS74="",CG74=""),"",IF(OR(FE74>0,(FF74+FG74+FH74)>2),"FAILED",IF(OR(FF74>0,FG74>1),"SUPP.",IF(AND(FG74>0,FH74>0),"SUPP.",IF((FG74+FH74),"Passed With G","Passed")))))) ->  | EV74: =IF(EU74="Passed",ES74,"") ->  | EW74: =IF(EV74="","",SUMPRODUCT((EV74<EV$9:EV$108)/COUNTIF(EV$9:EV$108,EV$9:EV$108))) ->  | EX74: =IF(ES74>81,"Excellent",IF(ES74>60,"Very Good",IF(ES74>48,"Good",IF(ES74>36,"Average",IF(ES74=0,0,"Need Improvement"))))) -> 0 | EY74: =Y74 ->  | EZ74: =AM74 ->  | FA74: =BA74 ->  | FB74: =BO74 ->  | FC74: =CC74 ->  | FD74: =CQ74 ->  | FE74: =COUNTIF(EY74:FD74,"F")+COUNTIF(EY74:FD74,"AB") -> 0 | FF74: =COUNTIF(EY74:FD74,"S") -> 0 | FG74: =COUNTIF(EY74:FD74,"G1") -> 0 | FH74: =COUNTIF(EY74:FD74,"G2") -> 0 | FL74: =DA74 -> 0 | FM74: / | FN74: =$DA$7 -> 200 | FO74: =CONCATENATE(FL74,FM74,FN74) -> 0/200 | FP74: =DM74 -> 0 | FQ74: / | FR74: =$DM$7 -> 200 | FS74: =CONCATENATE(FP74,FQ74,FR74) -> 0/200 | FT74: =DS74 -> 0 | FU74: / | FV74: =$DS$7 -> 100 | FW74: =CONCATENATE(FT74,FU74,FV74) -> 0/100 | FX74: =DY74 -> 0 | FY74: / | FZ74: =$DY$7 -> 100 | GA74: =CONCATENATE(FX74,FY74,FZ74) -> 0/100 | GB74: =EK74 -> 0 | GC74: / | GD74: =$EK$7 -> 200 | GE74: 0/200
A75: 0 | B75: 67 | C75: 67 | D75: 0 | L75: 0 | M75: 0 | N75: 0 | O75: 0 | P75: 0 | Q75: 0 | R75: 0 | S75: =IF($S$7="NA","NA",0) -> 0 | T75: 0 | U75: 0 | V75: 0.00 | Z75: 0 | AA75: 0 | AB75: =SUM(Z75:AA75) -> 0 | AC75: 0 | AD75: 0 | AE75: =SUM(AC75,AD75) -> 0 | AF75: 0 | AG75: =IF($S$7="NA","NA",0) -> 0 | AH75: 0 | AI75: =SUM(AB75,AE75,AH75) -> 0 | AJ75: 0.00 | AK75: =IF(AF75="AB","AB",IF(AND(OR(Z75="ab",Z75="ml"),OR(AA75="ab",AA75="ml"),OR(AC75="ab",AC75="ml")),"AB",IF(AND(OR(Z75="ab",Z75="ml"),OR(AC75="ab",AC75="ml")),"AB",""))) ->  | AL75: =IF(OR($G75="NSO",$G75="",AF75=""),"",IF(OR(AK75="AB",AF75="ab"),"AB",IF(AJ75>36,"P",IF(AJ75>34,"G2",IF(AJ75>31,"G1",IF(AJ75>25,"S","F")))))) ->  | AM75: =IF(OR(AL75="",AL75=0,AL75="S",AL75="F",AL75="AB"),AL75,IF(AJ75>=75,"D",IF(AJ75>=60,"I",IF(AJ75>=48,"II",IF(AJ75>=36,"III",AL75))))) ->  | AN75: 0 | AO75: 0 | AP75: 0 | AQ75: 0 | AR75: 0 | AS75: =SUM(AQ75,AR75) -> 0 | AT75: 0 | AU75: =IF($S$7="NA","NA",0) -> 0 | AV75: 0 | AW75: =SUM(AP75,AS75,AV75) -> 0 | AX75: 0.00 | AY75: =IF(AT75="AB","AB",IF(AND(OR(AN75="ab",AN75="ml"),OR(AO75="ab",AO75="ml"),OR(AQ75="ab",AQ75="ml")),"AB",IF(AND(OR(AN75="ab",AN75="ml"),OR(AQ75="ab",AQ75="ml")),"AB",""))) ->  | AZ75: =IF(OR($G75="NSO",$G75="",AT75=""),"",IF(OR(AY75="AB",AT75="ab"),"AB",IF(AX75>36,"P",IF(AX75>34,"G2",IF(AX75>31,"G1",IF(AX75>25,"S","F")))))) ->  | BA75: =IF(OR(AZ75="",AZ75=0,AZ75="S",AZ75="F",AZ75="AB"),AZ75,IF(AX75>=75,"D",IF(AX75>=60,"I",IF(AX75>=48,"II",IF(AX75>=36,"III",AZ75))))) ->  | BB75: 0 | BC75: 0 | BD75: 0 | BE75: 0 | BF75: 0 | BG75: =SUM(BE75,BF75) -> 0 | BH75: 0 | BI75: =IF($S$7="NA","NA",0) -> 0 | BJ75: 0 | BK75: =SUM(BD75,BG75,BJ75) -> 0 | BL75: 0.00 | BM75: =IF(BH75="AB","AB",IF(AND(OR(BB75="ab",BB75="ml"),OR(BC75="ab",BC75="ml"),OR(BE75="ab",BE75="ml")),"AB",IF(AND(OR(BB75="ab",BB75="ml"),OR(BE75="ab",BE75="ml")),"AB",""))) ->  | BN75: =IF(OR($G75="NSO",$G75="",BH75=""),"",IF(OR(BM75="AB",BH75="ab"),"AB",IF(BL75>36,"P",IF(BL75>34,"G2",IF(BL75>31,"G1",IF(BL75>25,"S","F")))))) ->  | BO75: =IF(OR(BN75="",BN75=0,BN75="S",BN75="F",BN75="AB"),BN75,IF(BL75>=75,"D",IF(BL75>=60,"I",IF(BL75>=48,"II",IF(BL75>=36,"III",BN75))))) ->  | BP75: 0 | BQ75: 0 | BR75: 0 | BS75: 0 | BT75: 0 | BU75: =SUM(BS75,BT75) -> 0 | BV75: 0 | BW75: =IF($S$7="NA","NA",0) -> 0 | BX75: 0 | BY75: =SUM(BR75,BU75,BX75) -> 0 | BZ75: 0.00 | CA75: =IF(BV75="AB","AB",IF(AND(OR(BP75="ab",BP75="ml"),OR(BQ75="ab",BQ75="ml"),OR(BS75="ab",BS75="ml")),"AB",IF(AND(OR(BP75="ab",BP75="ml"),OR(BS75="ab",BS75="ml")),"AB",""))) ->  | CB75: =IF(OR($G75="NSO",$G75="",BV75=""),"",IF(OR(CA75="AB",BV75="ab"),"AB",IF(BZ75>36,"P",IF(BZ75>34,"G2",IF(BZ75>31,"G1",IF(BZ75>25,"S","F")))))) ->  | CC75: =IF(OR(CB75="",CB75=0,CB75="S",CB75="F",CB75="AB"),CB75,IF(BZ75>=75,"D",IF(BZ75>=60,"I",IF(BZ75>=48,"II",IF(BZ75>=36,"III",CB75))))) ->  | CD75: 0 | CE75: 0 | CF75: 0 | CG75: 0 | CH75: 0 | CI75: =SUM(CG75,CH75) -> 0 | CJ75: 0 | CK75: =IF($S$7="NA","NA",0) -> 0 | CL75: 0 | CM75: =SUM(CF75,CI75,CL75) -> 0 | CN75: 0.00 | CO75: =IF(CJ75="AB","AB",IF(AND(OR(CD75="ab",CD75="ml"),OR(CE75="ab",CE75="ml"),OR(CG75="ab",CG75="ml")),"AB",IF(AND(OR(CD75="ab",CD75="ml"),OR(CG75="ab",CG75="ml")),"AB",""))) ->  | CP75: =IF(OR($G75="NSO",$G75="",CJ75=""),"",IF(OR(CO75="AB",CJ75="ab"),"AB",IF(CN75>36,"P",IF(CN75>34,"G2",IF(CN75>31,"G1",IF(CN75>25,"S","F")))))) ->  | CQ75: =IF(OR(CP75="",CP75=0,CP75="S",CP75="F",CP75="AB"),CP75,IF(CN75>=75,"D",IF(CN75>=60,"I",IF(CN75>=48,"II",IF(CN75>=36,"III",CP75))))) ->  | CR75: 0 | CS75: 0 | CT75: 0 | CU75: 0 | CV75: 0 | CW75: =SUM(CU75,CV75) -> 0 | CX75: 0 | CY75: =IF($S$7="NA","NA",0) -> 0 | CZ75: 0 | DA75: =SUM(CT75,CW75,CZ75) -> 0 | DB75: 0.00 | DC75: 0 | DD75: 0 | DE75: 0 | DF75: 0 | DG75: 0 | DH75: 0 | DI75: =SUM(DG75,DH75) -> 0 | DJ75: 0 | DK75: =IF($S$7="NA","NA",0) -> 0 | DL75: 0 | DM75: =SUM(DF75,DI75,DL75) -> 0 | DN75: 0.00 | DO75: 0 | DP75: 0 | DQ75: 0 | DR75: 0 | DS75: 0 | DT75: 0.00 | DU75: 0 | DV75: 0 | DW75: 0 | DX75: 0 | DY75: 0 | DZ75: 0.00 | EA75: 0 | EB75: 0 | EC75: 0 | ED75: =SUM(EB75:EC75) -> 0 | EE75: 0 | EF75: 0 | EG75: =SUM(EE75,EF75) -> 0 | EH75: 0 | EI75: =IF($S$7="NA","NA",0) -> 0 | EJ75: 0 | EK75: =SUM(ED75,EG75,EJ75) -> 0 | EL75: 0.00 | EM75: 0 | EQ75: 0 | ER75: 0 | ES75: 0.00 | EX75: 0 | FE75: 0 | FF75: 0 | FG75: 0 | FH75: 0 | FL75: 0 | FM75: / | FN75: 200 | FO75: 0/200 | FP75: 0 | FQ75: / | FR75: 200 | FS75: 0/200 | FT75: 0 | FU75: / | FV75: 100 | FW75: 0/100 | FX75: 0 | FY75: / | FZ75: 100 | GA75: 0/100 | GB75: 0 | GC75: / | GD75: 200 | GE75: 0/200
A76: 0 | B76: 68 | C76: 68 | D76: 0 | L76: 0 | M76: 0 | N76: 0 | O76: 0 | P76: 0 | Q76: 0 | R76: 0 | S76: 0 | T76: 0 | U76: 0 | V76: 0.00 | Z76: 0 | AA76: 0 | AB76: 0 | AC76: 0 | AD76: 0 | AE76: 0 | AF76: 0 | AG76: 0 | AH76: 0 | AI76: 0 | AJ76: 0.00 | AN76: 0 | AO76: 0 | AP76: 0 | AQ76: 0 | AR76: 0 | AS76: 0 | AT76: 0 | AU76: 0 | AV76: 0 | AW76: 0 | AX76: 0.00 | BB76: 0 | BC76: 0 | BD76: 0 | BE76: 0 | BF76: 0 | BG76: 0 | BH76: 0 | BI76: 0 | BJ76: 0 | BK76: 0 | BL76: 0.00 | BP76: 0 | BQ76: 0 | BR76: 0 | BS76: 0 | BT76: 0 | BU76: 0 | BV76: 0 | BW76: 0 | BX76: 0 | BY76: 0 | BZ76: 0.00 | CD76: 0 | CE76: 0 | CF76: 0 | CG76: 0 | CH76: 0 | CI76: 0 | CJ76: 0 | CK76: 0 | CL76: 0 | CM76: 0 | CN76: 0.00 | CR76: 0 | CS76: 0 | CT76: 0 | CU76: 0 | CV76: 0 | CW76: 0 | CX76: 0 | CY76: 0 | CZ76: 0 | DA76: 0 | DB76: 0.00 | DC76: 0 | DD76: 0 | DE76: 0 | DF76: 0 | DG76: 0 | DH76: 0 | DI76: 0 | DJ76: 0 | DK76: 0 | DL76: 0 | DM76: 0 | DN76: 0.00 | DO76: 0 | DP76: 0 | DQ76: 0 | DR76: 0 | DS76: 0 | DT76: 0.00 | DU76: 0 | DV76: 0 | DW76: 0 | DX76: 0 | DY76: 0 | DZ76: 0.00 | EA76: 0 | EB76: 0 | EC76: 0 | ED76: 0 | EE76: 0 | EF76: 0 | EG76: 0 | EH76: 0 | EI76: 0 | EJ76: 0 | EK76: 0 | EL76: 0.00 | EM76: 0 | EQ76: 0 | ER76: 0 | ES76: 0.00 | EX76: 0 | FE76: 0 | FF76: 0 | FG76: 0 | FH76: 0 | FL76: 0 | FM76: / | FN76: 200 | FO76: 0/200 | FP76: 0 | FQ76: / | FR76: 200 | FS76: 0/200 | FT76: 0 | FU76: / | FV76: 100 | FW76: 0/100 | FX76: 0 | FY76: / | FZ76: 100 | GA76: 0/100 | GB76: 0 | GC76: / | GD76: 200 | GE76: 0/200
A77: 0 | B77: 69 | C77: 69 | D77: 0 | L77: 0 | M77: 0 | N77: 0 | O77: 0 | P77: 0 | Q77: 0 | R77: 0 | S77: 0 | T77: 0 | U77: 0 | V77: 0.00 | Z77: 0 | AA77: 0 | AB77: 0 | AC77: 0 | AD77: 0 | AE77: 0 | AF77: 0 | AG77: 0 | AH77: 0 | AI77: 0 | AJ77: 0.00 | AN77: 0 | AO77: 0 | AP77: 0 | AQ77: 0 | AR77: 0 | AS77: 0 | AT77: 0 | AU77: 0 | AV77: 0 | AW77: 0 | AX77: 0.00 | BB77: 0 | BC77: 0 | BD77: 0 | BE77: 0 | BF77: 0 | BG77: 0 | BH77: 0 | BI77: 0 | BJ77: 0 | BK77: 0 | BL77: 0.00 | BP77: 0 | BQ77: 0 | BR77: 0 | BS77: 0 | BT77: 0 | BU77: 0 | BV77: 0 | BW77: 0 | BX77: 0 | BY77: 0 | BZ77: 0.00 | CD77: 0 | CE77: 0 | CF77: 0 | CG77: 0 | CH77: 0 | CI77: 0 | CJ77: 0 | CK77: 0 | CL77: 0 | CM77: 0 | CN77: 0.00 | CR77: 0 | CS77: 0 | CT77: 0 | CU77: 0 | CV77: 0 | CW77: 0 | CX77: 0 | CY77: 0 | CZ77: 0 | DA77: 0 | DB77: 0.00 | DC77: 0 | DD77: 0 | DE77: 0 | DF77: 0 | DG77: 0 | DH77: 0 | DI77: 0 | DJ77: 0 | DK77: 0 | DL77: 0 | DM77: 0 | DN77: 0.00 | DO77: 0 | DP77: 0 | DQ77: 0 | DR77: 0 | DS77: 0 | DT77: 0.00 | DU77: 0 | DV77: 0 | DW77: 0 | DX77: 0 | DY77: 0 | DZ77: 0.00 | EA77: 0 | EB77: 0 | EC77: 0 | ED77: 0 | EE77: 0 | EF77: 0 | EG77: 0 | EH77: 0 | EI77: 0 | EJ77: 0 | EK77: 0 | EL77: 0.00 | EM77: 0 | EQ77: 0 | ER77: 0 | ES77: =IF(EQ77>0,ROUND(ER77/EQ77*100,0),0) -> 0 | EX77: 0 | FE77: 0 | FF77: 0 | FG77: 0 | FH77: 0 | FL77: 0 | FM77: / | FN77: 200 | FO77: 0/200 | FP77: 0 | FQ77: / | FR77: 200 | FS77: 0/200 | FT77: 0 | FU77: / | FV77: 100 | FW77: 0/100 | FX77: 0 | FY77: / | FZ77: 100 | GA77: 0/100 | GB77: 0 | GC77: / | GD77: 200 | GE77: 0/200
A78: 0 | B78: 70 | C78: 70 | D78: 0 | L78: 0 | M78: 0 | N78: 0 | O78: 0 | P78: 0 | Q78: 0 | R78: 0 | S78: 0 | T78: 0 | U78: 0 | V78: 0.00 | Z78: 0 | AA78: 0 | AB78: 0 | AC78: 0 | AD78: 0 | AE78: 0 | AF78: 0 | AG78: 0 | AH78: 0 | AI78: 0 | AJ78: 0.00 | AN78: 0 | AO78: 0 | AP78: 0 | AQ78: 0 | AR78: 0 | AS78: 0 | AT78: 0 | AU78: 0 | AV78: 0 | AW78: 0 | AX78: 0.00 | BB78: 0 | BC78: 0 | BD78: 0 | BE78: 0 | BF78: 0 | BG78: 0 | BH78: 0 | BI78: 0 | BJ78: 0 | BK78: 0 | BL78: 0.00 | BP78: 0 | BQ78: 0 | BR78: 0 | BS78: 0 | BT78: 0 | BU78: 0 | BV78: 0 | BW78: 0 | BX78: 0 | BY78: 0 | BZ78: 0.00 | CD78: 0 | CE78: 0 | CF78: 0 | CG78: 0 | CH78: 0 | CI78: 0 | CJ78: 0 | CK78: 0 | CL78: 0 | CM78: 0 | CN78: 0.00 | CR78: 0 | CS78: 0 | CT78: 0 | CU78: 0 | CV78: 0 | CW78: 0 | CX78: 0 | CY78: 0 | CZ78: 0 | DA78: 0 | DB78: 0.00 | DC78: 0 | DD78: 0 | DE78: 0 | DF78: 0 | DG78: 0 | DH78: 0 | DI78: 0 | DJ78: 0 | DK78: 0 | DL78: 0 | DM78: 0 | DN78: 0.00 | DO78: 0 | DP78: 0 | DQ78: 0 | DR78: 0 | DS78: 0 | DT78: 0.00 | DU78: 0 | DV78: 0 | DW78: 0 | DX78: 0 | DY78: 0 | DZ78: 0.00 | EA78: 0 | EB78: 0 | EC78: 0 | ED78: 0 | EE78: 0 | EF78: 0 | EG78: 0 | EH78: 0 | EI78: 0 | EJ78: 0 | EK78: 0 | EL78: 0.00 | EM78: 0 | EQ78: 0 | ER78: 0 | ES78: 0 | EX78: 0 | FE78: 0 | FF78: 0 | FG78: 0 | FH78: 0 | FL78: 0 | FM78: / | FN78: 200 | FO78: 0/200 | FP78: 0 | FQ78: / | FR78: 200 | FS78: 0/200 | FT78: 0 | FU78: / | FV78: 100 | FW78: 0/100 | FX78: 0 | FY78: / | FZ78: 100 | GA78: 0/100 | GB78: 0 | GC78: / | GD78: 200 | GE78: 0/200
A79: 0 | B79: 71 | C79: 71 | D79: 0 | L79: 0 | M79: 0 | N79: 0 | O79: 0 | P79: 0 | Q79: 0 | R79: 0 | S79: 0 | T79: 0 | U79: 0 | V79: 0.00 | Z79: 0 | AA79: 0 | AB79: 0 | AC79: 0 | AD79: 0 | AE79: 0 | AF79: 0 | AG79: 0 | AH79: 0 | AI79: 0 | AJ79: 0.00 | AN79: 0 | AO79: 0 | AP79: 0 | AQ79: 0 | AR79: 0 | AS79: 0 | AT79: 0 | AU79: 0 | AV79: 0 | AW79: 0 | AX79: 0.00 | BB79: 0 | BC79: 0 | BD79: 0 | BE79: 0 | BF79: 0 | BG79: 0 | BH79: 0 | BI79: 0 | BJ79: 0 | BK79: 0 | BL79: 0.00 | BP79: 0 | BQ79: 0 | BR79: 0 | BS79: 0 | BT79: 0 | BU79: 0 | BV79: 0 | BW79: 0 | BX79: 0 | BY79: 0 | BZ79: 0.00 | CD79: 0 | CE79: 0 | CF79: 0 | CG79: 0 | CH79: 0 | CI79: 0 | CJ79: 0 | CK79: 0 | CL79: 0 | CM79: 0 | CN79: 0.00 | CR79: 0 | CS79: 0 | CT79: 0 | CU79: 0 | CV79: 0 | CW79: 0 | CX79: 0 | CY79: 0 | CZ79: 0 | DA79: 0 | DB79: 0.00 | DC79: 0 | DD79: 0 | DE79: 0 | DF79: 0 | DG79: 0 | DH79: 0 | DI79: 0 | DJ79: 0 | DK79: 0 | DL79: 0 | DM79: 0 | DN79: 0.00 | DO79: 0 | DP79: 0 | DQ79: 0 | DR79: 0 | DS79: 0 | DT79: 0.00 | DU79: 0 | DV79: 0 | DW79: 0 | DX79: 0 | DY79: 0 | DZ79: 0.00 | EA79: 0 | EB79: 0 | EC79: 0 | ED79: 0 | EE79: 0 | EF79: 0 | EG79: 0 | EH79: 0 | EI79: 0 | EJ79: 0 | EK79: 0 | EL79: 0.00 | EM79: 0 | EQ79: 0 | ER79: 0 | ES79: 0 | EX79: 0 | FE79: 0 | FF79: 0 | FG79: 0 | FH79: 0 | FL79: 0 | FM79: / | FN79: 200 | FO79: 0/200 | FP79: 0 | FQ79: / | FR79: 200 | FS79: 0/200 | FT79: 0 | FU79: / | FV79: 100 | FW79: 0/100 | FX79: 0 | FY79: / | FZ79: 100 | GA79: 0/100 | GB79: 0 | GC79: / | GD79: 200 | GE79: 0/200
A80: 0 | B80: 72 | C80: 72 | D80: 0 | L80: 0 | M80: 0 | N80: 0 | O80: 0 | P80: 0 | Q80: 0 | R80: 0 | S80: 0 | T80: 0 | U80: 0 | V80: 0.00 | Z80: 0 | AA80: 0 | AB80: 0 | AC80: 0 | AD80: 0 | AE80: 0 | AF80: 0 | AG80: 0 | AH80: 0 | AI80: 0 | AJ80: 0.00 | AN80: 0 | AO80: 0 | AP80: 0 | AQ80: 0 | AR80: 0 | AS80: 0 | AT80: 0 | AU80: 0 | AV80: 0 | AW80: 0 | AX80: 0.00 | BB80: 0 | BC80: 0 | BD80: 0 | BE80: 0 | BF80: 0 | BG80: 0 | BH80: 0 | BI80: 0 | BJ80: 0 | BK80: 0 | BL80: 0.00 | BP80: 0 | BQ80: 0 | BR80: 0 | BS80: 0 | BT80: 0 | BU80: 0 | BV80: 0 | BW80: 0 | BX80: 0 | BY80: 0 | BZ80: 0.00 | CD80: 0 | CE80: 0 | CF80: 0 | CG80: 0 | CH80: 0 | CI80: 0 | CJ80: 0 | CK80: 0 | CL80: 0 | CM80: 0 | CN80: 0.00 | CR80: 0 | CS80: 0 | CT80: 0 | CU80: 0 | CV80: 0 | CW80: 0 | CX80: 0 | CY80: 0 | CZ80: 0 | DA80: 0 | DB80: 0.00 | DC80: 0 | DD80: 0 | DE80: 0 | DF80: 0 | DG80: 0 | DH80: 0 | DI80: 0 | DJ80: 0 | DK80: 0 | DL80: 0 | DM80: 0 | DN80: 0.00 | DO80: 0 | DP80: 0 | DQ80: 0 | DR80: 0 | DS80: 0 | DT80: 0.00 | DU80: 0 | DV80: 0 | DW80: 0 | DX80: 0 | DY80: 0 | DZ80: 0.00 | EA80: 0 | EB80: 0 | EC80: 0 | ED80: 0 | EE80: 0 | EF80: 0 | EG80: 0 | EH80: 0 | EI80: 0 | EJ80: 0 | EK80: 0 | EL80: 0.00 | EM80: 0 | EQ80: 0 | ER80: 0 | ES80: 0 | EX80: 0 | FE80: 0 | FF80: 0 | FG80: 0 | FH80: 0 | FL80: 0 | FM80: / | FN80: 200 | FO80: 0/200 | FP80: 0 | FQ80: / | FR80: 200 | FS80: 0/200 | FT80: 0 | FU80: / | FV80: 100 | FW80: 0/100 | FX80: 0 | FY80: / | FZ80: 100 | GA80: 0/100 | GB80: 0 | GC80: / | GD80: 200 | GE80: 0/200
A81: 0 | B81: 73 | C81: 73 | D81: 0 | L81: 0 | M81: 0 | N81: 0 | O81: 0 | P81: 0 | Q81: 0 | R81: 0 | S81: 0 | T81: 0 | U81: 0 | V81: 0.00 | Z81: 0 | AA81: 0 | AB81: 0 | AC81: 0 | AD81: 0 | AE81: 0 | AF81: 0 | AG81: 0 | AH81: 0 | AI81: 0 | AJ81: 0.00 | AN81: 0 | AO81: 0 | AP81: 0 | AQ81: 0 | AR81: 0 | AS81: 0 | AT81: 0 | AU81: 0 | AV81: 0 | AW81: 0 | AX81: 0.00 | BB81: 0 | BC81: 0 | BD81: 0 | BE81: 0 | BF81: 0 | BG81: 0 | BH81: 0 | BI81: 0 | BJ81: 0 | BK81: 0 | BL81: 0.00 | BP81: 0 | BQ81: 0 | BR81: 0 | BS81: 0 | BT81: 0 | BU81: 0 | BV81: 0 | BW81: 0 | BX81: 0 | BY81: 0 | BZ81: 0.00 | CD81: 0 | CE81: 0 | CF81: 0 | CG81: 0 | CH81: 0 | CI81: 0 | CJ81: 0 | CK81: 0 | CL81: 0 | CM81: 0 | CN81: 0.00 | CR81: 0 | CS81: 0 | CT81: 0 | CU81: 0 | CV81: 0 | CW81: 0 | CX81: 0 | CY81: 0 | CZ81: 0 | DA81: 0 | DB81: 0.00 | DC81: 0 | DD81: 0 | DE81: 0 | DF81: 0 | DG81: 0 | DH81: 0 | DI81: 0 | DJ81: 0 | DK81: 0 | DL81: 0 | DM81: 0 | DN81: 0.00 | DO81: 0 | DP81: 0 | DQ81: 0 | DR81: 0 | DS81: 0 | DT81: 0.00 | DU81: 0 | DV81: 0 | DW81: 0 | DX81: 0 | DY81: 0 | DZ81: 0.00 | EA81: 0 | EB81: 0 | EC81: 0 | ED81: 0 | EE81: 0 | EF81: 0 | EG81: 0 | EH81: 0 | EI81: 0 | EJ81: 0 | EK81: 0 | EL81: 0.00 | EM81: 0 | EQ81: 0 | ER81: 0 | ES81: 0 | EX81: 0 | FE81: 0 | FF81: 0 | FG81: 0 | FH81: 0 | FL81: 0 | FM81: / | FN81: 200 | FO81: 0/200 | FP81: 0 | FQ81: / | FR81: 200 | FS81: 0/200 | FT81: 0 | FU81: / | FV81: 100 | FW81: 0/100 | FX81: 0 | FY81: / | FZ81: 100 | GA81: 0/100 | GB81: 0 | GC81: / | GD81: 200 | GE81: 0/200
A82: 0 | B82: 74 | C82: 74 | D82: 0 | L82: 0 | M82: 0 | N82: 0 | O82: 0 | P82: 0 | Q82: 0 | R82: 0 | S82: 0 | T82: 0 | U82: 0 | V82: 0.00 | Z82: 0 | AA82: 0 | AB82: 0 | AC82: 0 | AD82: 0 | AE82: 0 | AF82: 0 | AG82: 0 | AH82: 0 | AI82: 0 | AJ82: 0.00 | AN82: 0 | AO82: 0 | AP82: 0 | AQ82: 0 | AR82: 0 | AS82: 0 | AT82: 0 | AU82: 0 | AV82: 0 | AW82: 0 | AX82: 0.00 | BB82: 0 | BC82: 0 | BD82: 0 | BE82: 0 | BF82: 0 | BG82: 0 | BH82: 0 | BI82: 0 | BJ82: 0 | BK82: 0 | BL82: 0.00 | BP82: 0 | BQ82: 0 | BR82: 0 | BS82: 0 | BT82: 0 | BU82: 0 | BV82: 0 | BW82: 0 | BX82: 0 | BY82: 0 | BZ82: 0.00 | CD82: 0 | CE82: 0 | CF82: 0 | CG82: 0 | CH82: 0 | CI82: 0 | CJ82: 0 | CK82: 0 | CL82: 0 | CM82: 0 | CN82: 0.00 | CR82: 0 | CS82: 0 | CT82: 0 | CU82: 0 | CV82: 0 | CW82: 0 | CX82: 0 | CY82: 0 | CZ82: 0 | DA82: 0 | DB82: 0.00 | DC82: 0 | DD82: 0 | DE82: 0 | DF82: 0 | DG82: 0 | DH82: 0 | DI82: 0 | DJ82: 0 | DK82: 0 | DL82: 0 | DM82: 0 | DN82: 0.00 | DO82: 0 | DP82: 0 | DQ82: 0 | DR82: 0 | DS82: 0 | DT82: 0.00 | DU82: 0 | DV82: 0 | DW82: 0 | DX82: 0 | DY82: 0 | DZ82: 0.00 | EA82: 0 | EB82: 0 | EC82: 0 | ED82: 0 | EE82: 0 | EF82: 0 | EG82: 0 | EH82: 0 | EI82: 0 | EJ82: 0 | EK82: 0 | EL82: 0.00 | EM82: 0 | EQ82: 0 | ER82: 0 | ES82: 0 | EX82: 0 | FE82: 0 | FF82: 0 | FG82: 0 | FH82: 0 | FL82: 0 | FM82: / | FN82: 200 | FO82: 0/200 | FP82: 0 | FQ82: / | FR82: 200 | FS82: 0/200 | FT82: 0 | FU82: / | FV82: 100 | FW82: 0/100 | FX82: 0 | FY82: / | FZ82: 100 | GA82: 0/100 | GB82: 0 | GC82: / | GD82: 200 | GE82: 0/200
A83: 0 | B83: 75 | C83: 75 | D83: 0 | L83: 0 | M83: 0 | N83: 0 | O83: 0 | P83: 0 | Q83: 0 | R83: 0 | S83: 0 | T83: 0 | U83: 0 | V83: 0.00 | Z83: 0 | AA83: 0 | AB83: 0 | AC83: 0 | AD83: 0 | AE83: 0 | AF83: 0 | AG83: 0 | AH83: 0 | AI83: 0 | AJ83: 0.00 | AN83: 0 | AO83: 0 | AP83: 0 | AQ83: 0 | AR83: 0 | AS83: 0 | AT83: 0 | AU83: 0 | AV83: 0 | AW83: 0 | AX83: 0.00 | BB83: 0 | BC83: 0 | BD83: 0 | BE83: 0 | BF83: 0 | BG83: 0 | BH83: 0 | BI83: 0 | BJ83: 0 | BK83: 0 | BL83: 0.00 | BP83: 0 | BQ83: 0 | BR83: 0 | BS83: 0 | BT83: 0 | BU83: 0 | BV83: 0 | BW83: 0 | BX83: 0 | BY83: 0 | BZ83: 0.00 | CD83: 0 | CE83: 0 | CF83: 0 | CG83: 0 | CH83: 0 | CI83: 0 | CJ83: 0 | CK83: 0 | CL83: 0 | CM83: 0 | CN83: 0.00 | CR83: 0 | CS83: 0 | CT83: 0 | CU83: 0 | CV83: 0 | CW83: 0 | CX83: 0 | CY83: 0 | CZ83: 0 | DA83: 0 | DB83: 0.00 | DC83: 0 | DD83: 0 | DE83: 0 | DF83: 0 | DG83: 0 | DH83: 0 | DI83: 0 | DJ83: 0 | DK83: 0 | DL83: 0 | DM83: 0 | DN83: 0.00 | DO83: 0 | DP83: 0 | DQ83: 0 | DR83: 0 | DS83: 0 | DT83: 0.00 | DU83: 0 | DV83: 0 | DW83: 0 | DX83: 0 | DY83: 0 | DZ83: 0.00 | EA83: 0 | EB83: 0 | EC83: 0 | ED83: 0 | EE83: 0 | EF83: 0 | EG83: 0 | EH83: 0 | EI83: 0 | EJ83: 0 | EK83: 0 | EL83: 0.00 | EM83: 0 | EQ83: 0 | ER83: 0 | ES83: 0 | EX83: 0 | FE83: 0 | FF83: 0 | FG83: 0 | FH83: 0 | FL83: 0 | FM83: / | FN83: 200 | FO83: 0/200 | FP83: 0 | FQ83: / | FR83: 200 | FS83: 0/200 | FT83: 0 | FU83: / | FV83: 100 | FW83: 0/100 | FX83: 0 | FY83: / | FZ83: 100 | GA83: 0/100 | GB83: 0 | GC83: / | GD83: 200 | GE83: 0/200
A84: 0 | B84: 76 | C84: 76 | D84: 0 | L84: 0 | M84: 0 | N84: 0 | O84: 0 | P84: 0 | Q84: 0 | R84: 0 | S84: 0 | T84: 0 | U84: 0 | V84: 0.00 | Z84: 0 | AA84: 0 | AB84: 0 | AC84: 0 | AD84: 0 | AE84: 0 | AF84: 0 | AG84: 0 | AH84: 0 | AI84: 0 | AJ84: 0.00 | AN84: 0 | AO84: 0 | AP84: 0 | AQ84: 0 | AR84: 0 | AS84: 0 | AT84: 0 | AU84: 0 | AV84: 0 | AW84: 0 | AX84: 0.00 | BB84: 0 | BC84: 0 | BD84: 0 | BE84: 0 | BF84: 0 | BG84: 0 | BH84: 0 | BI84: 0 | BJ84: 0 | BK84: 0 | BL84: 0.00 | BP84: 0 | BQ84: 0 | BR84: 0 | BS84: 0 | BT84: 0 | BU84: 0 | BV84: 0 | BW84: 0 | BX84: 0 | BY84: 0 | BZ84: 0.00 | CD84: 0 | CE84: 0 | CF84: 0 | CG84: 0 | CH84: 0 | CI84: 0 | CJ84: 0 | CK84: 0 | CL84: 0 | CM84: 0 | CN84: 0.00 | CR84: 0 | CS84: 0 | CT84: 0 | CU84: 0 | CV84: 0 | CW84: 0 | CX84: 0 | CY84: 0 | CZ84: 0 | DA84: 0 | DB84: 0.00 | DC84: 0 | DD84: 0 | DE84: 0 | DF84: 0 | DG84: 0 | DH84: 0 | DI84: 0 | DJ84: 0 | DK84: 0 | DL84: 0 | DM84: 0 | DN84: 0.00 | DO84: 0 | DP84: 0 | DQ84: 0 | DR84: 0 | DS84: 0 | DT84: 0.00 | DU84: 0 | DV84: 0 | DW84: 0 | DX84: 0 | DY84: 0 | DZ84: 0.00 | EA84: 0 | EB84: 0 | EC84: 0 | ED84: 0 | EE84: 0 | EF84: 0 | EG84: 0 | EH84: 0 | EI84: 0 | EJ84: 0 | EK84: 0 | EL84: 0.00 | EM84: 0 | EQ84: 0 | ER84: 0 | ES84: 0 | EX84: 0 | FE84: 0 | FF84: 0 | FG84: 0 | FH84: 0 | FL84: 0 | FM84: / | FN84: 200 | FO84: 0/200 | FP84: 0 | FQ84: / | FR84: 200 | FS84: 0/200 | FT84: 0 | FU84: / | FV84: 100 | FW84: 0/100 | FX84: 0 | FY84: / | FZ84: 100 | GA84: 0/100 | GB84: 0 | GC84: / | GD84: 200 | GE84: 0/200
A85: 0 | B85: 77 | C85: 77 | D85: 0 | L85: 0 | M85: 0 | N85: 0 | O85: 0 | P85: 0 | Q85: 0 | R85: 0 | S85: 0 | T85: 0 | U85: 0 | V85: 0.00 | Z85: 0 | AA85: 0 | AB85: 0 | AC85: 0 | AD85: 0 | AE85: 0 | AF85: 0 | AG85: 0 | AH85: 0 | AI85: 0 | AJ85: 0.00 | AN85: 0 | AO85: 0 | AP85: 0 | AQ85: 0 | AR85: 0 | AS85: 0 | AT85: 0 | AU85: 0 | AV85: 0 | AW85: 0 | AX85: 0.00 | BB85: 0 | BC85: 0 | BD85: 0 | BE85: 0 | BF85: 0 | BG85: 0 | BH85: 0 | BI85: 0 | BJ85: 0 | BK85: 0 | BL85: 0.00 | BP85: 0 | BQ85: 0 | BR85: 0 | BS85: 0 | BT85: 0 | BU85: 0 | BV85: 0 | BW85: 0 | BX85: 0 | BY85: 0 | BZ85: 0.00 | CD85: 0 | CE85: 0 | CF85: 0 | CG85: 0 | CH85: 0 | CI85: 0 | CJ85: 0 | CK85: 0 | CL85: 0 | CM85: 0 | CN85: 0.00 | CR85: 0 | CS85: 0 | CT85: 0 | CU85: 0 | CV85: 0 | CW85: 0 | CX85: 0 | CY85: 0 | CZ85: 0 | DA85: 0 | DB85: 0.00 | DC85: 0 | DD85: 0 | DE85: 0 | DF85: 0 | DG85: 0 | DH85: 0 | DI85: 0 | DJ85: 0 | DK85: 0 | DL85: 0 | DM85: 0 | DN85: 0.00 | DO85: 0 | DP85: 0 | DQ85: 0 | DR85: 0 | DS85: 0 | DT85: 0.00 | DU85: 0 | DV85: 0 | DW85: 0 | DX85: 0 | DY85: 0 | DZ85: 0.00 | EA85: 0 | EB85: 0 | EC85: 0 | ED85: 0 | EE85: 0 | EF85: 0 | EG85: 0 | EH85: 0 | EI85: 0 | EJ85: 0 | EK85: 0 | EL85: 0.00 | EM85: 0 | EQ85: 0 | ER85: 0 | ES85: 0 | EX85: 0 | FE85: 0 | FF85: 0 | FG85: 0 | FH85: 0 | FL85: 0 | FM85: / | FN85: 200 | FO85: 0/200 | FP85: 0 | FQ85: / | FR85: 200 | FS85: 0/200 | FT85: 0 | FU85: / | FV85: 100 | FW85: 0/100 | FX85: 0 | FY85: / | FZ85: 100 | GA85: 0/100 | GB85: 0 | GC85: / | GD85: 200 | GE85: 0/200
A86: 0 | B86: 78 | C86: 78 | D86: 0 | L86: 0 | M86: 0 | N86: 0 | O86: 0 | P86: 0 | Q86: 0 | R86: 0 | S86: 0 | T86: 0 | U86: 0 | V86: 0.00 | Z86: 0 | AA86: 0 | AB86: 0 | AC86: 0 | AD86: 0 | AE86: 0 | AF86: 0 | AG86: 0 | AH86: 0 | AI86: 0 | AJ86: 0.00 | AN86: 0 | AO86: 0 | AP86: 0 | AQ86: 0 | AR86: 0 | AS86: 0 | AT86: 0 | AU86: 0 | AV86: 0 | AW86: 0 | AX86: 0.00 | BB86: 0 | BC86: 0 | BD86: 0 | BE86: 0 | BF86: 0 | BG86: 0 | BH86: 0 | BI86: 0 | BJ86: 0 | BK86: 0 | BL86: 0.00 | BP86: 0 | BQ86: 0 | BR86: 0 | BS86: 0 | BT86: 0 | BU86: 0 | BV86: 0 | BW86: 0 | BX86: 0 | BY86: 0 | BZ86: 0.00 | CD86: 0 | CE86: 0 | CF86: 0 | CG86: 0 | CH86: 0 | CI86: 0 | CJ86: 0 | CK86: 0 | CL86: 0 | CM86: 0 | CN86: 0.00 | CR86: 0 | CS86: 0 | CT86: 0 | CU86: 0 | CV86: 0 | CW86: 0 | CX86: 0 | CY86: 0 | CZ86: 0 | DA86: 0 | DB86: 0.00 | DC86: 0 | DD86: 0 | DE86: 0 | DF86: 0 | DG86: 0 | DH86: 0 | DI86: 0 | DJ86: 0 | DK86: 0 | DL86: 0 | DM86: 0 | DN86: 0.00 | DO86: 0 | DP86: 0 | DQ86: 0 | DR86: 0 | DS86: 0 | DT86: 0.00 | DU86: 0 | DV86: 0 | DW86: 0 | DX86: 0 | DY86: 0 | DZ86: 0.00 | EA86: 0 | EB86: 0 | EC86: 0 | ED86: 0 | EE86: 0 | EF86: 0 | EG86: 0 | EH86: 0 | EI86: 0 | EJ86: 0 | EK86: 0 | EL86: 0.00 | EM86: 0 | EQ86: 0 | ER86: 0 | ES86: 0 | EX86: 0 | FE86: 0 | FF86: 0 | FG86: 0 | FH86: 0 | FL86: 0 | FM86: / | FN86: 200 | FO86: 0/200 | FP86: 0 | FQ86: / | FR86: 200 | FS86: 0/200 | FT86: 0 | FU86: / | FV86: 100 | FW86: 0/100 | FX86: 0 | FY86: / | FZ86: 100 | GA86: 0/100 | GB86: 0 | GC86: / | GD86: 200 | GE86: 0/200
A87: 0 | B87: 79 | C87: 79 | D87: 0 | L87: 0 | M87: 0 | N87: 0 | O87: 0 | P87: 0 | Q87: 0 | R87: 0 | S87: 0 | T87: 0 | U87: 0 | V87: 0.00 | Z87: 0 | AA87: 0 | AB87: 0 | AC87: 0 | AD87: 0 | AE87: 0 | AF87: 0 | AG87: 0 | AH87: 0 | AI87: 0 | AJ87: 0.00 | AN87: 0 | AO87: 0 | AP87: 0 | AQ87: 0 | AR87: 0 | AS87: 0 | AT87: 0 | AU87: 0 | AV87: 0 | AW87: 0 | AX87: 0.00 | BB87: 0 | BC87: 0 | BD87: 0 | BE87: 0 | BF87: 0 | BG87: 0 | BH87: 0 | BI87: 0 | BJ87: 0 | BK87: 0 | BL87: 0.00 | BP87: 0 | BQ87: 0 | BR87: 0 | BS87: 0 | BT87: 0 | BU87: 0 | BV87: 0 | BW87: 0 | BX87: 0 | BY87: 0 | BZ87: 0.00 | CD87: 0 | CE87: 0 | CF87: 0 | CG87: 0 | CH87: 0 | CI87: 0 | CJ87: 0 | CK87: 0 | CL87: 0 | CM87: 0 | CN87: 0.00 | CR87: 0 | CS87: 0 | CT87: 0 | CU87: 0 | CV87: 0 | CW87: 0 | CX87: 0 | CY87: 0 | CZ87: 0 | DA87: 0 | DB87: 0.00 | DC87: 0 | DD87: 0 | DE87: 0 | DF87: 0 | DG87: 0 | DH87: 0 | DI87: 0 | DJ87: 0 | DK87: 0 | DL87: 0 | DM87: 0 | DN87: 0.00 | DO87: 0 | DP87: 0 | DQ87: 0 | DR87: 0 | DS87: 0 | DT87: 0.00 | DU87: 0 | DV87: 0 | DW87: 0 | DX87: 0 | DY87: 0 | DZ87: 0.00 | EA87: 0 | EB87: 0 | EC87: 0 | ED87: 0 | EE87: 0 | EF87: 0 | EG87: 0 | EH87: 0 | EI87: 0 | EJ87: 0 | EK87: 0 | EL87: 0.00 | EM87: 0 | EQ87: 0 | ER87: 0 | ES87: 0 | EX87: 0 | FE87: 0 | FF87: 0 | FG87: 0 | FH87: 0 | FL87: 0 | FM87: / | FN87: 200 | FO87: 0/200 | FP87: 0 | FQ87: / | FR87: 200 | FS87: 0/200 | FT87: 0 | FU87: / | FV87: 100 | FW87: 0/100 | FX87: 0 | FY87: / | FZ87: 100 | GA87: 0/100 | GB87: 0 | GC87: / | GD87: 200 | GE87: 0/200
A88: 0 | B88: 80 | C88: 80 | D88: 0 | L88: 0 | M88: 0 | N88: 0 | O88: 0 | P88: 0 | Q88: 0 | R88: 0 | S88: 0 | T88: 0 | U88: 0 | V88: 0.00 | Z88: 0 | AA88: 0 | AB88: 0 | AC88: 0 | AD88: 0 | AE88: 0 | AF88: 0 | AG88: 0 | AH88: 0 | AI88: 0 | AJ88: 0.00 | AN88: 0 | AO88: 0 | AP88: 0 | AQ88: 0 | AR88: 0 | AS88: 0 | AT88: 0 | AU88: 0 | AV88: 0 | AW88: 0 | AX88: 0.00 | BB88: 0 | BC88: 0 | BD88: 0 | BE88: 0 | BF88: 0 | BG88: 0 | BH88: 0 | BI88: 0 | BJ88: 0 | BK88: 0 | BL88: 0.00 | BP88: 0 | BQ88: 0 | BR88: 0 | BS88: 0 | BT88: 0 | BU88: 0 | BV88: 0 | BW88: 0 | BX88: 0 | BY88: 0 | BZ88: 0.00 | CD88: 0 | CE88: 0 | CF88: 0 | CG88: 0 | CH88: 0 | CI88: 0 | CJ88: 0 | CK88: 0 | CL88: 0 | CM88: 0 | CN88: 0.00 | CR88: 0 | CS88: 0 | CT88: 0 | CU88: 0 | CV88: 0 | CW88: 0 | CX88: 0 | CY88: 0 | CZ88: 0 | DA88: 0 | DB88: 0.00 | DC88: 0 | DD88: 0 | DE88: 0 | DF88: 0 | DG88: 0 | DH88: 0 | DI88: 0 | DJ88: 0 | DK88: 0 | DL88: 0 | DM88: 0 | DN88: 0.00 | DO88: 0 | DP88: 0 | DQ88: 0 | DR88: 0 | DS88: 0 | DT88: 0.00 | DU88: 0 | DV88: 0 | DW88: 0 | DX88: 0 | DY88: 0 | DZ88: 0.00 | EA88: 0 | EB88: 0 | EC88: 0 | ED88: 0 | EE88: 0 | EF88: 0 | EG88: 0 | EH88: 0 | EI88: 0 | EJ88: 0 | EK88: 0 | EL88: 0.00 | EM88: 0 | EQ88: 0 | ER88: 0 | ES88: 0 | EX88: 0 | FE88: 0 | FF88: 0 | FG88: 0 | FH88: 0 | FL88: 0 | FM88: / | FN88: 200 | FO88: 0/200 | FP88: 0 | FQ88: / | FR88: 200 | FS88: 0/200 | FT88: 0 | FU88: / | FV88: 100 | FW88: 0/100 | FX88: 0 | FY88: / | FZ88: 100 | GA88: 0/100 | GB88: 0 | GC88: / | GD88: 200 | GE88: 0/200
A89: 0 | B89: 81 | C89: 81 | D89: 0 | L89: 0 | M89: 0 | N89: 0 | O89: 0 | P89: 0 | Q89: 0 | R89: 0 | S89: 0 | T89: 0 | U89: 0 | V89: 0.00 | Z89: 0 | AA89: 0 | AB89: 0 | AC89: 0 | AD89: 0 | AE89: 0 | AF89: 0 | AG89: 0 | AH89: 0 | AI89: 0 | AJ89: 0.00 | AN89: 0 | AO89: 0 | AP89: 0 | AQ89: 0 | AR89: 0 | AS89: 0 | AT89: 0 | AU89: 0 | AV89: 0 | AW89: 0 | AX89: 0.00 | BB89: 0 | BC89: 0 | BD89: 0 | BE89: 0 | BF89: 0 | BG89: 0 | BH89: 0 | BI89: 0 | BJ89: 0 | BK89: 0 | BL89: 0.00 | BP89: 0 | BQ89: 0 | BR89: 0 | BS89: 0 | BT89: 0 | BU89: 0 | BV89: 0 | BW89: 0 | BX89: 0 | BY89: 0 | BZ89: 0.00 | CD89: 0 | CE89: 0 | CF89: 0 | CG89: 0 | CH89: 0 | CI89: 0 | CJ89: 0 | CK89: 0 | CL89: 0 | CM89: 0 | CN89: 0.00 | CR89: 0 | CS89: 0 | CT89: 0 | CU89: 0 | CV89: 0 | CW89: 0 | CX89: 0 | CY89: 0 | CZ89: 0 | DA89: 0 | DB89: 0.00 | DC89: 0 | DD89: 0 | DE89: 0 | DF89: 0 | DG89: 0 | DH89: 0 | DI89: 0 | DJ89: 0 | DK89: 0 | DL89: 0 | DM89: 0 | DN89: 0.00 | DO89: 0 | DP89: 0 | DQ89: 0 | DR89: 0 | DS89: 0 | DT89: 0.00 | DU89: 0 | DV89: 0 | DW89: 0 | DX89: 0 | DY89: 0 | DZ89: 0.00 | EA89: 0 | EB89: 0 | EC89: 0 | ED89: 0 | EE89: 0 | EF89: 0 | EG89: 0 | EH89: 0 | EI89: 0 | EJ89: 0 | EK89: 0 | EL89: 0.00 | EM89: 0 | EQ89: 0 | ER89: 0 | ES89: 0 | EX89: 0 | FE89: 0 | FF89: 0 | FG89: 0 | FH89: 0 | FL89: 0 | FM89: / | FN89: 200 | FO89: 0/200 | FP89: 0 | FQ89: / | FR89: 200 | FS89: 0/200 | FT89: 0 | FU89: / | FV89: 100 | FW89: 0/100 | FX89: 0 | FY89: / | FZ89: 100 | GA89: 0/100 | GB89: 0 | GC89: / | GD89: 200 | GE89: 0/200
A90: 0 | B90: 82 | C90: 82 | D90: 0 | L90: 0 | M90: 0 | N90: 0 | O90: 0 | P90: 0 | Q90: 0 | R90: 0 | S90: 0 | T90: 0 | U90: 0 | V90: 0.00 | Z90: 0 | AA90: 0 | AB90: 0 | AC90: 0 | AD90: 0 | AE90: 0 | AF90: 0 | AG90: 0 | AH90: 0 | AI90: 0 | AJ90: 0.00 | AN90: 0 | AO90: 0 | AP90: 0 | AQ90: 0 | AR90: 0 | AS90: 0 | AT90: 0 | AU90: 0 | AV90: 0 | AW90: 0 | AX90: 0.00 | BB90: 0 | BC90: 0 | BD90: 0 | BE90: 0 | BF90: 0 | BG90: 0 | BH90: 0 | BI90: 0 | BJ90: 0 | BK90: 0 | BL90: 0.00 | BP90: 0 | BQ90: 0 | BR90: 0 | BS90: 0 | BT90: 0 | BU90: 0 | BV90: 0 | BW90: 0 | BX90: 0 | BY90: 0 | BZ90: 0.00 | CD90: 0 | CE90: 0 | CF90: 0 | CG90: 0 | CH90: 0 | CI90: 0 | CJ90: 0 | CK90: 0 | CL90: 0 | CM90: 0 | CN90: 0.00 | CR90: 0 | CS90: 0 | CT90: 0 | CU90: 0 | CV90: 0 | CW90: 0 | CX90: 0 | CY90: 0 | CZ90: 0 | DA90: 0 | DB90: 0.00 | DC90: 0 | DD90: 0 | DE90: 0 | DF90: 0 | DG90: 0 | DH90: 0 | DI90: 0 | DJ90: 0 | DK90: 0 | DL90: 0 | DM90: 0 | DN90: 0.00 | DO90: 0 | DP90: 0 | DQ90: 0 | DR90: 0 | DS90: 0 | DT90: 0.00 | DU90: 0 | DV90: 0 | DW90: 0 | DX90: 0 | DY90: 0 | DZ90: 0.00 | EA90: 0 | EB90: 0 | EC90: 0 | ED90: 0 | EE90: 0 | EF90: 0 | EG90: 0 | EH90: 0 | EI90: 0 | EJ90: 0 | EK90: 0 | EL90: 0.00 | EM90: 0 | EQ90: 0 | ER90: 0 | ES90: 0 | EX90: 0 | FE90: 0 | FF90: 0 | FG90: 0 | FH90: 0 | FL90: 0 | FM90: / | FN90: 200 | FO90: 0/200 | FP90: 0 | FQ90: / | FR90: 200 | FS90: 0/200 | FT90: 0 | FU90: / | FV90: 100 | FW90: 0/100 | FX90: 0 | FY90: / | FZ90: 100 | GA90: 0/100 | GB90: 0 | GC90: / | GD90: 200 | GE90: 0/200
A91: 0 | B91: 83 | C91: 83 | D91: 0 | L91: 0 | M91: 0 | N91: 0 | O91: 0 | P91: 0 | Q91: 0 | R91: 0 | S91: 0 | T91: 0 | U91: 0 | V91: 0.00 | Z91: 0 | AA91: 0 | AB91: 0 | AC91: 0 | AD91: 0 | AE91: 0 | AF91: 0 | AG91: 0 | AH91: 0 | AI91: 0 | AJ91: 0.00 | AN91: 0 | AO91: 0 | AP91: 0 | AQ91: 0 | AR91: 0 | AS91: 0 | AT91: 0 | AU91: 0 | AV91: 0 | AW91: 0 | AX91: 0.00 | BB91: 0 | BC91: 0 | BD91: 0 | BE91: 0 | BF91: 0 | BG91: 0 | BH91: 0 | BI91: 0 | BJ91: 0 | BK91: 0 | BL91: 0.00 | BP91: 0 | BQ91: 0 | BR91: 0 | BS91: 0 | BT91: 0 | BU91: 0 | BV91: 0 | BW91: 0 | BX91: 0 | BY91: 0 | BZ91: 0.00 | CD91: 0 | CE91: 0 | CF91: 0 | CG91: 0 | CH91: 0 | CI91: 0 | CJ91: 0 | CK91: 0 | CL91: 0 | CM91: 0 | CN91: 0.00 | CR91: 0 | CS91: 0 | CT91: 0 | CU91: 0 | CV91: 0 | CW91: 0 | CX91: 0 | CY91: 0 | CZ91: 0 | DA91: 0 | DB91: 0.00 | DC91: 0 | DD91: 0 | DE91: 0 | DF91: 0 | DG91: 0 | DH91: 0 | DI91: 0 | DJ91: 0 | DK91: 0 | DL91: 0 | DM91: 0 | DN91: 0.00 | DO91: 0 | DP91: 0 | DQ91: 0 | DR91: 0 | DS91: 0 | DT91: 0.00 | DU91: 0 | DV91: 0 | DW91: 0 | DX91: 0 | DY91: 0 | DZ91: 0.00 | EA91: 0 | EB91: 0 | EC91: 0 | ED91: 0 | EE91: 0 | EF91: 0 | EG91: 0 | EH91: 0 | EI91: 0 | EJ91: 0 | EK91: 0 | EL91: 0.00 | EM91: 0 | EQ91: 0 | ER91: 0 | ES91: 0 | EX91: 0 | FE91: 0 | FF91: 0 | FG91: 0 | FH91: 0 | FL91: 0 | FM91: / | FN91: 200 | FO91: 0/200 | FP91: 0 | FQ91: / | FR91: 200 | FS91: 0/200 | FT91: 0 | FU91: / | FV91: 100 | FW91: 0/100 | FX91: 0 | FY91: / | FZ91: 100 | GA91: 0/100 | GB91: 0 | GC91: / | GD91: 200 | GE91: 0/200
A92: 0 | B92: 84 | C92: 84 | D92: 0 | L92: 0 | M92: 0 | N92: 0 | O92: 0 | P92: 0 | Q92: 0 | R92: 0 | S92: 0 | T92: 0 | U92: 0 | V92: 0.00 | Z92: 0 | AA92: 0 | AB92: 0 | AC92: 0 | AD92: 0 | AE92: 0 | AF92: 0 | AG92: 0 | AH92: 0 | AI92: 0 | AJ92: 0.00 | AN92: 0 | AO92: 0 | AP92: 0 | AQ92: 0 | AR92: 0 | AS92: 0 | AT92: 0 | AU92: 0 | AV92: 0 | AW92: 0 | AX92: 0.00 | BB92: 0 | BC92: 0 | BD92: 0 | BE92: 0 | BF92: 0 | BG92: 0 | BH92: 0 | BI92: 0 | BJ92: 0 | BK92: 0 | BL92: 0.00 | BP92: 0 | BQ92: 0 | BR92: 0 | BS92: 0 | BT92: 0 | BU92: 0 | BV92: 0 | BW92: 0 | BX92: 0 | BY92: 0 | BZ92: 0.00 | CD92: 0 | CE92: 0 | CF92: 0 | CG92: 0 | CH92: 0 | CI92: 0 | CJ92: 0 | CK92: 0 | CL92: 0 | CM92: 0 | CN92: 0.00 | CR92: 0 | CS92: 0 | CT92: 0 | CU92: 0 | CV92: 0 | CW92: 0 | CX92: 0 | CY92: 0 | CZ92: 0 | DA92: 0 | DB92: 0.00 | DC92: 0 | DD92: 0 | DE92: 0 | DF92: 0 | DG92: 0 | DH92: 0 | DI92: 0 | DJ92: 0 | DK92: 0 | DL92: 0 | DM92: 0 | DN92: 0.00 | DO92: 0 | DP92: 0 | DQ92: 0 | DR92: 0 | DS92: 0 | DT92: 0.00 | DU92: 0 | DV92: 0 | DW92: 0 | DX92: 0 | DY92: 0 | DZ92: 0.00 | EA92: 0 | EB92: 0 | EC92: 0 | ED92: 0 | EE92: 0 | EF92: 0 | EG92: 0 | EH92: 0 | EI92: 0 | EJ92: 0 | EK92: 0 | EL92: 0.00 | EM92: 0 | EQ92: 0 | ER92: 0 | ES92: 0 | EX92: 0 | FE92: 0 | FF92: 0 | FG92: 0 | FH92: 0 | FL92: 0 | FM92: / | FN92: 200 | FO92: 0/200 | FP92: 0 | FQ92: / | FR92: 200 | FS92: 0/200 | FT92: 0 | FU92: / | FV92: 100 | FW92: 0/100 | FX92: 0 | FY92: / | FZ92: 100 | GA92: 0/100 | GB92: 0 | GC92: / | GD92: 200 | GE92: 0/200
A93: 0 | B93: 85 | C93: 85 | D93: 0 | L93: 0 | M93: 0 | N93: 0 | O93: 0 | P93: 0 | Q93: 0 | R93: 0 | S93: 0 | T93: 0 | U93: 0 | V93: 0.00 | Z93: 0 | AA93: 0 | AB93: 0 | AC93: 0 | AD93: 0 | AE93: 0 | AF93: 0 | AG93: 0 | AH93: 0 | AI93: 0 | AJ93: 0.00 | AN93: 0 | AO93: 0 | AP93: 0 | AQ93: 0 | AR93: 0 | AS93: 0 | AT93: 0 | AU93: 0 | AV93: 0 | AW93: 0 | AX93: 0.00 | BB93: 0 | BC93: 0 | BD93: 0 | BE93: 0 | BF93: 0 | BG93: 0 | BH93: 0 | BI93: 0 | BJ93: 0 | BK93: 0 | BL93: 0.00 | BP93: 0 | BQ93: 0 | BR93: 0 | BS93: 0 | BT93: 0 | BU93: 0 | BV93: 0 | BW93: 0 | BX93: 0 | BY93: 0 | BZ93: 0.00 | CD93: 0 | CE93: 0 | CF93: 0 | CG93: 0 | CH93: 0 | CI93: 0 | CJ93: 0 | CK93: 0 | CL93: 0 | CM93: 0 | CN93: 0.00 | CR93: 0 | CS93: 0 | CT93: 0 | CU93: 0 | CV93: 0 | CW93: 0 | CX93: 0 | CY93: 0 | CZ93: 0 | DA93: 0 | DB93: 0.00 | DC93: 0 | DD93: 0 | DE93: 0 | DF93: 0 | DG93: 0 | DH93: 0 | DI93: 0 | DJ93: 0 | DK93: 0 | DL93: 0 | DM93: 0 | DN93: 0.00 | DO93: 0 | DP93: 0 | DQ93: 0 | DR93: 0 | DS93: 0 | DT93: 0.00 | DU93: 0 | DV93: 0 | DW93: 0 | DX93: 0 | DY93: 0 | DZ93: 0.00 | EA93: 0 | EB93: 0 | EC93: 0 | ED93: 0 | EE93: 0 | EF93: 0 | EG93: 0 | EH93: 0 | EI93: 0 | EJ93: 0 | EK93: 0 | EL93: 0.00 | EM93: 0 | EQ93: 0 | ER93: 0 | ES93: 0 | EX93: 0 | FE93: 0 | FF93: 0 | FG93: 0 | FH93: 0 | FL93: 0 | FM93: / | FN93: 200 | FO93: 0/200 | FP93: 0 | FQ93: / | FR93: 200 | FS93: 0/200 | FT93: 0 | FU93: / | FV93: 100 | FW93: 0/100 | FX93: 0 | FY93: / | FZ93: 100 | GA93: 0/100 | GB93: 0 | GC93: / | GD93: 200 | GE93: 0/200
A94: 0 | B94: 86 | C94: 86 | D94: 0 | L94: 0 | M94: 0 | N94: 0 | O94: 0 | P94: 0 | Q94: 0 | R94: 0 | S94: 0 | T94: 0 | U94: 0 | V94: 0.00 | Z94: 0 | AA94: 0 | AB94: 0 | AC94: 0 | AD94: 0 | AE94: 0 | AF94: 0 | AG94: 0 | AH94: 0 | AI94: 0 | AJ94: 0.00 | AN94: 0 | AO94: 0 | AP94: 0 | AQ94: 0 | AR94: 0 | AS94: 0 | AT94: 0 | AU94: 0 | AV94: 0 | AW94: 0 | AX94: 0.00 | BB94: 0 | BC94: 0 | BD94: 0 | BE94: 0 | BF94: 0 | BG94: 0 | BH94: 0 | BI94: 0 | BJ94: 0 | BK94: 0 | BL94: 0.00 | BP94: 0 | BQ94: 0 | BR94: 0 | BS94: 0 | BT94: 0 | BU94: 0 | BV94: 0 | BW94: 0 | BX94: 0 | BY94: 0 | BZ94: 0.00 | CD94: 0 | CE94: 0 | CF94: 0 | CG94: 0 | CH94: 0 | CI94: 0 | CJ94: 0 | CK94: 0 | CL94: 0 | CM94: 0 | CN94: 0.00 | CR94: 0 | CS94: 0 | CT94: 0 | CU94: 0 | CV94: 0 | CW94: 0 | CX94: 0 | CY94: 0 | CZ94: 0 | DA94: 0 | DB94: 0.00 | DC94: 0 | DD94: 0 | DE94: 0 | DF94: 0 | DG94: 0 | DH94: 0 | DI94: 0 | DJ94: 0 | DK94: 0 | DL94: 0 | DM94: 0 | DN94: 0.00 | DO94: 0 | DP94: 0 | DQ94: 0 | DR94: 0 | DS94: 0 | DT94: 0.00 | DU94: 0 | DV94: 0 | DW94: 0 | DX94: 0 | DY94: 0 | DZ94: 0.00 | EA94: 0 | EB94: 0 | EC94: 0 | ED94: 0 | EE94: 0 | EF94: 0 | EG94: 0 | EH94: 0 | EI94: 0 | EJ94: 0 | EK94: 0 | EL94: 0.00 | EM94: 0 | EQ94: 0 | ER94: 0 | ES94: 0 | EX94: 0 | FE94: 0 | FF94: 0 | FG94: 0 | FH94: 0 | FL94: 0 | FM94: / | FN94: 200 | FO94: 0/200 | FP94: 0 | FQ94: / | FR94: 200 | FS94: 0/200 | FT94: 0 | FU94: / | FV94: 100 | FW94: 0/100 | FX94: 0 | FY94: / | FZ94: 100 | GA94: 0/100 | GB94: 0 | GC94: / | GD94: 200 | GE94: 0/200
A95: 0 | B95: 87 | C95: 87 | D95: 0 | L95: 0 | M95: 0 | N95: 0 | O95: 0 | P95: 0 | Q95: 0 | R95: 0 | S95: 0 | T95: 0 | U95: 0 | V95: 0.00 | Z95: 0 | AA95: 0 | AB95: 0 | AC95: 0 | AD95: 0 | AE95: 0 | AF95: 0 | AG95: 0 | AH95: 0 | AI95: 0 | AJ95: 0.00 | AN95: 0 | AO95: 0 | AP95: 0 | AQ95: 0 | AR95: 0 | AS95: 0 | AT95: 0 | AU95: 0 | AV95: 0 | AW95: 0 | AX95: 0.00 | BB95: 0 | BC95: 0 | BD95: 0 | BE95: 0 | BF95: 0 | BG95: 0 | BH95: 0 | BI95: 0 | BJ95: 0 | BK95: 0 | BL95: 0.00 | BP95: 0 | BQ95: 0 | BR95: 0 | BS95: 0 | BT95: 0 | BU95: 0 | BV95: 0 | BW95: 0 | BX95: 0 | BY95: 0 | BZ95: 0.00 | CD95: 0 | CE95: 0 | CF95: 0 | CG95: 0 | CH95: 0 | CI95: 0 | CJ95: 0 | CK95: 0 | CL95: 0 | CM95: 0 | CN95: 0.00 | CR95: 0 | CS95: 0 | CT95: 0 | CU95: 0 | CV95: 0 | CW95: 0 | CX95: 0 | CY95: 0 | CZ95: 0 | DA95: 0 | DB95: 0.00 | DC95: 0 | DD95: 0 | DE95: 0 | DF95: 0 | DG95: 0 | DH95: 0 | DI95: 0 | DJ95: 0 | DK95: 0 | DL95: 0 | DM95: 0 | DN95: 0.00 | DO95: 0 | DP95: 0 | DQ95: 0 | DR95: 0 | DS95: 0 | DT95: 0.00 | DU95: 0 | DV95: 0 | DW95: 0 | DX95: 0 | DY95: 0 | DZ95: 0.00 | EA95: 0 | EB95: 0 | EC95: 0 | ED95: 0 | EE95: 0 | EF95: 0 | EG95: 0 | EH95: 0 | EI95: 0 | EJ95: 0 | EK95: 0 | EL95: 0.00 | EM95: 0 | EQ95: 0 | ER95: 0 | ES95: 0 | EX95: 0 | FE95: 0 | FF95: 0 | FG95: 0 | FH95: 0 | FL95: 0 | FM95: / | FN95: 200 | FO95: 0/200 | FP95: 0 | FQ95: / | FR95: 200 | FS95: 0/200 | FT95: 0 | FU95: / | FV95: 100 | FW95: 0/100 | FX95: 0 | FY95: / | FZ95: 100 | GA95: 0/100 | GB95: 0 | GC95: / | GD95: 200 | GE95: 0/200
A96: 0 | B96: 88 | C96: 88 | D96: 0 | L96: 0 | M96: 0 | N96: 0 | O96: 0 | P96: 0 | Q96: 0 | R96: 0 | S96: 0 | T96: 0 | U96: 0 | V96: 0.00 | Z96: 0 | AA96: 0 | AB96: 0 | AC96: 0 | AD96: 0 | AE96: 0 | AF96: 0 | AG96: 0 | AH96: 0 | AI96: 0 | AJ96: 0.00 | AN96: 0 | AO96: 0 | AP96: 0 | AQ96: 0 | AR96: 0 | AS96: 0 | AT96: 0 | AU96: 0 | AV96: 0 | AW96: 0 | AX96: 0.00 | BB96: 0 | BC96: 0 | BD96: 0 | BE96: 0 | BF96: 0 | BG96: 0 | BH96: 0 | BI96: 0 | BJ96: 0 | BK96: 0 | BL96: 0.00 | BP96: 0 | BQ96: 0 | BR96: 0 | BS96: 0 | BT96: 0 | BU96: 0 | BV96: 0 | BW96: 0 | BX96: 0 | BY96: 0 | BZ96: 0.00 | CD96: 0 | CE96: 0 | CF96: 0 | CG96: 0 | CH96: 0 | CI96: 0 | CJ96: 0 | CK96: 0 | CL96: 0 | CM96: 0 | CN96: 0.00 | CR96: 0 | CS96: 0 | CT96: 0 | CU96: 0 | CV96: 0 | CW96: 0 | CX96: 0 | CY96: 0 | CZ96: 0 | DA96: 0 | DB96: 0.00 | DC96: 0 | DD96: 0 | DE96: 0 | DF96: 0 | DG96: 0 | DH96: 0 | DI96: 0 | DJ96: 0 | DK96: 0 | DL96: 0 | DM96: 0 | DN96: 0.00 | DO96: 0 | DP96: 0 | DQ96: 0 | DR96: 0 | DS96: 0 | DT96: 0.00 | DU96: 0 | DV96: 0 | DW96: 0 | DX96: 0 | DY96: 0 | DZ96: 0.00 | EA96: 0 | EB96: 0 | EC96: 0 | ED96: 0 | EE96: 0 | EF96: 0 | EG96: 0 | EH96: 0 | EI96: 0 | EJ96: 0 | EK96: 0 | EL96: 0.00 | EM96: 0 | EQ96: 0 | ER96: 0 | ES96: 0 | EX96: 0 | FE96: 0 | FF96: 0 | FG96: 0 | FH96: 0 | FL96: 0 | FM96: / | FN96: 200 | FO96: 0/200 | FP96: 0 | FQ96: / | FR96: 200 | FS96: 0/200 | FT96: 0 | FU96: / | FV96: 100 | FW96: 0/100 | FX96: 0 | FY96: / | FZ96: 100 | GA96: 0/100 | GB96: 0 | GC96: / | GD96: 200 | GE96: 0/200
A97: 0 | B97: 89 | C97: 89 | D97: 0 | L97: 0 | M97: 0 | N97: 0 | O97: 0 | P97: 0 | Q97: 0 | R97: 0 | S97: 0 | T97: 0 | U97: 0 | V97: 0.00 | Z97: 0 | AA97: 0 | AB97: 0 | AC97: 0 | AD97: 0 | AE97: 0 | AF97: 0 | AG97: 0 | AH97: 0 | AI97: 0 | AJ97: 0.00 | AN97: 0 | AO97: 0 | AP97: 0 | AQ97: 0 | AR97: 0 | AS97: 0 | AT97: 0 | AU97: 0 | AV97: 0 | AW97: 0 | AX97: 0.00 | BB97: 0 | BC97: 0 | BD97: 0 | BE97: 0 | BF97: 0 | BG97: 0 | BH97: 0 | BI97: 0 | BJ97: 0 | BK97: 0 | BL97: 0.00 | BP97: 0 | BQ97: 0 | BR97: 0 | BS97: 0 | BT97: 0 | BU97: 0 | BV97: 0 | BW97: 0 | BX97: 0 | BY97: 0 | BZ97: 0.00 | CD97: 0 | CE97: 0 | CF97: 0 | CG97: 0 | CH97: 0 | CI97: 0 | CJ97: 0 | CK97: 0 | CL97: 0 | CM97: 0 | CN97: 0.00 | CR97: 0 | CS97: 0 | CT97: 0 | CU97: 0 | CV97: 0 | CW97: 0 | CX97: 0 | CY97: 0 | CZ97: 0 | DA97: 0 | DB97: 0.00 | DC97: 0 | DD97: 0 | DE97: 0 | DF97: 0 | DG97: 0 | DH97: 0 | DI97: 0 | DJ97: 0 | DK97: 0 | DL97: 0 | DM97: 0 | DN97: 0.00 | DO97: 0 | DP97: 0 | DQ97: 0 | DR97: 0 | DS97: 0 | DT97: 0.00 | DU97: 0 | DV97: 0 | DW97: 0 | DX97: 0 | DY97: 0 | DZ97: 0.00 | EA97: 0 | EB97: 0 | EC97: 0 | ED97: 0 | EE97: 0 | EF97: 0 | EG97: 0 | EH97: 0 | EI97: 0 | EJ97: 0 | EK97: 0 | EL97: 0.00 | EM97: 0 | EQ97: 0 | ER97: 0 | ES97: 0 | EX97: 0 | FE97: 0 | FF97: 0 | FG97: 0 | FH97: 0 | FL97: 0 | FM97: / | FN97: 200 | FO97: 0/200 | FP97: 0 | FQ97: / | FR97: 200 | FS97: 0/200 | FT97: 0 | FU97: / | FV97: 100 | FW97: 0/100 | FX97: 0 | FY97: / | FZ97: 100 | GA97: 0/100 | GB97: 0 | GC97: / | GD97: 200 | GE97: 0/200
A98: 0 | B98: 90 | C98: 90 | D98: 0 | L98: 0 | M98: 0 | N98: 0 | O98: 0 | P98: 0 | Q98: 0 | R98: 0 | S98: 0 | T98: 0 | U98: 0 | V98: 0.00 | Z98: 0 | AA98: 0 | AB98: 0 | AC98: 0 | AD98: 0 | AE98: 0 | AF98: 0 | AG98: 0 | AH98: 0 | AI98: 0 | AJ98: 0.00 | AN98: 0 | AO98: 0 | AP98: 0 | AQ98: 0 | AR98: 0 | AS98: 0 | AT98: 0 | AU98: 0 | AV98: 0 | AW98: 0 | AX98: 0.00 | BB98: 0 | BC98: 0 | BD98: 0 | BE98: 0 | BF98: 0 | BG98: 0 | BH98: 0 | BI98: 0 | BJ98: 0 | BK98: 0 | BL98: 0.00 | BP98: 0 | BQ98: 0 | BR98: 0 | BS98: 0 | BT98: 0 | BU98: 0 | BV98: 0 | BW98: 0 | BX98: 0 | BY98: 0 | BZ98: 0.00 | CD98: 0 | CE98: 0 | CF98: 0 | CG98: 0 | CH98: 0 | CI98: 0 | CJ98: 0 | CK98: 0 | CL98: 0 | CM98: 0 | CN98: 0.00 | CR98: 0 | CS98: 0 | CT98: 0 | CU98: 0 | CV98: 0 | CW98: 0 | CX98: 0 | CY98: 0 | CZ98: 0 | DA98: 0 | DB98: 0.00 | DC98: 0 | DD98: 0 | DE98: 0 | DF98: 0 | DG98: 0 | DH98: 0 | DI98: 0 | DJ98: 0 | DK98: 0 | DL98: 0 | DM98: 0 | DN98: 0.00 | DO98: 0 | DP98: 0 | DQ98: 0 | DR98: 0 | DS98: 0 | DT98: 0.00 | DU98: 0 | DV98: 0 | DW98: 0 | DX98: 0 | DY98: 0 | DZ98: 0.00 | EA98: 0 | EB98: 0 | EC98: 0 | ED98: 0 | EE98: 0 | EF98: 0 | EG98: 0 | EH98: 0 | EI98: 0 | EJ98: 0 | EK98: 0 | EL98: 0.00 | EM98: 0 | EQ98: 0 | ER98: 0 | ES98: 0 | EX98: 0 | FE98: 0 | FF98: 0 | FG98: 0 | FH98: 0 | FL98: 0 | FM98: / | FN98: 200 | FO98: 0/200 | FP98: 0 | FQ98: / | FR98: 200 | FS98: 0/200 | FT98: 0 | FU98: / | FV98: 100 | FW98: 0/100 | FX98: 0 | FY98: / | FZ98: 100 | GA98: 0/100 | GB98: 0 | GC98: / | GD98: 200 | GE98: 0/200
A99: 0 | B99: 91 | C99: 91 | D99: 0 | L99: 0 | M99: 0 | N99: 0 | O99: 0 | P99: 0 | Q99: 0 | R99: 0 | S99: 0 | T99: 0 | U99: 0 | V99: 0.00 | Z99: 0 | AA99: 0 | AB99: 0 | AC99: 0 | AD99: 0 | AE99: 0 | AF99: 0 | AG99: 0 | AH99: 0 | AI99: 0 | AJ99: 0.00 | AN99: 0 | AO99: 0 | AP99: 0 | AQ99: 0 | AR99: 0 | AS99: 0 | AT99: 0 | AU99: 0 | AV99: 0 | AW99: 0 | AX99: 0.00 | BB99: 0 | BC99: 0 | BD99: 0 | BE99: 0 | BF99: 0 | BG99: 0 | BH99: 0 | BI99: 0 | BJ99: 0 | BK99: 0 | BL99: 0.00 | BP99: 0 | BQ99: 0 | BR99: 0 | BS99: 0 | BT99: 0 | BU99: 0 | BV99: 0 | BW99: 0 | BX99: 0 | BY99: 0 | BZ99: 0.00 | CD99: 0 | CE99: 0 | CF99: 0 | CG99: 0 | CH99: 0 | CI99: 0 | CJ99: 0 | CK99: 0 | CL99: 0 | CM99: 0 | CN99: 0.00 | CR99: 0 | CS99: 0 | CT99: 0 | CU99: 0 | CV99: 0 | CW99: 0 | CX99: 0 | CY99: 0 | CZ99: 0 | DA99: 0 | DB99: 0.00 | DC99: 0 | DD99: 0 | DE99: 0 | DF99: 0 | DG99: 0 | DH99: 0 | DI99: 0 | DJ99: 0 | DK99: 0 | DL99: 0 | DM99: 0 | DN99: 0.00 | DO99: 0 | DP99: 0 | DQ99: 0 | DR99: 0 | DS99: 0 | DT99: 0.00 | DU99: 0 | DV99: 0 | DW99: 0 | DX99: 0 | DY99: 0 | DZ99: 0.00 | EA99: 0 | EB99: 0 | EC99: 0 | ED99: 0 | EE99: 0 | EF99: 0 | EG99: 0 | EH99: 0 | EI99: 0 | EJ99: 0 | EK99: 0 | EL99: 0.00 | EM99: 0 | EQ99: 0 | ER99: 0 | ES99: 0 | EX99: 0 | FE99: 0 | FF99: 0 | FG99: 0 | FH99: 0 | FL99: 0 | FM99: / | FN99: 200 | FO99: 0/200 | FP99: 0 | FQ99: / | FR99: 200 | FS99: 0/200 | FT99: 0 | FU99: / | FV99: 100 | FW99: 0/100 | FX99: 0 | FY99: / | FZ99: 100 | GA99: 0/100 | GB99: 0 | GC99: / | GD99: 200 | GE99: 0/200
A100: 0 | B100: 92 | C100: 92 | D100: 0 | L100: 0 | M100: 0 | N100: 0 | O100: 0 | P100: 0 | Q100: 0 | R100: 0 | S100: 0 | T100: 0 | U100: 0 | V100: 0.00 | Z100: 0 | AA100: 0 | AB100: 0 | AC100: 0 | AD100: 0 | AE100: 0 | AF100: 0 | AG100: 0 | AH100: 0 | AI100: 0 | AJ100: 0.00 | AN100: 0 | AO100: 0 | AP100: 0 | AQ100: 0 | AR100: 0 | AS100: 0 | AT100: 0 | AU100: 0 | AV100: 0 | AW100: 0 | AX100: 0.00 | BB100: 0 | BC100: 0 | BD100: 0 | BE100: 0 | BF100: 0 | BG100: 0 | BH100: 0 | BI100: 0 | BJ100: 0 | BK100: 0 | BL100: 0.00 | BP100: 0 | BQ100: 0 | BR100: 0 | BS100: 0 | BT100: 0 | BU100: 0 | BV100: 0 | BW100: 0 | BX100: 0 | BY100: 0 | BZ100: 0.00 | CD100: 0 | CE100: 0 | CF100: 0 | CG100: 0 | CH100: 0 | CI100: 0 | CJ100: 0 | CK100: 0 | CL100: 0 | CM100: 0 | CN100: 0.00 | CR100: 0 | CS100: 0 | CT100: 0 | CU100: 0 | CV100: 0 | CW100: 0 | CX100: 0 | CY100: 0 | CZ100: 0 | DA100: 0 | DB100: 0.00 | DC100: 0 | DD100: 0 | DE100: 0 | DF100: 0 | DG100: 0 | DH100: 0 | DI100: 0 | DJ100: 0 | DK100: 0 | DL100: 0 | DM100: 0 | DN100: 0.00 | DO100: 0 | DP100: 0 | DQ100: 0 | DR100: 0 | DS100: 0 | DT100: 0.00 | DU100: 0 | DV100: 0 | DW100: 0 | DX100: 0 | DY100: 0 | DZ100: 0.00 | EA100: 0 | EB100: 0 | EC100: 0 | ED100: 0 | EE100: 0 | EF100: 0 | EG100: 0 | EH100: 0 | EI100: 0 | EJ100: 0 | EK100: 0 | EL100: 0.00 | EM100: 0 | EQ100: 0 | ER100: 0 | ES100: 0 | EX100: 0 | FE100: 0 | FF100: 0 | FG100: 0 | FH100: 0 | FL100: 0 | FM100: / | FN100: 200 | FO100: 0/200 | FP100: 0 | FQ100: / | FR100: 200 | FS100: 0/200 | FT100: 0 | FU100: / | FV100: 100 | FW100: 0/100 | FX100: 0 | FY100: / | FZ100: 100 | GA100: 0/100 | GB100: 0 | GC100: / | GD100: 200 | GE100: 0/200
A101: 0 | B101: 93 | C101: 93 | D101: 0 | L101: 0 | M101: 0 | N101: 0 | O101: 0 | P101: 0 | Q101: 0 | R101: 0 | S101: 0 | T101: 0 | U101: 0 | V101: 0.00 | Z101: 0 | AA101: 0 | AB101: 0 | AC101: 0 | AD101: 0 | AE101: 0 | AF101: 0 | AG101: 0 | AH101: 0 | AI101: 0 | AJ101: 0.00 | AN101: 0 | AO101: 0 | AP101: 0 | AQ101: 0 | AR101: 0 | AS101: 0 | AT101: 0 | AU101: 0 | AV101: 0 | AW101: 0 | AX101: 0.00 | BB101: 0 | BC101: 0 | BD101: 0 | BE101: 0 | BF101: 0 | BG101: 0 | BH101: 0 | BI101: 0 | BJ101: 0 | BK101: 0 | BL101: 0.00 | BP101: 0 | BQ101: 0 | BR101: 0 | BS101: 0 | BT101: 0 | BU101: 0 | BV101: 0 | BW101: 0 | BX101: 0 | BY101: 0 | BZ101: 0.00 | CD101: 0 | CE101: 0 | CF101: 0 | CG101: 0 | CH101: 0 | CI101: 0 | CJ101: 0 | CK101: 0 | CL101: 0 | CM101: 0 | CN101: 0.00 | CR101: 0 | CS101: 0 | CT101: 0 | CU101: 0 | CV101: 0 | CW101: 0 | CX101: 0 | CY101: 0 | CZ101: 0 | DA101: 0 | DB101: 0.00 | DC101: 0 | DD101: 0 | DE101: 0 | DF101: 0 | DG101: 0 | DH101: 0 | DI101: 0 | DJ101: 0 | DK101: 0 | DL101: 0 | DM101: 0 | DN101: 0.00 | DO101: 0 | DP101: 0 | DQ101: 0 | DR101: 0 | DS101: 0 | DT101: 0.00 | DU101: 0 | DV101: 0 | DW101: 0 | DX101: 0 | DY101: 0 | DZ101: 0.00 | EA101: 0 | EB101: 0 | EC101: 0 | ED101: 0 | EE101: 0 | EF101: 0 | EG101: 0 | EH101: 0 | EI101: 0 | EJ101: 0 | EK101: 0 | EL101: 0.00 | EM101: 0 | EQ101: 0 | ER101: 0 | ES101: 0 | EX101: 0 | FE101: 0 | FF101: 0 | FG101: 0 | FH101: 0 | FL101: 0 | FM101: / | FN101: 200 | FO101: 0/200 | FP101: 0 | FQ101: / | FR101: 200 | FS101: 0/200 | FT101: 0 | FU101: / | FV101: 100 | FW101: 0/100 | FX101: 0 | FY101: / | FZ101: 100 | GA101: 0/100 | GB101: 0 | GC101: / | GD101: 200 | GE101: 0/200
A102: 0 | B102: 94 | C102: 94 | D102: 0 | L102: 0 | M102: 0 | N102: 0 | O102: 0 | P102: 0 | Q102: 0 | R102: 0 | S102: 0 | T102: 0 | U102: 0 | V102: 0.00 | Z102: 0 | AA102: 0 | AB102: 0 | AC102: 0 | AD102: 0 | AE102: 0 | AF102: 0 | AG102: 0 | AH102: 0 | AI102: 0 | AJ102: 0.00 | AN102: 0 | AO102: 0 | AP102: 0 | AQ102: 0 | AR102: 0 | AS102: 0 | AT102: 0 | AU102: 0 | AV102: 0 | AW102: 0 | AX102: 0.00 | BB102: 0 | BC102: 0 | BD102: 0 | BE102: 0 | BF102: 0 | BG102: 0 | BH102: 0 | BI102: 0 | BJ102: 0 | BK102: 0 | BL102: 0.00 | BP102: 0 | BQ102: 0 | BR102: 0 | BS102: 0 | BT102: 0 | BU102: 0 | BV102: 0 | BW102: 0 | BX102: 0 | BY102: 0 | BZ102: 0.00 | CD102: 0 | CE102: 0 | CF102: 0 | CG102: 0 | CH102: 0 | CI102: 0 | CJ102: 0 | CK102: 0 | CL102: 0 | CM102: 0 | CN102: 0.00 | CR102: 0 | CS102: 0 | CT102: 0 | CU102: 0 | CV102: 0 | CW102: 0 | CX102: 0 | CY102: 0 | CZ102: 0 | DA102: 0 | DB102: 0.00 | DC102: 0 | DD102: 0 | DE102: 0 | DF102: 0 | DG102: 0 | DH102: 0 | DI102: 0 | DJ102: 0 | DK102: 0 | DL102: 0 | DM102: 0 | DN102: 0.00 | DO102: 0 | DP102: 0 | DQ102: 0 | DR102: 0 | DS102: 0 | DT102: 0.00 | DU102: 0 | DV102: 0 | DW102: 0 | DX102: 0 | DY102: 0 | DZ102: 0.00 | EA102: 0 | EB102: 0 | EC102: 0 | ED102: 0 | EE102: 0 | EF102: 0 | EG102: 0 | EH102: 0 | EI102: 0 | EJ102: 0 | EK102: 0 | EL102: 0.00 | EM102: 0 | EQ102: 0 | ER102: 0 | ES102: 0 | EX102: 0 | FE102: 0 | FF102: 0 | FG102: 0 | FH102: 0 | FL102: 0 | FM102: / | FN102: 200 | FO102: 0/200 | FP102: 0 | FQ102: / | FR102: 200 | FS102: 0/200 | FT102: 0 | FU102: / | FV102: 100 | FW102: 0/100 | FX102: 0 | FY102: / | FZ102: 100 | GA102: 0/100 | GB102: 0 | GC102: / | GD102: 200 | GE102: 0/200
A103: 0 | B103: 95 | C103: 95 | D103: 0 | L103: 0 | M103: 0 | N103: 0 | O103: 0 | P103: 0 | Q103: 0 | R103: 0 | S103: 0 | T103: 0 | U103: 0 | V103: 0.00 | Z103: 0 | AA103: 0 | AB103: 0 | AC103: 0 | AD103: 0 | AE103: 0 | AF103: 0 | AG103: 0 | AH103: 0 | AI103: 0 | AJ103: 0.00 | AN103: 0 | AO103: 0 | AP103: 0 | AQ103: 0 | AR103: 0 | AS103: 0 | AT103: 0 | AU103: 0 | AV103: 0 | AW103: 0 | AX103: 0.00 | BB103: 0 | BC103: 0 | BD103: 0 | BE103: 0 | BF103: 0 | BG103: 0 | BH103: 0 | BI103: 0 | BJ103: 0 | BK103: 0 | BL103: 0.00 | BP103: 0 | BQ103: 0 | BR103: 0 | BS103: 0 | BT103: 0 | BU103: 0 | BV103: 0 | BW103: 0 | BX103: 0 | BY103: 0 | BZ103: 0.00 | CD103: 0 | CE103: 0 | CF103: 0 | CG103: 0 | CH103: 0 | CI103: 0 | CJ103: 0 | CK103: 0 | CL103: 0 | CM103: 0 | CN103: 0.00 | CR103: 0 | CS103: 0 | CT103: 0 | CU103: 0 | CV103: 0 | CW103: 0 | CX103: 0 | CY103: 0 | CZ103: 0 | DA103: 0 | DB103: 0.00 | DC103: 0 | DD103: 0 | DE103: 0 | DF103: 0 | DG103: 0 | DH103: 0 | DI103: 0 | DJ103: 0 | DK103: 0 | DL103: 0 | DM103: 0 | DN103: 0.00 | DO103: 0 | DP103: 0 | DQ103: 0 | DR103: 0 | DS103: 0 | DT103: 0.00 | DU103: 0 | DV103: 0 | DW103: 0 | DX103: 0 | DY103: 0 | DZ103: 0.00 | EA103: 0 | EB103: 0 | EC103: 0 | ED103: 0 | EE103: 0 | EF103: 0 | EG103: 0 | EH103: 0 | EI103: 0 | EJ103: 0 | EK103: 0 | EL103: 0.00 | EM103: 0 | EQ103: 0 | ER103: 0 | ES103: 0 | EX103: 0 | FE103: 0 | FF103: 0 | FG103: 0 | FH103: 0 | FL103: 0 | FM103: / | FN103: 200 | FO103: 0/200 | FP103: 0 | FQ103: / | FR103: 200 | FS103: 0/200 | FT103: 0 | FU103: / | FV103: 100 | FW103: 0/100 | FX103: 0 | FY103: / | FZ103: 100 | GA103: 0/100 | GB103: 0 | GC103: / | GD103: 200 | GE103: 0/200
A104: 0 | B104: 96 | C104: 96 | D104: 0 | L104: 0 | M104: 0 | N104: 0 | O104: 0 | P104: 0 | Q104: 0 | R104: 0 | S104: 0 | T104: 0 | U104: 0 | V104: 0.00 | Z104: 0 | AA104: 0 | AB104: 0 | AC104: 0 | AD104: 0 | AE104: 0 | AF104: 0 | AG104: 0 | AH104: 0 | AI104: 0 | AJ104: 0.00 | AN104: 0 | AO104: 0 | AP104: 0 | AQ104: 0 | AR104: 0 | AS104: 0 | AT104: 0 | AU104: 0 | AV104: 0 | AW104: 0 | AX104: 0.00 | BB104: 0 | BC104: 0 | BD104: 0 | BE104: 0 | BF104: 0 | BG104: 0 | BH104: 0 | BI104: 0 | BJ104: 0 | BK104: 0 | BL104: 0.00 | BP104: 0 | BQ104: 0 | BR104: 0 | BS104: 0 | BT104: 0 | BU104: 0 | BV104: 0 | BW104: 0 | BX104: 0 | BY104: 0 | BZ104: 0.00 | CD104: 0 | CE104: 0 | CF104: 0 | CG104: 0 | CH104: 0 | CI104: 0 | CJ104: 0 | CK104: 0 | CL104: 0 | CM104: 0 | CN104: 0.00 | CR104: 0 | CS104: 0 | CT104: 0 | CU104: 0 | CV104: 0 | CW104: 0 | CX104: 0 | CY104: 0 | CZ104: 0 | DA104: 0 | DB104: 0.00 | DC104: 0 | DD104: 0 | DE104: 0 | DF104: 0 | DG104: 0 | DH104: 0 | DI104: 0 | DJ104: 0 | DK104: 0 | DL104: 0 | DM104: 0 | DN104: 0.00 | DO104: 0 | DP104: 0 | DQ104: 0 | DR104: 0 | DS104: 0 | DT104: 0.00 | DU104: 0 | DV104: 0 | DW104: 0 | DX104: 0 | DY104: 0 | DZ104: 0.00 | EA104: 0 | EB104: 0 | EC104: 0 | ED104: 0 | EE104: 0 | EF104: 0 | EG104: 0 | EH104: 0 | EI104: 0 | EJ104: 0 | EK104: 0 | EL104: 0.00 | EM104: 0 | EQ104: 0 | ER104: 0 | ES104: 0 | EX104: 0 | FE104: 0 | FF104: 0 | FG104: 0 | FH104: 0 | FL104: 0 | FM104: / | FN104: 200 | FO104: 0/200 | FP104: 0 | FQ104: / | FR104: 200 | FS104: 0/200 | FT104: 0 | FU104: / | FV104: 100 | FW104: 0/100 | FX104: 0 | FY104: / | FZ104: 100 | GA104: 0/100 | GB104: 0 | GC104: / | GD104: 200 | GE104: 0/200
A105: 0 | B105: 97 | C105: 97 | D105: 0 | L105: 0 | M105: 0 | N105: 0 | O105: 0 | P105: 0 | Q105: 0 | R105: 0 | S105: 0 | T105: 0 | U105: 0 | V105: 0.00 | Z105: 0 | AA105: 0 | AB105: =SUM(Z105:AA105) -> 0 | AC105: 0 | AD105: 0 | AE105: =SUM(AC105,AD105) -> 0 | AF105: 0 | AG105: =IF($S$7="NA","NA",0) -> 0 | AH105: 0 | AI105: =SUM(AB105,AE105,AH105) -> 0 | AJ105: 0.00 | AK105: =IF(AF105="AB","AB",IF(AND(OR(Z105="ab",Z105="ml"),OR(AA105="ab",AA105="ml"),OR(AC105="ab",AC105="ml")),"AB",IF(AND(OR(Z105="ab",Z105="ml"),OR(AC105="ab",AC105="ml")),"AB",""))) ->  | AL105: =IF(OR($G105="NSO",$G105="",AF105=""),"",IF(OR(AK105="AB",AF105="ab"),"AB",IF(AJ105>36,"P",IF(AJ105>34,"G2",IF(AJ105>31,"G1",IF(AJ105>25,"S","F")))))) ->  | AM105: =IF(OR(AL105="",AL105=0,AL105="S",AL105="F",AL105="AB"),AL105,IF(AJ105>=75,"D",IF(AJ105>=60,"I",IF(AJ105>=48,"II",IF(AJ105>=36,"III",AL105))))) ->  | AN105: 0 | AO105: 0 | AP105: 0 | AQ105: 0 | AR105: 0 | AS105: =SUM(AQ105,AR105) -> 0 | AT105: 0 | AU105: =IF($S$7="NA","NA",0) -> 0 | AV105: 0 | AW105: =SUM(AP105,AS105,AV105) -> 0 | AX105: 0.00 | AY105: =IF(AT105="AB","AB",IF(AND(OR(AN105="ab",AN105="ml"),OR(AO105="ab",AO105="ml"),OR(AQ105="ab",AQ105="ml")),"AB",IF(AND(OR(AN105="ab",AN105="ml"),OR(AQ105="ab",AQ105="ml")),"AB",""))) ->  | AZ105: =IF(OR($G105="NSO",$G105="",AT105=""),"",IF(OR(AY105="AB",AT105="ab"),"AB",IF(AX105>36,"P",IF(AX105>34,"G2",IF(AX105>31,"G1",IF(AX105>25,"S","F")))))) ->  | BA105: =IF(OR(AZ105="",AZ105=0,AZ105="S",AZ105="F",AZ105="AB"),AZ105,IF(AX105>=75,"D",IF(AX105>=60,"I",IF(AX105>=48,"II",IF(AX105>=36,"III",AZ105))))) ->  | BB105: 0 | BC105: 0 | BD105: 0 | BE105: 0 | BF105: 0 | BG105: =SUM(BE105,BF105) -> 0 | BH105: 0 | BI105: =IF($S$7="NA","NA",0) -> 0 | BJ105: 0 | BK105: =SUM(BD105,BG105,BJ105) -> 0 | BL105: 0.00 | BM105: =IF(BH105="AB","AB",IF(AND(OR(BB105="ab",BB105="ml"),OR(BC105="ab",BC105="ml"),OR(BE105="ab",BE105="ml")),"AB",IF(AND(OR(BB105="ab",BB105="ml"),OR(BE105="ab",BE105="ml")),"AB",""))) ->  | BN105: =IF(OR($G105="NSO",$G105="",BH105=""),"",IF(OR(BM105="AB",BH105="ab"),"AB",IF(BL105>36,"P",IF(BL105>34,"G2",IF(BL105>31,"G1",IF(BL105>25,"S","F")))))) ->  | BO105: =IF(OR(BN105="",BN105=0,BN105="S",BN105="F",BN105="AB"),BN105,IF(BL105>=75,"D",IF(BL105>=60,"I",IF(BL105>=48,"II",IF(BL105>=36,"III",BN105))))) ->  | BP105: 0 | BQ105: 0 | BR105: 0 | BS105: 0 | BT105: 0 | BU105: =SUM(BS105,BT105) -> 0 | BV105: 0 | BW105: =IF($S$7="NA","NA",0) -> 0 | BX105: 0 | BY105: =SUM(BR105,BU105,BX105) -> 0 | BZ105: 0.00 | CA105: =IF(BV105="AB","AB",IF(AND(OR(BP105="ab",BP105="ml"),OR(BQ105="ab",BQ105="ml"),OR(BS105="ab",BS105="ml")),"AB",IF(AND(OR(BP105="ab",BP105="ml"),OR(BS105="ab",BS105="ml")),"AB",""))) ->  | CB105: =IF(OR($G105="NSO",$G105="",BV105=""),"",IF(OR(CA105="AB",BV105="ab"),"AB",IF(BZ105>36,"P",IF(BZ105>34,"G2",IF(BZ105>31,"G1",IF(BZ105>25,"S","F")))))) ->  | CC105: =IF(OR(CB105="",CB105=0,CB105="S",CB105="F",CB105="AB"),CB105,IF(BZ105>=75,"D",IF(BZ105>=60,"I",IF(BZ105>=48,"II",IF(BZ105>=36,"III",CB105))))) ->  | CD105: 0 | CE105: 0 | CF105: 0 | CG105: 0 | CH105: 0 | CI105: =SUM(CG105,CH105) -> 0 | CJ105: 0 | CK105: =IF($S$7="NA","NA",0) -> 0 | CL105: 0 | CM105: =SUM(CF105,CI105,CL105) -> 0 | CN105: 0.00 | CO105: =IF(CJ105="AB","AB",IF(AND(OR(CD105="ab",CD105="ml"),OR(CE105="ab",CE105="ml"),OR(CG105="ab",CG105="ml")),"AB",IF(AND(OR(CD105="ab",CD105="ml"),OR(CG105="ab",CG105="ml")),"AB",""))) ->  | CP105: =IF(OR($G105="NSO",$G105="",CJ105=""),"",IF(OR(CO105="AB",CJ105="ab"),"AB",IF(CN105>36,"P",IF(CN105>34,"G2",IF(CN105>31,"G1",IF(CN105>25,"S","F")))))) ->  | CQ105: =IF(OR(CP105="",CP105=0,CP105="S",CP105="F",CP105="AB"),CP105,IF(CN105>=75,"D",IF(CN105>=60,"I",IF(CN105>=48,"II",IF(CN105>=36,"III",CP105))))) ->  | CR105: 0 | CS105: 0 | CT105: 0 | CU105: 0 | CV105: 0 | CW105: =SUM(CU105,CV105) -> 0 | CX105: 0 | CY105: =IF($S$7="NA","NA",0) -> 0 | CZ105: 0 | DA105: =SUM(CT105,CW105,CZ105) -> 0 | DB105: 0.00 | DC105: 0 | DD105: 0 | DE105: 0 | DF105: 0 | DG105: 0 | DH105: 0 | DI105: =SUM(DG105,DH105) -> 0 | DJ105: 0 | DK105: =IF($S$7="NA","NA",0) -> 0 | DL105: 0 | DM105: =SUM(DF105,DI105,DL105) -> 0 | DN105: 0.00 | DO105: 0 | DP105: 0 | DQ105: 0 | DR105: 0 | DS105: 0 | DT105: 0.00 | DU105: 0 | DV105: 0 | DW105: 0 | DX105: 0 | DY105: 0 | DZ105: 0.00 | EA105: 0 | EB105: 0 | EC105: 0 | ED105: 0 | EE105: 0 | EF105: 0 | EG105: =SUM(EE105,EF105) -> 0 | EH105: 0 | EI105: =IF($S$7="NA","NA",0) -> 0 | EJ105: 0 | EK105: =SUM(ED105,EG105,EJ105) -> 0 | EL105: 0.00 | EM105: 0 | EQ105: 0 | ER105: 0 | ES105: 0 | EX105: 0 | FE105: 0 | FF105: 0 | FG105: 0 | FH105: 0 | FL105: 0 | FM105: / | FN105: 200 | FO105: 0/200 | FP105: 0 | FQ105: / | FR105: 200 | FS105: 0/200 | FT105: 0 | FU105: / | FV105: 100 | FW105: 0/100 | FX105: 0 | FY105: / | FZ105: 100 | GA105: 0/100 | GB105: 0 | GC105: / | GD105: 200 | GE105: 0/200
A106: 0 | B106: 98 | C106: 98 | D106: 0 | L106: 0 | M106: 0 | N106: 0 | O106: 0 | P106: 0 | Q106: 0 | R106: 0 | S106: 0 | T106: 0 | U106: 0 | V106: 0.00 | Z106: 0 | AA106: 0 | AB106: =SUM(Z106:AA106) -> 0 | AC106: 0 | AD106: 0 | AE106: =SUM(AC106,AD106) -> 0 | AF106: 0 | AG106: =IF($S$7="NA","NA",0) -> 0 | AH106: 0 | AI106: =SUM(AB106,AE106,AH106) -> 0 | AJ106: 0.00 | AK106: =IF(AF106="AB","AB",IF(AND(OR(Z106="ab",Z106="ml"),OR(AA106="ab",AA106="ml"),OR(AC106="ab",AC106="ml")),"AB",IF(AND(OR(Z106="ab",Z106="ml"),OR(AC106="ab",AC106="ml")),"AB",""))) ->  | AL106: =IF(OR($G106="NSO",$G106="",AF106=""),"",IF(OR(AK106="AB",AF106="ab"),"AB",IF(AJ106>36,"P",IF(AJ106>34,"G2",IF(AJ106>31,"G1",IF(AJ106>25,"S","F")))))) ->  | AM106: =IF(OR(AL106="",AL106=0,AL106="S",AL106="F",AL106="AB"),AL106,IF(AJ106>=75,"D",IF(AJ106>=60,"I",IF(AJ106>=48,"II",IF(AJ106>=36,"III",AL106))))) ->  | AN106: 0 | AO106: 0 | AP106: 0 | AQ106: 0 | AR106: 0 | AS106: =SUM(AQ106,AR106) -> 0 | AT106: 0 | AU106: =IF($S$7="NA","NA",0) -> 0 | AV106: 0 | AW106: =SUM(AP106,AS106,AV106) -> 0 | AX106: 0.00 | AY106: =IF(AT106="AB","AB",IF(AND(OR(AN106="ab",AN106="ml"),OR(AO106="ab",AO106="ml"),OR(AQ106="ab",AQ106="ml")),"AB",IF(AND(OR(AN106="ab",AN106="ml"),OR(AQ106="ab",AQ106="ml")),"AB",""))) ->  | AZ106: =IF(OR($G106="NSO",$G106="",AT106=""),"",IF(OR(AY106="AB",AT106="ab"),"AB",IF(AX106>36,"P",IF(AX106>34,"G2",IF(AX106>31,"G1",IF(AX106>25,"S","F")))))) ->  | BA106: =IF(OR(AZ106="",AZ106=0,AZ106="S",AZ106="F",AZ106="AB"),AZ106,IF(AX106>=75,"D",IF(AX106>=60,"I",IF(AX106>=48,"II",IF(AX106>=36,"III",AZ106))))) ->  | BB106: 0 | BC106: 0 | BD106: 0 | BE106: 0 | BF106: 0 | BG106: =SUM(BE106,BF106) -> 0 | BH106: 0 | BI106: =IF($S$7="NA","NA",0) -> 0 | BJ106: 0 | BK106: =SUM(BD106,BG106,BJ106) -> 0 | BL106: 0.00 | BM106: =IF(BH106="AB","AB",IF(AND(OR(BB106="ab",BB106="ml"),OR(BC106="ab",BC106="ml"),OR(BE106="ab",BE106="ml")),"AB",IF(AND(OR(BB106="ab",BB106="ml"),OR(BE106="ab",BE106="ml")),"AB",""))) ->  | BN106: =IF(OR($G106="NSO",$G106="",BH106=""),"",IF(OR(BM106="AB",BH106="ab"),"AB",IF(BL106>36,"P",IF(BL106>34,"G2",IF(BL106>31,"G1",IF(BL106>25,"S","F")))))) ->  | BO106: =IF(OR(BN106="",BN106=0,BN106="S",BN106="F",BN106="AB"),BN106,IF(BL106>=75,"D",IF(BL106>=60,"I",IF(BL106>=48,"II",IF(BL106>=36,"III",BN106))))) ->  | BP106: 0 | BQ106: 0 | BR106: 0 | BS106: 0 | BT106: 0 | BU106: =SUM(BS106,BT106) -> 0 | BV106: 0 | BW106: =IF($S$7="NA","NA",0) -> 0 | BX106: 0 | BY106: =SUM(BR106,BU106,BX106) -> 0 | BZ106: 0.00 | CA106: =IF(BV106="AB","AB",IF(AND(OR(BP106="ab",BP106="ml"),OR(BQ106="ab",BQ106="ml"),OR(BS106="ab",BS106="ml")),"AB",IF(AND(OR(BP106="ab",BP106="ml"),OR(BS106="ab",BS106="ml")),"AB",""))) ->  | CB106: =IF(OR($G106="NSO",$G106="",BV106=""),"",IF(OR(CA106="AB",BV106="ab"),"AB",IF(BZ106>36,"P",IF(BZ106>34,"G2",IF(BZ106>31,"G1",IF(BZ106>25,"S","F")))))) ->  | CC106: =IF(OR(CB106="",CB106=0,CB106="S",CB106="F",CB106="AB"),CB106,IF(BZ106>=75,"D",IF(BZ106>=60,"I",IF(BZ106>=48,"II",IF(BZ106>=36,"III",CB106))))) ->  | CD106: 0 | CE106: 0 | CF106: 0 | CG106: 0 | CH106: 0 | CI106: =SUM(CG106,CH106) -> 0 | CJ106: 0 | CK106: =IF($S$7="NA","NA",0) -> 0 | CL106: 0 | CM106: =SUM(CF106,CI106,CL106) -> 0 | CN106: 0.00 | CO106: =IF(CJ106="AB","AB",IF(AND(OR(CD106="ab",CD106="ml"),OR(CE106="ab",CE106="ml"),OR(CG106="ab",CG106="ml")),"AB",IF(AND(OR(CD106="ab",CD106="ml"),OR(CG106="ab",CG106="ml")),"AB",""))) ->  | CP106: =IF(OR($G106="NSO",$G106="",CJ106=""),"",IF(OR(CO106="AB",CJ106="ab"),"AB",IF(CN106>36,"P",IF(CN106>34,"G2",IF(CN106>31,"G1",IF(CN106>25,"S","F")))))) ->  | CQ106: =IF(OR(CP106="",CP106=0,CP106="S",CP106="F",CP106="AB"),CP106,IF(CN106>=75,"D",IF(CN106>=60,"I",IF(CN106>=48,"II",IF(CN106>=36,"III",CP106))))) ->  | CR106: 0 | CS106: 0 | CT106: 0 | CU106: 0 | CV106: 0 | CW106: =SUM(CU106,CV106) -> 0 | CX106: 0 | CY106: =IF($S$7="NA","NA",0) -> 0 | CZ106: 0 | DA106: =SUM(CT106,CW106,CZ106) -> 0 | DB106: 0.00 | DC106: 0 | DD106: 0 | DE106: 0 | DF106: 0 | DG106: 0 | DH106: 0 | DI106: =SUM(DG106,DH106) -> 0 | DJ106: 0 | DK106: =IF($S$7="NA","NA",0) -> 0 | DL106: 0 | DM106: =SUM(DF106,DI106,DL106) -> 0 | DN106: 0.00 | DO106: 0 | DP106: 0 | DQ106: 0 | DR106: 0 | DS106: 0 | DT106: 0.00 | DU106: 0 | DV106: 0 | DW106: 0 | DX106: 0 | DY106: 0 | DZ106: 0.00 | EA106: 0 | EB106: 0 | EC106: 0 | ED106: 0 | EE106: 0 | EF106: 0 | EG106: =SUM(EE106,EF106) -> 0 | EH106: 0 | EI106: =IF($S$7="NA","NA",0) -> 0 | EJ106: 0 | EK106: =SUM(ED106,EG106,EJ106) -> 0 | EL106: 0.00 | EM106: 0 | EQ106: 0 | ER106: 0 | ES106: 0 | EX106: 0 | FE106: 0 | FF106: 0 | FG106: 0 | FH106: 0 | FL106: 0 | FM106: / | FN106: 200 | FO106: 0/200 | FP106: 0 | FQ106: / | FR106: 200 | FS106: 0/200 | FT106: 0 | FU106: / | FV106: 100 | FW106: 0/100 | FX106: 0 | FY106: / | FZ106: 100 | GA106: 0/100 | GB106: 0 | GC106: / | GD106: 200 | GE106: 0/200
A107: 0 | B107: 99 | C107: 99 | D107: 0 | L107: 0 | M107: 0 | N107: 0 | O107: 0 | P107: 0 | Q107: 0 | R107: 0 | S107: 0 | T107: 0 | U107: 0 | V107: 0.00 | Z107: 0 | AA107: 0 | AB107: =SUM(Z107:AA107) -> 0 | AC107: 0 | AD107: 0 | AE107: =SUM(AC107,AD107) -> 0 | AF107: 0 | AG107: =IF($S$7="NA","NA",0) -> 0 | AH107: 0 | AI107: =SUM(AB107,AE107,AH107) -> 0 | AJ107: 0.00 | AK107: =IF(AF107="AB","AB",IF(AND(OR(Z107="ab",Z107="ml"),OR(AA107="ab",AA107="ml"),OR(AC107="ab",AC107="ml")),"AB",IF(AND(OR(Z107="ab",Z107="ml"),OR(AC107="ab",AC107="ml")),"AB",""))) ->  | AL107: =IF(OR($G107="NSO",$G107="",AF107=""),"",IF(OR(AK107="AB",AF107="ab"),"AB",IF(AJ107>36,"P",IF(AJ107>34,"G2",IF(AJ107>31,"G1",IF(AJ107>25,"S","F")))))) ->  | AM107: =IF(OR(AL107="",AL107=0,AL107="S",AL107="F",AL107="AB"),AL107,IF(AJ107>=75,"D",IF(AJ107>=60,"I",IF(AJ107>=48,"II",IF(AJ107>=36,"III",AL107))))) ->  | AN107: 0 | AO107: 0 | AP107: 0 | AQ107: 0 | AR107: 0 | AS107: =SUM(AQ107,AR107) -> 0 | AT107: 0 | AU107: =IF($S$7="NA","NA",0) -> 0 | AV107: 0 | AW107: =SUM(AP107,AS107,AV107) -> 0 | AX107: 0.00 | AY107: =IF(AT107="AB","AB",IF(AND(OR(AN107="ab",AN107="ml"),OR(AO107="ab",AO107="ml"),OR(AQ107="ab",AQ107="ml")),"AB",IF(AND(OR(AN107="ab",AN107="ml"),OR(AQ107="ab",AQ107="ml")),"AB",""))) ->  | AZ107: =IF(OR($G107="NSO",$G107="",AT107=""),"",IF(OR(AY107="AB",AT107="ab"),"AB",IF(AX107>36,"P",IF(AX107>34,"G2",IF(AX107>31,"G1",IF(AX107>25,"S","F")))))) ->  | BA107: =IF(OR(AZ107="",AZ107=0,AZ107="S",AZ107="F",AZ107="AB"),AZ107,IF(AX107>=75,"D",IF(AX107>=60,"I",IF(AX107>=48,"II",IF(AX107>=36,"III",AZ107))))) ->  | BB107: 0 | BC107: 0 | BD107: 0 | BE107: 0 | BF107: 0 | BG107: =SUM(BE107,BF107) -> 0 | BH107: 0 | BI107: =IF($S$7="NA","NA",0) -> 0 | BJ107: 0 | BK107: =SUM(BD107,BG107,BJ107) -> 0 | BL107: 0.00 | BM107: =IF(BH107="AB","AB",IF(AND(OR(BB107="ab",BB107="ml"),OR(BC107="ab",BC107="ml"),OR(BE107="ab",BE107="ml")),"AB",IF(AND(OR(BB107="ab",BB107="ml"),OR(BE107="ab",BE107="ml")),"AB",""))) ->  | BN107: =IF(OR($G107="NSO",$G107="",BH107=""),"",IF(OR(BM107="AB",BH107="ab"),"AB",IF(BL107>36,"P",IF(BL107>34,"G2",IF(BL107>31,"G1",IF(BL107>25,"S","F")))))) ->  | BO107: =IF(OR(BN107="",BN107=0,BN107="S",BN107="F",BN107="AB"),BN107,IF(BL107>=75,"D",IF(BL107>=60,"I",IF(BL107>=48,"II",IF(BL107>=36,"III",BN107))))) ->  | BP107: 0 | BQ107: 0 | BR107: 0 | BS107: 0 | BT107: 0 | BU107: =SUM(BS107,BT107) -> 0 | BV107: 0 | BW107: =IF($S$7="NA","NA",0) -> 0 | BX107: 0 | BY107: =SUM(BR107,BU107,BX107) -> 0 | BZ107: 0.00 | CA107: =IF(BV107="AB","AB",IF(AND(OR(BP107="ab",BP107="ml"),OR(BQ107="ab",BQ107="ml"),OR(BS107="ab",BS107="ml")),"AB",IF(AND(OR(BP107="ab",BP107="ml"),OR(BS107="ab",BS107="ml")),"AB",""))) ->  | CB107: =IF(OR($G107="NSO",$G107="",BV107=""),"",IF(OR(CA107="AB",BV107="ab"),"AB",IF(BZ107>36,"P",IF(BZ107>34,"G2",IF(BZ107>31,"G1",IF(BZ107>25,"S","F")))))) ->  | CC107: =IF(OR(CB107="",CB107=0,CB107="S",CB107="F",CB107="AB"),CB107,IF(BZ107>=75,"D",IF(BZ107>=60,"I",IF(BZ107>=48,"II",IF(BZ107>=36,"III",CB107))))) ->  | CD107: 0 | CE107: 0 | CF107: 0 | CG107: 0 | CH107: 0 | CI107: =SUM(CG107,CH107) -> 0 | CJ107: 0 | CK107: =IF($S$7="NA","NA",0) -> 0 | CL107: 0 | CM107: =SUM(CF107,CI107,CL107) -> 0 | CN107: 0.00 | CO107: =IF(CJ107="AB","AB",IF(AND(OR(CD107="ab",CD107="ml"),OR(CE107="ab",CE107="ml"),OR(CG107="ab",CG107="ml")),"AB",IF(AND(OR(CD107="ab",CD107="ml"),OR(CG107="ab",CG107="ml")),"AB",""))) ->  | CP107: =IF(OR($G107="NSO",$G107="",CJ107=""),"",IF(OR(CO107="AB",CJ107="ab"),"AB",IF(CN107>36,"P",IF(CN107>34,"G2",IF(CN107>31,"G1",IF(CN107>25,"S","F")))))) ->  | CQ107: =IF(OR(CP107="",CP107=0,CP107="S",CP107="F",CP107="AB"),CP107,IF(CN107>=75,"D",IF(CN107>=60,"I",IF(CN107>=48,"II",IF(CN107>=36,"III",CP107))))) ->  | CR107: 0 | CS107: 0 | CT107: 0 | CU107: 0 | CV107: 0 | CW107: =SUM(CU107,CV107) -> 0 | CX107: 0 | CY107: =IF($S$7="NA","NA",0) -> 0 | CZ107: 0 | DA107: =SUM(CT107,CW107,CZ107) -> 0 | DB107: 0.00 | DC107: 0 | DD107: 0 | DE107: 0 | DF107: 0 | DG107: 0 | DH107: 0 | DI107: =SUM(DG107,DH107) -> 0 | DJ107: 0 | DK107: =IF($S$7="NA","NA",0) -> 0 | DL107: 0 | DM107: =SUM(DF107,DI107,DL107) -> 0 | DN107: 0.00 | DO107: 0 | DP107: 0 | DQ107: 0 | DR107: 0 | DS107: 0 | DT107: 0.00 | DU107: 0 | DV107: 0 | DW107: 0 | DX107: 0 | DY107: 0 | DZ107: 0.00 | EA107: 0 | EB107: 0 | EC107: 0 | ED107: 0 | EE107: 0 | EF107: 0 | EG107: =SUM(EE107,EF107) -> 0 | EH107: 0 | EI107: =IF($S$7="NA","NA",0) -> 0 | EJ107: 0 | EK107: =SUM(ED107,EG107,EJ107) -> 0 | EL107: 0.00 | EM107: 0 | EQ107: 0 | ER107: 0 | ES107: 0 | EX107: 0 | FE107: 0 | FF107: 0 | FG107: 0 | FH107: 0 | FL107: 0 | FM107: / | FN107: 200 | FO107: 0/200 | FP107: 0 | FQ107: / | FR107: 200 | FS107: 0/200 | FT107: 0 | FU107: / | FV107: 100 | FW107: 0/100 | FX107: 0 | FY107: / | FZ107: 100 | GA107: 0/100 | GB107: 0 | GC107: / | GD107: 200 | GE107: 0/200
A108: 0 | B108: 100 | C108: 100 | D108: 0 | L108: 0 | M108: 0 | N108: =SUM(L108:M108) -> 0 | O108: 0 | P108: 0 | Q108: =SUM(O108,P108) -> 0 | R108: 0 | S108: 0 | T108: 0 | U108: =SUM(N108,Q108,T108) -> 0 | V108: 0.00 | W108: =IF(R108="AB","AB",IF(AND(OR(L108="ab",L108="ml"),OR(M108="ab",M108="ml"),OR(O108="ab",O108="ml")),"AB",IF(AND(OR(L108="ab",L108="ml"),OR(O108="ab",O108="ml")),"AB",""))) ->  | X108: =IF(OR($G108="NSO",$G108="",R108=""),"",IF(OR(W108="AB",R108="ab"),"AB",IF(V108>36,"P",IF(V108>34,"G2",IF(V108>31,"G1",IF(V108>25,"S","F")))))) ->  | Y108: =IF(OR(X108="",X108=0,X108="S",X108="F",X108="AB"),X108,IF(V108>=75,"D",IF(V108>=60,"I",IF(V108>=48,"II",IF(V108>=36,"III",X108))))) ->  | Z108: 0 | AA108: 0 | AB108: =SUM(Z108:AA108) -> 0 | AC108: 0 | AD108: 0 | AE108: =SUM(AC108,AD108) -> 0 | AF108: 0 | AG108: =IF($S$7="NA","NA",0) -> 0 | AH108: 0 | AI108: =SUM(AB108,AE108,AH108) -> 0 | AJ108: 0.00 | AK108: =IF(AF108="AB","AB",IF(AND(OR(Z108="ab",Z108="ml"),OR(AA108="ab",AA108="ml"),OR(AC108="ab",AC108="ml")),"AB",IF(AND(OR(Z108="ab",Z108="ml"),OR(AC108="ab",AC108="ml")),"AB",""))) ->  | AL108: =IF(OR($G108="NSO",$G108="",AF108=""),"",IF(OR(AK108="AB",AF108="ab"),"AB",IF(AJ108>36,"P",IF(AJ108>34,"G2",IF(AJ108>31,"G1",IF(AJ108>25,"S","F")))))) ->  | AM108: =IF(OR(AL108="",AL108=0,AL108="S",AL108="F",AL108="AB"),AL108,IF(AJ108>=75,"D",IF(AJ108>=60,"I",IF(AJ108>=48,"II",IF(AJ108>=36,"III",AL108))))) ->  | AN108: 0 | AO108: 0 | AP108: 0 | AQ108: 0 | AR108: 0 | AS108: =SUM(AQ108,AR108) -> 0 | AT108: 0 | AU108: =IF($S$7="NA","NA",0) -> 0 | AV108: 0 | AW108: =SUM(AP108,AS108,AV108) -> 0 | AX108: 0.00 | AY108: =IF(AT108="AB","AB",IF(AND(OR(AN108="ab",AN108="ml"),OR(AO108="ab",AO108="ml"),OR(AQ108="ab",AQ108="ml")),"AB",IF(AND(OR(AN108="ab",AN108="ml"),OR(AQ108="ab",AQ108="ml")),"AB",""))) ->  | AZ108: =IF(OR($G108="NSO",$G108="",AT108=""),"",IF(OR(AY108="AB",AT108="ab"),"AB",IF(AX108>36,"P",IF(AX108>34,"G2",IF(AX108>31,"G1",IF(AX108>25,"S","F")))))) ->  | BA108: =IF(OR(AZ108="",AZ108=0,AZ108="S",AZ108="F",AZ108="AB"),AZ108,IF(AX108>=75,"D",IF(AX108>=60,"I",IF(AX108>=48,"II",IF(AX108>=36,"III",AZ108))))) ->  | BB108: 0 | BC108: 0 | BD108: 0 | BE108: 0 | BF108: 0 | BG108: =SUM(BE108,BF108) -> 0 | BH108: 0 | BI108: =IF($S$7="NA","NA",0) -> 0 | BJ108: 0 | BK108: =SUM(BD108,BG108,BJ108) -> 0 | BL108: 0.00 | BM108: =IF(BH108="AB","AB",IF(AND(OR(BB108="ab",BB108="ml"),OR(BC108="ab",BC108="ml"),OR(BE108="ab",BE108="ml")),"AB",IF(AND(OR(BB108="ab",BB108="ml"),OR(BE108="ab",BE108="ml")),"AB",""))) ->  | BN108: =IF(OR($G108="NSO",$G108="",BH108=""),"",IF(OR(BM108="AB",BH108="ab"),"AB",IF(BL108>36,"P",IF(BL108>34,"G2",IF(BL108>31,"G1",IF(BL108>25,"S","F")))))) ->  | BO108: =IF(OR(BN108="",BN108=0,BN108="S",BN108="F",BN108="AB"),BN108,IF(BL108>=75,"D",IF(BL108>=60,"I",IF(BL108>=48,"II",IF(BL108>=36,"III",BN108))))) ->  | BP108: 0 | BQ108: 0 | BR108: 0 | BS108: 0 | BT108: 0 | BU108: =SUM(BS108,BT108) -> 0 | BV108: 0 | BW108: =IF($S$7="NA","NA",0) -> 0 | BX108: 0 | BY108: =SUM(BR108,BU108,BX108) -> 0 | BZ108: 0.00 | CA108: =IF(BV108="AB","AB",IF(AND(OR(BP108="ab",BP108="ml"),OR(BQ108="ab",BQ108="ml"),OR(BS108="ab",BS108="ml")),"AB",IF(AND(OR(BP108="ab",BP108="ml"),OR(BS108="ab",BS108="ml")),"AB",""))) ->  | CB108: =IF(OR($G108="NSO",$G108="",BV108=""),"",IF(OR(CA108="AB",BV108="ab"),"AB",IF(BZ108>36,"P",IF(BZ108>34,"G2",IF(BZ108>31,"G1",IF(BZ108>25,"S","F")))))) ->  | CC108: =IF(OR(CB108="",CB108=0,CB108="S",CB108="F",CB108="AB"),CB108,IF(BZ108>=75,"D",IF(BZ108>=60,"I",IF(BZ108>=48,"II",IF(BZ108>=36,"III",CB108))))) ->  | CD108: 0 | CE108: 0 | CF108: 0 | CG108: 0 | CH108: 0 | CI108: =SUM(CG108,CH108) -> 0 | CJ108: 0 | CK108: =IF($S$7="NA","NA",0) -> 0 | CL108: 0 | CM108: =SUM(CF108,CI108,CL108) -> 0 | CN108: 0.00 | CO108: =IF(CJ108="AB","AB",IF(AND(OR(CD108="ab",CD108="ml"),OR(CE108="ab",CE108="ml"),OR(CG108="ab",CG108="ml")),"AB",IF(AND(OR(CD108="ab",CD108="ml"),OR(CG108="ab",CG108="ml")),"AB",""))) ->  | CP108: =IF(OR($G108="NSO",$G108="",CJ108=""),"",IF(OR(CO108="AB",CJ108="ab"),"AB",IF(CN108>36,"P",IF(CN108>34,"G2",IF(CN108>31,"G1",IF(CN108>25,"S","F")))))) ->  | CQ108: =IF(OR(CP108="",CP108=0,CP108="S",CP108="F",CP108="AB"),CP108,IF(CN108>=75,"D",IF(CN108>=60,"I",IF(CN108>=48,"II",IF(CN108>=36,"III",CP108))))) ->  | CR108: 0 | CS108: 0 | CT108: 0 | CU108: 0 | CV108: 0 | CW108: =SUM(CU108,CV108) -> 0 | CX108: 0 | CY108: =IF($S$7="NA","NA",0) -> 0 | CZ108: 0 | DA108: =SUM(CT108,CW108,CZ108) -> 0 | DB108: 0.00 | DC108: 0 | DD108: 0 | DE108: 0 | DF108: 0 | DG108: 0 | DH108: 0 | DI108: =SUM(DG108,DH108) -> 0 | DJ108: 0 | DK108: =IF($S$7="NA","NA",0) -> 0 | DL108: 0 | DM108: =SUM(DF108,DI108,DL108) -> 0 | DN108: 0.00 | DO108: 0 | DP108: 0 | DQ108: 0 | DR108: 0 | DS108: 0 | DT108: 0.00 | DU108: 0 | DV108: 0 | DW108: 0 | DX108: 0 | DY108: 0 | DZ108: 0.00 | EA108: 0 | EB108: 0 | EC108: 0 | ED108: 0 | EE108: 0 | EF108: 0 | EG108: =SUM(EE108,EF108) -> 0 | EH108: 0 | EI108: =IF($S$7="NA","NA",0) -> 0 | EJ108: 0 | EK108: =SUM(ED108,EG108,EJ108) -> 0 | EL108: 0.00 | EM108: 0 | EQ108: 0 | ER108: 0 | ES108: 0 | EX108: 0 | FE108: 0 | FF108: 0 | FG108: 0 | FH108: 0 | FL108: 0 | FM108: / | FN108: 200 | FO108: 0/200 | FP108: 0 | FQ108: / | FR108: 200 | FS108: 0/200 | FT108: 0 | FU108: / | FV108: 100 | FW108: 0/100 | FX108: 0 | FY108: / | FZ108: 100 | GA108: 0/100 | GB108: 0 | GC108: / | GD108: 200 | GE108: 0/200
